{"text_format":"1","workbook":"xlsx","n_sheets":30,"sheets":["Introduction","Glossary","Help","AdminMenu","EQSbioavailable","ThresholdValues","flags_new","TestDataCu","Bio Ass test Data","Licence","validation","Bioavailability Assessment Tool","IntermediateResultsCu","IntermediateResultsZn","IntermediateResultsMn","IntermediateResultsNi","ModelConstantsCu","ModelConstantsZn","ModelConstantsNi","ModelConstantsMn","TestDataZn","TestDataMn","VersionControl","ChangeLog","Cu Summary"," Nickel Summary","Zn Summary","Ni Summary","Mn Summary","Flags"],"not_rendered":{"charts":0,"images":25,"macros":1,"external_links":3,"defined_names":923,"comments":8,"pivot_tables":0},"unopened":[],"bounds":{"document_bytes":16777216,"sheet_cells":100000,"rows_first":2000,"rows_last":500,"rows_between":2000,"halvings":0,"cell_chars":16384,"cell_head_chars":4096},"cells_cut":0,"cells_raw":0,"read":"whole","date_system":"1900"}

{"sheet":"Introduction","index":0,"n_rows":0,"n_cols":0,"rows_kept":0,"cut":false,"hidden":false,"merged":[[5,4,5,10]]}

{"sheet":"Glossary","index":1,"n_rows":16,"n_cols":7,"rows_kept":16,"cut":false,"hidden":true,"merged":[[4,6,4,13],[11,6,12,13],[8,6,9,13],[2,6,2,13],[3,6,3,13],[5,6,5,13],[2,4,2,5],[3,4,3,5],[4,4,4,5],[5,4,5,5],[6,4,6,5],[15,6,16,13],[14,6,14,13],[10,6,10,13],[11,4,11,5],[6,6,6,13],[7,6,7,13],[8,4,8,5],[10,4,10,5]]}
[]
[]
[null,null,null,null,"AA",null,"Annual average. Environmental quality standard for the assessment of chronic exposures. "]
[null,null,null,null,"BioF ",null,"The bioavailability factor. The BioF is based on a comparison between the expected bioavailability at the reference site and that relating to site-specific conditions. Through the use of a BioF, differences in (bio)availability are accounted for by adjustments to the monitoring data, but the EQS remains the same. BioF is calculated by dividing the Generic or Reference EQSbioavailable by the calculated site-specific dissolved EQS."]
[null,null,null,null,"BLM  ",null,"Biotic Ligand Model. This is a predictive tool that can account for variation in metal toxicity and calculates a site-specific PNEC using information on the chemistry of local water sources, i.e. pH, dissolved organic carbon, etc."]
[null,null,null,null,"DOC",null,"Dissolved organic carbon. The input to the screening tool for DOC should be site-specific median concentrations from at least eight sampling occasions. This is because metal EQS are expressed as AA concentrations, and the short-term EQS or Maximum Allowable Concentrations are not relevant here. "]
[null,null,null,null," EQSbioavailable",null,"This is representative of conditions of high bioavailability and is expressed as “bioavailable” metal concentration."]
[null,null,null,null,"PNEC",null,"Predicted No Effect Concentration. This concentration is derived from the ecotoxicological data and site specific water quality data using the BLM. "]
[null,null,null,null,"Site-Specific PNEC",null,"The Site-specific PNEC (Predicted No Effect Concentration) is the calculated dissolved concentration of metal that is equivalent the EQSbioavailabe at the local water conditions at the site. "]
[]
[null,null,null,null,"RCR ",null,"Risk Characterisation Ratio, also sometimes called the risk quotient. This is calculated by dividing the PEC by the PNEC. Values equal to or greater than 1 present a potential risk."]
[null,null,null,null,"User-friendly BLM Tool",null,"The User-friendly tool mimics the BLM outputs in a precautionary way. It requires relatively few inputs and can readily be used in a compliance assessment framework. Several are available including this one, M-BAT, Bio-Met and PNECpro"]
[]
[]
[null,null,null,null,"Validation range ",null,"Each of the BLMs has a validated range of operation that refers to the water chemistries "]
[null,null,null,null,null,null,"over which the ecotoxicity test data to generate the models was performed. For M-BAT this specifically refers to pH and Ca. DOC is restricted to 20 mg/L, although the relation is likley linear to greater DOC concentrations."]

{"sheet":"Help","index":2,"n_rows":0,"n_cols":0,"rows_kept":0,"cut":false,"hidden":true,"merged":[[5,4,5,10]]}

{"sheet":"AdminMenu","index":3,"n_rows":0,"n_cols":0,"rows_kept":0,"cut":false,"hidden":true,"merged":[]}

{"sheet":"EQSbioavailable","index":4,"n_rows":7,"n_cols":5,"rows_kept":7,"cut":false,"hidden":true,"merged":[[6,2,6,3],[6,4,6,7],[5,4,5,7],[4,4,4,7],[2,2,2,3],[3,2,3,3],[4,2,4,3],[2,4,2,7],[3,4,3,7],[5,2,5,3]]}
[]
[]
[null,null,"Metal",null,"EQSbioavailable Concentration (µg l-1)"]
[null,null,"Copper (Cu)",null,1]
[null,null,"Zinc (Zn)",null,{"$f":"ZnThreshold","v":10.9}]
[null,null,"Manganese (Mn)",null,{"$f":"MnThreshold","v":123}]
[null,null,"Nickel (Ni)",null,{"$f":"NiThreshold","v":4}]

{"sheet":"ThresholdValues","index":5,"n_rows":24,"n_cols":9,"rows_kept":24,"cut":false,"hidden":true,"merged":[[6,4,6,6],[6,2,6,3],[4,2,5,3],[2,2,2,3],[3,2,3,3],[2,4,2,6],[3,4,3,6],[23,2,23,3],[13,2,13,3],[14,2,14,3],[9,2,10,3],[8,4,8,5],[8,2,8,3],[14,5,14,6],[13,5,13,6],[18,2,18,3],[19,2,19,3],[20,2,20,3],[21,2,21,3],[22,2,22,3]]}
[]
[]
[null,null,"Metal",null,"Threshold Concentration (equivalent to EQSbioavailable) (µg l-1)"]
[null,null,"Copper (Cu)",null,1]
[null,null,"Zinc (Zn)",null,"Threshold Concentration (TC)","Old Threshold Concentration (OTC)","Ratio (OTC/TC)"]
[null,null,null,null,10.9,7.8,{"$f":"ZnThreshold/OldZnThreshold","v":1.3974358974358976}]
[null,null,"Manganese (Mn)",null,123]
[]
[null,null,"Metal",null,"Reference Value EC10 Values (mg/l) for Calculating BioF"]
[null,null,"Manganese (Mn)",null,"Fish","Algae"]
[null,null,null,null,0.42599999999999999,0.31]
[]
[]
[null,null,"Metal",null,"PNEC generic value",4]
[null,null,"Nickel(Ni)",null,"Ni Threshold",4]
[]
[]
[]
[null,null,"Metal",null,"pH Low","pH High","Ca Low","Ca High","Doc"]
[]
[null,null,"Cu",null,6,8.5,3.1,93,15]
[null,null,"Ni",null,6.5,8.6999999999999993,2,88,20]
[null,null,"Mn",null,5.5,8.5,1,200,20]
[null,null,"Zn",null,6,8,3,160,20]

{"sheet":"flags_new","index":6,"n_rows":30,"n_cols":7,"rows_kept":30,"cut":false,"hidden":true,"merged":[]}
[{"$f":"IF(B1=G1,1,0)","v":1},"The measured pH is above the upper limit of the validated range for Cu. The Site-specific PNEC has been calculated using a pH value of 8.5. For furthur clarification please seek advice.",{"$f":"\"The measured pH is \"&E1&\" the \"& F1& \" limit of the validated range for \" & D1&\". The Site-specific PNEC has been calculated using a pH value of \" & CuPhDefaultHigh  & \". For furthur clarification please seek advice.\"","v":"The measured pH is above the upper limit of the validated range for Cu. The Site-specific PNEC has been calculated using a pH value of 8.5. For furthur clarification please seek advice."},"Cu","above","upper","The measured pH is above the upper limit of the validated range for Cu. The Site-specific PNEC has been calculated using a pH value of 8.5. For furthur clarification please seek advice."]
[{"$f":"IF(B2=G2,1,0)","v":0},"The measured pH is below the lower limit of the validated range for Cu. The Site-specific PNEC has been calculated using a pH value of 6. For furthur clarification please seek advice.",{"$f":"\"The measured pH is \"&E2&\" the \"& F2& \" limit of the validated range for \" & D2&\". The Site-specific PNEC has been calculated using a pH value of \" & cuPhDefaultLow & \". For furthur clarification please seek advice.\"","v":"The measured pH is below the lower limit of the validated range for Cu. The Site-specific PNEC has been calculated using a pH value of 6. For furthur clarification please seek advice."},"Cu","below","lower","The measured pH is below the lower limit of the validated range for Cu. The Site-specific PNEC has been calculated using a pH value of 6.0. For furthur clarification please seek advice."]
[1,"The measured pH is above the upper limit of the validated range for Ni. The Site-specific PNEC has been calculated using a pH value of 8.7. For furthur clarification please seek advice.",{"$f":"\"The measured pH is \"&E3&\" the \"& F3& \" limit of the validated range for \" & D3&\". The Site-specific PNEC has been calculated using a pH value of \" & NiPhDefaultHigh & \". For furthur clarification please seek advice.\"","v":"The measured pH is above the upper limit of the validated range for Ni. The Site-specific PNEC has been calculated using a pH value of 8.7. For furthur clarification please seek advice."},"Ni","above","upper","The measured pH is above the upper limit of the validated range for Ni. The Site-specific PNEC has been calculated using a pH value of 8.7. For furthur clarification please seek advice."]
[1,"The measured pH is below the lower limit of the validated range for Ni. The Site-specific PNEC has been calculated using a pH value of 6.5. For furthur clarification please seek advice.",{"$f":"\"The measured pH is \"&E4&\" the \"& F4& \" limit of the validated range for \" & D4&\". The Site-specific PNEC has been calculated using a pH value of \" & NiPhDefaultLow & \". For furthur clarification please seek advice.\"","v":"The measured pH is below the lower limit of the validated range for Ni. The Site-specific PNEC has been calculated using a pH value of 6.5. For furthur clarification please seek advice."},"Ni","below","lower","The measured pH is below the lower limit of the validated range for Ni. The Site-specific PNEC has been calculated using a pH value of 6.5. For furthur clarification please seek advice."]
[1,"The measured pH is above the upper limit of the validated range for Mn. The Site-specific PNEC has been calculated using a pH value of 8.5. For furthur clarification please seek advice.",{"$f":"\"The measured pH is \"&E5&\" the \"& F5& \" limit of the validated range for \" & D5&\". The Site-specific PNEC has been calculated using a pH value of \" & MnPhDefaultHigh & \". For furthur clarification please seek advice.\"","v":"The measured pH is above the upper limit of the validated range for Mn. The Site-specific PNEC has been calculated using a pH value of 8.5. For furthur clarification please seek advice."},"Mn","above","upper","The measured pH is above the upper limit of the validated range for Mn. The Site-specific PNEC has been calculated using a pH value of 8.5. For furthur clarification please seek advice."]
[1,"The measured pH is below the lower limit of the validated range for Mn. The Site-specific PNEC has been calculated using a pH value of 5.5. For furthur clarification please seek advice.",{"$f":"\"The measured pH is \"&E6&\" the \"& F6& \" limit of the validated range for \" & D6&\". The Site-specific PNEC has been calculated using a pH value of \" & MnPhDefaultLow & \". For furthur clarification please seek advice.\"","v":"The measured pH is below the lower limit of the validated range for Mn. The Site-specific PNEC has been calculated using a pH value of 5.5. For furthur clarification please seek advice."},"Mn","below","lower","The measured pH is below the lower limit of the validated range for Mn. The Site-specific PNEC has been calculated using a pH value of 5.5. For furthur clarification please seek advice."]
[0,"The measured pH is above the upper limit of the validated range for Zn. The Site-specific PNEC has been calculated using a pH value of 8. For furthur clarification please seek advice.",{"$f":"\"The measured pH is \"&E7&\" the \"& F7& \" limit of the validated range for \" & D7&\". The Site-specific PNEC has been calculated using a pH value of \" & ZnPhDefaultHigh & \". For furthur clarification please seek advice.\"","v":"The measured pH is above the upper limit of the validated range for Zn. The Site-specific PNEC has been calculated using a pH value of 8. For furthur clarification please seek advice."},"Zn","above","upper","The measured pH is above the upper limit of the validated range for Zn. The Site-specific PNEC has been calculated using a pH value of 8.0. For furthur clarification please seek advice."]
[0,"The measured pH is below the lower limit of the validated range for Zn. The Site-specific PNEC has been calculated using a pH value of 6. For furthur clarification please seek advice.",{"$f":"\"The measured pH is \"&E8&\" the \"& F8& \" limit of the validated range for \" & D8&\". The Site-specific PNEC has been calculated using a pH value of \" & ZnPhDefaultLow & \". For furthur clarification please seek advice.\"","v":"The measured pH is below the lower limit of the validated range for Zn. The Site-specific PNEC has been calculated using a pH value of 6. For furthur clarification please seek advice."},"Zn","below","lower","The measured pH is below the lower limit of the validated range for Zn. The Site-specific PNEC has been calculated using a pH value of 6.0. For furthur clarification please seek advice."]
[1]
[0,"The measured Ca is above the upper limit of the validated range for Cu. The Site-specific PNEC has been calculated using a Ca value of 93. For furthur clarification please seek advice.",{"$f":"\"The measured Ca is \"&E10&\" the \"& F10& \" limit of the validated range for \" & D10&\". The Site-specific PNEC has been calculated using a Ca value of \" & CuCaDefaultHigh & \". For furthur clarification please seek advice.\"","v":"The measured Ca is above the upper limit of the validated range for Cu. The Site-specific PNEC has been calculated using a Ca value of 93. For furthur clarification please seek advice."},"Cu","above","upper","The measured Ca is above the upper limit of the validated range for Cu. The Site-specific PNEC has been calculated using a Ca value of 93.0. For furthur clarification please seek advice."]
[1,"The measured Ca is below the lower limit of the validated range for Cu. The Site-specific PNEC has been calculated using a Ca value of 3.1. For furthur clarification please seek advice.",{"$f":"\"The measured Ca is \"&E11&\" the \"& F11& \" limit of the validated range for \" & D11&\". The Site-specific PNEC has been calculated using a Ca value of \" & CuCaDefaultLow & \". For furthur clarification please seek advice.\"","v":"The measured Ca is below the lower limit of the validated range for Cu. The Site-specific PNEC has been calculated using a Ca value of 3.1. For furthur clarification please seek advice."},"Cu","below","lower","The measured Ca is below the lower limit of the validated range for Cu. The Site-specific PNEC has been calculated using a Ca value of 3.1. For furthur clarification please seek advice."]
[0,"The measured Ca is above the upper limit of the validated range for Ni. The Site-specific PNEC has been calculated using a Ca value of 88. For furthur clarification please seek advice.",{"$f":"\"The measured Ca is \"&E12&\" the \"& F12& \" limit of the validated range for \" & D12&\". The Site-specific PNEC has been calculated using a Ca value of \" & NiCaDefaultHigh & \". For furthur clarification please seek advice.\"","v":"The measured Ca is above the upper limit of the validated range for Ni. The Site-specific PNEC has been calculated using a Ca value of 88. For furthur clarification please seek advice."},"Ni","above","upper","The measured Ca is above the upper limit of the validated range for Ni. The Site-specific PNEC has been calculated using a Ca value of 88.0. For furthur clarification please seek advice."]
[0,"The measured Ca is below the lower limit of the validated range for Ni. The Site-specific PNEC has been calculated using a Ca value of 2. For furthur clarification please seek advice.",{"$f":"\"The measured Ca is \"&E13&\" the \"& F13& \" limit of the validated range for \" & D13&\". The Site-specific PNEC has been calculated using a Ca value of \" & NiCaDefaultLow & \". For furthur clarification please seek advice.\"","v":"The measured Ca is below the lower limit of the validated range for Ni. The Site-specific PNEC has been calculated using a Ca value of 2. For furthur clarification please seek advice."},"Ni","below","lower","The measured Ca is below the lower limit of the validated range for Ni. The Site-specific PNEC has been calculated using a Ca value of 2.0. For furthur clarification please seek advice."]
[0,"The measured Ca is above the upper limit of the validated range for Mn. The Site-specific PNEC has been calculated using a Ca value of 200. For furthur clarification please seek advice.",{"$f":"\"The measured Ca is \"&E14&\" the \"& F14& \" limit of the validated range for \" & D14&\". The Site-specific PNEC has been calculated using a Ca value of \" & MnCaDefaultHigh & \". For furthur clarification please seek advice.\"","v":"The measured Ca is above the upper limit of the validated range for Mn. The Site-specific PNEC has been calculated using a Ca value of 200. For furthur clarification please seek advice."},"Mn","above","upper","The measured Ca is above the upper limit of the validated range for Mn. The Site-specific PNEC has been calculated using a Ca value of 200.0. For furthur clarification please seek advice."]
[0,"The measured Ca is below the lower limit of the validated range for Mn. The Site-specific PNEC has been calculated using a Ca value of 1. For furthur clarification please seek advice.",{"$f":"\"The measured Ca is \"&E15&\" the \"& F15& \" limit of the validated range for \" & D15&\". The Site-specific PNEC has been calculated using a Ca value of \" & MnCaDefaultLow & \". For furthur clarification please seek advice.\"","v":"The measured Ca is below the lower limit of the validated range for Mn. The Site-specific PNEC has been calculated using a Ca value of 1. For furthur clarification please seek advice."},"Mn","below","lower","The measured Ca is below the lower limit of the validated range for Mn. The Site-specific PNEC has been calculated using a Ca value of 1.0. For furthur clarification please seek advice."]
[0,"The measured Ca is above the upper limit of the validated range for Zn. The Site-specific PNEC has been calculated using a Ca value of 160. For furthur clarification please seek advice.",{"$f":"\"The measured Ca is \"&E16&\" the \"& F16& \" limit of the validated range for \" & D16&\". The Site-specific PNEC has been calculated using a Ca value of \" & ZnCaDefaultHigh & \". For furthur clarification please seek advice.\"","v":"The measured Ca is above the upper limit of the validated range for Zn. The Site-specific PNEC has been calculated using a Ca value of 160. For furthur clarification please seek advice."},"Zn","above","upper","The measured Ca is above the upper limit of the validated range for Zn. The Site-specific PNEC has been calculated using a Ca value of 160.0. For furthur clarification please seek advice."]
[0,"The measured Ca is below the lower limit of the validated range for Zn. The Site-specific PNEC has been calculated using a Ca value of 3. For furthur clarification please seek advice.",{"$f":"\"The measured Ca is \"&E17&\" the \"& F17& \" limit of the validated range for \" & D17&\". The Site-specific PNEC has been calculated using a Ca value of \" & ZnCaDefaultLow & \". For furthur clarification please seek advice.\"","v":"The measured Ca is below the lower limit of the validated range for Zn. The Site-specific PNEC has been calculated using a Ca value of 3. For furthur clarification please seek advice."},"Zn","below","lower","The measured Ca is below the lower limit of the validated range for Zn. The Site-specific PNEC has been calculated using a Ca value of 3.0. For furthur clarification please seek advice."]
[]
[null,"The measured DOC is above the upper limit of the validated range for Cu. The Site-specific PNEC has been calculated using a DOC value of 15mg /L.For further clarification please seek advice.",{"$f":"\"The measured DOC is \"&E19&\" the \"&F19&\" limit of the validated range for \"&D19&\". The Site-specific PNEC has been calculated using a DOC value of \" & CuDocDefault & \"mg /L\"&\".For further clarification please seek advice.\"","v":"The measured DOC is above the upper limit of the validated range for Cu. The Site-specific PNEC has been calculated using a DOC value of 15mg /L.For further clarification please seek advice."},"Cu","above","upper"]
[null,"The measured DOC is above the upper limit of the validated range for Ni. The Site-specific PNEC has been calculated using a DOC value of 20mg /L.For further clarification please seek advice.",{"$f":"\"The measured DOC is \"&E20&\" the \"& F20& \" limit of the validated range for \" & D20&\". The Site-specific PNEC has been calculated using a DOC value of \" & ZnDocDefault  & \"mg /L\"&\".For further clarification please seek advice.\"","v":"The measured DOC is above the upper limit of the validated range for Ni. The Site-specific PNEC has been calculated using a DOC value of 20mg /L.For further clarification please seek advice."},"Ni","above","upper"]
[null,"The measured DOC is above the upper limit of the validated range for Mn. The Site-specific PNEC has been calculated using a DOC value of 20mg /L.For further clarification please seek advice.",{"$f":"\"The measured DOC is \"&E21&\" the \"& F21& \" limit of the validated range for \" & D21&\". The Site-specific PNEC has been calculated using a DOC value of \" & ZnDocDefault  & \"mg /L\"&\".For further clarification please seek advice.\"","v":"The measured DOC is above the upper limit of the validated range for Mn. The Site-specific PNEC has been calculated using a DOC value of 20mg /L.For further clarification please seek advice."},"Mn","above","upper"]
[null,"The measured DOC is above the upper limit of the validated range for Zn. The Site-specific PNEC has been calculated using a DOC value of 20mg /L.For further clarification please seek advice.",{"$f":"\"The measured DOC is \"&E22&\" the \"& F22& \" limit of the validated range for \" & D22&\". The Site-specific PNEC has been calculated using a DOC value of \" & ZnDocDefault& \"mg /L\"&\".For further clarification please seek advice.\"","v":"The measured DOC is above the upper limit of the validated range for Zn. The Site-specific PNEC has been calculated using a DOC value of 20mg /L.For further clarification please seek advice."},"Zn","above","upper"]
[]
[]
[]
[]
[]
[]
[]
[null,"Bioavailable metal concentration exceeds EQS based on site-specific conditions."]

{"sheet":"TestDataCu","index":7,"n_rows":82,"n_cols":38,"rows_kept":82,"cut":false,"hidden":true,"merged":[]}
["EXPECTED RESULTS",null,null,null,null,null,null,null,null,null,null,null,null,null,null,null,null,null,null,null,null,null,null,null,"ACTUAL RESULTS",null,null,null,null,null,null,null,null,null,"COMPARISON"]
["Location","WB","Date","CuMeas","ZnMeas","MnMeas","pH","DOC","Ca","Basic PNEC","Basic PNEC (trimmed)","Default pH","Default PNEC","Default PNEC (trimmed)","BioFBasic","Default BioF","Shape2","Extended BioF","Extended PNEC","Extended PNEC trimmed","PNEC Displayed","BioFDisplayed","Bioavailable Cu","RCR","Measured Copper Concentration (dissolved) (µg l-1)","Measured Zinc Concentration (dissolved) (µg l-1)","Measured Mn Concentration (dissolved) (µg l-1)","pH","DOC","Ca","PNEC","BioF","BioM","RCR","PNEC","BioF","BioM","RCR"]
[1,null,null,null,null,null,1,0.9,5,{"$f":"m_433*$G3^4*$H3^3*$I3^3+m_432*$G3^4*$H3^3*$I3^2+m_431*$G3^4*$H3^3*$I3^1+m_430*$G3^4*$H3^3*$I3^0\n+m_423*$G3^4*$H3^2*$I3^3+m_422*$G3^4*$H3^2*$I3^2+m_421*$G3^4*$H3^2*$I3^1+m_420*$G3^4*$H3^2*$I3^0\n+m_413*$G3^4*$H3^1*$I3^3+m_412*$G3^4*$H3^1*$I3^2+m_411*$G3^4*$H3^1*$I3^1+m_410*$G3^4*$H3^1*$I3^0\n+m_403*$G3^4*$H3^0*$I3^3+m_402*$G3^4*$H3^0*$I3^2+m_401*$G3^4*$H3^0*$I3^1+m_400*$G3^4*$H3^0*$I3^0\n\n+m_333*$G3^3*$H3^3*$I3^3+m_332*$G3^3*$H3^3*$I3^2+m_331*$G3^3*$H3^3*$I3^1+m_330*$G3^3*$H3^3*$I3^0\n+m_323*$G3^3*$H3^2*$I3^3+m_322*$G3^3*$H3^2*$I3^2+m_321*$G3^3*$H3^2*$I3^1+m_320*$G3^3*$H3^2*$I3^0\n+m_313*$G3^3*$H3^1*$I3^3+m_312*$G3^3*$H3^1*$I3^2+m_311*$G3^3*$H3^1*$I3^1+m_310*$G3^3*$H3^1*$I3^0\n+m_303*$G3^3*$H3^0*$I3^3+m_302*$G3^3*$H3^0*$I3^2+m_301*$G3^3*$H3^0*$I3^1+m_300*$G3^3*$H3^0*$I3^0\n\n+m_233*$G3^2*$H3^3*$I3^3+m_232*$G3^2*$H3^3*$I3^2+m_231*$G3^2*$H3^3*$I3^1+m_230*$G3^2*$H3^3*$I3^0\n+m_223*$G3^2*$H3^2*$I3^3+m_222*$G3^2*$H3^2*$I3^2+m_221*$G3^2*$H3^2*$I3^1+m_220*$G3^2*$H3^2*$I3^0\n+m_213*$G3^2*$H3^1*$I3^3+m_212*$G3^2*$H3^1*$I3^2+m_211*$G3^2*$H3^1*$I3^1+m_210*$G3^2*$H3^1*$I3^0\n+m_203*$G3^2*$H3^0*$I3^3+m_202*$G3^2*$H3^0*$I3^2+m_201*$G3^2*$H3^0*$I3^1+m_200*$G3^2*$H3^0*$I3^0\n\n+m_133*$G3^1*$H3^3*$I3^3+m_132*$G3^1*$H3^3*$I3^2+m_131*$G3^1*$H3^3*$I3^1+m_130*$G3^1*$H3^3*$I3^0\n+m_123*$G3^1*$H3^2*$I3^3+m_122*$G3^1*$H3^2*$I3^2+m_121*$G3^1*$H3^2*$I3^1+m_120*$G3^1*$H3^2*$I3^0\n+m_113*$G3^1*$H3^1*$I3^3+m_112*$G3^1*$H3^1*$I3^2+m_111*$G3^1*$H3^1*$I3^1+m_110*$G3^1*$H3^1*$I3^0\n+m_103*$G3^1*$H3^0*$I3^3+m_102*$G3^1*$H3^0*$I3^2+m_101*$G3^1*$H3^0*$I3^1+m_100*$G3^1*$H3^0*$I3^0\n\n+m_033*$G3^0*$H3^3*$I3^3+m_032*$G3^0*$H3^3*$I3^2+m_031*$G3^0*$H3^3*$I3^1+m_030*$G3^0*$H3^3*$I3^0\n+m_023*$G3^0*$H3^2*$I3^3+m_022*$G3^0*$H3^2*$I3^2+m_021*$G3^0*$H3^2*$I3^1+m_020*$G3^0*$H3^2*$I3^0\n+m_013*$G3^0*$H3^1*$I3^3+m_012*$G3^0*$H3^1*$I3^2+m_011*$G3^0*$H3^1*$I3^1+m_010*$G3^0*$H3^1*$I3^0\n+m_003*$G3^0*$H3^0*$I3^3+m_002*$G3^0*$H3^0*$I3^2+m_001*$G3^0*$H3^0*$I3^1+m_000*$G3^0*$H3^0*$I3^0","v":1269.1506476126651},{"$f":"IF(J3<CopperThreshold,CopperThreshold,J3)","v":1269.1506476126651},{"$f":"IF(TestDataCu!G3 >CupHMaximum, CuPhDefaultHigh, cuPhDefaultLow)","v":{"$error":"#REF!"}},{"$f":"m_433*$L3^4*$H3^3*$I3^3+m_432*$L3^4*$H3^3*$I3^2+m_431*$L3^4*$H3^3*$I3^1+m_430*$L3^4*$H3^3*$I3^0\n+m_423*$L3^4*$H3^2*$I3^3+m_422*$L3^4*$H3^2*$I3^2+m_421*$L3^4*$H3^2*$I3^1+m_420*$L3^4*$H3^2*$I3^0\n+m_413*$L3^4*$H3^1*$I3^3+m_412*$L3^4*$H3^1*$I3^2+m_411*$L3^4*$H3^1*$I3^1+m_410*$L3^4*$H3^1*$I3^0\n+m_403*$L3^4*$H3^0*$I3^3+m_402*$L3^4*$H3^0*$I3^2+m_401*$L3^4*$H3^0*$I3^1+m_400*$L3^4*$H3^0*$I3^0\n\n+m_333*$L3^3*$H3^3*$I3^3+m_332*$L3^3*$H3^3*$I3^2+m_331*$L3^3*$H3^3*$I3^1+m_330*$L3^3*$H3^3*$I3^0\n+m_323*$L3^3*$H3^2*$I3^3+m_322*$L3^3*$H3^2*$I3^2+m_321*$L3^3*$H3^2*$I3^1+m_320*$L3^3*$H3^2*$I3^0\n+m_313*$L3^3*$H3^1*$I3^3+m_312*$L3^3*$H3^1*$I3^2+m_311*$L3^3*$H3^1*$I3^1+m_310*$L3^3*$H3^1*$I3^0\n+m_303*$L3^3*$H3^0*$I3^3+m_302*$L3^3*$H3^0*$I3^2+m_301*$L3^3*$H3^0*$I3^1+m_300*$L3^3*$H3^0*$I3^0\n\n+m_233*$L3^2*$H3^3*$I3^3+m_232*$L3^2*$H3^3*$I3^2+m_231*$L3^2*$H3^3*$I3^1+m_230*$L3^2*$H3^3*$I3^0\n+m_223*$L3^2*$H3^2*$I3^3+m_222*$L3^2*$H3^2*$I3^2+m_221*$L3^2*$H3^2*$I3^1+m_220*$L3^2*$H3^2*$I3^0\n+m_213*$L3^2*$H3^1*$I3^3+m_212*$L3^2*$H3^1*$I3^2+m_211*$L3^2*$H3^1*$I3^1+m_210*$L3^2*$H3^1*$I3^0\n+m_203*$L3^2*$H3^0*$I3^3+m_202*$L3^2*$H3^0*$I3^2+m_201*$L3^2*$H3^0*$I3^1+m_200*$L3^2*$H3^0*$I3^0\n\n+m_133*$L3^1*$H3^3*$I3^3+m_132*$L3^1*$H3^3*$I3^2+m_131*$L3^1*$H3^3*$I3^1+m_130*$L3^1*$H3^3*$I3^0\n+m_123*$L3^1*$H3^2*$I3^3+m_122*$L3^1*$H3^2*$I3^2+m_121*$L3^1*$H3^2*$I3^1+m_120*$L3^1*$H3^2*$I3^0\n+m_113*$L3^1*$H3^1*$I3^3+m_112*$L3^1*$H3^1*$I3^2+m_111*$L3^1*$H3^1*$I3^1+m_110*$L3^1*$H3^1*$I3^0\n+m_103*$L3^1*$H3^0*$I3^3+m_102*$L3^1*$H3^0*$I3^2+m_101*$L3^1*$H3^0*$I3^1+m_100*$L3^1*$H3^0*$I3^0\n\n+m_033*$L3^0*$H3^3*$I3^3+m_032*$L3^0*$H3^3*$I3^2+m_031*$L3^0*$H3^3*$I3^1+m_030*$L3^0*$H3^3*$I3^0\n+m_023*$L3^0*$H3^2*$I3^3+m_022*$L3^0*$H3^2*$I3^2+m_021*$L3^0*$H3^2*$I3^1+m_020*$L3^0*$H3^2*$I3^0\n+m_013*$L3^0*$H3^1*$I3^3+m_012*$L3^0*$H3^1*$I3^2+m_011*$L3^0*$H3^1*$I3^1+m_010*$L3^0*$H3^1*$I3^0\n+m_003*$L3^0*$H3^0*$I3^3+m_002*$L3^0*$H3^0*$I3^2+m_001*$L3^0*$H3^0*$I3^1+m_000*$L3^0*$H3^0*$I3^0","v":{"$error":"#REF!"}},{"$f":"IF(M3<CopperThreshold,CopperThreshold,M3)","v":{"$error":"#REF!"}},{"$f":"CopperThreshold/K3","v":7.8792852675216231E-4},{"$f":"CopperThreshold/N3","v":{"$error":"#REF!"}},{"$f":"((1-(1-2.718282^-(((1-P3)/0.027)^0.35)))*12+1)-(0.5*((1-P3)^4))","v":{"$error":"#REF!"}},{"$f":"(1-(1-2.718282^-(((G3-4)/Q3)^2.7)))","v":{"$error":"#REF!"}},{"$f":"CopperThreshold/R3","v":{"$error":"#REF!"}},{"$f":"IF(S3<CopperThreshold,CopperThreshold,S3)","v":{"$error":"#REF!"}},{"$f":"IF(G3<CupHMinimum, CopperThreshold, (IF(G3 <cuPhDefaultLow, T3, (IF(G3<CupHMaximum, K3, N3)))))","v":{"$error":"#REF!"}},{"$f":"IF(G3<CupHMinimum, 1, (IF(G3 <cuPhDefaultLow, R3, (IF(G3<CupHMaximum, O3, P3)))))","v":{"$error":"#REF!"}},null,null,null,null,null,1,1,5,1,1,null,null,{"$f":"IF(AE3<>U3,\"mismatch\",\"\")","v":{"$error":"#REF!"}},{"$f":"IF(AF3<>V3,\"mismatch\",\"\")","v":{"$error":"#REF!"}},{"$f":"IF(AG3<>W3,\"mismatch\",\"\")","v":""},{"$f":"IF(AH3<>X3,\"mismatch\",\"\")","v":""}]
[2,null,null,null,null,null,5,0.9,5,13.811128619181176,13.811128619181176,{"$f":"IF(TestDataCu!G4 >CupHMaximum, CuPhDefaultHigh, cuPhDefaultLow)","v":{"$error":"#REF!"}},{"$error":"#REF!"},{"$error":"#REF!"},7.2405378848704641E-2,{"$error":"#REF!"},{"$error":"#REF!"},{"$error":"#REF!"},{"$error":"#REF!"},{"$error":"#REF!"},{"$error":"#REF!"},{"$error":"#REF!"},null,null,null,null,null,4,1,5,1.5828275655678019,0.63178075853213589,null,null,{"$error":"#REF!"},{"$error":"#REF!"},"",""]
[3,null,null,null,null,null,7.1,0.9,5,3.4763068837083608,3.4763068837083608,{"$f":"IF(TestDataCu!G5 >CupHMaximum, CuPhDefaultHigh, cuPhDefaultLow)","v":{"$error":"#REF!"}},{"$error":"#REF!"},{"$error":"#REF!"},0.2876615999256219,{"$error":"#REF!"},{"$error":"#REF!"},{"$error":"#REF!"},{"$error":"#REF!"},{"$error":"#REF!"},{"$error":"#REF!"},{"$error":"#REF!"},null,null,null,null,null,7.1,1,5,3.4763068837083608,0.2876615999256219,null,null,{"$error":"#REF!"},{"$error":"#REF!"},"",""]
[4,null,null,null,null,null,8.6,0.9,5,1.7118950865375098,1.7118950865375098,{"$f":"IF(TestDataCu!G6 >CupHMaximum, CuPhDefaultHigh, cuPhDefaultLow)","v":{"$error":"#REF!"}},{"$error":"#REF!"},{"$error":"#REF!"},0.58414794683627869,{"$error":"#REF!"},{"$error":"#REF!"},{"$error":"#REF!"},{"$error":"#REF!"},{"$error":"#REF!"},{"$error":"#REF!"},{"$error":"#REF!"},null,null,null,null,null,8.6,1,5,1.7104772296885074,0.58463216150624153,null,null,{"$error":"#REF!"},{"$error":"#REF!"},"",""]
[5,null,null,null,null,null,1,0.9,31,1403.3180476187206,1403.3180476187206,{"$f":"IF(TestDataCu!G7 >CupHMaximum, CuPhDefaultHigh, cuPhDefaultLow)","v":{"$error":"#REF!"}},{"$error":"#REF!"},{"$error":"#REF!"},7.125968355476452E-4,{"$error":"#REF!"},{"$error":"#REF!"},{"$error":"#REF!"},{"$error":"#REF!"},{"$error":"#REF!"},{"$error":"#REF!"},{"$error":"#REF!"},null,null,null,null,null,1,1,31,1,1,null,null,{"$error":"#REF!"},{"$error":"#REF!"},"",""]
[6,null,null,null,null,null,5,0.9,31,15.332118570558009,15.332118570558009,{"$f":"IF(TestDataCu!G8 >CupHMaximum, CuPhDefaultHigh, cuPhDefaultLow)","v":{"$error":"#REF!"}},{"$error":"#REF!"},{"$error":"#REF!"},6.5222558474096456E-2,{"$error":"#REF!"},{"$error":"#REF!"},{"$error":"#REF!"},{"$error":"#REF!"},{"$error":"#REF!"},{"$error":"#REF!"},{"$error":"#REF!"},null,null,null,null,null,4,1,31,1.6349313476273051,0.61164647766479641,null,null,{"$error":"#REF!"},{"$error":"#REF!"},"",""]
[7,null,null,null,null,null,7.1,0.9,31,3.3731936773968982,3.3731936773968982,{"$f":"IF(TestDataCu!G9 >CupHMaximum, CuPhDefaultHigh, cuPhDefaultLow)","v":{"$error":"#REF!"}},{"$error":"#REF!"},{"$error":"#REF!"},0.29645496097683383,{"$error":"#REF!"},{"$error":"#REF!"},{"$error":"#REF!"},{"$error":"#REF!"},{"$error":"#REF!"},{"$error":"#REF!"},{"$error":"#REF!"},null,null,null,null,null,7.1,1,31,3.3731936773968982,0.29645496097683383,null,null,{"$error":"#REF!"},{"$error":"#REF!"},"",""]
[8,null,null,null,null,null,8.6,0.9,31,1.5041071727149529,1.5041071727149529,{"$f":"IF(TestDataCu!G10 >CupHMaximum, CuPhDefaultHigh, cuPhDefaultLow)","v":{"$error":"#REF!"}},{"$error":"#REF!"},{"$error":"#REF!"},0.66484624110592716,{"$error":"#REF!"},{"$error":"#REF!"},{"$error":"#REF!"},{"$error":"#REF!"},{"$error":"#REF!"},{"$error":"#REF!"},{"$error":"#REF!"},null,null,null,null,null,8.6,1,31,1.4664075091189943,0.68193867924257412,null,null,{"$error":"#REF!"},{"$error":"#REF!"},"",""]
[9,null,null,null,null,null,1,1.1000000000000001,5,1572.3355297658861,1572.3355297658861,{"$f":"IF(TestDataCu!G11 >CupHMaximum, CuPhDefaultHigh, cuPhDefaultLow)","v":{"$error":"#REF!"}},{"$error":"#REF!"},{"$error":"#REF!"},6.3599656757034272E-4,{"$error":"#REF!"},{"$error":"#REF!"},{"$error":"#REF!"},{"$error":"#REF!"},{"$error":"#REF!"},{"$error":"#REF!"},{"$error":"#REF!"},null,null,null,null,null,1,1.1000000000000001,5,1,1,null,null,{"$error":"#REF!"},{"$error":"#REF!"},"",""]
[10,null,null,null,null,null,5,1.1000000000000001,5,16.777517691325642,16.777517691325642,{"$f":"IF(TestDataCu!G12 >CupHMaximum, CuPhDefaultHigh, cuPhDefaultLow)","v":{"$error":"#REF!"}},{"$error":"#REF!"},{"$error":"#REF!"},5.9603572971764635E-2,{"$error":"#REF!"},{"$error":"#REF!"},{"$error":"#REF!"},{"$error":"#REF!"},{"$error":"#REF!"},{"$error":"#REF!"},{"$error":"#REF!"},null,null,null,null,null,4,1.1000000000000001,5,1.6855860670566758,0.59326546389065293,null,null,{"$error":"#REF!"},{"$error":"#REF!"},"",""]
[11,null,null,null,null,null,7.1,1.1000000000000001,5,4.2698223731541418,4.2698223731541418,{"$f":"IF(TestDataCu!G13 >CupHMaximum, CuPhDefaultHigh, cuPhDefaultLow)","v":{"$error":"#REF!"}},{"$error":"#REF!"},{"$error":"#REF!"},0.23420177998207789,{"$error":"#REF!"},{"$error":"#REF!"},{"$error":"#REF!"},{"$error":"#REF!"},{"$error":"#REF!"},{"$error":"#REF!"},{"$error":"#REF!"},null,null,null,null,null,7.1,1.1000000000000001,5,4.2698223731541418,0.23420177998207789,null,null,{"$error":"#REF!"},{"$error":"#REF!"},"",""]
[12,null,null,null,null,null,8.6,1.1000000000000001,5,2.0190985049394783,2.0190985049394783,{"$f":"IF(TestDataCu!G14 >CupHMaximum, CuPhDefaultHigh, cuPhDefaultLow)","v":{"$error":"#REF!"}},{"$error":"#REF!"},{"$error":"#REF!"},0.49527053660513437,{"$error":"#REF!"},{"$error":"#REF!"},{"$error":"#REF!"},{"$error":"#REF!"},{"$error":"#REF!"},{"$error":"#REF!"},{"$error":"#REF!"},null,null,null,null,null,8.6,1.1000000000000001,5,2.0281564809575627,0.49305860242492999,null,null,{"$error":"#REF!"},{"$error":"#REF!"},"",""]
[13,null,null,null,null,null,1,1.1000000000000001,31,1776.4011517822239,1776.4011517822239,{"$f":"IF(TestDataCu!G15 >CupHMaximum, CuPhDefaultHigh, cuPhDefaultLow)","v":{"$error":"#REF!"}},{"$error":"#REF!"},{"$error":"#REF!"},5.6293591061721735E-4,{"$error":"#REF!"},{"$error":"#REF!"},{"$error":"#REF!"},{"$error":"#REF!"},{"$error":"#REF!"},{"$error":"#REF!"},{"$error":"#REF!"},null,null,null,null,null,1,1.1000000000000001,31,1,1,null,null,{"$error":"#REF!"},{"$error":"#REF!"},"",""]
[14,null,null,null,null,null,5,1.1000000000000001,31,19.155289215801872,19.155289215801872,{"$f":"IF(TestDataCu!G16 >CupHMaximum, CuPhDefaultHigh, cuPhDefaultLow)","v":{"$error":"#REF!"}},{"$error":"#REF!"},{"$error":"#REF!"},5.2204902193544789E-2,{"$error":"#REF!"},{"$error":"#REF!"},{"$error":"#REF!"},{"$error":"#REF!"},{"$error":"#REF!"},{"$error":"#REF!"},{"$error":"#REF!"},null,null,null,null,null,4,1.1000000000000001,31,1.7645455535156918,0.56671815471558307,null,null,{"$error":"#REF!"},{"$error":"#REF!"},"",""]
[15,null,null,null,null,null,7.1,1.1000000000000001,31,4.1448452624543961,4.1448452624543961,{"$f":"IF(TestDataCu!G17 >CupHMaximum, CuPhDefaultHigh, cuPhDefaultLow)","v":{"$error":"#REF!"}},{"$error":"#REF!"},{"$error":"#REF!"},0.24126353016320898,{"$error":"#REF!"},{"$error":"#REF!"},{"$error":"#REF!"},{"$error":"#REF!"},{"$error":"#REF!"},{"$error":"#REF!"},{"$error":"#REF!"},null,null,null,null,null,7.1,1.1000000000000001,31,4.1448452624543961,0.24126353016320898,null,null,{"$error":"#REF!"},{"$error":"#REF!"},"",""]
[16,null,null,null,null,null,8.6,1.1000000000000001,31,1.7290678721773247,1.7290678721773247,{"$f":"IF(TestDataCu!G18 >CupHMaximum, CuPhDefaultHigh, cuPhDefaultLow)","v":{"$error":"#REF!"}},{"$error":"#REF!"},{"$error":"#REF!"},0.57834629634333112,{"$error":"#REF!"},{"$error":"#REF!"},{"$error":"#REF!"},{"$error":"#REF!"},{"$error":"#REF!"},{"$error":"#REF!"},{"$error":"#REF!"},null,null,null,null,null,8.6,1.1000000000000001,31,1.6917461723950282,0.59110522389081943,null,null,{"$error":"#REF!"},{"$error":"#REF!"},"",""]
[17,null,null,null,null,null,1,3.1,5,4663.466043316178,4663.466043316178,{"$f":"IF(TestDataCu!G19 >CupHMaximum, CuPhDefaultHigh, cuPhDefaultLow)","v":{"$error":"#REF!"}},{"$error":"#REF!"},{"$error":"#REF!"},2.1443278255091629E-4,{"$error":"#REF!"},{"$error":"#REF!"},{"$error":"#REF!"},{"$error":"#REF!"},{"$error":"#REF!"},{"$error":"#REF!"},{"$error":"#REF!"},null,null,null,null,null,1,3.1,5,1,1,null,null,{"$error":"#REF!"},{"$error":"#REF!"},"",""]
[18,null,null,null,null,null,5,3.1,5,48.819840713537445,48.819840713537445,{"$f":"IF(TestDataCu!G20 >CupHMaximum, CuPhDefaultHigh, cuPhDefaultLow)","v":{"$error":"#REF!"}},{"$error":"#REF!"},{"$error":"#REF!"},2.0483475271206815E-2,{"$error":"#REF!"},{"$error":"#REF!"},{"$error":"#REF!"},{"$error":"#REF!"},{"$error":"#REF!"},{"$error":"#REF!"},{"$error":"#REF!"},null,null,null,null,null,4,3.1,5,2.5598058291059229,0.39065463037455284,null,null,{"$error":"#REF!"},{"$error":"#REF!"},"",""]
[19,null,null,null,null,null,7.1,3.1,5,12.388250032660466,12.388250032660466,{"$f":"IF(TestDataCu!G21 >CupHMaximum, CuPhDefaultHigh, cuPhDefaultLow)","v":{"$error":"#REF!"}},{"$error":"#REF!"},{"$error":"#REF!"},8.0721651352175919E-2,{"$error":"#REF!"},{"$error":"#REF!"},{"$error":"#REF!"},{"$error":"#REF!"},{"$error":"#REF!"},{"$error":"#REF!"},{"$error":"#REF!"},null,null,null,null,null,7.1,3.1,5,12.388250032660466,8.0721651352175919E-2,null,null,{"$error":"#REF!"},{"$error":"#REF!"},"",""]
[20,null,null,null,null,null,8.6,3.1,5,5.3582756203328188,5.3582756203328188,{"$f":"IF(TestDataCu!G22 >CupHMaximum, CuPhDefaultHigh, cuPhDefaultLow)","v":{"$error":"#REF!"}},{"$error":"#REF!"},{"$error":"#REF!"},0.18662720450686465,{"$error":"#REF!"},{"$error":"#REF!"},{"$error":"#REF!"},{"$error":"#REF!"},{"$error":"#REF!"},{"$error":"#REF!"},{"$error":"#REF!"},null,null,null,null,null,8.6,3.1,5,5.5536854367061039,0.18006061225410364,null,null,{"$error":"#REF!"},{"$error":"#REF!"},"",""]
[21,null,null,null,null,null,1,3.1,31,4847.9202069493113,4847.9202069493113,{"$f":"IF(TestDataCu!G23 >CupHMaximum, CuPhDefaultHigh, cuPhDefaultLow)","v":{"$error":"#REF!"}},{"$error":"#REF!"},{"$error":"#REF!"},2.0627402211912185E-4,{"$error":"#REF!"},{"$error":"#REF!"},{"$error":"#REF!"},{"$error":"#REF!"},{"$error":"#REF!"},{"$error":"#REF!"},{"$error":"#REF!"},null,null,null,null,null,1,3.1,31,1,1,null,null,{"$error":"#REF!"},{"$error":"#REF!"},"",""]
[22,null,null,null,null,null,5,3.1,31,49.43892794287035,49.43892794287035,{"$f":"IF(TestDataCu!G24 >CupHMaximum, CuPhDefaultHigh, cuPhDefaultLow)","v":{"$error":"#REF!"}},{"$error":"#REF!"},{"$error":"#REF!"},2.0226975818641538E-2,{"$error":"#REF!"},{"$error":"#REF!"},{"$error":"#REF!"},{"$error":"#REF!"},{"$error":"#REF!"},{"$error":"#REF!"},{"$error":"#REF!"},null,null,null,null,null,4,3.1,31,2.5434065537970767,0.39317347771518874,null,null,{"$error":"#REF!"},{"$error":"#REF!"},"",""]
[23,null,null,null,null,null,7.1,3.1,31,12.407386441398444,12.407386441398444,{"$f":"IF(TestDataCu!G25 >CupHMaximum, CuPhDefaultHigh, cuPhDefaultLow)","v":{"$error":"#REF!"}},{"$error":"#REF!"},{"$error":"#REF!"},8.059715111825673E-2,{"$error":"#REF!"},{"$error":"#REF!"},{"$error":"#REF!"},{"$error":"#REF!"},{"$error":"#REF!"},{"$error":"#REF!"},{"$error":"#REF!"},null,null,null,null,null,7.1,3.1,31,12.407386441398444,8.059715111825673E-2,null,null,{"$error":"#REF!"},{"$error":"#REF!"},"",""]
[24,null,null,null,null,null,8.6,3.1,31,4.6219778660778275,4.6219778660778275,{"$f":"IF(TestDataCu!G26 >CupHMaximum, CuPhDefaultHigh, cuPhDefaultLow)","v":{"$error":"#REF!"}},{"$error":"#REF!"},{"$error":"#REF!"},0.21635759170101604,{"$error":"#REF!"},{"$error":"#REF!"},{"$error":"#REF!"},{"$error":"#REF!"},{"$error":"#REF!"},{"$error":"#REF!"},{"$error":"#REF!"},null,null,null,null,null,8.6,3.1,31,4.7915676498304265,0.20869996482996331,null,null,{"$error":"#REF!"},{"$error":"#REF!"},"",""]
[25,null,null,null,null,null,1,10.1,5,15436.053690118506,15436.053690118506,{"$f":"IF(TestDataCu!G27 >CupHMaximum, CuPhDefaultHigh, cuPhDefaultLow)","v":{"$error":"#REF!"}},{"$error":"#REF!"},{"$error":"#REF!"},6.4783397367952717E-5,{"$error":"#REF!"},{"$error":"#REF!"},{"$error":"#REF!"},{"$error":"#REF!"},{"$error":"#REF!"},{"$error":"#REF!"},{"$error":"#REF!"},null,null,null,null,null,1,10.1,5,1,1,null,null,{"$error":"#REF!"},{"$error":"#REF!"},"",""]
[26,null,null,null,null,null,5,10.1,5,176.18722110266174,176.18722110266174,{"$f":"IF(TestDataCu!G28 >CupHMaximum, CuPhDefaultHigh, cuPhDefaultLow)","v":{"$error":"#REF!"}},{"$error":"#REF!"},{"$error":"#REF!"},5.675780534714913E-3,{"$error":"#REF!"},{"$error":"#REF!"},{"$error":"#REF!"},{"$error":"#REF!"},{"$error":"#REF!"},{"$error":"#REF!"},{"$error":"#REF!"},null,null,null,null,null,4,10.1,5,3.8349492129753728,0.26075964620771153,null,null,{"$error":"#REF!"},{"$error":"#REF!"},"",""]
[27,null,null,null,null,null,7.1,10.1,5,41.119368047058373,41.119368047058373,{"$f":"IF(TestDataCu!G29 >CupHMaximum, CuPhDefaultHigh, cuPhDefaultLow)","v":{"$error":"#REF!"}},{"$error":"#REF!"},{"$error":"#REF!"},2.4319439901303121E-2,{"$error":"#REF!"},{"$error":"#REF!"},{"$error":"#REF!"},{"$error":"#REF!"},{"$error":"#REF!"},{"$error":"#REF!"},{"$error":"#REF!"},null,null,null,null,null,7.1,10.1,5,41.119368047058373,2.4319439901303121E-2,null,null,{"$error":"#REF!"},{"$error":"#REF!"},"",""]
[28,null,null,null,null,null,8.6,10.1,5,17.226503915354982,17.226503915354982,{"$f":"IF(TestDataCu!G30 >CupHMaximum, CuPhDefaultHigh, cuPhDefaultLow)","v":{"$error":"#REF!"}},{"$error":"#REF!"},{"$error":"#REF!"},5.8050084039898656E-2,{"$error":"#REF!"},{"$error":"#REF!"},{"$error":"#REF!"},{"$error":"#REF!"},{"$error":"#REF!"},{"$error":"#REF!"},{"$error":"#REF!"},null,null,null,null,null,8.6,10.1,5,18.69499139400213,5.3490262655099569E-2,null,null,{"$error":"#REF!"},{"$error":"#REF!"},"",""]
[29,null,null,null,null,null,1,10.1,31,18191.77144748038,18191.77144748038,{"$f":"IF(TestDataCu!G31 >CupHMaximum, CuPhDefaultHigh, cuPhDefaultLow)","v":{"$error":"#REF!"}},{"$error":"#REF!"},{"$error":"#REF!"},5.4969907844708732E-5,{"$error":"#REF!"},{"$error":"#REF!"},{"$error":"#REF!"},{"$error":"#REF!"},{"$error":"#REF!"},{"$error":"#REF!"},{"$error":"#REF!"},null,null,null,null,null,1,10.1,31,1,1,null,null,{"$error":"#REF!"},{"$error":"#REF!"},"",""]
[30,null,null,null,null,null,5,10.1,31,197.84174228847564,197.84174228847564,{"$f":"IF(TestDataCu!G32 >CupHMaximum, CuPhDefaultHigh, cuPhDefaultLow)","v":{"$error":"#REF!"}},{"$error":"#REF!"},{"$error":"#REF!"},5.0545450542074525E-3,{"$error":"#REF!"},{"$error":"#REF!"},{"$error":"#REF!"},{"$error":"#REF!"},{"$error":"#REF!"},{"$error":"#REF!"},{"$error":"#REF!"},null,null,null,null,null,4,10.1,31,3.8716699579638059,0.25828647866615195,null,null,{"$error":"#REF!"},{"$error":"#REF!"},"",""]
[31,null,null,null,null,null,7.1,10.1,31,42.541171449645617,42.541171449645617,{"$f":"IF(TestDataCu!G33 >CupHMaximum, CuPhDefaultHigh, cuPhDefaultLow)","v":{"$error":"#REF!"}},{"$error":"#REF!"},{"$error":"#REF!"},2.3506639942523971E-2,{"$error":"#REF!"},{"$error":"#REF!"},{"$error":"#REF!"},{"$error":"#REF!"},{"$error":"#REF!"},{"$error":"#REF!"},{"$error":"#REF!"},null,null,null,null,null,7.1,10.1,31,42.541171449645617,2.3506639942523971E-2,null,null,{"$error":"#REF!"},{"$error":"#REF!"},"",""]
[32,null,null,null,null,null,8.6,10.1,31,15.640822491675749,15.640822491675749,{"$f":"IF(TestDataCu!G34 >CupHMaximum, CuPhDefaultHigh, cuPhDefaultLow)","v":{"$error":"#REF!"}},{"$error":"#REF!"},{"$error":"#REF!"},6.3935256635781978E-2,{"$error":"#REF!"},{"$error":"#REF!"},{"$error":"#REF!"},{"$error":"#REF!"},{"$error":"#REF!"},{"$error":"#REF!"},{"$error":"#REF!"},null,null,null,null,null,8.6,10.1,31,16.491426151865994,6.0637569534084876E-2,null,null,{"$error":"#REF!"},{"$error":"#REF!"},"",""]
[33,null,null,null,null,null,1,30.1,5,{"$f":"m_433*$G35^4*$H35^3*$I35^3+m_432*$G35^4*$H35^3*$I35^2+m_431*$G35^4*$H35^3*$I35^1+m_430*$G35^4*$H35^3*$I35^0\n+m_423*$G35^4*$H35^2*$I35^3+m_422*$G35^4*$H35^2*$I35^2+m_421*$G35^4*$H35^2*$I35^1+m_420*$G35^4*$H35^2*$I35^0\n+m_413*$G35^4*$H35^1*$I35^3+m_412*$G35^4*$H35^1*$I35^2+m_411*$G35^4*$H35^1*$I35^1+m_410*$G35^4*$H35^1*$I35^0\n+m_403*$G35^4*$H35^0*$I35^3+m_402*$G35^4*$H35^0*$I35^2+m_401*$G35^4*$H35^0*$I35^1+m_400*$G35^4*$H35^0*$I35^0\n\n+m_333*$G35^3*$H35^3*$I35^3+m_332*$G35^3*$H35^3*$I35^2+m_331*$G35^3*$H35^3*$I35^1+m_330*$G35^3*$H35^3*$I35^0\n+m_323*$G35^3*$H35^2*$I35^3+m_322*$G35^3*$H35^2*$I35^2+m_321*$G35^3*$H35^2*$I35^1+m_320*$G35^3*$H35^2*$I35^0\n+m_313*$G35^3*$H35^1*$I35^3+m_312*$G35^3*$H35^1*$I35^2+m_311*$G35^3*$H35^1*$I35^1+m_310*$G35^3*$H35^1*$I35^0\n+m_303*$G35^3*$H35^0*$I35^3+m_302*$G35^3*$H35^0*$I35^2+m_301*$G35^3*$H35^0*$I35^1+m_300*$G35^3*$H35^0*$I35^0\n\n+m_233*$G35^2*$H35^3*$I35^3+m_232*$G35^2*$H35^3*$I35^2+m_231*$G35^2*$H35^3*$I35^1+m_230*$G35^2*$H35^3*$I35^0\n+m_223*$G35^2*$H35^2*$I35^3+m_222*$G35^2*$H35^2*$I35^2+m_221*$G35^2*$H35^2*$I35^1+m_220*$G35^2*$H35^2*$I35^0\n+m_213*$G35^2*$H35^1*$I35^3+m_212*$G35^2*$H35^1*$I35^2+m_211*$G35^2*$H35^1*$I35^1+m_210*$G35^2*$H35^1*$I35^0\n+m_203*$G35^2*$H35^0*$I35^3+m_202*$G35^2*$H35^0*$I35^2+m_201*$G35^2*$H35^0*$I35^1+m_200*$G35^2*$H35^0*$I35^0\n\n+m_133*$G35^1*$H35^3*$I35^3+m_132*$G35^1*$H35^3*$I35^2+m_131*$G35^1*$H35^3*$I35^1+m_130*$G35^1*$H35^3*$I35^0\n+m_123*$G35^1*$H35^2*$I35^3+m_122*$G35^1*$H35^2*$I35^2+m_121*$G35^1*$H35^2*$I35^1+m_120*$G35^1*$H35^2*$I35^0\n+m_113*$G35^1*$H35^1*$I35^3+m_112*$G35^1*$H35^1*$I35^2+m_111*$G35^1*$H35^1*$I35^1+m_110*$G35^1*$H35^1*$I35^0\n+m_103*$G35^1*$H35^0*$I35^3+m_102*$G35^1*$H35^0*$I35^2+m_101*$G35^1*$H35^0*$I35^1+m_100*$G35^1*$H35^0*$I35^0\n\n+m_033*$G35^0*$H35^3*$I35^3+m_032*$G35^0*$H35^3*$I35^2+m_031*$G35^0*$H35^3*$I35^1+m_030*$G35^0*$H35^3*$I35^0\n+m_023*$G35^0*$H35^2*$I35^3+m_022*$G35^0*$H35^2*$I35^2+m_021*$G35^0*$H35^2*$I35^1+m_020*$G35^0*$H35^2*$I35^0\n+m_013*$G35^0*$H35^1*$I35^3+m_012*$G35^0*$H35^1*$I35^2+m_011*$G35^0*$H35^1*$I35^1+m_010*$G35^0*$H35^1*$I35^0\n+m_003*$G35^0*$H35^0*$I35^3+m_002*$G35^0*$H35^0*$I35^2+m_001*$G35^0*$H35^0*$I35^1+m_000*$G35^0*$H35^0*$I35^0","v":21631.015115933213},{"$f":"IF(J35<CopperThreshold,CopperThreshold,J35)","v":21631.015115933213},{"$f":"IF(TestDataCu!G35 >CupHMaximum, CuPhDefaultHigh, cuPhDefaultLow)","v":{"$error":"#REF!"}},{"$f":"m_433*$L35^4*$H35^3*$I35^3+m_432*$L35^4*$H35^3*$I35^2+m_431*$L35^4*$H35^3*$I35^1+m_430*$L35^4*$H35^3*$I35^0\n+m_423*$L35^4*$H35^2*$I35^3+m_422*$L35^4*$H35^2*$I35^2+m_421*$L35^4*$H35^2*$I35^1+m_420*$L35^4*$H35^2*$I35^0\n+m_413*$L35^4*$H35^1*$I35^3+m_412*$L35^4*$H35^1*$I35^2+m_411*$L35^4*$H35^1*$I35^1+m_410*$L35^4*$H35^1*$I35^0\n+m_403*$L35^4*$H35^0*$I35^3+m_402*$L35^4*$H35^0*$I35^2+m_401*$L35^4*$H35^0*$I35^1+m_400*$L35^4*$H35^0*$I35^0\n\n+m_333*$L35^3*$H35^3*$I35^3+m_332*$L35^3*$H35^3*$I35^2+m_331*$L35^3*$H35^3*$I35^1+m_330*$L35^3*$H35^3*$I35^0\n+m_323*$L35^3*$H35^2*$I35^3+m_322*$L35^3*$H35^2*$I35^2+m_321*$L35^3*$H35^2*$I35^1+m_320*$L35^3*$H35^2*$I35^0\n+m_313*$L35^3*$H35^1*$I35^3+m_312*$L35^3*$H35^1*$I35^2+m_311*$L35^3*$H35^1*$I35^1+m_310*$L35^3*$H35^1*$I35^0\n+m_303*$L35^3*$H35^0*$I35^3+m_302*$L35^3*$H35^0*$I35^2+m_301*$L35^3*$H35^0*$I35^1+m_300*$L35^3*$H35^0*$I35^0\n\n+m_233*$L35^2*$H35^3*$I35^3+m_232*$L35^2*$H35^3*$I35^2+m_231*$L35^2*$H35^3*$I35^1+m_230*$L35^2*$H35^3*$I35^0\n+m_223*$L35^2*$H35^2*$I35^3+m_222*$L35^2*$H35^2*$I35^2+m_221*$L35^2*$H35^2*$I35^1+m_220*$L35^2*$H35^2*$I35^0\n+m_213*$L35^2*$H35^1*$I35^3+m_212*$L35^2*$H35^1*$I35^2+m_211*$L35^2*$H35^1*$I35^1+m_210*$L35^2*$H35^1*$I35^0\n+m_203*$L35^2*$H35^0*$I35^3+m_202*$L35^2*$H35^0*$I35^2+m_201*$L35^2*$H35^0*$I35^1+m_200*$L35^2*$H35^0*$I35^0\n\n+m_133*$L35^1*$H35^3*$I35^3+m_132*$L35^1*$H35^3*$I35^2+m_131*$L35^1*$H35^3*$I35^1+m_130*$L35^1*$H35^3*$I35^0\n+m_123*$L35^1*$H35^2*$I35^3+m_122*$L35^1*$H35^2*$I35^2+m_121*$L35^1*$H35^2*$I35^1+m_120*$L35^1*$H35^2*$I35^0\n+m_113*$L35^1*$H35^1*$I35^3+m_112*$L35^1*$H35^1*$I35^2+m_111*$L35^1*$H35^1*$I35^1+m_110*$L35^1*$H35^1*$I35^0\n+m_103*$L35^1*$H35^0*$I35^3+m_102*$L35^1*$H35^0*$I35^2+m_101*$L35^1*$H35^0*$I35^1+m_100*$L35^1*$H35^0*$I35^0\n\n+m_033*$L35^0*$H35^3*$I35^3+m_032*$L35^0*$H35^3*$I35^2+m_031*$L35^0*$H35^3*$I35^1+m_030*$L35^0*$H35^3*$I35^0\n+m_023*$L35^0*$H35^2*$I35^3+m_022*$L35^0*$H35^2*$I35^2+m_021*$L35^0*$H35^2*$I35^1+m_020*$L35^0*$H35^2*$I35^0\n+m_013*$L35^0*$H35^1*$I35^3+m_012*$L35^0*$H35^1*$I35^2+m_011*$L35^0*$H35^1*$I35^1+m_010*$L35^0*$H35^1*$I35^0\n+m_003*$L35^0*$H35^0*$I35^3+m_002*$L35^0*$H35^0*$I35^2+m_001*$L35^0*$H35^0*$I35^1+m_000*$L35^0*$H35^0*$I35^0","v":{"$error":"#REF!"}},{"$error":"#REF!"},{"$f":"CopperThreshold/K35","v":4.6229915454287158E-5},{"$f":"CopperThreshold/N35","v":{"$error":"#REF!"}},{"$error":"#REF!"},{"$f":"(1-(1-2.718282^-(((G35-4)/Q35)^2.7)))","v":{"$error":"#REF!"}},{"$error":"#REF!"},{"$error":"#REF!"},{"$f":"IF(G35<CupHMinimum, CopperThreshold, (IF(G35 <cuPhDefaultLow, T35, (IF(G35<CupHMaximum, K35, N35)))))","v":{"$error":"#REF!"}},{"$f":"IF(G35<CupHMinimum, 1, (IF(G35 <cuPhDefaultLow, R35, (IF(G35<CupHMaximum, O35, P35)))))","v":{"$error":"#REF!"}},null,null,null,null,null,1,30.1,5,1,1,null,null,{"$f":"IF(AE35<>U35,\"mismatch\",\"\")","v":{"$error":"#REF!"}},{"$f":"IF(AF35<>V35,\"mismatch\",\"\")","v":{"$error":"#REF!"}},{"$f":"IF(AG35<>W35,\"mismatch\",\"\")","v":""},{"$f":"IF(AH35<>X35,\"mismatch\",\"\")","v":""}]
[34,null,null,null,null,null,5,30.1,5,161.63320095354504,161.63320095354504,{"$f":"IF(TestDataCu!G36 >CupHMaximum, CuPhDefaultHigh, cuPhDefaultLow)","v":{"$error":"#REF!"}},{"$error":"#REF!"},{"$error":"#REF!"},6.1868477150768654E-3,{"$error":"#REF!"},{"$error":"#REF!"},{"$error":"#REF!"},{"$error":"#REF!"},{"$error":"#REF!"},{"$error":"#REF!"},{"$error":"#REF!"},null,null,null,null,null,4,30.1,5,4.0451325804805034,0.24721068595512252,null,null,{"$error":"#REF!"},{"$error":"#REF!"},"",""]
[35,null,null,null,null,null,7.1,30.1,5,63.576363306963316,63.576363306963316,{"$f":"IF(TestDataCu!G37 >CupHMaximum, CuPhDefaultHigh, cuPhDefaultLow)","v":{"$error":"#REF!"}},{"$error":"#REF!"},{"$error":"#REF!"},1.5729116105174787E-2,{"$error":"#REF!"},{"$error":"#REF!"},{"$error":"#REF!"},{"$error":"#REF!"},{"$error":"#REF!"},{"$error":"#REF!"},{"$error":"#REF!"},null,null,null,null,null,7.1,30.1,5,63.576363306963316,1.5729116105174787E-2,null,null,{"$error":"#REF!"},{"$error":"#REF!"},"",""]
[36,null,null,null,null,null,8.6,30.1,5,-45.764915490343256,1,{"$f":"IF(TestDataCu!G38 >CupHMaximum, CuPhDefaultHigh, cuPhDefaultLow)","v":{"$error":"#REF!"}},{"$error":"#REF!"},{"$error":"#REF!"},1,{"$error":"#REF!"},{"$error":"#REF!"},{"$error":"#REF!"},{"$error":"#REF!"},{"$error":"#REF!"},{"$error":"#REF!"},{"$error":"#REF!"},null,null,null,null,null,8.6,30.1,5,1,1,null,null,{"$error":"#REF!"},{"$error":"#REF!"},"",""]
[37,null,null,null,null,null,1,30.1,31,403681.03995763167,403681.03995763167,{"$f":"IF(TestDataCu!G39 >CupHMaximum, CuPhDefaultHigh, cuPhDefaultLow)","v":{"$error":"#REF!"}},{"$error":"#REF!"},{"$error":"#REF!"},2.4772032892725279E-6,{"$error":"#REF!"},{"$error":"#REF!"},{"$error":"#REF!"},{"$error":"#REF!"},{"$error":"#REF!"},{"$error":"#REF!"},{"$error":"#REF!"},null,null,null,null,null,1,30.1,31,1,1,null,null,{"$error":"#REF!"},{"$error":"#REF!"},"",""]
[38,null,null,null,null,null,5,30.1,31,5205.9983813381205,5205.9983813381205,{"$f":"IF(TestDataCu!G40 >CupHMaximum, CuPhDefaultHigh, cuPhDefaultLow)","v":{"$error":"#REF!"}},{"$error":"#REF!"},{"$error":"#REF!"},1.9208611427631018E-4,{"$error":"#REF!"},{"$error":"#REF!"},{"$error":"#REF!"},{"$error":"#REF!"},{"$error":"#REF!"},{"$error":"#REF!"},{"$error":"#REF!"},null,null,null,null,null,4,30.1,31,4.7193853927792953,0.21189199795592228,null,null,{"$error":"#REF!"},{"$error":"#REF!"},"",""]
[39,null,null,null,null,null,7.1,30.1,31,-39.358364807403746,1,{"$f":"IF(TestDataCu!G41 >CupHMaximum, CuPhDefaultHigh, cuPhDefaultLow)","v":{"$error":"#REF!"}},{"$error":"#REF!"},{"$error":"#REF!"},1,{"$error":"#REF!"},{"$error":"#REF!"},{"$error":"#REF!"},{"$error":"#REF!"},{"$error":"#REF!"},{"$error":"#REF!"},{"$error":"#REF!"},null,null,null,null,null,7.1,30.1,31,1,1,null,null,{"$error":"#REF!"},{"$error":"#REF!"},"",""]
[40,null,null,null,null,null,8.6,30.1,31,-169.93808550651568,1,{"$f":"IF(TestDataCu!G42 >CupHMaximum, CuPhDefaultHigh, cuPhDefaultLow)","v":{"$error":"#REF!"}},{"$error":"#REF!"},{"$error":"#REF!"},1,{"$error":"#REF!"},{"$error":"#REF!"},{"$error":"#REF!"},{"$error":"#REF!"},{"$error":"#REF!"},{"$error":"#REF!"},{"$error":"#REF!"},null,null,null,null,null,8.6,30.1,31,1,1,null,null,{"$error":"#REF!"},{"$error":"#REF!"},"",""]
[41,null,null,15,null,null,1,0.9,5,1269.1506476126651,1269.1506476126651,{"$f":"IF(TestDataCu!G43 >CupHMaximum, CuPhDefaultHigh, cuPhDefaultLow)","v":{"$error":"#REF!"}},{"$error":"#REF!"},{"$error":"#REF!"},7.8792852675216231E-4,{"$error":"#REF!"},{"$error":"#REF!"},{"$error":"#REF!"},{"$error":"#REF!"},{"$error":"#REF!"},{"$error":"#REF!"},{"$error":"#REF!"},{"$f":"D43*V43","v":{"$error":"#REF!"}},{"$f":"W43/CopperThreshold","v":{"$error":"#REF!"}},15,null,null,1,1,5,1,1,15,15,{"$error":"#REF!"},{"$error":"#REF!"},{"$error":"#REF!"},{"$error":"#REF!"}]
[42,null,null,15,null,null,5,0.9,5,13.811128619181176,13.811128619181176,{"$f":"IF(TestDataCu!G44 >CupHMaximum, CuPhDefaultHigh, cuPhDefaultLow)","v":{"$error":"#REF!"}},{"$error":"#REF!"},{"$error":"#REF!"},7.2405378848704641E-2,{"$error":"#REF!"},{"$error":"#REF!"},{"$error":"#REF!"},{"$error":"#REF!"},{"$error":"#REF!"},{"$error":"#REF!"},{"$error":"#REF!"},{"$error":"#REF!"},{"$error":"#REF!"},15,null,null,4,1,5,1.5828275655678019,0.63178075853213589,9.4767113779820384,9.4767113779820384,{"$error":"#REF!"},{"$error":"#REF!"},{"$error":"#REF!"},{"$error":"#REF!"}]
[43,null,null,15,null,null,7.1,0.9,5,3.4763068837083608,3.4763068837083608,{"$f":"IF(TestDataCu!G45 >CupHMaximum, CuPhDefaultHigh, cuPhDefaultLow)","v":{"$error":"#REF!"}},{"$error":"#REF!"},{"$error":"#REF!"},0.2876615999256219,{"$error":"#REF!"},{"$error":"#REF!"},{"$error":"#REF!"},{"$error":"#REF!"},{"$error":"#REF!"},{"$error":"#REF!"},{"$error":"#REF!"},{"$error":"#REF!"},{"$error":"#REF!"},15,null,null,7.1,1,5,3.4763068837083608,0.2876615999256219,4.3149239988843284,4.3149239988843284,{"$error":"#REF!"},{"$error":"#REF!"},{"$error":"#REF!"},{"$error":"#REF!"}]
[44,null,null,15,null,null,8.6,0.9,5,1.7118950865375098,1.7118950865375098,{"$f":"IF(TestDataCu!G46 >CupHMaximum, CuPhDefaultHigh, cuPhDefaultLow)","v":{"$error":"#REF!"}},{"$error":"#REF!"},{"$error":"#REF!"},0.58414794683627869,{"$error":"#REF!"},{"$error":"#REF!"},{"$error":"#REF!"},{"$error":"#REF!"},{"$error":"#REF!"},{"$error":"#REF!"},{"$error":"#REF!"},{"$error":"#REF!"},{"$error":"#REF!"},15,null,null,8.6,1,5,1.7104772296885074,0.58463216150624153,8.7694824225936223,8.7694824225936223,{"$error":"#REF!"},{"$error":"#REF!"},{"$error":"#REF!"},{"$error":"#REF!"}]
[45,null,null,15,null,null,1,0.9,31,1403.3180476187206,1403.3180476187206,{"$f":"IF(TestDataCu!G47 >CupHMaximum, CuPhDefaultHigh, cuPhDefaultLow)","v":{"$error":"#REF!"}},{"$error":"#REF!"},{"$error":"#REF!"},7.125968355476452E-4,{"$error":"#REF!"},{"$error":"#REF!"},{"$error":"#REF!"},{"$error":"#REF!"},{"$error":"#REF!"},{"$error":"#REF!"},{"$error":"#REF!"},{"$error":"#REF!"},{"$error":"#REF!"},15,null,null,1,1,31,1,1,15,15,{"$error":"#REF!"},{"$error":"#REF!"},{"$error":"#REF!"},{"$error":"#REF!"}]
[46,null,null,15,null,null,5,0.9,31,15.332118570558009,15.332118570558009,{"$f":"IF(TestDataCu!G48 >CupHMaximum, CuPhDefaultHigh, cuPhDefaultLow)","v":{"$error":"#REF!"}},{"$error":"#REF!"},{"$error":"#REF!"},6.5222558474096456E-2,{"$error":"#REF!"},{"$error":"#REF!"},{"$error":"#REF!"},{"$error":"#REF!"},{"$error":"#REF!"},{"$error":"#REF!"},{"$error":"#REF!"},{"$error":"#REF!"},{"$error":"#REF!"},15,null,null,4,1,31,1.6349313476273051,0.61164647766479641,9.1746971649719455,9.1746971649719455,{"$error":"#REF!"},{"$error":"#REF!"},{"$error":"#REF!"},{"$error":"#REF!"}]
[47,null,null,15,null,null,7.1,0.9,31,3.3731936773968982,3.3731936773968982,{"$f":"IF(TestDataCu!G49 >CupHMaximum, CuPhDefaultHigh, cuPhDefaultLow)","v":{"$error":"#REF!"}},{"$error":"#REF!"},{"$error":"#REF!"},0.29645496097683383,{"$error":"#REF!"},{"$error":"#REF!"},{"$error":"#REF!"},{"$error":"#REF!"},{"$error":"#REF!"},{"$error":"#REF!"},{"$error":"#REF!"},{"$error":"#REF!"},{"$error":"#REF!"},15,null,null,7.1,1,31,3.3731936773968982,0.29645496097683383,4.4468244146525073,4.4468244146525073,{"$error":"#REF!"},{"$error":"#REF!"},{"$error":"#REF!"},{"$error":"#REF!"}]
[48,null,null,15,null,null,8.6,0.9,31,1.5041071727149529,1.5041071727149529,{"$f":"IF(TestDataCu!G50 >CupHMaximum, CuPhDefaultHigh, cuPhDefaultLow)","v":{"$error":"#REF!"}},{"$error":"#REF!"},{"$error":"#REF!"},0.66484624110592716,{"$error":"#REF!"},{"$error":"#REF!"},{"$error":"#REF!"},{"$error":"#REF!"},{"$error":"#REF!"},{"$error":"#REF!"},{"$error":"#REF!"},{"$error":"#REF!"},{"$error":"#REF!"},15,null,null,8.6,1,31,1.4664075091189943,0.68193867924257412,10.229080188638612,10.229080188638612,{"$error":"#REF!"},{"$error":"#REF!"},{"$error":"#REF!"},{"$error":"#REF!"}]
[49,null,null,15,null,null,1,1.1000000000000001,5,1572.3355297658861,1572.3355297658861,{"$f":"IF(TestDataCu!G51 >CupHMaximum, CuPhDefaultHigh, cuPhDefaultLow)","v":{"$error":"#REF!"}},{"$error":"#REF!"},{"$error":"#REF!"},6.3599656757034272E-4,{"$error":"#REF!"},{"$error":"#REF!"},{"$error":"#REF!"},{"$error":"#REF!"},{"$error":"#REF!"},{"$error":"#REF!"},{"$error":"#REF!"},{"$error":"#REF!"},{"$error":"#REF!"},15,null,null,1,1.1000000000000001,5,1,1,15,15,{"$error":"#REF!"},{"$error":"#REF!"},{"$error":"#REF!"},{"$error":"#REF!"}]
[50,null,null,15,null,null,5,1.1000000000000001,5,16.777517691325642,16.777517691325642,{"$f":"IF(TestDataCu!G52 >CupHMaximum, CuPhDefaultHigh, cuPhDefaultLow)","v":{"$error":"#REF!"}},{"$error":"#REF!"},{"$error":"#REF!"},5.9603572971764635E-2,{"$error":"#REF!"},{"$error":"#REF!"},{"$error":"#REF!"},{"$error":"#REF!"},{"$error":"#REF!"},{"$error":"#REF!"},{"$error":"#REF!"},{"$error":"#REF!"},{"$error":"#REF!"},15,null,null,4,1.1000000000000001,5,1.6855860670566758,0.59326546389065293,8.8989819583597942,8.8989819583597942,{"$error":"#REF!"},{"$error":"#REF!"},{"$error":"#REF!"},{"$error":"#REF!"}]
[51,null,null,15,null,null,7.1,1.1000000000000001,5,4.2698223731541418,4.2698223731541418,{"$f":"IF(TestDataCu!G53 >CupHMaximum, CuPhDefaultHigh, cuPhDefaultLow)","v":{"$error":"#REF!"}},{"$error":"#REF!"},{"$error":"#REF!"},0.23420177998207789,{"$error":"#REF!"},{"$error":"#REF!"},{"$error":"#REF!"},{"$error":"#REF!"},{"$error":"#REF!"},{"$error":"#REF!"},{"$error":"#REF!"},{"$error":"#REF!"},{"$error":"#REF!"},15,null,null,7.1,1.1000000000000001,5,4.2698223731541418,0.23420177998207789,3.5130266997311685,3.5130266997311685,{"$error":"#REF!"},{"$error":"#REF!"},{"$error":"#REF!"},{"$error":"#REF!"}]
[52,null,null,15,null,null,8.6,1.1000000000000001,5,2.0190985049394783,2.0190985049394783,{"$f":"IF(TestDataCu!G54 >CupHMaximum, CuPhDefaultHigh, cuPhDefaultLow)","v":{"$error":"#REF!"}},{"$error":"#REF!"},{"$error":"#REF!"},0.49527053660513437,{"$error":"#REF!"},{"$error":"#REF!"},{"$error":"#REF!"},{"$error":"#REF!"},{"$error":"#REF!"},{"$error":"#REF!"},{"$error":"#REF!"},{"$error":"#REF!"},{"$error":"#REF!"},15,null,null,8.6,1.1000000000000001,5,2.0281564809575627,0.49305860242492999,7.3958790363739499,7.3958790363739499,{"$error":"#REF!"},{"$error":"#REF!"},{"$error":"#REF!"},{"$error":"#REF!"}]
[53,null,null,15,null,null,1,1.1000000000000001,31,1776.4011517822239,1776.4011517822239,{"$f":"IF(TestDataCu!G55 >CupHMaximum, CuPhDefaultHigh, cuPhDefaultLow)","v":{"$error":"#REF!"}},{"$error":"#REF!"},{"$error":"#REF!"},5.6293591061721735E-4,{"$error":"#REF!"},{"$error":"#REF!"},{"$error":"#REF!"},{"$error":"#REF!"},{"$error":"#REF!"},{"$error":"#REF!"},{"$error":"#REF!"},{"$error":"#REF!"},{"$error":"#REF!"},15,null,null,1,1.1000000000000001,31,1,1,15,15,{"$error":"#REF!"},{"$error":"#REF!"},{"$error":"#REF!"},{"$error":"#REF!"}]
[54,null,null,15,null,null,5,1.1000000000000001,31,19.155289215801872,19.155289215801872,{"$f":"IF(TestDataCu!G56 >CupHMaximum, CuPhDefaultHigh, cuPhDefaultLow)","v":{"$error":"#REF!"}},{"$error":"#REF!"},{"$error":"#REF!"},5.2204902193544789E-2,{"$error":"#REF!"},{"$error":"#REF!"},{"$error":"#REF!"},{"$error":"#REF!"},{"$error":"#REF!"},{"$error":"#REF!"},{"$error":"#REF!"},{"$error":"#REF!"},{"$error":"#REF!"},15,null,null,4,1.1000000000000001,31,1.7645455535156918,0.56671815471558307,8.5007723207337467,8.5007723207337467,{"$error":"#REF!"},{"$error":"#REF!"},{"$error":"#REF!"},{"$error":"#REF!"}]
[55,null,null,15,null,null,7.1,1.1000000000000001,31,4.1448452624543961,4.1448452624543961,{"$f":"IF(TestDataCu!G57 >CupHMaximum, CuPhDefaultHigh, cuPhDefaultLow)","v":{"$error":"#REF!"}},{"$error":"#REF!"},{"$error":"#REF!"},0.24126353016320898,{"$error":"#REF!"},{"$error":"#REF!"},{"$error":"#REF!"},{"$error":"#REF!"},{"$error":"#REF!"},{"$error":"#REF!"},{"$error":"#REF!"},{"$error":"#REF!"},{"$error":"#REF!"},15,null,null,7.1,1.1000000000000001,31,4.1448452624543961,0.24126353016320898,3.6189529524481348,3.6189529524481348,{"$error":"#REF!"},{"$error":"#REF!"},{"$error":"#REF!"},{"$error":"#REF!"}]
[56,null,null,15,null,null,8.6,1.1000000000000001,31,1.7290678721773247,1.7290678721773247,{"$f":"IF(TestDataCu!G58 >CupHMaximum, CuPhDefaultHigh, cuPhDefaultLow)","v":{"$error":"#REF!"}},{"$error":"#REF!"},{"$error":"#REF!"},0.57834629634333112,{"$error":"#REF!"},{"$error":"#REF!"},{"$error":"#REF!"},{"$error":"#REF!"},{"$error":"#REF!"},{"$error":"#REF!"},{"$error":"#REF!"},{"$error":"#REF!"},{"$error":"#REF!"},15,null,null,8.6,1.1000000000000001,31,1.6917461723950282,0.59110522389081943,8.8665783583622915,8.8665783583622915,{"$error":"#REF!"},{"$error":"#REF!"},{"$error":"#REF!"},{"$error":"#REF!"}]
[57,null,null,15,null,null,1,3.1,5,4663.466043316178,4663.466043316178,{"$f":"IF(TestDataCu!G59 >CupHMaximum, CuPhDefaultHigh, cuPhDefaultLow)","v":{"$error":"#REF!"}},{"$error":"#REF!"},{"$error":"#REF!"},2.1443278255091629E-4,{"$error":"#REF!"},{"$error":"#REF!"},{"$error":"#REF!"},{"$error":"#REF!"},{"$error":"#REF!"},{"$error":"#REF!"},{"$error":"#REF!"},{"$error":"#REF!"},{"$error":"#REF!"},15,null,null,1,3.1,5,1,1,15,15,{"$error":"#REF!"},{"$error":"#REF!"},{"$error":"#REF!"},{"$error":"#REF!"}]
[58,null,null,15,null,null,5,3.1,5,48.819840713537445,48.819840713537445,{"$f":"IF(TestDataCu!G60 >CupHMaximum, CuPhDefaultHigh, cuPhDefaultLow)","v":{"$error":"#REF!"}},{"$error":"#REF!"},{"$error":"#REF!"},2.0483475271206815E-2,{"$error":"#REF!"},{"$error":"#REF!"},{"$error":"#REF!"},{"$error":"#REF!"},{"$error":"#REF!"},{"$error":"#REF!"},{"$error":"#REF!"},{"$error":"#REF!"},{"$error":"#REF!"},15,null,null,4,3.1,5,2.5598058291059229,0.39065463037455284,5.8598194556182923,5.8598194556182923,{"$error":"#REF!"},{"$error":"#REF!"},{"$error":"#REF!"},{"$error":"#REF!"}]
[59,null,null,15,null,null,7.1,3.1,5,12.388250032660466,12.388250032660466,{"$f":"IF(TestDataCu!G61 >CupHMaximum, CuPhDefaultHigh, cuPhDefaultLow)","v":{"$error":"#REF!"}},{"$error":"#REF!"},{"$error":"#REF!"},8.0721651352175919E-2,{"$error":"#REF!"},{"$error":"#REF!"},{"$error":"#REF!"},{"$error":"#REF!"},{"$error":"#REF!"},{"$error":"#REF!"},{"$error":"#REF!"},{"$error":"#REF!"},{"$error":"#REF!"},15,null,null,7.1,3.1,5,12.388250032660466,8.0721651352175919E-2,1.2108247702826387,1.2108247702826387,{"$error":"#REF!"},{"$error":"#REF!"},{"$error":"#REF!"},{"$error":"#REF!"}]
[60,null,null,15,null,null,8.6,3.1,5,5.3582756203328188,5.3582756203328188,{"$f":"IF(TestDataCu!G62 >CupHMaximum, CuPhDefaultHigh, cuPhDefaultLow)","v":{"$error":"#REF!"}},{"$error":"#REF!"},{"$error":"#REF!"},0.18662720450686465,{"$error":"#REF!"},{"$error":"#REF!"},{"$error":"#REF!"},{"$error":"#REF!"},{"$error":"#REF!"},{"$error":"#REF!"},{"$error":"#REF!"},{"$error":"#REF!"},{"$error":"#REF!"},15,null,null,8.6,3.1,5,5.5536854367061039,0.18006061225410364,2.7009091838115546,2.7009091838115546,{"$error":"#REF!"},{"$error":"#REF!"},{"$error":"#REF!"},{"$error":"#REF!"}]
[61,null,null,15,null,null,1,3.1,31,4847.9202069493113,4847.9202069493113,{"$f":"IF(TestDataCu!G63 >CupHMaximum, CuPhDefaultHigh, cuPhDefaultLow)","v":{"$error":"#REF!"}},{"$error":"#REF!"},{"$error":"#REF!"},2.0627402211912185E-4,{"$error":"#REF!"},{"$error":"#REF!"},{"$error":"#REF!"},{"$error":"#REF!"},{"$error":"#REF!"},{"$error":"#REF!"},{"$error":"#REF!"},{"$error":"#REF!"},{"$error":"#REF!"},15,null,null,1,3.1,31,1,1,15,15,{"$error":"#REF!"},{"$error":"#REF!"},{"$error":"#REF!"},{"$error":"#REF!"}]
[62,null,null,15,null,null,5,3.1,31,49.43892794287035,49.43892794287035,{"$f":"IF(TestDataCu!G64 >CupHMaximum, CuPhDefaultHigh, cuPhDefaultLow)","v":{"$error":"#REF!"}},{"$error":"#REF!"},{"$error":"#REF!"},2.0226975818641538E-2,{"$error":"#REF!"},{"$error":"#REF!"},{"$error":"#REF!"},{"$error":"#REF!"},{"$error":"#REF!"},{"$error":"#REF!"},{"$error":"#REF!"},{"$error":"#REF!"},{"$error":"#REF!"},15,null,null,4,3.1,31,2.5434065537970767,0.39317347771518874,5.8976021657278306,5.8976021657278306,{"$error":"#REF!"},{"$error":"#REF!"},{"$error":"#REF!"},{"$error":"#REF!"}]
[63,null,null,15,null,null,7.1,3.1,31,12.407386441398444,12.407386441398444,{"$f":"IF(TestDataCu!G65 >CupHMaximum, CuPhDefaultHigh, cuPhDefaultLow)","v":{"$error":"#REF!"}},{"$error":"#REF!"},{"$error":"#REF!"},8.059715111825673E-2,{"$error":"#REF!"},{"$error":"#REF!"},{"$error":"#REF!"},{"$error":"#REF!"},{"$error":"#REF!"},{"$error":"#REF!"},{"$error":"#REF!"},{"$error":"#REF!"},{"$error":"#REF!"},15,null,null,7.1,3.1,31,12.407386441398444,8.059715111825673E-2,1.2089572667738508,1.2089572667738508,{"$error":"#REF!"},{"$error":"#REF!"},{"$error":"#REF!"},{"$error":"#REF!"}]
[64,null,null,15,null,null,8.6,3.1,31,4.6219778660778275,4.6219778660778275,{"$f":"IF(TestDataCu!G66 >CupHMaximum, CuPhDefaultHigh, cuPhDefaultLow)","v":{"$error":"#REF!"}},{"$error":"#REF!"},{"$error":"#REF!"},0.21635759170101604,{"$error":"#REF!"},{"$error":"#REF!"},{"$error":"#REF!"},{"$error":"#REF!"},{"$error":"#REF!"},{"$error":"#REF!"},{"$error":"#REF!"},{"$error":"#REF!"},{"$error":"#REF!"},15,null,null,8.6,3.1,31,4.7915676498304265,0.20869996482996331,3.1304994724494497,3.1304994724494497,{"$error":"#REF!"},{"$error":"#REF!"},{"$error":"#REF!"},{"$error":"#REF!"}]
[65,null,null,15,null,null,1,10.1,5,{"$f":"m_433*$G67^4*$H67^3*$I67^3+m_432*$G67^4*$H67^3*$I67^2+m_431*$G67^4*$H67^3*$I67^1+m_430*$G67^4*$H67^3*$I67^0\n+m_423*$G67^4*$H67^2*$I67^3+m_422*$G67^4*$H67^2*$I67^2+m_421*$G67^4*$H67^2*$I67^1+m_420*$G67^4*$H67^2*$I67^0\n+m_413*$G67^4*$H67^1*$I67^3+m_412*$G67^4*$H67^1*$I67^2+m_411*$G67^4*$H67^1*$I67^1+m_410*$G67^4*$H67^1*$I67^0\n+m_403*$G67^4*$H67^0*$I67^3+m_402*$G67^4*$H67^0*$I67^2+m_401*$G67^4*$H67^0*$I67^1+m_400*$G67^4*$H67^0*$I67^0\n\n+m_333*$G67^3*$H67^3*$I67^3+m_332*$G67^3*$H67^3*$I67^2+m_331*$G67^3*$H67^3*$I67^1+m_330*$G67^3*$H67^3*$I67^0\n+m_323*$G67^3*$H67^2*$I67^3+m_322*$G67^3*$H67^2*$I67^2+m_321*$G67^3*$H67^2*$I67^1+m_320*$G67^3*$H67^2*$I67^0\n+m_313*$G67^3*$H67^1*$I67^3+m_312*$G67^3*$H67^1*$I67^2+m_311*$G67^3*$H67^1*$I67^1+m_310*$G67^3*$H67^1*$I67^0\n+m_303*$G67^3*$H67^0*$I67^3+m_302*$G67^3*$H67^0*$I67^2+m_301*$G67^3*$H67^0*$I67^1+m_300*$G67^3*$H67^0*$I67^0\n\n+m_233*$G67^2*$H67^3*$I67^3+m_232*$G67^2*$H67^3*$I67^2+m_231*$G67^2*$H67^3*$I67^1+m_230*$G67^2*$H67^3*$I67^0\n+m_223*$G67^2*$H67^2*$I67^3+m_222*$G67^2*$H67^2*$I67^2+m_221*$G67^2*$H67^2*$I67^1+m_220*$G67^2*$H67^2*$I67^0\n+m_213*$G67^2*$H67^1*$I67^3+m_212*$G67^2*$H67^1*$I67^2+m_211*$G67^2*$H67^1*$I67^1+m_210*$G67^2*$H67^1*$I67^0\n+m_203*$G67^2*$H67^0*$I67^3+m_202*$G67^2*$H67^0*$I67^2+m_201*$G67^2*$H67^0*$I67^1+m_200*$G67^2*$H67^0*$I67^0\n\n+m_133*$G67^1*$H67^3*$I67^3+m_132*$G67^1*$H67^3*$I67^2+m_131*$G67^1*$H67^3*$I67^1+m_130*$G67^1*$H67^3*$I67^0\n+m_123*$G67^1*$H67^2*$I67^3+m_122*$G67^1*$H67^2*$I67^2+m_121*$G67^1*$H67^2*$I67^1+m_120*$G67^1*$H67^2*$I67^0\n+m_113*$G67^1*$H67^1*$I67^3+m_112*$G67^1*$H67^1*$I67^2+m_111*$G67^1*$H67^1*$I67^1+m_110*$G67^1*$H67^1*$I67^0\n+m_103*$G67^1*$H67^0*$I67^3+m_102*$G67^1*$H67^0*$I67^2+m_101*$G67^1*$H67^0*$I67^1+m_100*$G67^1*$H67^0*$I67^0\n\n+m_033*$G67^0*$H67^3*$I67^3+m_032*$G67^0*$H67^3*$I67^2+m_031*$G67^0*$H67^3*$I67^1+m_030*$G67^0*$H67^3*$I67^0\n+m_023*$G67^0*$H67^2*$I67^3+m_022*$G67^0*$H67^2*$I67^2+m_021*$G67^0*$H67^2*$I67^1+m_020*$G67^0*$H67^2*$I67^0\n+m_013*$G67^0*$H67^1*$I67^3+m_012*$G67^0*$H67^1*$I67^2+m_011*$G67^0*$H67^1*$I67^1+m_010*$G67^0*$H67^1*$I67^0\n+m_003*$G67^0*$H67^0*$I67^3+m_002*$G67^0*$H67^0*$I67^2+m_001*$G67^0*$H67^0*$I67^1+m_000*$G67^0*$H67^0*$I67^0","v":15436.053690118506},{"$f":"IF(J67<CopperThreshold,CopperThreshold,J67)","v":15436.053690118506},{"$f":"IF(TestDataCu!G67 >CupHMaximum, CuPhDefaultHigh, cuPhDefaultLow)","v":{"$error":"#REF!"}},{"$f":"m_433*$L67^4*$H67^3*$I67^3+m_432*$L67^4*$H67^3*$I67^2+m_431*$L67^4*$H67^3*$I67^1+m_430*$L67^4*$H67^3*$I67^0\n+m_423*$L67^4*$H67^2*$I67^3+m_422*$L67^4*$H67^2*$I67^2+m_421*$L67^4*$H67^2*$I67^1+m_420*$L67^4*$H67^2*$I67^0\n+m_413*$L67^4*$H67^1*$I67^3+m_412*$L67^4*$H67^1*$I67^2+m_411*$L67^4*$H67^1*$I67^1+m_410*$L67^4*$H67^1*$I67^0\n+m_403*$L67^4*$H67^0*$I67^3+m_402*$L67^4*$H67^0*$I67^2+m_401*$L67^4*$H67^0*$I67^1+m_400*$L67^4*$H67^0*$I67^0\n\n+m_333*$L67^3*$H67^3*$I67^3+m_332*$L67^3*$H67^3*$I67^2+m_331*$L67^3*$H67^3*$I67^1+m_330*$L67^3*$H67^3*$I67^0\n+m_323*$L67^3*$H67^2*$I67^3+m_322*$L67^3*$H67^2*$I67^2+m_321*$L67^3*$H67^2*$I67^1+m_320*$L67^3*$H67^2*$I67^0\n+m_313*$L67^3*$H67^1*$I67^3+m_312*$L67^3*$H67^1*$I67^2+m_311*$L67^3*$H67^1*$I67^1+m_310*$L67^3*$H67^1*$I67^0\n+m_303*$L67^3*$H67^0*$I67^3+m_302*$L67^3*$H67^0*$I67^2+m_301*$L67^3*$H67^0*$I67^1+m_300*$L67^3*$H67^0*$I67^0\n\n+m_233*$L67^2*$H67^3*$I67^3+m_232*$L67^2*$H67^3*$I67^2+m_231*$L67^2*$H67^3*$I67^1+m_230*$L67^2*$H67^3*$I67^0\n+m_223*$L67^2*$H67^2*$I67^3+m_222*$L67^2*$H67^2*$I67^2+m_221*$L67^2*$H67^2*$I67^1+m_220*$L67^2*$H67^2*$I67^0\n+m_213*$L67^2*$H67^1*$I67^3+m_212*$L67^2*$H67^1*$I67^2+m_211*$L67^2*$H67^1*$I67^1+m_210*$L67^2*$H67^1*$I67^0\n+m_203*$L67^2*$H67^0*$I67^3+m_202*$L67^2*$H67^0*$I67^2+m_201*$L67^2*$H67^0*$I67^1+m_200*$L67^2*$H67^0*$I67^0\n\n+m_133*$L67^1*$H67^3*$I67^3+m_132*$L67^1*$H67^3*$I67^2+m_131*$L67^1*$H67^3*$I67^1+m_130*$L67^1*$H67^3*$I67^0\n+m_123*$L67^1*$H67^2*$I67^3+m_122*$L67^1*$H67^2*$I67^2+m_121*$L67^1*$H67^2*$I67^1+m_120*$L67^1*$H67^2*$I67^0\n+m_113*$L67^1*$H67^1*$I67^3+m_112*$L67^1*$H67^1*$I67^2+m_111*$L67^1*$H67^1*$I67^1+m_110*$L67^1*$H67^1*$I67^0\n+m_103*$L67^1*$H67^0*$I67^3+m_102*$L67^1*$H67^0*$I67^2+m_101*$L67^1*$H67^0*$I67^1+m_100*$L67^1*$H67^0*$I67^0\n\n+m_033*$L67^0*$H67^3*$I67^3+m_032*$L67^0*$H67^3*$I67^2+m_031*$L67^0*$H67^3*$I67^1+m_030*$L67^0*$H67^3*$I67^0\n+m_023*$L67^0*$H67^2*$I67^3+m_022*$L67^0*$H67^2*$I67^2+m_021*$L67^0*$H67^2*$I67^1+m_020*$L67^0*$H67^2*$I67^0\n+m_013*$L67^0*$H67^1*$I67^3+m_012*$L67^0*$H67^1*$I67^2+m_011*$L67^0*$H67^1*$I67^1+m_010*$L67^0*$H67^1*$I67^0\n+m_003*$L67^0*$H67^0*$I67^3+m_002*$L67^0*$H67^0*$I67^2+m_001*$L67^0*$H67^0*$I67^1+m_000*$L67^0*$H67^0*$I67^0","v":{"$error":"#REF!"}},{"$f":"IF(M67<CopperThreshold,CopperThreshold,M67)","v":{"$error":"#REF!"}},{"$f":"CopperThreshold/K67","v":6.4783397367952717E-5},{"$f":"CopperThreshold/N67","v":{"$error":"#REF!"}},{"$f":"((1-(1-2.718282^-(((1-P67)/0.027)^0.35)))*12+1)-(0.5*((1-P67)^4))","v":{"$error":"#REF!"}},{"$f":"(1-(1-2.718282^-(((G67-4)/Q67)^2.7)))","v":{"$error":"#REF!"}},{"$f":"CopperThreshold/R67","v":{"$error":"#REF!"}},{"$f":"IF(S67<CopperThreshold,CopperThreshold,S67)","v":{"$error":"#REF!"}},{"$f":"IF(G67<CupHMinimum, CopperThreshold, (IF(G67 <cuPhDefaultLow, T67, (IF(G67<CupHMaximum, K67, N67)))))","v":{"$error":"#REF!"}},{"$f":"IF(G67<CupHMinimum, 1, (IF(G67 <cuPhDefaultLow, R67, (IF(G67<CupHMaximum, O67, P67)))))","v":{"$error":"#REF!"}},{"$error":"#REF!"},{"$error":"#REF!"},15,null,null,1,10.1,5,1,1,15,15,{"$f":"IF(AE67<>U67,\"mismatch\",\"\")","v":{"$error":"#REF!"}},{"$f":"IF(AF67<>V67,\"mismatch\",\"\")","v":{"$error":"#REF!"}},{"$f":"IF(AG67<>W67,\"mismatch\",\"\")","v":{"$error":"#REF!"}},{"$f":"IF(AH67<>X67,\"mismatch\",\"\")","v":{"$error":"#REF!"}}]
[66,null,null,15,null,null,5,10.1,5,176.18722110266174,176.18722110266174,{"$f":"IF(TestDataCu!G68 >CupHMaximum, CuPhDefaultHigh, cuPhDefaultLow)","v":{"$error":"#REF!"}},{"$error":"#REF!"},{"$error":"#REF!"},5.675780534714913E-3,{"$error":"#REF!"},{"$error":"#REF!"},{"$error":"#REF!"},{"$error":"#REF!"},{"$error":"#REF!"},{"$error":"#REF!"},{"$error":"#REF!"},{"$error":"#REF!"},{"$error":"#REF!"},15,null,null,4,10.1,5,3.8349492129753728,0.26075964620771153,3.9113946931156729,3.9113946931156729,{"$error":"#REF!"},{"$error":"#REF!"},{"$error":"#REF!"},{"$error":"#REF!"}]
[67,null,null,15,null,null,7.1,10.1,5,41.119368047058373,41.119368047058373,{"$f":"IF(TestDataCu!G69 >CupHMaximum, CuPhDefaultHigh, cuPhDefaultLow)","v":{"$error":"#REF!"}},{"$error":"#REF!"},{"$error":"#REF!"},2.4319439901303121E-2,{"$error":"#REF!"},{"$error":"#REF!"},{"$error":"#REF!"},{"$error":"#REF!"},{"$error":"#REF!"},{"$error":"#REF!"},{"$error":"#REF!"},{"$error":"#REF!"},{"$error":"#REF!"},15,null,null,7.1,10.1,5,41.119368047058373,2.4319439901303121E-2,0.36479159851954679,0.36479159851954679,{"$error":"#REF!"},{"$error":"#REF!"},{"$error":"#REF!"},{"$error":"#REF!"}]
[68,null,null,15,null,null,8.6,10.1,5,17.226503915354982,17.226503915354982,{"$f":"IF(TestDataCu!G70 >CupHMaximum, CuPhDefaultHigh, cuPhDefaultLow)","v":{"$error":"#REF!"}},{"$error":"#REF!"},{"$error":"#REF!"},5.8050084039898656E-2,{"$error":"#REF!"},{"$error":"#REF!"},{"$error":"#REF!"},{"$error":"#REF!"},{"$error":"#REF!"},{"$error":"#REF!"},{"$error":"#REF!"},{"$error":"#REF!"},{"$error":"#REF!"},15,null,null,8.6,10.1,5,18.69499139400213,5.3490262655099569E-2,0.8023539398264935,0.8023539398264935,{"$error":"#REF!"},{"$error":"#REF!"},{"$error":"#REF!"},{"$error":"#REF!"}]
[69,null,null,15,null,null,1,10.1,31,18191.77144748038,18191.77144748038,{"$f":"IF(TestDataCu!G71 >CupHMaximum, CuPhDefaultHigh, cuPhDefaultLow)","v":{"$error":"#REF!"}},{"$error":"#REF!"},{"$error":"#REF!"},5.4969907844708732E-5,{"$error":"#REF!"},{"$error":"#REF!"},{"$error":"#REF!"},{"$error":"#REF!"},{"$error":"#REF!"},{"$error":"#REF!"},{"$error":"#REF!"},{"$error":"#REF!"},{"$error":"#REF!"},15,null,null,1,10.1,31,1,1,15,15,{"$error":"#REF!"},{"$error":"#REF!"},{"$error":"#REF!"},{"$error":"#REF!"}]
[70,null,null,15,null,null,5,10.1,31,197.84174228847564,197.84174228847564,{"$f":"IF(TestDataCu!G72 >CupHMaximum, CuPhDefaultHigh, cuPhDefaultLow)","v":{"$error":"#REF!"}},{"$error":"#REF!"},{"$error":"#REF!"},5.0545450542074525E-3,{"$error":"#REF!"},{"$error":"#REF!"},{"$error":"#REF!"},{"$error":"#REF!"},{"$error":"#REF!"},{"$error":"#REF!"},{"$error":"#REF!"},{"$error":"#REF!"},{"$error":"#REF!"},15,null,null,4,10.1,31,3.8716699579638059,0.25828647866615195,3.8742971799922792,3.8742971799922792,{"$error":"#REF!"},{"$error":"#REF!"},{"$error":"#REF!"},{"$error":"#REF!"}]
[71,null,null,15,null,null,7.1,10.1,31,42.541171449645617,42.541171449645617,{"$f":"IF(TestDataCu!G73 >CupHMaximum, CuPhDefaultHigh, cuPhDefaultLow)","v":{"$error":"#REF!"}},{"$error":"#REF!"},{"$error":"#REF!"},2.3506639942523971E-2,{"$error":"#REF!"},{"$error":"#REF!"},{"$error":"#REF!"},{"$error":"#REF!"},{"$error":"#REF!"},{"$error":"#REF!"},{"$error":"#REF!"},{"$error":"#REF!"},{"$error":"#REF!"},15,null,null,7.1,10.1,31,42.541171449645617,2.3506639942523971E-2,0.35259959913785954,0.35259959913785954,{"$error":"#REF!"},{"$error":"#REF!"},{"$error":"#REF!"},{"$error":"#REF!"}]
[72,null,null,15,null,null,8.6,10.1,31,15.640822491675749,15.640822491675749,{"$f":"IF(TestDataCu!G74 >CupHMaximum, CuPhDefaultHigh, cuPhDefaultLow)","v":{"$error":"#REF!"}},{"$error":"#REF!"},{"$error":"#REF!"},6.3935256635781978E-2,{"$error":"#REF!"},{"$error":"#REF!"},{"$error":"#REF!"},{"$error":"#REF!"},{"$error":"#REF!"},{"$error":"#REF!"},{"$error":"#REF!"},{"$error":"#REF!"},{"$error":"#REF!"},15,null,null,8.6,10.1,31,16.491426151865994,6.0637569534084876E-2,0.90956354301127318,0.90956354301127318,{"$error":"#REF!"},{"$error":"#REF!"},{"$error":"#REF!"},{"$error":"#REF!"}]
[73,null,null,15,null,null,1,30.1,5,21631.015115933213,21631.015115933213,{"$f":"IF(TestDataCu!G75 >CupHMaximum, CuPhDefaultHigh, cuPhDefaultLow)","v":{"$error":"#REF!"}},{"$error":"#REF!"},{"$error":"#REF!"},4.6229915454287158E-5,{"$error":"#REF!"},{"$error":"#REF!"},{"$error":"#REF!"},{"$error":"#REF!"},{"$error":"#REF!"},{"$error":"#REF!"},{"$error":"#REF!"},{"$error":"#REF!"},{"$error":"#REF!"},15,null,null,1,30.1,5,1,1,15,15,{"$error":"#REF!"},{"$error":"#REF!"},{"$error":"#REF!"},{"$error":"#REF!"}]
[74,null,null,15,null,null,5,30.1,5,161.63320095354504,161.63320095354504,{"$f":"IF(TestDataCu!G76 >CupHMaximum, CuPhDefaultHigh, cuPhDefaultLow)","v":{"$error":"#REF!"}},{"$error":"#REF!"},{"$error":"#REF!"},6.1868477150768654E-3,{"$error":"#REF!"},{"$error":"#REF!"},{"$error":"#REF!"},{"$error":"#REF!"},{"$error":"#REF!"},{"$error":"#REF!"},{"$error":"#REF!"},{"$error":"#REF!"},{"$error":"#REF!"},15,null,null,4,30.1,5,4.0451325804805034,0.24721068595512252,3.7081602893268379,3.7081602893268379,{"$error":"#REF!"},{"$error":"#REF!"},{"$error":"#REF!"},{"$error":"#REF!"}]
[75,null,null,15,null,null,7.1,30.1,5,63.576363306963316,63.576363306963316,{"$f":"IF(TestDataCu!G77 >CupHMaximum, CuPhDefaultHigh, cuPhDefaultLow)","v":{"$error":"#REF!"}},{"$error":"#REF!"},{"$error":"#REF!"},1.5729116105174787E-2,{"$error":"#REF!"},{"$error":"#REF!"},{"$error":"#REF!"},{"$error":"#REF!"},{"$error":"#REF!"},{"$error":"#REF!"},{"$error":"#REF!"},{"$error":"#REF!"},{"$error":"#REF!"},15,null,null,7.1,30.1,5,63.576363306963316,1.5729116105174787E-2,0.23593674157762179,0.23593674157762179,{"$error":"#REF!"},{"$error":"#REF!"},{"$error":"#REF!"},{"$error":"#REF!"}]
[76,null,null,15,null,null,8.6,30.1,5,-45.764915490343256,1,{"$f":"IF(TestDataCu!G78 >CupHMaximum, CuPhDefaultHigh, cuPhDefaultLow)","v":{"$error":"#REF!"}},{"$error":"#REF!"},{"$error":"#REF!"},1,{"$error":"#REF!"},{"$error":"#REF!"},{"$error":"#REF!"},{"$error":"#REF!"},{"$error":"#REF!"},{"$error":"#REF!"},{"$error":"#REF!"},{"$error":"#REF!"},{"$error":"#REF!"},15,null,null,8.6,30.1,5,1,1,15,15,{"$error":"#REF!"},{"$error":"#REF!"},{"$error":"#REF!"},{"$error":"#REF!"}]
[77,null,null,15,null,null,1,30.1,31,403681.03995763167,403681.03995763167,{"$f":"IF(TestDataCu!G79 >CupHMaximum, CuPhDefaultHigh, cuPhDefaultLow)","v":{"$error":"#REF!"}},{"$error":"#REF!"},{"$error":"#REF!"},2.4772032892725279E-6,{"$error":"#REF!"},{"$error":"#REF!"},{"$error":"#REF!"},{"$error":"#REF!"},{"$error":"#REF!"},{"$error":"#REF!"},{"$error":"#REF!"},{"$error":"#REF!"},{"$error":"#REF!"},15,null,null,1,30.1,31,1,1,15,15,{"$error":"#REF!"},{"$error":"#REF!"},{"$error":"#REF!"},{"$error":"#REF!"}]
[78,null,null,15,null,null,5,30.1,31,5205.9983813381205,5205.9983813381205,{"$f":"IF(TestDataCu!G80 >CupHMaximum, CuPhDefaultHigh, cuPhDefaultLow)","v":{"$error":"#REF!"}},{"$error":"#REF!"},{"$error":"#REF!"},1.9208611427631018E-4,{"$error":"#REF!"},{"$error":"#REF!"},{"$error":"#REF!"},{"$error":"#REF!"},{"$error":"#REF!"},{"$error":"#REF!"},{"$error":"#REF!"},{"$error":"#REF!"},{"$error":"#REF!"},15,null,null,4,30.1,31,4.7193853927792953,0.21189199795592228,3.1783799693388342,3.1783799693388342,{"$error":"#REF!"},{"$error":"#REF!"},{"$error":"#REF!"},{"$error":"#REF!"}]
[79,null,null,15,null,null,7.1,30.1,31,-39.358364807403746,1,{"$f":"IF(TestDataCu!G81 >CupHMaximum, CuPhDefaultHigh, cuPhDefaultLow)","v":{"$error":"#REF!"}},{"$error":"#REF!"},{"$error":"#REF!"},{"$f":"CopperThreshold/K81","v":1},{"$error":"#REF!"},{"$error":"#REF!"},{"$error":"#REF!"},{"$error":"#REF!"},{"$error":"#REF!"},{"$error":"#REF!"},{"$error":"#REF!"},{"$error":"#REF!"},{"$error":"#REF!"},15,null,null,7.1,30.1,31,1,1,15,15,{"$error":"#REF!"},{"$error":"#REF!"},{"$error":"#REF!"},{"$error":"#REF!"}]
[80,null,null,15,null,null,8.6,30.1,31,-169.93808550651568,1,{"$f":"IF(TestDataCu!G82 >CupHMaximum, CuPhDefaultHigh, cuPhDefaultLow)","v":{"$error":"#REF!"}},{"$error":"#REF!"},{"$error":"#REF!"},1,{"$error":"#REF!"},{"$error":"#REF!"},{"$error":"#REF!"},{"$error":"#REF!"},{"$error":"#REF!"},{"$error":"#REF!"},{"$error":"#REF!"},{"$error":"#REF!"},{"$error":"#REF!"},15,null,null,8.6,30.1,31,1,1,15,15,{"$error":"#REF!"},{"$error":"#REF!"},{"$error":"#REF!"},{"$error":"#REF!"}]

{"sheet":"Bio Ass test Data","index":8,"n_rows":5,"n_cols":28,"rows_kept":5,"cut":false,"hidden":false,"merged":[]}
[]
[]
[null,"INPUT DATA",null,null,null,null,null,null,null,null,null,null,"RESULTS (Copper)",null,null,null,"RESULTS (Zinc)",null,null,null,"RESULTS (Mn)",null,null,null,"RESULTS (Ni)"]
[{"$f":"SUM(ModelConstantsNi!D$7:D$26*(6^ModelConstantsNi!E$7:E$26)*(20^ModelConstantsNi!F$7:F$26)*(88^ModelConstantsNi!G$7:G$26))","v":42.522378227780621},"ID","Location","Waterbody","Date","Measured Cu Concentration (dissolved) (µg l-1)","Measured Zn Concentration (dissolved) (µg l-1)","Measured Mn Concentration (dissolved) (µg l-1)","Measured Ni Concentration (dissolved) (µg l-1)","pH","DOC","Ca","Site-specific PNEC Dissolved Copper \n(µg l-1)","BioF","Bioavailable Copper Concentration (µg l-1)","Risk Characterisation Ratio","Site-specific PNEC Dissolved Zinc (µg l-1)","BioF","Bioavailable Zinc Concentration (µg l-1)","Risk Characterisation Ratio","Site-specific PNEC Dissolved Manganese (µg l-1)","BioF","Bioavailable Manganese Concentration (µg l-1)","Risk Characterisation Ratio","Site-specific PNEC Dissolved Nickel (µg l-1)","BioF","Bioavailable Nickel Concentration (µg l-1)","Risk Characterisation Ratio"]
[null,1,"Test","test",null,null,null,null,null,5.8,10,60,11.408962126675988,8.7650391761914886E-2,1.3147558764287233,1.3147558764287233,19.900634820283667,0.54772122087734632,null,null,2124.2036363697521,5.7904053026764456E-2,null,null,30.980942616659998,0.12911162999440179]

{"sheet":"Licence","index":9,"n_rows":0,"n_cols":0,"rows_kept":0,"cut":false,"hidden":false,"merged":[]}

{"sheet":"validation","index":10,"n_rows":76,"n_cols":28,"rows_kept":76,"cut":false,"hidden":true,"merged":[]}
[]
[]
[null,"INPUT DATA",null,null,null,null,null,null,null,null,null,null,"RESULTS (Copper)",null,null,null,"RESULTS (Zinc)",null,null,null,"RESULTS (Mn)",null,null,null,"RESULTS (Ni)"]
[null,"ID","Location","Waterbody","Date","Measured Cu Concentration (dissolved) (µg l-1)","Measured Zn Concentration (dissolved) (µg l-1)","Measured Mn Concentration (dissolved) (µg l-1)","Measured Ni Concentration (dissolved) (µg l-1)","pH","DOC","Ca","Site-specific PNEC Dissolved Copper \n(µg l-1)","BioF","Bioavailable Copper Concentration (µg l-1)","Risk Characterisation Ratio","Site-specific PNEC Dissolved Zinc (µg l-1)","BioF","Bioavailable Zinc Concentration (µg l-1)","Risk Characterisation Ratio","Site-specific PNEC Dissolved Manganese (µg l-1)","BioF","Bioavailable Manganese Concentration (µg l-1)","Risk Characterisation Ratio","Site-specific PNEC Dissolved Nickel (µg l-1)","BioF","Bioavailable Nickel Concentration (µg l-1)","Risk Characterisation Ratio"]
[null,1,null,null,null,15,null,null,null,5.8,10,60,{"$f":"IF('Bio Ass test Data'!M5='Bioavailability Assessment Tool'!M5,\"\",'Bio Ass test Data'!M5-'Bioavailability Assessment Tool'!M5)","v":-17.217327825651637},{"$f":"IF('Bio Ass test Data'!N5='Bioavailability Assessment Tool'!N5,\"\",'Bio Ass test Data'!N5-'Bioavailability Assessment Tool'!N5)","v":5.2717468156888339E-2},{"$f":"IF('Bio Ass test Data'!O5='Bioavailability Assessment Tool'!O5,\"\",'Bio Ass test Data'!O5-'Bioavailability Assessment Tool'!O5)","v":1.3147558764287233},{"$f":"IF('Bio Ass test Data'!P5='Bioavailability Assessment Tool'!P5,\"\",'Bio Ass test Data'!P5-'Bioavailability Assessment Tool'!P5)","v":1.3147558764287233},{"$f":"IF('Bio Ass test Data'!Q5='Bioavailability Assessment Tool'!Q5,\"\",'Bio Ass test Data'!Q5-'Bioavailability Assessment Tool'!Q5)","v":-28.183420216474563},{"$f":"IF('Bio Ass test Data'!R5='Bioavailability Assessment Tool'!R5,\"\",'Bio Ass test Data'!R5-'Bioavailability Assessment Tool'!R5)","v":0.32103484861387122},{"$f":"IF('Bio Ass test Data'!S5='Bioavailability Assessment Tool'!S5,\"\",'Bio Ass test Data'!S5-'Bioavailability Assessment Tool'!S5)","v":""},{"$f":"IF('Bio Ass test Data'!T5='Bioavailability Assessment Tool'!T5,\"\",'Bio Ass test Data'!T5-'Bioavailability Assessment Tool'!T5)","v":""},{"$f":"IF('Bio Ass test Data'!U5='Bioavailability Assessment Tool'!U5,\"\",'Bio Ass test Data'!U5-'Bioavailability Assessment Tool'!U5)","v":1912.9897743742538},{"$f":"IF('Bio Ass test Data'!V5='Bioavailability Assessment Tool'!V5,\"\",'Bio Ass test Data'!V5-'Bioavailability Assessment Tool'!V5)","v":-0.52444408851056301},{"$f":"IF('Bio Ass test Data'!W5='Bioavailability Assessment Tool'!W5,\"\",'Bio Ass test Data'!W5-'Bioavailability Assessment Tool'!W5)","v":""},{"$f":"IF('Bio Ass test Data'!X5='Bioavailability Assessment Tool'!X5,\"\",'Bio Ass test Data'!X5-'Bioavailability Assessment Tool'!X5)","v":""},{"$f":"IF('Bio Ass test Data'!Y5='Bioavailability Assessment Tool'!Y5,\"\",'Bio Ass test Data'!Y5-'Bioavailability Assessment Tool'!Y5)","v":14.1248602674968},{"$f":"IF('Bio Ass test Data'!Z5='Bioavailability Assessment Tool'!Z5,\"\",'Bio Ass test Data'!Z5-'Bioavailability Assessment Tool'!Z5)","v":-0.10819143468827494},{"$f":"IF('Bio Ass test Data'!AA5='Bioavailability Assessment Tool'!AA5,\"\",'Bio Ass test Data'!AA5-'Bioavailability Assessment Tool'!AA5)","v":""},{"$f":"IF('Bio Ass test Data'!AB5='Bioavailability Assessment Tool'!AB5,\"\",'Bio Ass test Data'!AB5-'Bioavailability Assessment Tool'!AB5)","v":""}]
[null,2,null,null,null,15,null,null,null,6,10,60,{"$f":"IF('Bio Ass test Data'!M6='Bioavailability Assessment Tool'!M6,\"\",'Bio Ass test Data'!M6-'Bioavailability Assessment Tool'!M6)","v":""},{"$f":"IF('Bio Ass test Data'!N6='Bioavailability Assessment Tool'!N6,\"\",'Bio Ass test Data'!N6-'Bioavailability Assessment Tool'!N6)","v":""},{"$f":"IF('Bio Ass test Data'!O6='Bioavailability Assessment Tool'!O6,\"\",'Bio Ass test Data'!O6-'Bioavailability Assessment Tool'!O6)","v":""},{"$f":"IF('Bio Ass test Data'!P6='Bioavailability Assessment Tool'!P6,\"\",'Bio Ass test Data'!P6-'Bioavailability Assessment Tool'!P6)","v":""},{"$f":"IF('Bio Ass test Data'!Q6='Bioavailability Assessment Tool'!Q6,\"\",'Bio Ass test Data'!Q6-'Bioavailability Assessment Tool'!Q6)","v":""},{"$f":"IF('Bio Ass test Data'!R6='Bioavailability Assessment Tool'!R6,\"\",'Bio Ass test Data'!R6-'Bioavailability Assessment Tool'!R6)","v":""},{"$f":"IF('Bio Ass test Data'!S6='Bioavailability Assessment Tool'!S6,\"\",'Bio Ass test Data'!S6-'Bioavailability Assessment Tool'!S6)","v":""},{"$f":"IF('Bio Ass test Data'!T6='Bioavailability Assessment Tool'!T6,\"\",'Bio Ass test Data'!T6-'Bioavailability Assessment Tool'!T6)","v":""},{"$f":"IF('Bio Ass test Data'!U6='Bioavailability Assessment Tool'!U6,\"\",'Bio Ass test Data'!U6-'Bioavailability Assessment Tool'!U6)","v":""},{"$f":"IF('Bio Ass test Data'!V6='Bioavailability Assessment Tool'!V6,\"\",'Bio Ass test Data'!V6-'Bioavailability Assessment Tool'!V6)","v":""},{"$f":"IF('Bio Ass test Data'!W6='Bioavailability Assessment Tool'!W6,\"\",'Bio Ass test Data'!W6-'Bioavailability Assessment Tool'!W6)","v":""},{"$f":"IF('Bio Ass test Data'!X6='Bioavailability Assessment Tool'!X6,\"\",'Bio Ass test Data'!X6-'Bioavailability Assessment Tool'!X6)","v":""},{"$f":"IF('Bio Ass test Data'!Y6='Bioavailability Assessment Tool'!Y6,\"\",'Bio Ass test Data'!Y6-'Bioavailability Assessment Tool'!Y6)","v":""},{"$f":"IF('Bio Ass test Data'!Z6='Bioavailability Assessment Tool'!Z6,\"\",'Bio Ass test Data'!Z6-'Bioavailability Assessment Tool'!Z6)","v":""},{"$f":"IF('Bio Ass test Data'!AA6='Bioavailability Assessment Tool'!AA6,\"\",'Bio Ass test Data'!AA6-'Bioavailability Assessment Tool'!AA6)","v":""},{"$f":"IF('Bio Ass test Data'!AB6='Bioavailability Assessment Tool'!AB6,\"\",'Bio Ass test Data'!AB6-'Bioavailability Assessment Tool'!AB6)","v":""}]
[null,3,null,null,null,15,null,null,null,6.2,10,60,{"$f":"IF('Bio Ass test Data'!M7='Bioavailability Assessment Tool'!M7,\"\",'Bio Ass test Data'!M7-'Bioavailability Assessment Tool'!M7)","v":""},{"$f":"IF('Bio Ass test Data'!N7='Bioavailability Assessment Tool'!N7,\"\",'Bio Ass test Data'!N7-'Bioavailability Assessment Tool'!N7)","v":""},{"$f":"IF('Bio Ass test Data'!O7='Bioavailability Assessment Tool'!O7,\"\",'Bio Ass test Data'!O7-'Bioavailability Assessment Tool'!O7)","v":""},{"$f":"IF('Bio Ass test Data'!P7='Bioavailability Assessment Tool'!P7,\"\",'Bio Ass test Data'!P7-'Bioavailability Assessment Tool'!P7)","v":""},{"$f":"IF('Bio Ass test Data'!Q7='Bioavailability Assessment Tool'!Q7,\"\",'Bio Ass test Data'!Q7-'Bioavailability Assessment Tool'!Q7)","v":""},{"$f":"IF('Bio Ass test Data'!R7='Bioavailability Assessment Tool'!R7,\"\",'Bio Ass test Data'!R7-'Bioavailability Assessment Tool'!R7)","v":""},{"$f":"IF('Bio Ass test Data'!S7='Bioavailability Assessment Tool'!S7,\"\",'Bio Ass test Data'!S7-'Bioavailability Assessment Tool'!S7)","v":""},{"$f":"IF('Bio Ass test Data'!T7='Bioavailability Assessment Tool'!T7,\"\",'Bio Ass test Data'!T7-'Bioavailability Assessment Tool'!T7)","v":""},{"$f":"IF('Bio Ass test Data'!U7='Bioavailability Assessment Tool'!U7,\"\",'Bio Ass test Data'!U7-'Bioavailability Assessment Tool'!U7)","v":""},{"$f":"IF('Bio Ass test Data'!V7='Bioavailability Assessment Tool'!V7,\"\",'Bio Ass test Data'!V7-'Bioavailability Assessment Tool'!V7)","v":""},{"$f":"IF('Bio Ass test Data'!W7='Bioavailability Assessment Tool'!W7,\"\",'Bio Ass test Data'!W7-'Bioavailability Assessment Tool'!W7)","v":""},{"$f":"IF('Bio Ass test Data'!X7='Bioavailability Assessment Tool'!X7,\"\",'Bio Ass test Data'!X7-'Bioavailability Assessment Tool'!X7)","v":""},{"$f":"IF('Bio Ass test Data'!Y7='Bioavailability Assessment Tool'!Y7,\"\",'Bio Ass test Data'!Y7-'Bioavailability Assessment Tool'!Y7)","v":""},{"$f":"IF('Bio Ass test Data'!Z7='Bioavailability Assessment Tool'!Z7,\"\",'Bio Ass test Data'!Z7-'Bioavailability Assessment Tool'!Z7)","v":""},{"$f":"IF('Bio Ass test Data'!AA7='Bioavailability Assessment Tool'!AA7,\"\",'Bio Ass test Data'!AA7-'Bioavailability Assessment Tool'!AA7)","v":""},{"$f":"IF('Bio Ass test Data'!AB7='Bioavailability Assessment Tool'!AB7,\"\",'Bio Ass test Data'!AB7-'Bioavailability Assessment Tool'!AB7)","v":""}]
[null,4,null,null,null,15,null,null,null,8.4,10,60,{"$f":"IF('Bio Ass test Data'!M8='Bioavailability Assessment Tool'!M8,\"\",'Bio Ass test Data'!M8-'Bioavailability Assessment Tool'!M8)","v":""},{"$f":"IF('Bio Ass test Data'!N8='Bioavailability Assessment Tool'!N8,\"\",'Bio Ass test Data'!N8-'Bioavailability Assessment Tool'!N8)","v":""},{"$f":"IF('Bio Ass test Data'!O8='Bioavailability Assessment Tool'!O8,\"\",'Bio Ass test Data'!O8-'Bioavailability Assessment Tool'!O8)","v":""},{"$f":"IF('Bio Ass test Data'!P8='Bioavailability Assessment Tool'!P8,\"\",'Bio Ass test Data'!P8-'Bioavailability Assessment Tool'!P8)","v":""},{"$f":"IF('Bio Ass test Data'!Q8='Bioavailability Assessment Tool'!Q8,\"\",'Bio Ass test Data'!Q8-'Bioavailability Assessment Tool'!Q8)","v":""},{"$f":"IF('Bio Ass test Data'!R8='Bioavailability Assessment Tool'!R8,\"\",'Bio Ass test Data'!R8-'Bioavailability Assessment Tool'!R8)","v":""},{"$f":"IF('Bio Ass test Data'!S8='Bioavailability Assessment Tool'!S8,\"\",'Bio Ass test Data'!S8-'Bioavailability Assessment Tool'!S8)","v":""},{"$f":"IF('Bio Ass test Data'!T8='Bioavailability Assessment Tool'!T8,\"\",'Bio Ass test Data'!T8-'Bioavailability Assessment Tool'!T8)","v":""},{"$f":"IF('Bio Ass test Data'!U8='Bioavailability Assessment Tool'!U8,\"\",'Bio Ass test Data'!U8-'Bioavailability Assessment Tool'!U8)","v":""},{"$f":"IF('Bio Ass test Data'!V8='Bioavailability Assessment Tool'!V8,\"\",'Bio Ass test Data'!V8-'Bioavailability Assessment Tool'!V8)","v":""},{"$f":"IF('Bio Ass test Data'!W8='Bioavailability Assessment Tool'!W8,\"\",'Bio Ass test Data'!W8-'Bioavailability Assessment Tool'!W8)","v":""},{"$f":"IF('Bio Ass test Data'!X8='Bioavailability Assessment Tool'!X8,\"\",'Bio Ass test Data'!X8-'Bioavailability Assessment Tool'!X8)","v":""},{"$f":"IF('Bio Ass test Data'!Y8='Bioavailability Assessment Tool'!Y8,\"\",'Bio Ass test Data'!Y8-'Bioavailability Assessment Tool'!Y8)","v":""},{"$f":"IF('Bio Ass test Data'!Z8='Bioavailability Assessment Tool'!Z8,\"\",'Bio Ass test Data'!Z8-'Bioavailability Assessment Tool'!Z8)","v":""},{"$f":"IF('Bio Ass test Data'!AA8='Bioavailability Assessment Tool'!AA8,\"\",'Bio Ass test Data'!AA8-'Bioavailability Assessment Tool'!AA8)","v":""},{"$f":"IF('Bio Ass test Data'!AB8='Bioavailability Assessment Tool'!AB8,\"\",'Bio Ass test Data'!AB8-'Bioavailability Assessment Tool'!AB8)","v":""}]
[null,5,null,null,null,15,null,null,null,8.6999999999999993,10,60,{"$f":"IF('Bio Ass test Data'!M9='Bioavailability Assessment Tool'!M9,\"\",'Bio Ass test Data'!M9-'Bioavailability Assessment Tool'!M9)","v":""},{"$f":"IF('Bio Ass test Data'!N9='Bioavailability Assessment Tool'!N9,\"\",'Bio Ass test Data'!N9-'Bioavailability Assessment Tool'!N9)","v":""},{"$f":"IF('Bio Ass test Data'!O9='Bioavailability Assessment Tool'!O9,\"\",'Bio Ass test Data'!O9-'Bioavailability Assessment Tool'!O9)","v":""},{"$f":"IF('Bio Ass test Data'!P9='Bioavailability Assessment Tool'!P9,\"\",'Bio Ass test Data'!P9-'Bioavailability Assessment Tool'!P9)","v":""},{"$f":"IF('Bio Ass test Data'!Q9='Bioavailability Assessment Tool'!Q9,\"\",'Bio Ass test Data'!Q9-'Bioavailability Assessment Tool'!Q9)","v":""},{"$f":"IF('Bio Ass test Data'!R9='Bioavailability Assessment Tool'!R9,\"\",'Bio Ass test Data'!R9-'Bioavailability Assessment Tool'!R9)","v":""},{"$f":"IF('Bio Ass test Data'!S9='Bioavailability Assessment Tool'!S9,\"\",'Bio Ass test Data'!S9-'Bioavailability Assessment Tool'!S9)","v":""},{"$f":"IF('Bio Ass test Data'!T9='Bioavailability Assessment Tool'!T9,\"\",'Bio Ass test Data'!T9-'Bioavailability Assessment Tool'!T9)","v":""},{"$f":"IF('Bio Ass test Data'!U9='Bioavailability Assessment Tool'!U9,\"\",'Bio Ass test Data'!U9-'Bioavailability Assessment Tool'!U9)","v":""},{"$f":"IF('Bio Ass test Data'!V9='Bioavailability Assessment Tool'!V9,\"\",'Bio Ass test Data'!V9-'Bioavailability Assessment Tool'!V9)","v":""},{"$f":"IF('Bio Ass test Data'!W9='Bioavailability Assessment Tool'!W9,\"\",'Bio Ass test Data'!W9-'Bioavailability Assessment Tool'!W9)","v":""},{"$f":"IF('Bio Ass test Data'!X9='Bioavailability Assessment Tool'!X9,\"\",'Bio Ass test Data'!X9-'Bioavailability Assessment Tool'!X9)","v":""},{"$f":"IF('Bio Ass test Data'!Y9='Bioavailability Assessment Tool'!Y9,\"\",'Bio Ass test Data'!Y9-'Bioavailability Assessment Tool'!Y9)","v":""},{"$f":"IF('Bio Ass test Data'!Z9='Bioavailability Assessment Tool'!Z9,\"\",'Bio Ass test Data'!Z9-'Bioavailability Assessment Tool'!Z9)","v":""},{"$f":"IF('Bio Ass test Data'!AA9='Bioavailability Assessment Tool'!AA9,\"\",'Bio Ass test Data'!AA9-'Bioavailability Assessment Tool'!AA9)","v":""},{"$f":"IF('Bio Ass test Data'!AB9='Bioavailability Assessment Tool'!AB9,\"\",'Bio Ass test Data'!AB9-'Bioavailability Assessment Tool'!AB9)","v":""}]
[null,6,null,null,null,15,null,null,null,8.5,10,60,{"$f":"IF('Bio Ass test Data'!M10='Bioavailability Assessment Tool'!M10,\"\",'Bio Ass test Data'!M10-'Bioavailability Assessment Tool'!M10)","v":""},{"$f":"IF('Bio Ass test Data'!N10='Bioavailability Assessment Tool'!N10,\"\",'Bio Ass test Data'!N10-'Bioavailability Assessment Tool'!N10)","v":""},{"$f":"IF('Bio Ass test Data'!O10='Bioavailability Assessment Tool'!O10,\"\",'Bio Ass test Data'!O10-'Bioavailability Assessment Tool'!O10)","v":""},{"$f":"IF('Bio Ass test Data'!P10='Bioavailability Assessment Tool'!P10,\"\",'Bio Ass test Data'!P10-'Bioavailability Assessment Tool'!P10)","v":""},{"$f":"IF('Bio Ass test Data'!Q10='Bioavailability Assessment Tool'!Q10,\"\",'Bio Ass test Data'!Q10-'Bioavailability Assessment Tool'!Q10)","v":""},{"$f":"IF('Bio Ass test Data'!R10='Bioavailability Assessment Tool'!R10,\"\",'Bio Ass test Data'!R10-'Bioavailability Assessment Tool'!R10)","v":""},{"$f":"IF('Bio Ass test Data'!S10='Bioavailability Assessment Tool'!S10,\"\",'Bio Ass test Data'!S10-'Bioavailability Assessment Tool'!S10)","v":""},{"$f":"IF('Bio Ass test Data'!T10='Bioavailability Assessment Tool'!T10,\"\",'Bio Ass test Data'!T10-'Bioavailability Assessment Tool'!T10)","v":""},{"$f":"IF('Bio Ass test Data'!U10='Bioavailability Assessment Tool'!U10,\"\",'Bio Ass test Data'!U10-'Bioavailability Assessment Tool'!U10)","v":""},{"$f":"IF('Bio Ass test Data'!V10='Bioavailability Assessment Tool'!V10,\"\",'Bio Ass test Data'!V10-'Bioavailability Assessment Tool'!V10)","v":""},{"$f":"IF('Bio Ass test Data'!W10='Bioavailability Assessment Tool'!W10,\"\",'Bio Ass test Data'!W10-'Bioavailability Assessment Tool'!W10)","v":""},{"$f":"IF('Bio Ass test Data'!X10='Bioavailability Assessment Tool'!X10,\"\",'Bio Ass test Data'!X10-'Bioavailability Assessment Tool'!X10)","v":""},{"$f":"IF('Bio Ass test Data'!Y10='Bioavailability Assessment Tool'!Y10,\"\",'Bio Ass test Data'!Y10-'Bioavailability Assessment Tool'!Y10)","v":""},{"$f":"IF('Bio Ass test Data'!Z10='Bioavailability Assessment Tool'!Z10,\"\",'Bio Ass test Data'!Z10-'Bioavailability Assessment Tool'!Z10)","v":""},{"$f":"IF('Bio Ass test Data'!AA10='Bioavailability Assessment Tool'!AA10,\"\",'Bio Ass test Data'!AA10-'Bioavailability Assessment Tool'!AA10)","v":""},{"$f":"IF('Bio Ass test Data'!AB10='Bioavailability Assessment Tool'!AB10,\"\",'Bio Ass test Data'!AB10-'Bioavailability Assessment Tool'!AB10)","v":""}]
[null,7,null,null,null,15,null,null,null,7,10,3,{"$f":"IF('Bio Ass test Data'!M11='Bioavailability Assessment Tool'!M11,\"\",'Bio Ass test Data'!M11-'Bioavailability Assessment Tool'!M11)","v":""},{"$f":"IF('Bio Ass test Data'!N11='Bioavailability Assessment Tool'!N11,\"\",'Bio Ass test Data'!N11-'Bioavailability Assessment Tool'!N11)","v":""},{"$f":"IF('Bio Ass test Data'!O11='Bioavailability Assessment Tool'!O11,\"\",'Bio Ass test Data'!O11-'Bioavailability Assessment Tool'!O11)","v":""},{"$f":"IF('Bio Ass test Data'!P11='Bioavailability Assessment Tool'!P11,\"\",'Bio Ass test Data'!P11-'Bioavailability Assessment Tool'!P11)","v":""},{"$f":"IF('Bio Ass test Data'!Q11='Bioavailability Assessment Tool'!Q11,\"\",'Bio Ass test Data'!Q11-'Bioavailability Assessment Tool'!Q11)","v":""},{"$f":"IF('Bio Ass test Data'!R11='Bioavailability Assessment Tool'!R11,\"\",'Bio Ass test Data'!R11-'Bioavailability Assessment Tool'!R11)","v":""},{"$f":"IF('Bio Ass test Data'!S11='Bioavailability Assessment Tool'!S11,\"\",'Bio Ass test Data'!S11-'Bioavailability Assessment Tool'!S11)","v":""},{"$f":"IF('Bio Ass test Data'!T11='Bioavailability Assessment Tool'!T11,\"\",'Bio Ass test Data'!T11-'Bioavailability Assessment Tool'!T11)","v":""},{"$f":"IF('Bio Ass test Data'!U11='Bioavailability Assessment Tool'!U11,\"\",'Bio Ass test Data'!U11-'Bioavailability Assessment Tool'!U11)","v":""},{"$f":"IF('Bio Ass test Data'!V11='Bioavailability Assessment Tool'!V11,\"\",'Bio Ass test Data'!V11-'Bioavailability Assessment Tool'!V11)","v":""},{"$f":"IF('Bio Ass test Data'!W11='Bioavailability Assessment Tool'!W11,\"\",'Bio Ass test Data'!W11-'Bioavailability Assessment Tool'!W11)","v":""},{"$f":"IF('Bio Ass test Data'!X11='Bioavailability Assessment Tool'!X11,\"\",'Bio Ass test Data'!X11-'Bioavailability Assessment Tool'!X11)","v":""},{"$f":"IF('Bio Ass test Data'!Y11='Bioavailability Assessment Tool'!Y11,\"\",'Bio Ass test Data'!Y11-'Bioavailability Assessment Tool'!Y11)","v":""},{"$f":"IF('Bio Ass test Data'!Z11='Bioavailability Assessment Tool'!Z11,\"\",'Bio Ass test Data'!Z11-'Bioavailability Assessment Tool'!Z11)","v":""},{"$f":"IF('Bio Ass test Data'!AA11='Bioavailability Assessment Tool'!AA11,\"\",'Bio Ass test Data'!AA11-'Bioavailability Assessment Tool'!AA11)","v":""},{"$f":"IF('Bio Ass test Data'!AB11='Bioavailability Assessment Tool'!AB11,\"\",'Bio Ass test Data'!AB11-'Bioavailability Assessment Tool'!AB11)","v":""}]
[null,8,null,null,null,15,null,null,null,7,10,3.1,{"$f":"IF('Bio Ass test Data'!M12='Bioavailability Assessment Tool'!M12,\"\",'Bio Ass test Data'!M12-'Bioavailability Assessment Tool'!M12)","v":""},{"$f":"IF('Bio Ass test Data'!N12='Bioavailability Assessment Tool'!N12,\"\",'Bio Ass test Data'!N12-'Bioavailability Assessment Tool'!N12)","v":""},{"$f":"IF('Bio Ass test Data'!O12='Bioavailability Assessment Tool'!O12,\"\",'Bio Ass test Data'!O12-'Bioavailability Assessment Tool'!O12)","v":""},{"$f":"IF('Bio Ass test Data'!P12='Bioavailability Assessment Tool'!P12,\"\",'Bio Ass test Data'!P12-'Bioavailability Assessment Tool'!P12)","v":""},{"$f":"IF('Bio Ass test Data'!Q12='Bioavailability Assessment Tool'!Q12,\"\",'Bio Ass test Data'!Q12-'Bioavailability Assessment Tool'!Q12)","v":""},{"$f":"IF('Bio Ass test Data'!R12='Bioavailability Assessment Tool'!R12,\"\",'Bio Ass test Data'!R12-'Bioavailability Assessment Tool'!R12)","v":""},{"$f":"IF('Bio Ass test Data'!S12='Bioavailability Assessment Tool'!S12,\"\",'Bio Ass test Data'!S12-'Bioavailability Assessment Tool'!S12)","v":""},{"$f":"IF('Bio Ass test Data'!T12='Bioavailability Assessment Tool'!T12,\"\",'Bio Ass test Data'!T12-'Bioavailability Assessment Tool'!T12)","v":""},{"$f":"IF('Bio Ass test Data'!U12='Bioavailability Assessment Tool'!U12,\"\",'Bio Ass test Data'!U12-'Bioavailability Assessment Tool'!U12)","v":""},{"$f":"IF('Bio Ass test Data'!V12='Bioavailability Assessment Tool'!V12,\"\",'Bio Ass test Data'!V12-'Bioavailability Assessment Tool'!V12)","v":""},{"$f":"IF('Bio Ass test Data'!W12='Bioavailability Assessment Tool'!W12,\"\",'Bio Ass test Data'!W12-'Bioavailability Assessment Tool'!W12)","v":""},{"$f":"IF('Bio Ass test Data'!X12='Bioavailability Assessment Tool'!X12,\"\",'Bio Ass test Data'!X12-'Bioavailability Assessment Tool'!X12)","v":""},{"$f":"IF('Bio Ass test Data'!Y12='Bioavailability Assessment Tool'!Y12,\"\",'Bio Ass test Data'!Y12-'Bioavailability Assessment Tool'!Y12)","v":""},{"$f":"IF('Bio Ass test Data'!Z12='Bioavailability Assessment Tool'!Z12,\"\",'Bio Ass test Data'!Z12-'Bioavailability Assessment Tool'!Z12)","v":""},{"$f":"IF('Bio Ass test Data'!AA12='Bioavailability Assessment Tool'!AA12,\"\",'Bio Ass test Data'!AA12-'Bioavailability Assessment Tool'!AA12)","v":""},{"$f":"IF('Bio Ass test Data'!AB12='Bioavailability Assessment Tool'!AB12,\"\",'Bio Ass test Data'!AB12-'Bioavailability Assessment Tool'!AB12)","v":""}]
[null,9,null,null,null,15,null,null,null,7,10,3.3,{"$f":"IF('Bio Ass test Data'!M13='Bioavailability Assessment Tool'!M13,\"\",'Bio Ass test Data'!M13-'Bioavailability Assessment Tool'!M13)","v":""},{"$f":"IF('Bio Ass test Data'!N13='Bioavailability Assessment Tool'!N13,\"\",'Bio Ass test Data'!N13-'Bioavailability Assessment Tool'!N13)","v":""},{"$f":"IF('Bio Ass test Data'!O13='Bioavailability Assessment Tool'!O13,\"\",'Bio Ass test Data'!O13-'Bioavailability Assessment Tool'!O13)","v":""},{"$f":"IF('Bio Ass test Data'!P13='Bioavailability Assessment Tool'!P13,\"\",'Bio Ass test Data'!P13-'Bioavailability Assessment Tool'!P13)","v":""},{"$f":"IF('Bio Ass test Data'!Q13='Bioavailability Assessment Tool'!Q13,\"\",'Bio Ass test Data'!Q13-'Bioavailability Assessment Tool'!Q13)","v":""},{"$f":"IF('Bio Ass test Data'!R13='Bioavailability Assessment Tool'!R13,\"\",'Bio Ass test Data'!R13-'Bioavailability Assessment Tool'!R13)","v":""},{"$f":"IF('Bio Ass test Data'!S13='Bioavailability Assessment Tool'!S13,\"\",'Bio Ass test Data'!S13-'Bioavailability Assessment Tool'!S13)","v":""},{"$f":"IF('Bio Ass test Data'!T13='Bioavailability Assessment Tool'!T13,\"\",'Bio Ass test Data'!T13-'Bioavailability Assessment Tool'!T13)","v":""},{"$f":"IF('Bio Ass test Data'!U13='Bioavailability Assessment Tool'!U13,\"\",'Bio Ass test Data'!U13-'Bioavailability Assessment Tool'!U13)","v":""},{"$f":"IF('Bio Ass test Data'!V13='Bioavailability Assessment Tool'!V13,\"\",'Bio Ass test Data'!V13-'Bioavailability Assessment Tool'!V13)","v":""},{"$f":"IF('Bio Ass test Data'!W13='Bioavailability Assessment Tool'!W13,\"\",'Bio Ass test Data'!W13-'Bioavailability Assessment Tool'!W13)","v":""},{"$f":"IF('Bio Ass test Data'!X13='Bioavailability Assessment Tool'!X13,\"\",'Bio Ass test Data'!X13-'Bioavailability Assessment Tool'!X13)","v":""},{"$f":"IF('Bio Ass test Data'!Y13='Bioavailability Assessment Tool'!Y13,\"\",'Bio Ass test Data'!Y13-'Bioavailability Assessment Tool'!Y13)","v":""},{"$f":"IF('Bio Ass test Data'!Z13='Bioavailability Assessment Tool'!Z13,\"\",'Bio Ass test Data'!Z13-'Bioavailability Assessment Tool'!Z13)","v":""},{"$f":"IF('Bio Ass test Data'!AA13='Bioavailability Assessment Tool'!AA13,\"\",'Bio Ass test Data'!AA13-'Bioavailability Assessment Tool'!AA13)","v":""},{"$f":"IF('Bio Ass test Data'!AB13='Bioavailability Assessment Tool'!AB13,\"\",'Bio Ass test Data'!AB13-'Bioavailability Assessment Tool'!AB13)","v":""}]
[null,10,null,null,null,15,null,null,null,7,10,92,{"$f":"IF('Bio Ass test Data'!M14='Bioavailability Assessment Tool'!M14,\"\",'Bio Ass test Data'!M14-'Bioavailability Assessment Tool'!M14)","v":""},{"$f":"IF('Bio Ass test Data'!N14='Bioavailability Assessment Tool'!N14,\"\",'Bio Ass test Data'!N14-'Bioavailability Assessment Tool'!N14)","v":""},{"$f":"IF('Bio Ass test Data'!O14='Bioavailability Assessment Tool'!O14,\"\",'Bio Ass test Data'!O14-'Bioavailability Assessment Tool'!O14)","v":""},{"$f":"IF('Bio Ass test Data'!P14='Bioavailability Assessment Tool'!P14,\"\",'Bio Ass test Data'!P14-'Bioavailability Assessment Tool'!P14)","v":""},{"$f":"IF('Bio Ass test Data'!Q14='Bioavailability Assessment Tool'!Q14,\"\",'Bio Ass test Data'!Q14-'Bioavailability Assessment Tool'!Q14)","v":""},{"$f":"IF('Bio Ass test Data'!R14='Bioavailability Assessment Tool'!R14,\"\",'Bio Ass test Data'!R14-'Bioavailability Assessment Tool'!R14)","v":""},{"$f":"IF('Bio Ass test Data'!S14='Bioavailability Assessment Tool'!S14,\"\",'Bio Ass test Data'!S14-'Bioavailability Assessment Tool'!S14)","v":""},{"$f":"IF('Bio Ass test Data'!T14='Bioavailability Assessment Tool'!T14,\"\",'Bio Ass test Data'!T14-'Bioavailability Assessment Tool'!T14)","v":""},{"$f":"IF('Bio Ass test Data'!U14='Bioavailability Assessment Tool'!U14,\"\",'Bio Ass test Data'!U14-'Bioavailability Assessment Tool'!U14)","v":""},{"$f":"IF('Bio Ass test Data'!V14='Bioavailability Assessment Tool'!V14,\"\",'Bio Ass test Data'!V14-'Bioavailability Assessment Tool'!V14)","v":""},{"$f":"IF('Bio Ass test Data'!W14='Bioavailability Assessment Tool'!W14,\"\",'Bio Ass test Data'!W14-'Bioavailability Assessment Tool'!W14)","v":""},{"$f":"IF('Bio Ass test Data'!X14='Bioavailability Assessment Tool'!X14,\"\",'Bio Ass test Data'!X14-'Bioavailability Assessment Tool'!X14)","v":""},{"$f":"IF('Bio Ass test Data'!Y14='Bioavailability Assessment Tool'!Y14,\"\",'Bio Ass test Data'!Y14-'Bioavailability Assessment Tool'!Y14)","v":""},{"$f":"IF('Bio Ass test Data'!Z14='Bioavailability Assessment Tool'!Z14,\"\",'Bio Ass test Data'!Z14-'Bioavailability Assessment Tool'!Z14)","v":""},{"$f":"IF('Bio Ass test Data'!AA14='Bioavailability Assessment Tool'!AA14,\"\",'Bio Ass test Data'!AA14-'Bioavailability Assessment Tool'!AA14)","v":""},{"$f":"IF('Bio Ass test Data'!AB14='Bioavailability Assessment Tool'!AB14,\"\",'Bio Ass test Data'!AB14-'Bioavailability Assessment Tool'!AB14)","v":""}]
[null,11,null,null,null,15,null,null,null,7,10,93,{"$f":"IF('Bio Ass test Data'!M15='Bioavailability Assessment Tool'!M15,\"\",'Bio Ass test Data'!M15-'Bioavailability Assessment Tool'!M15)","v":""},{"$f":"IF('Bio Ass test Data'!N15='Bioavailability Assessment Tool'!N15,\"\",'Bio Ass test Data'!N15-'Bioavailability Assessment Tool'!N15)","v":""},{"$f":"IF('Bio Ass test Data'!O15='Bioavailability Assessment Tool'!O15,\"\",'Bio Ass test Data'!O15-'Bioavailability Assessment Tool'!O15)","v":""},{"$f":"IF('Bio Ass test Data'!P15='Bioavailability Assessment Tool'!P15,\"\",'Bio Ass test Data'!P15-'Bioavailability Assessment Tool'!P15)","v":""},{"$f":"IF('Bio Ass test Data'!Q15='Bioavailability Assessment Tool'!Q15,\"\",'Bio Ass test Data'!Q15-'Bioavailability Assessment Tool'!Q15)","v":""},{"$f":"IF('Bio Ass test Data'!R15='Bioavailability Assessment Tool'!R15,\"\",'Bio Ass test Data'!R15-'Bioavailability Assessment Tool'!R15)","v":""},{"$f":"IF('Bio Ass test Data'!S15='Bioavailability Assessment Tool'!S15,\"\",'Bio Ass test Data'!S15-'Bioavailability Assessment Tool'!S15)","v":""},{"$f":"IF('Bio Ass test Data'!T15='Bioavailability Assessment Tool'!T15,\"\",'Bio Ass test Data'!T15-'Bioavailability Assessment Tool'!T15)","v":""},{"$f":"IF('Bio Ass test Data'!U15='Bioavailability Assessment Tool'!U15,\"\",'Bio Ass test Data'!U15-'Bioavailability Assessment Tool'!U15)","v":""},{"$f":"IF('Bio Ass test Data'!V15='Bioavailability Assessment Tool'!V15,\"\",'Bio Ass test Data'!V15-'Bioavailability Assessment Tool'!V15)","v":""},{"$f":"IF('Bio Ass test Data'!W15='Bioavailability Assessment Tool'!W15,\"\",'Bio Ass test Data'!W15-'Bioavailability Assessment Tool'!W15)","v":""},{"$f":"IF('Bio Ass test Data'!X15='Bioavailability Assessment Tool'!X15,\"\",'Bio Ass test Data'!X15-'Bioavailability Assessment Tool'!X15)","v":""},{"$f":"IF('Bio Ass test Data'!Y15='Bioavailability Assessment Tool'!Y15,\"\",'Bio Ass test Data'!Y15-'Bioavailability Assessment Tool'!Y15)","v":""},{"$f":"IF('Bio Ass test Data'!Z15='Bioavailability Assessment Tool'!Z15,\"\",'Bio Ass test Data'!Z15-'Bioavailability Assessment Tool'!Z15)","v":""},{"$f":"IF('Bio Ass test Data'!AA15='Bioavailability Assessment Tool'!AA15,\"\",'Bio Ass test Data'!AA15-'Bioavailability Assessment Tool'!AA15)","v":""},{"$f":"IF('Bio Ass test Data'!AB15='Bioavailability Assessment Tool'!AB15,\"\",'Bio Ass test Data'!AB15-'Bioavailability Assessment Tool'!AB15)","v":""}]
[null,12,null,null,null,15,null,null,null,7,10,95,{"$f":"IF('Bio Ass test Data'!M16='Bioavailability Assessment Tool'!M16,\"\",'Bio Ass test Data'!M16-'Bioavailability Assessment Tool'!M16)","v":""},{"$f":"IF('Bio Ass test Data'!N16='Bioavailability Assessment Tool'!N16,\"\",'Bio Ass test Data'!N16-'Bioavailability Assessment Tool'!N16)","v":""},{"$f":"IF('Bio Ass test Data'!O16='Bioavailability Assessment Tool'!O16,\"\",'Bio Ass test Data'!O16-'Bioavailability Assessment Tool'!O16)","v":""},{"$f":"IF('Bio Ass test Data'!P16='Bioavailability Assessment Tool'!P16,\"\",'Bio Ass test Data'!P16-'Bioavailability Assessment Tool'!P16)","v":""},{"$f":"IF('Bio Ass test Data'!Q16='Bioavailability Assessment Tool'!Q16,\"\",'Bio Ass test Data'!Q16-'Bioavailability Assessment Tool'!Q16)","v":""},{"$f":"IF('Bio Ass test Data'!R16='Bioavailability Assessment Tool'!R16,\"\",'Bio Ass test Data'!R16-'Bioavailability Assessment Tool'!R16)","v":""},{"$f":"IF('Bio Ass test Data'!S16='Bioavailability Assessment Tool'!S16,\"\",'Bio Ass test Data'!S16-'Bioavailability Assessment Tool'!S16)","v":""},{"$f":"IF('Bio Ass test Data'!T16='Bioavailability Assessment Tool'!T16,\"\",'Bio Ass test Data'!T16-'Bioavailability Assessment Tool'!T16)","v":""},{"$f":"IF('Bio Ass test Data'!U16='Bioavailability Assessment Tool'!U16,\"\",'Bio Ass test Data'!U16-'Bioavailability Assessment Tool'!U16)","v":""},{"$f":"IF('Bio Ass test Data'!V16='Bioavailability Assessment Tool'!V16,\"\",'Bio Ass test Data'!V16-'Bioavailability Assessment Tool'!V16)","v":""},{"$f":"IF('Bio Ass test Data'!W16='Bioavailability Assessment Tool'!W16,\"\",'Bio Ass test Data'!W16-'Bioavailability Assessment Tool'!W16)","v":""},{"$f":"IF('Bio Ass test Data'!X16='Bioavailability Assessment Tool'!X16,\"\",'Bio Ass test Data'!X16-'Bioavailability Assessment Tool'!X16)","v":""},{"$f":"IF('Bio Ass test Data'!Y16='Bioavailability Assessment Tool'!Y16,\"\",'Bio Ass test Data'!Y16-'Bioavailability Assessment Tool'!Y16)","v":""},{"$f":"IF('Bio Ass test Data'!Z16='Bioavailability Assessment Tool'!Z16,\"\",'Bio Ass test Data'!Z16-'Bioavailability Assessment Tool'!Z16)","v":""},{"$f":"IF('Bio Ass test Data'!AA16='Bioavailability Assessment Tool'!AA16,\"\",'Bio Ass test Data'!AA16-'Bioavailability Assessment Tool'!AA16)","v":""},{"$f":"IF('Bio Ass test Data'!AB16='Bioavailability Assessment Tool'!AB16,\"\",'Bio Ass test Data'!AB16-'Bioavailability Assessment Tool'!AB16)","v":""}]
[null,13,null,null,null,15,null,null,null,7,10,60,{"$f":"IF('Bio Ass test Data'!M17='Bioavailability Assessment Tool'!M17,\"\",'Bio Ass test Data'!M17-'Bioavailability Assessment Tool'!M17)","v":""},{"$f":"IF('Bio Ass test Data'!N17='Bioavailability Assessment Tool'!N17,\"\",'Bio Ass test Data'!N17-'Bioavailability Assessment Tool'!N17)","v":""},{"$f":"IF('Bio Ass test Data'!O17='Bioavailability Assessment Tool'!O17,\"\",'Bio Ass test Data'!O17-'Bioavailability Assessment Tool'!O17)","v":""},{"$f":"IF('Bio Ass test Data'!P17='Bioavailability Assessment Tool'!P17,\"\",'Bio Ass test Data'!P17-'Bioavailability Assessment Tool'!P17)","v":""},{"$f":"IF('Bio Ass test Data'!Q17='Bioavailability Assessment Tool'!Q17,\"\",'Bio Ass test Data'!Q17-'Bioavailability Assessment Tool'!Q17)","v":""},{"$f":"IF('Bio Ass test Data'!R17='Bioavailability Assessment Tool'!R17,\"\",'Bio Ass test Data'!R17-'Bioavailability Assessment Tool'!R17)","v":""},{"$f":"IF('Bio Ass test Data'!S17='Bioavailability Assessment Tool'!S17,\"\",'Bio Ass test Data'!S17-'Bioavailability Assessment Tool'!S17)","v":""},{"$f":"IF('Bio Ass test Data'!T17='Bioavailability Assessment Tool'!T17,\"\",'Bio Ass test Data'!T17-'Bioavailability Assessment Tool'!T17)","v":""},{"$f":"IF('Bio Ass test Data'!U17='Bioavailability Assessment Tool'!U17,\"\",'Bio Ass test Data'!U17-'Bioavailability Assessment Tool'!U17)","v":""},{"$f":"IF('Bio Ass test Data'!V17='Bioavailability Assessment Tool'!V17,\"\",'Bio Ass test Data'!V17-'Bioavailability Assessment Tool'!V17)","v":""},{"$f":"IF('Bio Ass test Data'!W17='Bioavailability Assessment Tool'!W17,\"\",'Bio Ass test Data'!W17-'Bioavailability Assessment Tool'!W17)","v":""},{"$f":"IF('Bio Ass test Data'!X17='Bioavailability Assessment Tool'!X17,\"\",'Bio Ass test Data'!X17-'Bioavailability Assessment Tool'!X17)","v":""},{"$f":"IF('Bio Ass test Data'!Y17='Bioavailability Assessment Tool'!Y17,\"\",'Bio Ass test Data'!Y17-'Bioavailability Assessment Tool'!Y17)","v":""},{"$f":"IF('Bio Ass test Data'!Z17='Bioavailability Assessment Tool'!Z17,\"\",'Bio Ass test Data'!Z17-'Bioavailability Assessment Tool'!Z17)","v":""},{"$f":"IF('Bio Ass test Data'!AA17='Bioavailability Assessment Tool'!AA17,\"\",'Bio Ass test Data'!AA17-'Bioavailability Assessment Tool'!AA17)","v":""},{"$f":"IF('Bio Ass test Data'!AB17='Bioavailability Assessment Tool'!AB17,\"\",'Bio Ass test Data'!AB17-'Bioavailability Assessment Tool'!AB17)","v":""}]
[null,14,null,null,null,15,null,null,null,7,11,60,{"$f":"IF('Bio Ass test Data'!M18='Bioavailability Assessment Tool'!M18,\"\",'Bio Ass test Data'!M18-'Bioavailability Assessment Tool'!M18)","v":""},{"$f":"IF('Bio Ass test Data'!N18='Bioavailability Assessment Tool'!N18,\"\",'Bio Ass test Data'!N18-'Bioavailability Assessment Tool'!N18)","v":""},{"$f":"IF('Bio Ass test Data'!O18='Bioavailability Assessment Tool'!O18,\"\",'Bio Ass test Data'!O18-'Bioavailability Assessment Tool'!O18)","v":""},{"$f":"IF('Bio Ass test Data'!P18='Bioavailability Assessment Tool'!P18,\"\",'Bio Ass test Data'!P18-'Bioavailability Assessment Tool'!P18)","v":""},{"$f":"IF('Bio Ass test Data'!Q18='Bioavailability Assessment Tool'!Q18,\"\",'Bio Ass test Data'!Q18-'Bioavailability Assessment Tool'!Q18)","v":""},{"$f":"IF('Bio Ass test Data'!R18='Bioavailability Assessment Tool'!R18,\"\",'Bio Ass test Data'!R18-'Bioavailability Assessment Tool'!R18)","v":""},{"$f":"IF('Bio Ass test Data'!S18='Bioavailability Assessment Tool'!S18,\"\",'Bio Ass test Data'!S18-'Bioavailability Assessment Tool'!S18)","v":""},{"$f":"IF('Bio Ass test Data'!T18='Bioavailability Assessment Tool'!T18,\"\",'Bio Ass test Data'!T18-'Bioavailability Assessment Tool'!T18)","v":""},{"$f":"IF('Bio Ass test Data'!U18='Bioavailability Assessment Tool'!U18,\"\",'Bio Ass test Data'!U18-'Bioavailability Assessment Tool'!U18)","v":""},{"$f":"IF('Bio Ass test Data'!V18='Bioavailability Assessment Tool'!V18,\"\",'Bio Ass test Data'!V18-'Bioavailability Assessment Tool'!V18)","v":""},{"$f":"IF('Bio Ass test Data'!W18='Bioavailability Assessment Tool'!W18,\"\",'Bio Ass test Data'!W18-'Bioavailability Assessment Tool'!W18)","v":""},{"$f":"IF('Bio Ass test Data'!X18='Bioavailability Assessment Tool'!X18,\"\",'Bio Ass test Data'!X18-'Bioavailability Assessment Tool'!X18)","v":""},{"$f":"IF('Bio Ass test Data'!Y18='Bioavailability Assessment Tool'!Y18,\"\",'Bio Ass test Data'!Y18-'Bioavailability Assessment Tool'!Y18)","v":""},{"$f":"IF('Bio Ass test Data'!Z18='Bioavailability Assessment Tool'!Z18,\"\",'Bio Ass test Data'!Z18-'Bioavailability Assessment Tool'!Z18)","v":""},{"$f":"IF('Bio Ass test Data'!AA18='Bioavailability Assessment Tool'!AA18,\"\",'Bio Ass test Data'!AA18-'Bioavailability Assessment Tool'!AA18)","v":""},{"$f":"IF('Bio Ass test Data'!AB18='Bioavailability Assessment Tool'!AB18,\"\",'Bio Ass test Data'!AB18-'Bioavailability Assessment Tool'!AB18)","v":""}]
[null,15,null,null,null,15,null,null,null,7,12,60,{"$f":"IF('Bio Ass test Data'!M19='Bioavailability Assessment Tool'!M19,\"\",'Bio Ass test Data'!M19-'Bioavailability Assessment Tool'!M19)","v":""},{"$f":"IF('Bio Ass test Data'!N19='Bioavailability Assessment Tool'!N19,\"\",'Bio Ass test Data'!N19-'Bioavailability Assessment Tool'!N19)","v":""},{"$f":"IF('Bio Ass test Data'!O19='Bioavailability Assessment Tool'!O19,\"\",'Bio Ass test Data'!O19-'Bioavailability Assessment Tool'!O19)","v":""},{"$f":"IF('Bio Ass test Data'!P19='Bioavailability Assessment Tool'!P19,\"\",'Bio Ass test Data'!P19-'Bioavailability Assessment Tool'!P19)","v":""},{"$f":"IF('Bio Ass test Data'!Q19='Bioavailability Assessment Tool'!Q19,\"\",'Bio Ass test Data'!Q19-'Bioavailability Assessment Tool'!Q19)","v":""},{"$f":"IF('Bio Ass test Data'!R19='Bioavailability Assessment Tool'!R19,\"\",'Bio Ass test Data'!R19-'Bioavailability Assessment Tool'!R19)","v":""},{"$f":"IF('Bio Ass test Data'!S19='Bioavailability Assessment Tool'!S19,\"\",'Bio Ass test Data'!S19-'Bioavailability Assessment Tool'!S19)","v":""},{"$f":"IF('Bio Ass test Data'!T19='Bioavailability Assessment Tool'!T19,\"\",'Bio Ass test Data'!T19-'Bioavailability Assessment Tool'!T19)","v":""},{"$f":"IF('Bio Ass test Data'!U19='Bioavailability Assessment Tool'!U19,\"\",'Bio Ass test Data'!U19-'Bioavailability Assessment Tool'!U19)","v":""},{"$f":"IF('Bio Ass test Data'!V19='Bioavailability Assessment Tool'!V19,\"\",'Bio Ass test Data'!V19-'Bioavailability Assessment Tool'!V19)","v":""},{"$f":"IF('Bio Ass test Data'!W19='Bioavailability Assessment Tool'!W19,\"\",'Bio Ass test Data'!W19-'Bioavailability Assessment Tool'!W19)","v":""},{"$f":"IF('Bio Ass test Data'!X19='Bioavailability Assessment Tool'!X19,\"\",'Bio Ass test Data'!X19-'Bioavailability Assessment Tool'!X19)","v":""},{"$f":"IF('Bio Ass test Data'!Y19='Bioavailability Assessment Tool'!Y19,\"\",'Bio Ass test Data'!Y19-'Bioavailability Assessment Tool'!Y19)","v":""},{"$f":"IF('Bio Ass test Data'!Z19='Bioavailability Assessment Tool'!Z19,\"\",'Bio Ass test Data'!Z19-'Bioavailability Assessment Tool'!Z19)","v":""},{"$f":"IF('Bio Ass test Data'!AA19='Bioavailability Assessment Tool'!AA19,\"\",'Bio Ass test Data'!AA19-'Bioavailability Assessment Tool'!AA19)","v":""},{"$f":"IF('Bio Ass test Data'!AB19='Bioavailability Assessment Tool'!AB19,\"\",'Bio Ass test Data'!AB19-'Bioavailability Assessment Tool'!AB19)","v":""}]
[null,16,null,null,null,15,null,null,null,7,13,60,{"$f":"IF('Bio Ass test Data'!M20='Bioavailability Assessment Tool'!M20,\"\",'Bio Ass test Data'!M20-'Bioavailability Assessment Tool'!M20)","v":""},{"$f":"IF('Bio Ass test Data'!N20='Bioavailability Assessment Tool'!N20,\"\",'Bio Ass test Data'!N20-'Bioavailability Assessment Tool'!N20)","v":""},{"$f":"IF('Bio Ass test Data'!O20='Bioavailability Assessment Tool'!O20,\"\",'Bio Ass test Data'!O20-'Bioavailability Assessment Tool'!O20)","v":""},{"$f":"IF('Bio Ass test Data'!P20='Bioavailability Assessment Tool'!P20,\"\",'Bio Ass test Data'!P20-'Bioavailability Assessment Tool'!P20)","v":""},{"$f":"IF('Bio Ass test Data'!Q20='Bioavailability Assessment Tool'!Q20,\"\",'Bio Ass test Data'!Q20-'Bioavailability Assessment Tool'!Q20)","v":""},{"$f":"IF('Bio Ass test Data'!R20='Bioavailability Assessment Tool'!R20,\"\",'Bio Ass test Data'!R20-'Bioavailability Assessment Tool'!R20)","v":""},{"$f":"IF('Bio Ass test Data'!S20='Bioavailability Assessment Tool'!S20,\"\",'Bio Ass test Data'!S20-'Bioavailability Assessment Tool'!S20)","v":""},{"$f":"IF('Bio Ass test Data'!T20='Bioavailability Assessment Tool'!T20,\"\",'Bio Ass test Data'!T20-'Bioavailability Assessment Tool'!T20)","v":""},{"$f":"IF('Bio Ass test Data'!U20='Bioavailability Assessment Tool'!U20,\"\",'Bio Ass test Data'!U20-'Bioavailability Assessment Tool'!U20)","v":""},{"$f":"IF('Bio Ass test Data'!V20='Bioavailability Assessment Tool'!V20,\"\",'Bio Ass test Data'!V20-'Bioavailability Assessment Tool'!V20)","v":""},{"$f":"IF('Bio Ass test Data'!W20='Bioavailability Assessment Tool'!W20,\"\",'Bio Ass test Data'!W20-'Bioavailability Assessment Tool'!W20)","v":""},{"$f":"IF('Bio Ass test Data'!X20='Bioavailability Assessment Tool'!X20,\"\",'Bio Ass test Data'!X20-'Bioavailability Assessment Tool'!X20)","v":""},{"$f":"IF('Bio Ass test Data'!Y20='Bioavailability Assessment Tool'!Y20,\"\",'Bio Ass test Data'!Y20-'Bioavailability Assessment Tool'!Y20)","v":""},{"$f":"IF('Bio Ass test Data'!Z20='Bioavailability Assessment Tool'!Z20,\"\",'Bio Ass test Data'!Z20-'Bioavailability Assessment Tool'!Z20)","v":""},{"$f":"IF('Bio Ass test Data'!AA20='Bioavailability Assessment Tool'!AA20,\"\",'Bio Ass test Data'!AA20-'Bioavailability Assessment Tool'!AA20)","v":""},{"$f":"IF('Bio Ass test Data'!AB20='Bioavailability Assessment Tool'!AB20,\"\",'Bio Ass test Data'!AB20-'Bioavailability Assessment Tool'!AB20)","v":""}]
[null,17,null,null,null,15,null,null,null,7,14,60,{"$f":"IF('Bio Ass test Data'!M21='Bioavailability Assessment Tool'!M21,\"\",'Bio Ass test Data'!M21-'Bioavailability Assessment Tool'!M21)","v":""},{"$f":"IF('Bio Ass test Data'!N21='Bioavailability Assessment Tool'!N21,\"\",'Bio Ass test Data'!N21-'Bioavailability Assessment Tool'!N21)","v":""},{"$f":"IF('Bio Ass test Data'!O21='Bioavailability Assessment Tool'!O21,\"\",'Bio Ass test Data'!O21-'Bioavailability Assessment Tool'!O21)","v":""},{"$f":"IF('Bio Ass test Data'!P21='Bioavailability Assessment Tool'!P21,\"\",'Bio Ass test Data'!P21-'Bioavailability Assessment Tool'!P21)","v":""},{"$f":"IF('Bio Ass test Data'!Q21='Bioavailability Assessment Tool'!Q21,\"\",'Bio Ass test Data'!Q21-'Bioavailability Assessment Tool'!Q21)","v":""},{"$f":"IF('Bio Ass test Data'!R21='Bioavailability Assessment Tool'!R21,\"\",'Bio Ass test Data'!R21-'Bioavailability Assessment Tool'!R21)","v":""},{"$f":"IF('Bio Ass test Data'!S21='Bioavailability Assessment Tool'!S21,\"\",'Bio Ass test Data'!S21-'Bioavailability Assessment Tool'!S21)","v":""},{"$f":"IF('Bio Ass test Data'!T21='Bioavailability Assessment Tool'!T21,\"\",'Bio Ass test Data'!T21-'Bioavailability Assessment Tool'!T21)","v":""},{"$f":"IF('Bio Ass test Data'!U21='Bioavailability Assessment Tool'!U21,\"\",'Bio Ass test Data'!U21-'Bioavailability Assessment Tool'!U21)","v":""},{"$f":"IF('Bio Ass test Data'!V21='Bioavailability Assessment Tool'!V21,\"\",'Bio Ass test Data'!V21-'Bioavailability Assessment Tool'!V21)","v":""},{"$f":"IF('Bio Ass test Data'!W21='Bioavailability Assessment Tool'!W21,\"\",'Bio Ass test Data'!W21-'Bioavailability Assessment Tool'!W21)","v":""},{"$f":"IF('Bio Ass test Data'!X21='Bioavailability Assessment Tool'!X21,\"\",'Bio Ass test Data'!X21-'Bioavailability Assessment Tool'!X21)","v":""},{"$f":"IF('Bio Ass test Data'!Y21='Bioavailability Assessment Tool'!Y21,\"\",'Bio Ass test Data'!Y21-'Bioavailability Assessment Tool'!Y21)","v":""},{"$f":"IF('Bio Ass test Data'!Z21='Bioavailability Assessment Tool'!Z21,\"\",'Bio Ass test Data'!Z21-'Bioavailability Assessment Tool'!Z21)","v":""},{"$f":"IF('Bio Ass test Data'!AA21='Bioavailability Assessment Tool'!AA21,\"\",'Bio Ass test Data'!AA21-'Bioavailability Assessment Tool'!AA21)","v":""},{"$f":"IF('Bio Ass test Data'!AB21='Bioavailability Assessment Tool'!AB21,\"\",'Bio Ass test Data'!AB21-'Bioavailability Assessment Tool'!AB21)","v":""}]
[null,18,null,null,null,15,null,null,null,7,15,60,{"$f":"IF('Bio Ass test Data'!M22='Bioavailability Assessment Tool'!M22,\"\",'Bio Ass test Data'!M22-'Bioavailability Assessment Tool'!M22)","v":""},{"$f":"IF('Bio Ass test Data'!N22='Bioavailability Assessment Tool'!N22,\"\",'Bio Ass test Data'!N22-'Bioavailability Assessment Tool'!N22)","v":""},{"$f":"IF('Bio Ass test Data'!O22='Bioavailability Assessment Tool'!O22,\"\",'Bio Ass test Data'!O22-'Bioavailability Assessment Tool'!O22)","v":""},{"$f":"IF('Bio Ass test Data'!P22='Bioavailability Assessment Tool'!P22,\"\",'Bio Ass test Data'!P22-'Bioavailability Assessment Tool'!P22)","v":""},{"$f":"IF('Bio Ass test Data'!Q22='Bioavailability Assessment Tool'!Q22,\"\",'Bio Ass test Data'!Q22-'Bioavailability Assessment Tool'!Q22)","v":""},{"$f":"IF('Bio Ass test Data'!R22='Bioavailability Assessment Tool'!R22,\"\",'Bio Ass test Data'!R22-'Bioavailability Assessment Tool'!R22)","v":""},{"$f":"IF('Bio Ass test Data'!S22='Bioavailability Assessment Tool'!S22,\"\",'Bio Ass test Data'!S22-'Bioavailability Assessment Tool'!S22)","v":""},{"$f":"IF('Bio Ass test Data'!T22='Bioavailability Assessment Tool'!T22,\"\",'Bio Ass test Data'!T22-'Bioavailability Assessment Tool'!T22)","v":""},{"$f":"IF('Bio Ass test Data'!U22='Bioavailability Assessment Tool'!U22,\"\",'Bio Ass test Data'!U22-'Bioavailability Assessment Tool'!U22)","v":""},{"$f":"IF('Bio Ass test Data'!V22='Bioavailability Assessment Tool'!V22,\"\",'Bio Ass test Data'!V22-'Bioavailability Assessment Tool'!V22)","v":""},{"$f":"IF('Bio Ass test Data'!W22='Bioavailability Assessment Tool'!W22,\"\",'Bio Ass test Data'!W22-'Bioavailability Assessment Tool'!W22)","v":""},{"$f":"IF('Bio Ass test Data'!X22='Bioavailability Assessment Tool'!X22,\"\",'Bio Ass test Data'!X22-'Bioavailability Assessment Tool'!X22)","v":""},{"$f":"IF('Bio Ass test Data'!Y22='Bioavailability Assessment Tool'!Y22,\"\",'Bio Ass test Data'!Y22-'Bioavailability Assessment Tool'!Y22)","v":""},{"$f":"IF('Bio Ass test Data'!Z22='Bioavailability Assessment Tool'!Z22,\"\",'Bio Ass test Data'!Z22-'Bioavailability Assessment Tool'!Z22)","v":""},{"$f":"IF('Bio Ass test Data'!AA22='Bioavailability Assessment Tool'!AA22,\"\",'Bio Ass test Data'!AA22-'Bioavailability Assessment Tool'!AA22)","v":""},{"$f":"IF('Bio Ass test Data'!AB22='Bioavailability Assessment Tool'!AB22,\"\",'Bio Ass test Data'!AB22-'Bioavailability Assessment Tool'!AB22)","v":""}]
[null,19,null,null,null,15,null,null,null,7,16,60,{"$f":"IF('Bio Ass test Data'!M23='Bioavailability Assessment Tool'!M23,\"\",'Bio Ass test Data'!M23-'Bioavailability Assessment Tool'!M23)","v":""},{"$f":"IF('Bio Ass test Data'!N23='Bioavailability Assessment Tool'!N23,\"\",'Bio Ass test Data'!N23-'Bioavailability Assessment Tool'!N23)","v":""},{"$f":"IF('Bio Ass test Data'!O23='Bioavailability Assessment Tool'!O23,\"\",'Bio Ass test Data'!O23-'Bioavailability Assessment Tool'!O23)","v":""},{"$f":"IF('Bio Ass test Data'!P23='Bioavailability Assessment Tool'!P23,\"\",'Bio Ass test Data'!P23-'Bioavailability Assessment Tool'!P23)","v":""},{"$f":"IF('Bio Ass test Data'!Q23='Bioavailability Assessment Tool'!Q23,\"\",'Bio Ass test Data'!Q23-'Bioavailability Assessment Tool'!Q23)","v":""},{"$f":"IF('Bio Ass test Data'!R23='Bioavailability Assessment Tool'!R23,\"\",'Bio Ass test Data'!R23-'Bioavailability Assessment Tool'!R23)","v":""},{"$f":"IF('Bio Ass test Data'!S23='Bioavailability Assessment Tool'!S23,\"\",'Bio Ass test Data'!S23-'Bioavailability Assessment Tool'!S23)","v":""},{"$f":"IF('Bio Ass test Data'!T23='Bioavailability Assessment Tool'!T23,\"\",'Bio Ass test Data'!T23-'Bioavailability Assessment Tool'!T23)","v":""},{"$f":"IF('Bio Ass test Data'!U23='Bioavailability Assessment Tool'!U23,\"\",'Bio Ass test Data'!U23-'Bioavailability Assessment Tool'!U23)","v":""},{"$f":"IF('Bio Ass test Data'!V23='Bioavailability Assessment Tool'!V23,\"\",'Bio Ass test Data'!V23-'Bioavailability Assessment Tool'!V23)","v":""},{"$f":"IF('Bio Ass test Data'!W23='Bioavailability Assessment Tool'!W23,\"\",'Bio Ass test Data'!W23-'Bioavailability Assessment Tool'!W23)","v":""},{"$f":"IF('Bio Ass test Data'!X23='Bioavailability Assessment Tool'!X23,\"\",'Bio Ass test Data'!X23-'Bioavailability Assessment Tool'!X23)","v":""},{"$f":"IF('Bio Ass test Data'!Y23='Bioavailability Assessment Tool'!Y23,\"\",'Bio Ass test Data'!Y23-'Bioavailability Assessment Tool'!Y23)","v":""},{"$f":"IF('Bio Ass test Data'!Z23='Bioavailability Assessment Tool'!Z23,\"\",'Bio Ass test Data'!Z23-'Bioavailability Assessment Tool'!Z23)","v":""},{"$f":"IF('Bio Ass test Data'!AA23='Bioavailability Assessment Tool'!AA23,\"\",'Bio Ass test Data'!AA23-'Bioavailability Assessment Tool'!AA23)","v":""},{"$f":"IF('Bio Ass test Data'!AB23='Bioavailability Assessment Tool'!AB23,\"\",'Bio Ass test Data'!AB23-'Bioavailability Assessment Tool'!AB23)","v":""}]
[null,20,null,null,null,15,null,null,null,7,17,60,{"$f":"IF('Bio Ass test Data'!M24='Bioavailability Assessment Tool'!M24,\"\",'Bio Ass test Data'!M24-'Bioavailability Assessment Tool'!M24)","v":""},{"$f":"IF('Bio Ass test Data'!N24='Bioavailability Assessment Tool'!N24,\"\",'Bio Ass test Data'!N24-'Bioavailability Assessment Tool'!N24)","v":""},{"$f":"IF('Bio Ass test Data'!O24='Bioavailability Assessment Tool'!O24,\"\",'Bio Ass test Data'!O24-'Bioavailability Assessment Tool'!O24)","v":""},{"$f":"IF('Bio Ass test Data'!P24='Bioavailability Assessment Tool'!P24,\"\",'Bio Ass test Data'!P24-'Bioavailability Assessment Tool'!P24)","v":""},{"$f":"IF('Bio Ass test Data'!Q24='Bioavailability Assessment Tool'!Q24,\"\",'Bio Ass test Data'!Q24-'Bioavailability Assessment Tool'!Q24)","v":""},{"$f":"IF('Bio Ass test Data'!R24='Bioavailability Assessment Tool'!R24,\"\",'Bio Ass test Data'!R24-'Bioavailability Assessment Tool'!R24)","v":""},{"$f":"IF('Bio Ass test Data'!S24='Bioavailability Assessment Tool'!S24,\"\",'Bio Ass test Data'!S24-'Bioavailability Assessment Tool'!S24)","v":""},{"$f":"IF('Bio Ass test Data'!T24='Bioavailability Assessment Tool'!T24,\"\",'Bio Ass test Data'!T24-'Bioavailability Assessment Tool'!T24)","v":""},{"$f":"IF('Bio Ass test Data'!U24='Bioavailability Assessment Tool'!U24,\"\",'Bio Ass test Data'!U24-'Bioavailability Assessment Tool'!U24)","v":""},{"$f":"IF('Bio Ass test Data'!V24='Bioavailability Assessment Tool'!V24,\"\",'Bio Ass test Data'!V24-'Bioavailability Assessment Tool'!V24)","v":""},{"$f":"IF('Bio Ass test Data'!W24='Bioavailability Assessment Tool'!W24,\"\",'Bio Ass test Data'!W24-'Bioavailability Assessment Tool'!W24)","v":""},{"$f":"IF('Bio Ass test Data'!X24='Bioavailability Assessment Tool'!X24,\"\",'Bio Ass test Data'!X24-'Bioavailability Assessment Tool'!X24)","v":""},{"$f":"IF('Bio Ass test Data'!Y24='Bioavailability Assessment Tool'!Y24,\"\",'Bio Ass test Data'!Y24-'Bioavailability Assessment Tool'!Y24)","v":""},{"$f":"IF('Bio Ass test Data'!Z24='Bioavailability Assessment Tool'!Z24,\"\",'Bio Ass test Data'!Z24-'Bioavailability Assessment Tool'!Z24)","v":""},{"$f":"IF('Bio Ass test Data'!AA24='Bioavailability Assessment Tool'!AA24,\"\",'Bio Ass test Data'!AA24-'Bioavailability Assessment Tool'!AA24)","v":""},{"$f":"IF('Bio Ass test Data'!AB24='Bioavailability Assessment Tool'!AB24,\"\",'Bio Ass test Data'!AB24-'Bioavailability Assessment Tool'!AB24)","v":""}]
[null,21,null,null,null,null,15,null,null,5.9,10,60,{"$f":"IF('Bio Ass test Data'!M25='Bioavailability Assessment Tool'!M25,\"\",'Bio Ass test Data'!M25-'Bioavailability Assessment Tool'!M25)","v":""},{"$f":"IF('Bio Ass test Data'!N25='Bioavailability Assessment Tool'!N25,\"\",'Bio Ass test Data'!N25-'Bioavailability Assessment Tool'!N25)","v":""},{"$f":"IF('Bio Ass test Data'!O25='Bioavailability Assessment Tool'!O25,\"\",'Bio Ass test Data'!O25-'Bioavailability Assessment Tool'!O25)","v":""},{"$f":"IF('Bio Ass test Data'!P25='Bioavailability Assessment Tool'!P25,\"\",'Bio Ass test Data'!P25-'Bioavailability Assessment Tool'!P25)","v":""},{"$f":"IF('Bio Ass test Data'!Q25='Bioavailability Assessment Tool'!Q25,\"\",'Bio Ass test Data'!Q25-'Bioavailability Assessment Tool'!Q25)","v":""},{"$f":"IF('Bio Ass test Data'!R25='Bioavailability Assessment Tool'!R25,\"\",'Bio Ass test Data'!R25-'Bioavailability Assessment Tool'!R25)","v":""},{"$f":"IF('Bio Ass test Data'!S25='Bioavailability Assessment Tool'!S25,\"\",'Bio Ass test Data'!S25-'Bioavailability Assessment Tool'!S25)","v":""},{"$f":"IF('Bio Ass test Data'!T25='Bioavailability Assessment Tool'!T25,\"\",'Bio Ass test Data'!T25-'Bioavailability Assessment Tool'!T25)","v":""},{"$f":"IF('Bio Ass test Data'!U25='Bioavailability Assessment Tool'!U25,\"\",'Bio Ass test Data'!U25-'Bioavailability Assessment Tool'!U25)","v":""},{"$f":"IF('Bio Ass test Data'!V25='Bioavailability Assessment Tool'!V25,\"\",'Bio Ass test Data'!V25-'Bioavailability Assessment Tool'!V25)","v":""},{"$f":"IF('Bio Ass test Data'!W25='Bioavailability Assessment Tool'!W25,\"\",'Bio Ass test Data'!W25-'Bioavailability Assessment Tool'!W25)","v":""},{"$f":"IF('Bio Ass test Data'!X25='Bioavailability Assessment Tool'!X25,\"\",'Bio Ass test Data'!X25-'Bioavailability Assessment Tool'!X25)","v":""},{"$f":"IF('Bio Ass test Data'!Y25='Bioavailability Assessment Tool'!Y25,\"\",'Bio Ass test Data'!Y25-'Bioavailability Assessment Tool'!Y25)","v":""},{"$f":"IF('Bio Ass test Data'!Z25='Bioavailability Assessment Tool'!Z25,\"\",'Bio Ass test Data'!Z25-'Bioavailability Assessment Tool'!Z25)","v":""},{"$f":"IF('Bio Ass test Data'!AA25='Bioavailability Assessment Tool'!AA25,\"\",'Bio Ass test Data'!AA25-'Bioavailability Assessment Tool'!AA25)","v":""},{"$f":"IF('Bio Ass test Data'!AB25='Bioavailability Assessment Tool'!AB25,\"\",'Bio Ass test Data'!AB25-'Bioavailability Assessment Tool'!AB25)","v":""}]
[null,22,null,null,null,null,15,null,null,6,10,60,{"$f":"IF('Bio Ass test Data'!M26='Bioavailability Assessment Tool'!M26,\"\",'Bio Ass test Data'!M26-'Bioavailability Assessment Tool'!M26)","v":""},{"$f":"IF('Bio Ass test Data'!N26='Bioavailability Assessment Tool'!N26,\"\",'Bio Ass test Data'!N26-'Bioavailability Assessment Tool'!N26)","v":""},{"$f":"IF('Bio Ass test Data'!O26='Bioavailability Assessment Tool'!O26,\"\",'Bio Ass test Data'!O26-'Bioavailability Assessment Tool'!O26)","v":""},{"$f":"IF('Bio Ass test Data'!P26='Bioavailability Assessment Tool'!P26,\"\",'Bio Ass test Data'!P26-'Bioavailability Assessment Tool'!P26)","v":""},{"$f":"IF('Bio Ass test Data'!Q26='Bioavailability Assessment Tool'!Q26,\"\",'Bio Ass test Data'!Q26-'Bioavailability Assessment Tool'!Q26)","v":""},{"$f":"IF('Bio Ass test Data'!R26='Bioavailability Assessment Tool'!R26,\"\",'Bio Ass test Data'!R26-'Bioavailability Assessment Tool'!R26)","v":""},{"$f":"IF('Bio Ass test Data'!S26='Bioavailability Assessment Tool'!S26,\"\",'Bio Ass test Data'!S26-'Bioavailability Assessment Tool'!S26)","v":""},{"$f":"IF('Bio Ass test Data'!T26='Bioavailability Assessment Tool'!T26,\"\",'Bio Ass test Data'!T26-'Bioavailability Assessment Tool'!T26)","v":""},{"$f":"IF('Bio Ass test Data'!U26='Bioavailability Assessment Tool'!U26,\"\",'Bio Ass test Data'!U26-'Bioavailability Assessment Tool'!U26)","v":""},{"$f":"IF('Bio Ass test Data'!V26='Bioavailability Assessment Tool'!V26,\"\",'Bio Ass test Data'!V26-'Bioavailability Assessment Tool'!V26)","v":""},{"$f":"IF('Bio Ass test Data'!W26='Bioavailability Assessment Tool'!W26,\"\",'Bio Ass test Data'!W26-'Bioavailability Assessment Tool'!W26)","v":""},{"$f":"IF('Bio Ass test Data'!X26='Bioavailability Assessment Tool'!X26,\"\",'Bio Ass test Data'!X26-'Bioavailability Assessment Tool'!X26)","v":""},{"$f":"IF('Bio Ass test Data'!Y26='Bioavailability Assessment Tool'!Y26,\"\",'Bio Ass test Data'!Y26-'Bioavailability Assessment Tool'!Y26)","v":""},{"$f":"IF('Bio Ass test Data'!Z26='Bioavailability Assessment Tool'!Z26,\"\",'Bio Ass test Data'!Z26-'Bioavailability Assessment Tool'!Z26)","v":""},{"$f":"IF('Bio Ass test Data'!AA26='Bioavailability Assessment Tool'!AA26,\"\",'Bio Ass test Data'!AA26-'Bioavailability Assessment Tool'!AA26)","v":""},{"$f":"IF('Bio Ass test Data'!AB26='Bioavailability Assessment Tool'!AB26,\"\",'Bio Ass test Data'!AB26-'Bioavailability Assessment Tool'!AB26)","v":""}]
[null,23,null,null,null,null,15,null,null,6.1,10,60,{"$f":"IF('Bio Ass test Data'!M27='Bioavailability Assessment Tool'!M27,\"\",'Bio Ass test Data'!M27-'Bioavailability Assessment Tool'!M27)","v":""},{"$f":"IF('Bio Ass test Data'!N27='Bioavailability Assessment Tool'!N27,\"\",'Bio Ass test Data'!N27-'Bioavailability Assessment Tool'!N27)","v":""},{"$f":"IF('Bio Ass test Data'!O27='Bioavailability Assessment Tool'!O27,\"\",'Bio Ass test Data'!O27-'Bioavailability Assessment Tool'!O27)","v":""},{"$f":"IF('Bio Ass test Data'!P27='Bioavailability Assessment Tool'!P27,\"\",'Bio Ass test Data'!P27-'Bioavailability Assessment Tool'!P27)","v":""},{"$f":"IF('Bio Ass test Data'!Q27='Bioavailability Assessment Tool'!Q27,\"\",'Bio Ass test Data'!Q27-'Bioavailability Assessment Tool'!Q27)","v":""},{"$f":"IF('Bio Ass test Data'!R27='Bioavailability Assessment Tool'!R27,\"\",'Bio Ass test Data'!R27-'Bioavailability Assessment Tool'!R27)","v":""},{"$f":"IF('Bio Ass test Data'!S27='Bioavailability Assessment Tool'!S27,\"\",'Bio Ass test Data'!S27-'Bioavailability Assessment Tool'!S27)","v":""},{"$f":"IF('Bio Ass test Data'!T27='Bioavailability Assessment Tool'!T27,\"\",'Bio Ass test Data'!T27-'Bioavailability Assessment Tool'!T27)","v":""},{"$f":"IF('Bio Ass test Data'!U27='Bioavailability Assessment Tool'!U27,\"\",'Bio Ass test Data'!U27-'Bioavailability Assessment Tool'!U27)","v":""},{"$f":"IF('Bio Ass test Data'!V27='Bioavailability Assessment Tool'!V27,\"\",'Bio Ass test Data'!V27-'Bioavailability Assessment Tool'!V27)","v":""},{"$f":"IF('Bio Ass test Data'!W27='Bioavailability Assessment Tool'!W27,\"\",'Bio Ass test Data'!W27-'Bioavailability Assessment Tool'!W27)","v":""},{"$f":"IF('Bio Ass test Data'!X27='Bioavailability Assessment Tool'!X27,\"\",'Bio Ass test Data'!X27-'Bioavailability Assessment Tool'!X27)","v":""},{"$f":"IF('Bio Ass test Data'!Y27='Bioavailability Assessment Tool'!Y27,\"\",'Bio Ass test Data'!Y27-'Bioavailability Assessment Tool'!Y27)","v":""},{"$f":"IF('Bio Ass test Data'!Z27='Bioavailability Assessment Tool'!Z27,\"\",'Bio Ass test Data'!Z27-'Bioavailability Assessment Tool'!Z27)","v":""},{"$f":"IF('Bio Ass test Data'!AA27='Bioavailability Assessment Tool'!AA27,\"\",'Bio Ass test Data'!AA27-'Bioavailability Assessment Tool'!AA27)","v":""},{"$f":"IF('Bio Ass test Data'!AB27='Bioavailability Assessment Tool'!AB27,\"\",'Bio Ass test Data'!AB27-'Bioavailability Assessment Tool'!AB27)","v":""}]
[null,24,null,null,null,null,15,null,null,7.9,10,60,{"$f":"IF('Bio Ass test Data'!M28='Bioavailability Assessment Tool'!M28,\"\",'Bio Ass test Data'!M28-'Bioavailability Assessment Tool'!M28)","v":""},{"$f":"IF('Bio Ass test Data'!N28='Bioavailability Assessment Tool'!N28,\"\",'Bio Ass test Data'!N28-'Bioavailability Assessment Tool'!N28)","v":""},{"$f":"IF('Bio Ass test Data'!O28='Bioavailability Assessment Tool'!O28,\"\",'Bio Ass test Data'!O28-'Bioavailability Assessment Tool'!O28)","v":""},{"$f":"IF('Bio Ass test Data'!P28='Bioavailability Assessment Tool'!P28,\"\",'Bio Ass test Data'!P28-'Bioavailability Assessment Tool'!P28)","v":""},{"$f":"IF('Bio Ass test Data'!Q28='Bioavailability Assessment Tool'!Q28,\"\",'Bio Ass test Data'!Q28-'Bioavailability Assessment Tool'!Q28)","v":""},{"$f":"IF('Bio Ass test Data'!R28='Bioavailability Assessment Tool'!R28,\"\",'Bio Ass test Data'!R28-'Bioavailability Assessment Tool'!R28)","v":""},{"$f":"IF('Bio Ass test Data'!S28='Bioavailability Assessment Tool'!S28,\"\",'Bio Ass test Data'!S28-'Bioavailability Assessment Tool'!S28)","v":""},{"$f":"IF('Bio Ass test Data'!T28='Bioavailability Assessment Tool'!T28,\"\",'Bio Ass test Data'!T28-'Bioavailability Assessment Tool'!T28)","v":""},{"$f":"IF('Bio Ass test Data'!U28='Bioavailability Assessment Tool'!U28,\"\",'Bio Ass test Data'!U28-'Bioavailability Assessment Tool'!U28)","v":""},{"$f":"IF('Bio Ass test Data'!V28='Bioavailability Assessment Tool'!V28,\"\",'Bio Ass test Data'!V28-'Bioavailability Assessment Tool'!V28)","v":""},{"$f":"IF('Bio Ass test Data'!W28='Bioavailability Assessment Tool'!W28,\"\",'Bio Ass test Data'!W28-'Bioavailability Assessment Tool'!W28)","v":""},{"$f":"IF('Bio Ass test Data'!X28='Bioavailability Assessment Tool'!X28,\"\",'Bio Ass test Data'!X28-'Bioavailability Assessment Tool'!X28)","v":""},{"$f":"IF('Bio Ass test Data'!Y28='Bioavailability Assessment Tool'!Y28,\"\",'Bio Ass test Data'!Y28-'Bioavailability Assessment Tool'!Y28)","v":""},{"$f":"IF('Bio Ass test Data'!Z28='Bioavailability Assessment Tool'!Z28,\"\",'Bio Ass test Data'!Z28-'Bioavailability Assessment Tool'!Z28)","v":""},{"$f":"IF('Bio Ass test Data'!AA28='Bioavailability Assessment Tool'!AA28,\"\",'Bio Ass test Data'!AA28-'Bioavailability Assessment Tool'!AA28)","v":""},{"$f":"IF('Bio Ass test Data'!AB28='Bioavailability Assessment Tool'!AB28,\"\",'Bio Ass test Data'!AB28-'Bioavailability Assessment Tool'!AB28)","v":""}]
[null,25,null,null,null,null,15,null,null,8,10,60,{"$f":"IF('Bio Ass test Data'!M29='Bioavailability Assessment Tool'!M29,\"\",'Bio Ass test Data'!M29-'Bioavailability Assessment Tool'!M29)","v":""},{"$f":"IF('Bio Ass test Data'!N29='Bioavailability Assessment Tool'!N29,\"\",'Bio Ass test Data'!N29-'Bioavailability Assessment Tool'!N29)","v":""},{"$f":"IF('Bio Ass test Data'!O29='Bioavailability Assessment Tool'!O29,\"\",'Bio Ass test Data'!O29-'Bioavailability Assessment Tool'!O29)","v":""},{"$f":"IF('Bio Ass test Data'!P29='Bioavailability Assessment Tool'!P29,\"\",'Bio Ass test Data'!P29-'Bioavailability Assessment Tool'!P29)","v":""},{"$f":"IF('Bio Ass test Data'!Q29='Bioavailability Assessment Tool'!Q29,\"\",'Bio Ass test Data'!Q29-'Bioavailability Assessment Tool'!Q29)","v":""},{"$f":"IF('Bio Ass test Data'!R29='Bioavailability Assessment Tool'!R29,\"\",'Bio Ass test Data'!R29-'Bioavailability Assessment Tool'!R29)","v":""},{"$f":"IF('Bio Ass test Data'!S29='Bioavailability Assessment Tool'!S29,\"\",'Bio Ass test Data'!S29-'Bioavailability Assessment Tool'!S29)","v":""},{"$f":"IF('Bio Ass test Data'!T29='Bioavailability Assessment Tool'!T29,\"\",'Bio Ass test Data'!T29-'Bioavailability Assessment Tool'!T29)","v":""},{"$f":"IF('Bio Ass test Data'!U29='Bioavailability Assessment Tool'!U29,\"\",'Bio Ass test Data'!U29-'Bioavailability Assessment Tool'!U29)","v":""},{"$f":"IF('Bio Ass test Data'!V29='Bioavailability Assessment Tool'!V29,\"\",'Bio Ass test Data'!V29-'Bioavailability Assessment Tool'!V29)","v":""},{"$f":"IF('Bio Ass test Data'!W29='Bioavailability Assessment Tool'!W29,\"\",'Bio Ass test Data'!W29-'Bioavailability Assessment Tool'!W29)","v":""},{"$f":"IF('Bio Ass test Data'!X29='Bioavailability Assessment Tool'!X29,\"\",'Bio Ass test Data'!X29-'Bioavailability Assessment Tool'!X29)","v":""},{"$f":"IF('Bio Ass test Data'!Y29='Bioavailability Assessment Tool'!Y29,\"\",'Bio Ass test Data'!Y29-'Bioavailability Assessment Tool'!Y29)","v":""},{"$f":"IF('Bio Ass test Data'!Z29='Bioavailability Assessment Tool'!Z29,\"\",'Bio Ass test Data'!Z29-'Bioavailability Assessment Tool'!Z29)","v":""},{"$f":"IF('Bio Ass test Data'!AA29='Bioavailability Assessment Tool'!AA29,\"\",'Bio Ass test Data'!AA29-'Bioavailability Assessment Tool'!AA29)","v":""},{"$f":"IF('Bio Ass test Data'!AB29='Bioavailability Assessment Tool'!AB29,\"\",'Bio Ass test Data'!AB29-'Bioavailability Assessment Tool'!AB29)","v":""}]
[null,26,null,null,null,null,15,null,null,8.1999999999999993,10,60,{"$f":"IF('Bio Ass test Data'!M30='Bioavailability Assessment Tool'!M30,\"\",'Bio Ass test Data'!M30-'Bioavailability Assessment Tool'!M30)","v":""},{"$f":"IF('Bio Ass test Data'!N30='Bioavailability Assessment Tool'!N30,\"\",'Bio Ass test Data'!N30-'Bioavailability Assessment Tool'!N30)","v":""},{"$f":"IF('Bio Ass test Data'!O30='Bioavailability Assessment Tool'!O30,\"\",'Bio Ass test Data'!O30-'Bioavailability Assessment Tool'!O30)","v":""},{"$f":"IF('Bio Ass test Data'!P30='Bioavailability Assessment Tool'!P30,\"\",'Bio Ass test Data'!P30-'Bioavailability Assessment Tool'!P30)","v":""},{"$f":"IF('Bio Ass test Data'!Q30='Bioavailability Assessment Tool'!Q30,\"\",'Bio Ass test Data'!Q30-'Bioavailability Assessment Tool'!Q30)","v":""},{"$f":"IF('Bio Ass test Data'!R30='Bioavailability Assessment Tool'!R30,\"\",'Bio Ass test Data'!R30-'Bioavailability Assessment Tool'!R30)","v":""},{"$f":"IF('Bio Ass test Data'!S30='Bioavailability Assessment Tool'!S30,\"\",'Bio Ass test Data'!S30-'Bioavailability Assessment Tool'!S30)","v":""},{"$f":"IF('Bio Ass test Data'!T30='Bioavailability Assessment Tool'!T30,\"\",'Bio Ass test Data'!T30-'Bioavailability Assessment Tool'!T30)","v":""},{"$f":"IF('Bio Ass test Data'!U30='Bioavailability Assessment Tool'!U30,\"\",'Bio Ass test Data'!U30-'Bioavailability Assessment Tool'!U30)","v":""},{"$f":"IF('Bio Ass test Data'!V30='Bioavailability Assessment Tool'!V30,\"\",'Bio Ass test Data'!V30-'Bioavailability Assessment Tool'!V30)","v":""},{"$f":"IF('Bio Ass test Data'!W30='Bioavailability Assessment Tool'!W30,\"\",'Bio Ass test Data'!W30-'Bioavailability Assessment Tool'!W30)","v":""},{"$f":"IF('Bio Ass test Data'!X30='Bioavailability Assessment Tool'!X30,\"\",'Bio Ass test Data'!X30-'Bioavailability Assessment Tool'!X30)","v":""},{"$f":"IF('Bio Ass test Data'!Y30='Bioavailability Assessment Tool'!Y30,\"\",'Bio Ass test Data'!Y30-'Bioavailability Assessment Tool'!Y30)","v":""},{"$f":"IF('Bio Ass test Data'!Z30='Bioavailability Assessment Tool'!Z30,\"\",'Bio Ass test Data'!Z30-'Bioavailability Assessment Tool'!Z30)","v":""},{"$f":"IF('Bio Ass test Data'!AA30='Bioavailability Assessment Tool'!AA30,\"\",'Bio Ass test Data'!AA30-'Bioavailability Assessment Tool'!AA30)","v":""},{"$f":"IF('Bio Ass test Data'!AB30='Bioavailability Assessment Tool'!AB30,\"\",'Bio Ass test Data'!AB30-'Bioavailability Assessment Tool'!AB30)","v":""}]
[null,27,null,null,null,null,15,null,null,7,10,2.9,{"$f":"IF('Bio Ass test Data'!M31='Bioavailability Assessment Tool'!M31,\"\",'Bio Ass test Data'!M31-'Bioavailability Assessment Tool'!M31)","v":""},{"$f":"IF('Bio Ass test Data'!N31='Bioavailability Assessment Tool'!N31,\"\",'Bio Ass test Data'!N31-'Bioavailability Assessment Tool'!N31)","v":""},{"$f":"IF('Bio Ass test Data'!O31='Bioavailability Assessment Tool'!O31,\"\",'Bio Ass test Data'!O31-'Bioavailability Assessment Tool'!O31)","v":""},{"$f":"IF('Bio Ass test Data'!P31='Bioavailability Assessment Tool'!P31,\"\",'Bio Ass test Data'!P31-'Bioavailability Assessment Tool'!P31)","v":""},{"$f":"IF('Bio Ass test Data'!Q31='Bioavailability Assessment Tool'!Q31,\"\",'Bio Ass test Data'!Q31-'Bioavailability Assessment Tool'!Q31)","v":""},{"$f":"IF('Bio Ass test Data'!R31='Bioavailability Assessment Tool'!R31,\"\",'Bio Ass test Data'!R31-'Bioavailability Assessment Tool'!R31)","v":""},{"$f":"IF('Bio Ass test Data'!S31='Bioavailability Assessment Tool'!S31,\"\",'Bio Ass test Data'!S31-'Bioavailability Assessment Tool'!S31)","v":""},{"$f":"IF('Bio Ass test Data'!T31='Bioavailability Assessment Tool'!T31,\"\",'Bio Ass test Data'!T31-'Bioavailability Assessment Tool'!T31)","v":""},{"$f":"IF('Bio Ass test Data'!U31='Bioavailability Assessment Tool'!U31,\"\",'Bio Ass test Data'!U31-'Bioavailability Assessment Tool'!U31)","v":""},{"$f":"IF('Bio Ass test Data'!V31='Bioavailability Assessment Tool'!V31,\"\",'Bio Ass test Data'!V31-'Bioavailability Assessment Tool'!V31)","v":""},{"$f":"IF('Bio Ass test Data'!W31='Bioavailability Assessment Tool'!W31,\"\",'Bio Ass test Data'!W31-'Bioavailability Assessment Tool'!W31)","v":""},{"$f":"IF('Bio Ass test Data'!X31='Bioavailability Assessment Tool'!X31,\"\",'Bio Ass test Data'!X31-'Bioavailability Assessment Tool'!X31)","v":""},{"$f":"IF('Bio Ass test Data'!Y31='Bioavailability Assessment Tool'!Y31,\"\",'Bio Ass test Data'!Y31-'Bioavailability Assessment Tool'!Y31)","v":""},{"$f":"IF('Bio Ass test Data'!Z31='Bioavailability Assessment Tool'!Z31,\"\",'Bio Ass test Data'!Z31-'Bioavailability Assessment Tool'!Z31)","v":""},{"$f":"IF('Bio Ass test Data'!AA31='Bioavailability Assessment Tool'!AA31,\"\",'Bio Ass test Data'!AA31-'Bioavailability Assessment Tool'!AA31)","v":""},{"$f":"IF('Bio Ass test Data'!AB31='Bioavailability Assessment Tool'!AB31,\"\",'Bio Ass test Data'!AB31-'Bioavailability Assessment Tool'!AB31)","v":""}]
[null,28,null,null,null,null,15,null,null,7,10,3,{"$f":"IF('Bio Ass test Data'!M32='Bioavailability Assessment Tool'!M32,\"\",'Bio Ass test Data'!M32-'Bioavailability Assessment Tool'!M32)","v":""},{"$f":"IF('Bio Ass test Data'!N32='Bioavailability Assessment Tool'!N32,\"\",'Bio Ass test Data'!N32-'Bioavailability Assessment Tool'!N32)","v":""},{"$f":"IF('Bio Ass test Data'!O32='Bioavailability Assessment Tool'!O32,\"\",'Bio Ass test Data'!O32-'Bioavailability Assessment Tool'!O32)","v":""},{"$f":"IF('Bio Ass test Data'!P32='Bioavailability Assessment Tool'!P32,\"\",'Bio Ass test Data'!P32-'Bioavailability Assessment Tool'!P32)","v":""},{"$f":"IF('Bio Ass test Data'!Q32='Bioavailability Assessment Tool'!Q32,\"\",'Bio Ass test Data'!Q32-'Bioavailability Assessment Tool'!Q32)","v":""},{"$f":"IF('Bio Ass test Data'!R32='Bioavailability Assessment Tool'!R32,\"\",'Bio Ass test Data'!R32-'Bioavailability Assessment Tool'!R32)","v":""},{"$f":"IF('Bio Ass test Data'!S32='Bioavailability Assessment Tool'!S32,\"\",'Bio Ass test Data'!S32-'Bioavailability Assessment Tool'!S32)","v":""},{"$f":"IF('Bio Ass test Data'!T32='Bioavailability Assessment Tool'!T32,\"\",'Bio Ass test Data'!T32-'Bioavailability Assessment Tool'!T32)","v":""},{"$f":"IF('Bio Ass test Data'!U32='Bioavailability Assessment Tool'!U32,\"\",'Bio Ass test Data'!U32-'Bioavailability Assessment Tool'!U32)","v":""},{"$f":"IF('Bio Ass test Data'!V32='Bioavailability Assessment Tool'!V32,\"\",'Bio Ass test Data'!V32-'Bioavailability Assessment Tool'!V32)","v":""},{"$f":"IF('Bio Ass test Data'!W32='Bioavailability Assessment Tool'!W32,\"\",'Bio Ass test Data'!W32-'Bioavailability Assessment Tool'!W32)","v":""},{"$f":"IF('Bio Ass test Data'!X32='Bioavailability Assessment Tool'!X32,\"\",'Bio Ass test Data'!X32-'Bioavailability Assessment Tool'!X32)","v":""},{"$f":"IF('Bio Ass test Data'!Y32='Bioavailability Assessment Tool'!Y32,\"\",'Bio Ass test Data'!Y32-'Bioavailability Assessment Tool'!Y32)","v":""},{"$f":"IF('Bio Ass test Data'!Z32='Bioavailability Assessment Tool'!Z32,\"\",'Bio Ass test Data'!Z32-'Bioavailability Assessment Tool'!Z32)","v":""},{"$f":"IF('Bio Ass test Data'!AA32='Bioavailability Assessment Tool'!AA32,\"\",'Bio Ass test Data'!AA32-'Bioavailability Assessment Tool'!AA32)","v":""},{"$f":"IF('Bio Ass test Data'!AB32='Bioavailability Assessment Tool'!AB32,\"\",'Bio Ass test Data'!AB32-'Bioavailability Assessment Tool'!AB32)","v":""}]
[null,29,null,null,null,null,15,null,null,7,10,3.2,{"$f":"IF('Bio Ass test Data'!M33='Bioavailability Assessment Tool'!M33,\"\",'Bio Ass test Data'!M33-'Bioavailability Assessment Tool'!M33)","v":""},{"$f":"IF('Bio Ass test Data'!N33='Bioavailability Assessment Tool'!N33,\"\",'Bio Ass test Data'!N33-'Bioavailability Assessment Tool'!N33)","v":""},{"$f":"IF('Bio Ass test Data'!O33='Bioavailability Assessment Tool'!O33,\"\",'Bio Ass test Data'!O33-'Bioavailability Assessment Tool'!O33)","v":""},{"$f":"IF('Bio Ass test Data'!P33='Bioavailability Assessment Tool'!P33,\"\",'Bio Ass test Data'!P33-'Bioavailability Assessment Tool'!P33)","v":""},{"$f":"IF('Bio Ass test Data'!Q33='Bioavailability Assessment Tool'!Q33,\"\",'Bio Ass test Data'!Q33-'Bioavailability Assessment Tool'!Q33)","v":""},{"$f":"IF('Bio Ass test Data'!R33='Bioavailability Assessment Tool'!R33,\"\",'Bio Ass test Data'!R33-'Bioavailability Assessment Tool'!R33)","v":""},{"$f":"IF('Bio Ass test Data'!S33='Bioavailability Assessment Tool'!S33,\"\",'Bio Ass test Data'!S33-'Bioavailability Assessment Tool'!S33)","v":""},{"$f":"IF('Bio Ass test Data'!T33='Bioavailability Assessment Tool'!T33,\"\",'Bio Ass test Data'!T33-'Bioavailability Assessment Tool'!T33)","v":""},{"$f":"IF('Bio Ass test Data'!U33='Bioavailability Assessment Tool'!U33,\"\",'Bio Ass test Data'!U33-'Bioavailability Assessment Tool'!U33)","v":""},{"$f":"IF('Bio Ass test Data'!V33='Bioavailability Assessment Tool'!V33,\"\",'Bio Ass test Data'!V33-'Bioavailability Assessment Tool'!V33)","v":""},{"$f":"IF('Bio Ass test Data'!W33='Bioavailability Assessment Tool'!W33,\"\",'Bio Ass test Data'!W33-'Bioavailability Assessment Tool'!W33)","v":""},{"$f":"IF('Bio Ass test Data'!X33='Bioavailability Assessment Tool'!X33,\"\",'Bio Ass test Data'!X33-'Bioavailability Assessment Tool'!X33)","v":""},{"$f":"IF('Bio Ass test Data'!Y33='Bioavailability Assessment Tool'!Y33,\"\",'Bio Ass test Data'!Y33-'Bioavailability Assessment Tool'!Y33)","v":""},{"$f":"IF('Bio Ass test Data'!Z33='Bioavailability Assessment Tool'!Z33,\"\",'Bio Ass test Data'!Z33-'Bioavailability Assessment Tool'!Z33)","v":""},{"$f":"IF('Bio Ass test Data'!AA33='Bioavailability Assessment Tool'!AA33,\"\",'Bio Ass test Data'!AA33-'Bioavailability Assessment Tool'!AA33)","v":""},{"$f":"IF('Bio Ass test Data'!AB33='Bioavailability Assessment Tool'!AB33,\"\",'Bio Ass test Data'!AB33-'Bioavailability Assessment Tool'!AB33)","v":""}]
[null,30,null,null,null,null,15,null,null,7,10,158,{"$f":"IF('Bio Ass test Data'!M34='Bioavailability Assessment Tool'!M34,\"\",'Bio Ass test Data'!M34-'Bioavailability Assessment Tool'!M34)","v":""},{"$f":"IF('Bio Ass test Data'!N34='Bioavailability Assessment Tool'!N34,\"\",'Bio Ass test Data'!N34-'Bioavailability Assessment Tool'!N34)","v":""},{"$f":"IF('Bio Ass test Data'!O34='Bioavailability Assessment Tool'!O34,\"\",'Bio Ass test Data'!O34-'Bioavailability Assessment Tool'!O34)","v":""},{"$f":"IF('Bio Ass test Data'!P34='Bioavailability Assessment Tool'!P34,\"\",'Bio Ass test Data'!P34-'Bioavailability Assessment Tool'!P34)","v":""},{"$f":"IF('Bio Ass test Data'!Q34='Bioavailability Assessment Tool'!Q34,\"\",'Bio Ass test Data'!Q34-'Bioavailability Assessment Tool'!Q34)","v":""},{"$f":"IF('Bio Ass test Data'!R34='Bioavailability Assessment Tool'!R34,\"\",'Bio Ass test Data'!R34-'Bioavailability Assessment Tool'!R34)","v":""},{"$f":"IF('Bio Ass test Data'!S34='Bioavailability Assessment Tool'!S34,\"\",'Bio Ass test Data'!S34-'Bioavailability Assessment Tool'!S34)","v":""},{"$f":"IF('Bio Ass test Data'!T34='Bioavailability Assessment Tool'!T34,\"\",'Bio Ass test Data'!T34-'Bioavailability Assessment Tool'!T34)","v":""},{"$f":"IF('Bio Ass test Data'!U34='Bioavailability Assessment Tool'!U34,\"\",'Bio Ass test Data'!U34-'Bioavailability Assessment Tool'!U34)","v":""},{"$f":"IF('Bio Ass test Data'!V34='Bioavailability Assessment Tool'!V34,\"\",'Bio Ass test Data'!V34-'Bioavailability Assessment Tool'!V34)","v":""},{"$f":"IF('Bio Ass test Data'!W34='Bioavailability Assessment Tool'!W34,\"\",'Bio Ass test Data'!W34-'Bioavailability Assessment Tool'!W34)","v":""},{"$f":"IF('Bio Ass test Data'!X34='Bioavailability Assessment Tool'!X34,\"\",'Bio Ass test Data'!X34-'Bioavailability Assessment Tool'!X34)","v":""},{"$f":"IF('Bio Ass test Data'!Y34='Bioavailability Assessment Tool'!Y34,\"\",'Bio Ass test Data'!Y34-'Bioavailability Assessment Tool'!Y34)","v":""},{"$f":"IF('Bio Ass test Data'!Z34='Bioavailability Assessment Tool'!Z34,\"\",'Bio Ass test Data'!Z34-'Bioavailability Assessment Tool'!Z34)","v":""},{"$f":"IF('Bio Ass test Data'!AA34='Bioavailability Assessment Tool'!AA34,\"\",'Bio Ass test Data'!AA34-'Bioavailability Assessment Tool'!AA34)","v":""},{"$f":"IF('Bio Ass test Data'!AB34='Bioavailability Assessment Tool'!AB34,\"\",'Bio Ass test Data'!AB34-'Bioavailability Assessment Tool'!AB34)","v":""}]
[null,31,null,null,null,null,15,null,null,7,10,160,{"$f":"IF('Bio Ass test Data'!M35='Bioavailability Assessment Tool'!M35,\"\",'Bio Ass test Data'!M35-'Bioavailability Assessment Tool'!M35)","v":""},{"$f":"IF('Bio Ass test Data'!N35='Bioavailability Assessment Tool'!N35,\"\",'Bio Ass test Data'!N35-'Bioavailability Assessment Tool'!N35)","v":""},{"$f":"IF('Bio Ass test Data'!O35='Bioavailability Assessment Tool'!O35,\"\",'Bio Ass test Data'!O35-'Bioavailability Assessment Tool'!O35)","v":""},{"$f":"IF('Bio Ass test Data'!P35='Bioavailability Assessment Tool'!P35,\"\",'Bio Ass test Data'!P35-'Bioavailability Assessment Tool'!P35)","v":""},{"$f":"IF('Bio Ass test Data'!Q35='Bioavailability Assessment Tool'!Q35,\"\",'Bio Ass test Data'!Q35-'Bioavailability Assessment Tool'!Q35)","v":""},{"$f":"IF('Bio Ass test Data'!R35='Bioavailability Assessment Tool'!R35,\"\",'Bio Ass test Data'!R35-'Bioavailability Assessment Tool'!R35)","v":""},{"$f":"IF('Bio Ass test Data'!S35='Bioavailability Assessment Tool'!S35,\"\",'Bio Ass test Data'!S35-'Bioavailability Assessment Tool'!S35)","v":""},{"$f":"IF('Bio Ass test Data'!T35='Bioavailability Assessment Tool'!T35,\"\",'Bio Ass test Data'!T35-'Bioavailability Assessment Tool'!T35)","v":""},{"$f":"IF('Bio Ass test Data'!U35='Bioavailability Assessment Tool'!U35,\"\",'Bio Ass test Data'!U35-'Bioavailability Assessment Tool'!U35)","v":""},{"$f":"IF('Bio Ass test Data'!V35='Bioavailability Assessment Tool'!V35,\"\",'Bio Ass test Data'!V35-'Bioavailability Assessment Tool'!V35)","v":""},{"$f":"IF('Bio Ass test Data'!W35='Bioavailability Assessment Tool'!W35,\"\",'Bio Ass test Data'!W35-'Bioavailability Assessment Tool'!W35)","v":""},{"$f":"IF('Bio Ass test Data'!X35='Bioavailability Assessment Tool'!X35,\"\",'Bio Ass test Data'!X35-'Bioavailability Assessment Tool'!X35)","v":""},{"$f":"IF('Bio Ass test Data'!Y35='Bioavailability Assessment Tool'!Y35,\"\",'Bio Ass test Data'!Y35-'Bioavailability Assessment Tool'!Y35)","v":""},{"$f":"IF('Bio Ass test Data'!Z35='Bioavailability Assessment Tool'!Z35,\"\",'Bio Ass test Data'!Z35-'Bioavailability Assessment Tool'!Z35)","v":""},{"$f":"IF('Bio Ass test Data'!AA35='Bioavailability Assessment Tool'!AA35,\"\",'Bio Ass test Data'!AA35-'Bioavailability Assessment Tool'!AA35)","v":""},{"$f":"IF('Bio Ass test Data'!AB35='Bioavailability Assessment Tool'!AB35,\"\",'Bio Ass test Data'!AB35-'Bioavailability Assessment Tool'!AB35)","v":""}]
[null,32,null,null,null,null,15,null,null,7,10,162,{"$f":"IF('Bio Ass test Data'!M36='Bioavailability Assessment Tool'!M36,\"\",'Bio Ass test Data'!M36-'Bioavailability Assessment Tool'!M36)","v":""},{"$f":"IF('Bio Ass test Data'!N36='Bioavailability Assessment Tool'!N36,\"\",'Bio Ass test Data'!N36-'Bioavailability Assessment Tool'!N36)","v":""},{"$f":"IF('Bio Ass test Data'!O36='Bioavailability Assessment Tool'!O36,\"\",'Bio Ass test Data'!O36-'Bioavailability Assessment Tool'!O36)","v":""},{"$f":"IF('Bio Ass test Data'!P36='Bioavailability Assessment Tool'!P36,\"\",'Bio Ass test Data'!P36-'Bioavailability Assessment Tool'!P36)","v":""},{"$f":"IF('Bio Ass test Data'!Q36='Bioavailability Assessment Tool'!Q36,\"\",'Bio Ass test Data'!Q36-'Bioavailability Assessment Tool'!Q36)","v":""},{"$f":"IF('Bio Ass test Data'!R36='Bioavailability Assessment Tool'!R36,\"\",'Bio Ass test Data'!R36-'Bioavailability Assessment Tool'!R36)","v":""},{"$f":"IF('Bio Ass test Data'!S36='Bioavailability Assessment Tool'!S36,\"\",'Bio Ass test Data'!S36-'Bioavailability Assessment Tool'!S36)","v":""},{"$f":"IF('Bio Ass test Data'!T36='Bioavailability Assessment Tool'!T36,\"\",'Bio Ass test Data'!T36-'Bioavailability Assessment Tool'!T36)","v":""},{"$f":"IF('Bio Ass test Data'!U36='Bioavailability Assessment Tool'!U36,\"\",'Bio Ass test Data'!U36-'Bioavailability Assessment Tool'!U36)","v":""},{"$f":"IF('Bio Ass test Data'!V36='Bioavailability Assessment Tool'!V36,\"\",'Bio Ass test Data'!V36-'Bioavailability Assessment Tool'!V36)","v":""},{"$f":"IF('Bio Ass test Data'!W36='Bioavailability Assessment Tool'!W36,\"\",'Bio Ass test Data'!W36-'Bioavailability Assessment Tool'!W36)","v":""},{"$f":"IF('Bio Ass test Data'!X36='Bioavailability Assessment Tool'!X36,\"\",'Bio Ass test Data'!X36-'Bioavailability Assessment Tool'!X36)","v":""},{"$f":"IF('Bio Ass test Data'!Y36='Bioavailability Assessment Tool'!Y36,\"\",'Bio Ass test Data'!Y36-'Bioavailability Assessment Tool'!Y36)","v":""},{"$f":"IF('Bio Ass test Data'!Z36='Bioavailability Assessment Tool'!Z36,\"\",'Bio Ass test Data'!Z36-'Bioavailability Assessment Tool'!Z36)","v":""},{"$f":"IF('Bio Ass test Data'!AA36='Bioavailability Assessment Tool'!AA36,\"\",'Bio Ass test Data'!AA36-'Bioavailability Assessment Tool'!AA36)","v":""},{"$f":"IF('Bio Ass test Data'!AB36='Bioavailability Assessment Tool'!AB36,\"\",'Bio Ass test Data'!AB36-'Bioavailability Assessment Tool'!AB36)","v":""}]
[null,33,null,null,null,null,null,80,null,5.4,10,60,{"$f":"IF('Bio Ass test Data'!M37='Bioavailability Assessment Tool'!M37,\"\",'Bio Ass test Data'!M37-'Bioavailability Assessment Tool'!M37)","v":""},{"$f":"IF('Bio Ass test Data'!N37='Bioavailability Assessment Tool'!N37,\"\",'Bio Ass test Data'!N37-'Bioavailability Assessment Tool'!N37)","v":""},{"$f":"IF('Bio Ass test Data'!O37='Bioavailability Assessment Tool'!O37,\"\",'Bio Ass test Data'!O37-'Bioavailability Assessment Tool'!O37)","v":""},{"$f":"IF('Bio Ass test Data'!P37='Bioavailability Assessment Tool'!P37,\"\",'Bio Ass test Data'!P37-'Bioavailability Assessment Tool'!P37)","v":""},{"$f":"IF('Bio Ass test Data'!Q37='Bioavailability Assessment Tool'!Q37,\"\",'Bio Ass test Data'!Q37-'Bioavailability Assessment Tool'!Q37)","v":""},{"$f":"IF('Bio Ass test Data'!R37='Bioavailability Assessment Tool'!R37,\"\",'Bio Ass test Data'!R37-'Bioavailability Assessment Tool'!R37)","v":""},{"$f":"IF('Bio Ass test Data'!S37='Bioavailability Assessment Tool'!S37,\"\",'Bio Ass test Data'!S37-'Bioavailability Assessment Tool'!S37)","v":""},{"$f":"IF('Bio Ass test Data'!T37='Bioavailability Assessment Tool'!T37,\"\",'Bio Ass test Data'!T37-'Bioavailability Assessment Tool'!T37)","v":""},{"$f":"IF('Bio Ass test Data'!U37='Bioavailability Assessment Tool'!U37,\"\",'Bio Ass test Data'!U37-'Bioavailability Assessment Tool'!U37)","v":""},{"$f":"IF('Bio Ass test Data'!V37='Bioavailability Assessment Tool'!V37,\"\",'Bio Ass test Data'!V37-'Bioavailability Assessment Tool'!V37)","v":""},{"$f":"IF('Bio Ass test Data'!W37='Bioavailability Assessment Tool'!W37,\"\",'Bio Ass test Data'!W37-'Bioavailability Assessment Tool'!W37)","v":""},{"$f":"IF('Bio Ass test Data'!X37='Bioavailability Assessment Tool'!X37,\"\",'Bio Ass test Data'!X37-'Bioavailability Assessment Tool'!X37)","v":""},{"$f":"IF('Bio Ass test Data'!Y37='Bioavailability Assessment Tool'!Y37,\"\",'Bio Ass test Data'!Y37-'Bioavailability Assessment Tool'!Y37)","v":""},{"$f":"IF('Bio Ass test Data'!Z37='Bioavailability Assessment Tool'!Z37,\"\",'Bio Ass test Data'!Z37-'Bioavailability Assessment Tool'!Z37)","v":""},{"$f":"IF('Bio Ass test Data'!AA37='Bioavailability Assessment Tool'!AA37,\"\",'Bio Ass test Data'!AA37-'Bioavailability Assessment Tool'!AA37)","v":""},{"$f":"IF('Bio Ass test Data'!AB37='Bioavailability Assessment Tool'!AB37,\"\",'Bio Ass test Data'!AB37-'Bioavailability Assessment Tool'!AB37)","v":""}]
[null,34,null,null,null,null,null,80,null,5.5,10,60,{"$f":"IF('Bio Ass test Data'!M38='Bioavailability Assessment Tool'!M38,\"\",'Bio Ass test Data'!M38-'Bioavailability Assessment Tool'!M38)","v":""},{"$f":"IF('Bio Ass test Data'!N38='Bioavailability Assessment Tool'!N38,\"\",'Bio Ass test Data'!N38-'Bioavailability Assessment Tool'!N38)","v":""},{"$f":"IF('Bio Ass test Data'!O38='Bioavailability Assessment Tool'!O38,\"\",'Bio Ass test Data'!O38-'Bioavailability Assessment Tool'!O38)","v":""},{"$f":"IF('Bio Ass test Data'!P38='Bioavailability Assessment Tool'!P38,\"\",'Bio Ass test Data'!P38-'Bioavailability Assessment Tool'!P38)","v":""},{"$f":"IF('Bio Ass test Data'!Q38='Bioavailability Assessment Tool'!Q38,\"\",'Bio Ass test Data'!Q38-'Bioavailability Assessment Tool'!Q38)","v":""},{"$f":"IF('Bio Ass test Data'!R38='Bioavailability Assessment Tool'!R38,\"\",'Bio Ass test Data'!R38-'Bioavailability Assessment Tool'!R38)","v":""},{"$f":"IF('Bio Ass test Data'!S38='Bioavailability Assessment Tool'!S38,\"\",'Bio Ass test Data'!S38-'Bioavailability Assessment Tool'!S38)","v":""},{"$f":"IF('Bio Ass test Data'!T38='Bioavailability Assessment Tool'!T38,\"\",'Bio Ass test Data'!T38-'Bioavailability Assessment Tool'!T38)","v":""},{"$f":"IF('Bio Ass test Data'!U38='Bioavailability Assessment Tool'!U38,\"\",'Bio Ass test Data'!U38-'Bioavailability Assessment Tool'!U38)","v":""},{"$f":"IF('Bio Ass test Data'!V38='Bioavailability Assessment Tool'!V38,\"\",'Bio Ass test Data'!V38-'Bioavailability Assessment Tool'!V38)","v":""},{"$f":"IF('Bio Ass test Data'!W38='Bioavailability Assessment Tool'!W38,\"\",'Bio Ass test Data'!W38-'Bioavailability Assessment Tool'!W38)","v":""},{"$f":"IF('Bio Ass test Data'!X38='Bioavailability Assessment Tool'!X38,\"\",'Bio Ass test Data'!X38-'Bioavailability Assessment Tool'!X38)","v":""},{"$f":"IF('Bio Ass test Data'!Y38='Bioavailability Assessment Tool'!Y38,\"\",'Bio Ass test Data'!Y38-'Bioavailability Assessment Tool'!Y38)","v":""},{"$f":"IF('Bio Ass test Data'!Z38='Bioavailability Assessment Tool'!Z38,\"\",'Bio Ass test Data'!Z38-'Bioavailability Assessment Tool'!Z38)","v":""},{"$f":"IF('Bio Ass test Data'!AA38='Bioavailability Assessment Tool'!AA38,\"\",'Bio Ass test Data'!AA38-'Bioavailability Assessment Tool'!AA38)","v":""},{"$f":"IF('Bio Ass test Data'!AB38='Bioavailability Assessment Tool'!AB38,\"\",'Bio Ass test Data'!AB38-'Bioavailability Assessment Tool'!AB38)","v":""}]
[null,35,null,null,null,null,null,80,null,5.6,10,60,{"$f":"IF('Bio Ass test Data'!M39='Bioavailability Assessment Tool'!M39,\"\",'Bio Ass test Data'!M39-'Bioavailability Assessment Tool'!M39)","v":""},{"$f":"IF('Bio Ass test Data'!N39='Bioavailability Assessment Tool'!N39,\"\",'Bio Ass test Data'!N39-'Bioavailability Assessment Tool'!N39)","v":""},{"$f":"IF('Bio Ass test Data'!O39='Bioavailability Assessment Tool'!O39,\"\",'Bio Ass test Data'!O39-'Bioavailability Assessment Tool'!O39)","v":""},{"$f":"IF('Bio Ass test Data'!P39='Bioavailability Assessment Tool'!P39,\"\",'Bio Ass test Data'!P39-'Bioavailability Assessment Tool'!P39)","v":""},{"$f":"IF('Bio Ass test Data'!Q39='Bioavailability Assessment Tool'!Q39,\"\",'Bio Ass test Data'!Q39-'Bioavailability Assessment Tool'!Q39)","v":""},{"$f":"IF('Bio Ass test Data'!R39='Bioavailability Assessment Tool'!R39,\"\",'Bio Ass test Data'!R39-'Bioavailability Assessment Tool'!R39)","v":""},{"$f":"IF('Bio Ass test Data'!S39='Bioavailability Assessment Tool'!S39,\"\",'Bio Ass test Data'!S39-'Bioavailability Assessment Tool'!S39)","v":""},{"$f":"IF('Bio Ass test Data'!T39='Bioavailability Assessment Tool'!T39,\"\",'Bio Ass test Data'!T39-'Bioavailability Assessment Tool'!T39)","v":""},{"$f":"IF('Bio Ass test Data'!U39='Bioavailability Assessment Tool'!U39,\"\",'Bio Ass test Data'!U39-'Bioavailability Assessment Tool'!U39)","v":""},{"$f":"IF('Bio Ass test Data'!V39='Bioavailability Assessment Tool'!V39,\"\",'Bio Ass test Data'!V39-'Bioavailability Assessment Tool'!V39)","v":""},{"$f":"IF('Bio Ass test Data'!W39='Bioavailability Assessment Tool'!W39,\"\",'Bio Ass test Data'!W39-'Bioavailability Assessment Tool'!W39)","v":""},{"$f":"IF('Bio Ass test Data'!X39='Bioavailability Assessment Tool'!X39,\"\",'Bio Ass test Data'!X39-'Bioavailability Assessment Tool'!X39)","v":""},{"$f":"IF('Bio Ass test Data'!Y39='Bioavailability Assessment Tool'!Y39,\"\",'Bio Ass test Data'!Y39-'Bioavailability Assessment Tool'!Y39)","v":""},{"$f":"IF('Bio Ass test Data'!Z39='Bioavailability Assessment Tool'!Z39,\"\",'Bio Ass test Data'!Z39-'Bioavailability Assessment Tool'!Z39)","v":""},{"$f":"IF('Bio Ass test Data'!AA39='Bioavailability Assessment Tool'!AA39,\"\",'Bio Ass test Data'!AA39-'Bioavailability Assessment Tool'!AA39)","v":""},{"$f":"IF('Bio Ass test Data'!AB39='Bioavailability Assessment Tool'!AB39,\"\",'Bio Ass test Data'!AB39-'Bioavailability Assessment Tool'!AB39)","v":""}]
[null,36,null,null,null,null,null,80,null,8.4,10,60,{"$f":"IF('Bio Ass test Data'!M40='Bioavailability Assessment Tool'!M40,\"\",'Bio Ass test Data'!M40-'Bioavailability Assessment Tool'!M40)","v":""},{"$f":"IF('Bio Ass test Data'!N40='Bioavailability Assessment Tool'!N40,\"\",'Bio Ass test Data'!N40-'Bioavailability Assessment Tool'!N40)","v":""},{"$f":"IF('Bio Ass test Data'!O40='Bioavailability Assessment Tool'!O40,\"\",'Bio Ass test Data'!O40-'Bioavailability Assessment Tool'!O40)","v":""},{"$f":"IF('Bio Ass test Data'!P40='Bioavailability Assessment Tool'!P40,\"\",'Bio Ass test Data'!P40-'Bioavailability Assessment Tool'!P40)","v":""},{"$f":"IF('Bio Ass test Data'!Q40='Bioavailability Assessment Tool'!Q40,\"\",'Bio Ass test Data'!Q40-'Bioavailability Assessment Tool'!Q40)","v":""},{"$f":"IF('Bio Ass test Data'!R40='Bioavailability Assessment Tool'!R40,\"\",'Bio Ass test Data'!R40-'Bioavailability Assessment Tool'!R40)","v":""},{"$f":"IF('Bio Ass test Data'!S40='Bioavailability Assessment Tool'!S40,\"\",'Bio Ass test Data'!S40-'Bioavailability Assessment Tool'!S40)","v":""},{"$f":"IF('Bio Ass test Data'!T40='Bioavailability Assessment Tool'!T40,\"\",'Bio Ass test Data'!T40-'Bioavailability Assessment Tool'!T40)","v":""},{"$f":"IF('Bio Ass test Data'!U40='Bioavailability Assessment Tool'!U40,\"\",'Bio Ass test Data'!U40-'Bioavailability Assessment Tool'!U40)","v":""},{"$f":"IF('Bio Ass test Data'!V40='Bioavailability Assessment Tool'!V40,\"\",'Bio Ass test Data'!V40-'Bioavailability Assessment Tool'!V40)","v":""},{"$f":"IF('Bio Ass test Data'!W40='Bioavailability Assessment Tool'!W40,\"\",'Bio Ass test Data'!W40-'Bioavailability Assessment Tool'!W40)","v":""},{"$f":"IF('Bio Ass test Data'!X40='Bioavailability Assessment Tool'!X40,\"\",'Bio Ass test Data'!X40-'Bioavailability Assessment Tool'!X40)","v":""},{"$f":"IF('Bio Ass test Data'!Y40='Bioavailability Assessment Tool'!Y40,\"\",'Bio Ass test Data'!Y40-'Bioavailability Assessment Tool'!Y40)","v":""},{"$f":"IF('Bio Ass test Data'!Z40='Bioavailability Assessment Tool'!Z40,\"\",'Bio Ass test Data'!Z40-'Bioavailability Assessment Tool'!Z40)","v":""},{"$f":"IF('Bio Ass test Data'!AA40='Bioavailability Assessment Tool'!AA40,\"\",'Bio Ass test Data'!AA40-'Bioavailability Assessment Tool'!AA40)","v":""},{"$f":"IF('Bio Ass test Data'!AB40='Bioavailability Assessment Tool'!AB40,\"\",'Bio Ass test Data'!AB40-'Bioavailability Assessment Tool'!AB40)","v":""}]
[null,37,null,null,null,null,null,80,null,8.5,10,60,{"$f":"IF('Bio Ass test Data'!M41='Bioavailability Assessment Tool'!M41,\"\",'Bio Ass test Data'!M41-'Bioavailability Assessment Tool'!M41)","v":""},{"$f":"IF('Bio Ass test Data'!N41='Bioavailability Assessment Tool'!N41,\"\",'Bio Ass test Data'!N41-'Bioavailability Assessment Tool'!N41)","v":""},{"$f":"IF('Bio Ass test Data'!O41='Bioavailability Assessment Tool'!O41,\"\",'Bio Ass test Data'!O41-'Bioavailability Assessment Tool'!O41)","v":""},{"$f":"IF('Bio Ass test Data'!P41='Bioavailability Assessment Tool'!P41,\"\",'Bio Ass test Data'!P41-'Bioavailability Assessment Tool'!P41)","v":""},{"$f":"IF('Bio Ass test Data'!Q41='Bioavailability Assessment Tool'!Q41,\"\",'Bio Ass test Data'!Q41-'Bioavailability Assessment Tool'!Q41)","v":""},{"$f":"IF('Bio Ass test Data'!R41='Bioavailability Assessment Tool'!R41,\"\",'Bio Ass test Data'!R41-'Bioavailability Assessment Tool'!R41)","v":""},{"$f":"IF('Bio Ass test Data'!S41='Bioavailability Assessment Tool'!S41,\"\",'Bio Ass test Data'!S41-'Bioavailability Assessment Tool'!S41)","v":""},{"$f":"IF('Bio Ass test Data'!T41='Bioavailability Assessment Tool'!T41,\"\",'Bio Ass test Data'!T41-'Bioavailability Assessment Tool'!T41)","v":""},{"$f":"IF('Bio Ass test Data'!U41='Bioavailability Assessment Tool'!U41,\"\",'Bio Ass test Data'!U41-'Bioavailability Assessment Tool'!U41)","v":""},{"$f":"IF('Bio Ass test Data'!V41='Bioavailability Assessment Tool'!V41,\"\",'Bio Ass test Data'!V41-'Bioavailability Assessment Tool'!V41)","v":""},{"$f":"IF('Bio Ass test Data'!W41='Bioavailability Assessment Tool'!W41,\"\",'Bio Ass test Data'!W41-'Bioavailability Assessment Tool'!W41)","v":""},{"$f":"IF('Bio Ass test Data'!X41='Bioavailability Assessment Tool'!X41,\"\",'Bio Ass test Data'!X41-'Bioavailability Assessment Tool'!X41)","v":""},{"$f":"IF('Bio Ass test Data'!Y41='Bioavailability Assessment Tool'!Y41,\"\",'Bio Ass test Data'!Y41-'Bioavailability Assessment Tool'!Y41)","v":""},{"$f":"IF('Bio Ass test Data'!Z41='Bioavailability Assessment Tool'!Z41,\"\",'Bio Ass test Data'!Z41-'Bioavailability Assessment Tool'!Z41)","v":""},{"$f":"IF('Bio Ass test Data'!AA41='Bioavailability Assessment Tool'!AA41,\"\",'Bio Ass test Data'!AA41-'Bioavailability Assessment Tool'!AA41)","v":""},{"$f":"IF('Bio Ass test Data'!AB41='Bioavailability Assessment Tool'!AB41,\"\",'Bio Ass test Data'!AB41-'Bioavailability Assessment Tool'!AB41)","v":""}]
[null,38,null,null,null,null,null,80,null,8.6999999999999993,10,60,{"$f":"IF('Bio Ass test Data'!M42='Bioavailability Assessment Tool'!M42,\"\",'Bio Ass test Data'!M42-'Bioavailability Assessment Tool'!M42)","v":""},{"$f":"IF('Bio Ass test Data'!N42='Bioavailability Assessment Tool'!N42,\"\",'Bio Ass test Data'!N42-'Bioavailability Assessment Tool'!N42)","v":""},{"$f":"IF('Bio Ass test Data'!O42='Bioavailability Assessment Tool'!O42,\"\",'Bio Ass test Data'!O42-'Bioavailability Assessment Tool'!O42)","v":""},{"$f":"IF('Bio Ass test Data'!P42='Bioavailability Assessment Tool'!P42,\"\",'Bio Ass test Data'!P42-'Bioavailability Assessment Tool'!P42)","v":""},{"$f":"IF('Bio Ass test Data'!Q42='Bioavailability Assessment Tool'!Q42,\"\",'Bio Ass test Data'!Q42-'Bioavailability Assessment Tool'!Q42)","v":""},{"$f":"IF('Bio Ass test Data'!R42='Bioavailability Assessment Tool'!R42,\"\",'Bio Ass test Data'!R42-'Bioavailability Assessment Tool'!R42)","v":""},{"$f":"IF('Bio Ass test Data'!S42='Bioavailability Assessment Tool'!S42,\"\",'Bio Ass test Data'!S42-'Bioavailability Assessment Tool'!S42)","v":""},{"$f":"IF('Bio Ass test Data'!T42='Bioavailability Assessment Tool'!T42,\"\",'Bio Ass test Data'!T42-'Bioavailability Assessment Tool'!T42)","v":""},{"$f":"IF('Bio Ass test Data'!U42='Bioavailability Assessment Tool'!U42,\"\",'Bio Ass test Data'!U42-'Bioavailability Assessment Tool'!U42)","v":""},{"$f":"IF('Bio Ass test Data'!V42='Bioavailability Assessment Tool'!V42,\"\",'Bio Ass test Data'!V42-'Bioavailability Assessment Tool'!V42)","v":""},{"$f":"IF('Bio Ass test Data'!W42='Bioavailability Assessment Tool'!W42,\"\",'Bio Ass test Data'!W42-'Bioavailability Assessment Tool'!W42)","v":""},{"$f":"IF('Bio Ass test Data'!X42='Bioavailability Assessment Tool'!X42,\"\",'Bio Ass test Data'!X42-'Bioavailability Assessment Tool'!X42)","v":""},{"$f":"IF('Bio Ass test Data'!Y42='Bioavailability Assessment Tool'!Y42,\"\",'Bio Ass test Data'!Y42-'Bioavailability Assessment Tool'!Y42)","v":""},{"$f":"IF('Bio Ass test Data'!Z42='Bioavailability Assessment Tool'!Z42,\"\",'Bio Ass test Data'!Z42-'Bioavailability Assessment Tool'!Z42)","v":""},{"$f":"IF('Bio Ass test Data'!AA42='Bioavailability Assessment Tool'!AA42,\"\",'Bio Ass test Data'!AA42-'Bioavailability Assessment Tool'!AA42)","v":""},{"$f":"IF('Bio Ass test Data'!AB42='Bioavailability Assessment Tool'!AB42,\"\",'Bio Ass test Data'!AB42-'Bioavailability Assessment Tool'!AB42)","v":""}]
[null,39,null,null,null,null,null,80,null,7,10,0.9,{"$f":"IF('Bio Ass test Data'!M43='Bioavailability Assessment Tool'!M43,\"\",'Bio Ass test Data'!M43-'Bioavailability Assessment Tool'!M43)","v":""},{"$f":"IF('Bio Ass test Data'!N43='Bioavailability Assessment Tool'!N43,\"\",'Bio Ass test Data'!N43-'Bioavailability Assessment Tool'!N43)","v":""},{"$f":"IF('Bio Ass test Data'!O43='Bioavailability Assessment Tool'!O43,\"\",'Bio Ass test Data'!O43-'Bioavailability Assessment Tool'!O43)","v":""},{"$f":"IF('Bio Ass test Data'!P43='Bioavailability Assessment Tool'!P43,\"\",'Bio Ass test Data'!P43-'Bioavailability Assessment Tool'!P43)","v":""},{"$f":"IF('Bio Ass test Data'!Q43='Bioavailability Assessment Tool'!Q43,\"\",'Bio Ass test Data'!Q43-'Bioavailability Assessment Tool'!Q43)","v":""},{"$f":"IF('Bio Ass test Data'!R43='Bioavailability Assessment Tool'!R43,\"\",'Bio Ass test Data'!R43-'Bioavailability Assessment Tool'!R43)","v":""},{"$f":"IF('Bio Ass test Data'!S43='Bioavailability Assessment Tool'!S43,\"\",'Bio Ass test Data'!S43-'Bioavailability Assessment Tool'!S43)","v":""},{"$f":"IF('Bio Ass test Data'!T43='Bioavailability Assessment Tool'!T43,\"\",'Bio Ass test Data'!T43-'Bioavailability Assessment Tool'!T43)","v":""},{"$f":"IF('Bio Ass test Data'!U43='Bioavailability Assessment Tool'!U43,\"\",'Bio Ass test Data'!U43-'Bioavailability Assessment Tool'!U43)","v":""},{"$f":"IF('Bio Ass test Data'!V43='Bioavailability Assessment Tool'!V43,\"\",'Bio Ass test Data'!V43-'Bioavailability Assessment Tool'!V43)","v":""},{"$f":"IF('Bio Ass test Data'!W43='Bioavailability Assessment Tool'!W43,\"\",'Bio Ass test Data'!W43-'Bioavailability Assessment Tool'!W43)","v":""},{"$f":"IF('Bio Ass test Data'!X43='Bioavailability Assessment Tool'!X43,\"\",'Bio Ass test Data'!X43-'Bioavailability Assessment Tool'!X43)","v":""},{"$f":"IF('Bio Ass test Data'!Y43='Bioavailability Assessment Tool'!Y43,\"\",'Bio Ass test Data'!Y43-'Bioavailability Assessment Tool'!Y43)","v":""},{"$f":"IF('Bio Ass test Data'!Z43='Bioavailability Assessment Tool'!Z43,\"\",'Bio Ass test Data'!Z43-'Bioavailability Assessment Tool'!Z43)","v":""},{"$f":"IF('Bio Ass test Data'!AA43='Bioavailability Assessment Tool'!AA43,\"\",'Bio Ass test Data'!AA43-'Bioavailability Assessment Tool'!AA43)","v":""},{"$f":"IF('Bio Ass test Data'!AB43='Bioavailability Assessment Tool'!AB43,\"\",'Bio Ass test Data'!AB43-'Bioavailability Assessment Tool'!AB43)","v":""}]
[null,40,null,null,null,null,null,80,null,7,10,1,{"$f":"IF('Bio Ass test Data'!M44='Bioavailability Assessment Tool'!M44,\"\",'Bio Ass test Data'!M44-'Bioavailability Assessment Tool'!M44)","v":""},{"$f":"IF('Bio Ass test Data'!N44='Bioavailability Assessment Tool'!N44,\"\",'Bio Ass test Data'!N44-'Bioavailability Assessment Tool'!N44)","v":""},{"$f":"IF('Bio Ass test Data'!O44='Bioavailability Assessment Tool'!O44,\"\",'Bio Ass test Data'!O44-'Bioavailability Assessment Tool'!O44)","v":""},{"$f":"IF('Bio Ass test Data'!P44='Bioavailability Assessment Tool'!P44,\"\",'Bio Ass test Data'!P44-'Bioavailability Assessment Tool'!P44)","v":""},{"$f":"IF('Bio Ass test Data'!Q44='Bioavailability Assessment Tool'!Q44,\"\",'Bio Ass test Data'!Q44-'Bioavailability Assessment Tool'!Q44)","v":""},{"$f":"IF('Bio Ass test Data'!R44='Bioavailability Assessment Tool'!R44,\"\",'Bio Ass test Data'!R44-'Bioavailability Assessment Tool'!R44)","v":""},{"$f":"IF('Bio Ass test Data'!S44='Bioavailability Assessment Tool'!S44,\"\",'Bio Ass test Data'!S44-'Bioavailability Assessment Tool'!S44)","v":""},{"$f":"IF('Bio Ass test Data'!T44='Bioavailability Assessment Tool'!T44,\"\",'Bio Ass test Data'!T44-'Bioavailability Assessment Tool'!T44)","v":""},{"$f":"IF('Bio Ass test Data'!U44='Bioavailability Assessment Tool'!U44,\"\",'Bio Ass test Data'!U44-'Bioavailability Assessment Tool'!U44)","v":""},{"$f":"IF('Bio Ass test Data'!V44='Bioavailability Assessment Tool'!V44,\"\",'Bio Ass test Data'!V44-'Bioavailability Assessment Tool'!V44)","v":""},{"$f":"IF('Bio Ass test Data'!W44='Bioavailability Assessment Tool'!W44,\"\",'Bio Ass test Data'!W44-'Bioavailability Assessment Tool'!W44)","v":""},{"$f":"IF('Bio Ass test Data'!X44='Bioavailability Assessment Tool'!X44,\"\",'Bio Ass test Data'!X44-'Bioavailability Assessment Tool'!X44)","v":""},{"$f":"IF('Bio Ass test Data'!Y44='Bioavailability Assessment Tool'!Y44,\"\",'Bio Ass test Data'!Y44-'Bioavailability Assessment Tool'!Y44)","v":""},{"$f":"IF('Bio Ass test Data'!Z44='Bioavailability Assessment Tool'!Z44,\"\",'Bio Ass test Data'!Z44-'Bioavailability Assessment Tool'!Z44)","v":""},{"$f":"IF('Bio Ass test Data'!AA44='Bioavailability Assessment Tool'!AA44,\"\",'Bio Ass test Data'!AA44-'Bioavailability Assessment Tool'!AA44)","v":""},{"$f":"IF('Bio Ass test Data'!AB44='Bioavailability Assessment Tool'!AB44,\"\",'Bio Ass test Data'!AB44-'Bioavailability Assessment Tool'!AB44)","v":""}]
[null,41,null,null,null,null,null,80,null,7,10,1.2,{"$f":"IF('Bio Ass test Data'!M45='Bioavailability Assessment Tool'!M45,\"\",'Bio Ass test Data'!M45-'Bioavailability Assessment Tool'!M45)","v":""},{"$f":"IF('Bio Ass test Data'!N45='Bioavailability Assessment Tool'!N45,\"\",'Bio Ass test Data'!N45-'Bioavailability Assessment Tool'!N45)","v":""},{"$f":"IF('Bio Ass test Data'!O45='Bioavailability Assessment Tool'!O45,\"\",'Bio Ass test Data'!O45-'Bioavailability Assessment Tool'!O45)","v":""},{"$f":"IF('Bio Ass test Data'!P45='Bioavailability Assessment Tool'!P45,\"\",'Bio Ass test Data'!P45-'Bioavailability Assessment Tool'!P45)","v":""},{"$f":"IF('Bio Ass test Data'!Q45='Bioavailability Assessment Tool'!Q45,\"\",'Bio Ass test Data'!Q45-'Bioavailability Assessment Tool'!Q45)","v":""},{"$f":"IF('Bio Ass test Data'!R45='Bioavailability Assessment Tool'!R45,\"\",'Bio Ass test Data'!R45-'Bioavailability Assessment Tool'!R45)","v":""},{"$f":"IF('Bio Ass test Data'!S45='Bioavailability Assessment Tool'!S45,\"\",'Bio Ass test Data'!S45-'Bioavailability Assessment Tool'!S45)","v":""},{"$f":"IF('Bio Ass test Data'!T45='Bioavailability Assessment Tool'!T45,\"\",'Bio Ass test Data'!T45-'Bioavailability Assessment Tool'!T45)","v":""},{"$f":"IF('Bio Ass test Data'!U45='Bioavailability Assessment Tool'!U45,\"\",'Bio Ass test Data'!U45-'Bioavailability Assessment Tool'!U45)","v":""},{"$f":"IF('Bio Ass test Data'!V45='Bioavailability Assessment Tool'!V45,\"\",'Bio Ass test Data'!V45-'Bioavailability Assessment Tool'!V45)","v":""},{"$f":"IF('Bio Ass test Data'!W45='Bioavailability Assessment Tool'!W45,\"\",'Bio Ass test Data'!W45-'Bioavailability Assessment Tool'!W45)","v":""},{"$f":"IF('Bio Ass test Data'!X45='Bioavailability Assessment Tool'!X45,\"\",'Bio Ass test Data'!X45-'Bioavailability Assessment Tool'!X45)","v":""},{"$f":"IF('Bio Ass test Data'!Y45='Bioavailability Assessment Tool'!Y45,\"\",'Bio Ass test Data'!Y45-'Bioavailability Assessment Tool'!Y45)","v":""},{"$f":"IF('Bio Ass test Data'!Z45='Bioavailability Assessment Tool'!Z45,\"\",'Bio Ass test Data'!Z45-'Bioavailability Assessment Tool'!Z45)","v":""},{"$f":"IF('Bio Ass test Data'!AA45='Bioavailability Assessment Tool'!AA45,\"\",'Bio Ass test Data'!AA45-'Bioavailability Assessment Tool'!AA45)","v":""},{"$f":"IF('Bio Ass test Data'!AB45='Bioavailability Assessment Tool'!AB45,\"\",'Bio Ass test Data'!AB45-'Bioavailability Assessment Tool'!AB45)","v":""}]
[null,42,null,null,null,null,null,80,null,7,10,199,{"$f":"IF('Bio Ass test Data'!M46='Bioavailability Assessment Tool'!M46,\"\",'Bio Ass test Data'!M46-'Bioavailability Assessment Tool'!M46)","v":""},{"$f":"IF('Bio Ass test Data'!N46='Bioavailability Assessment Tool'!N46,\"\",'Bio Ass test Data'!N46-'Bioavailability Assessment Tool'!N46)","v":""},{"$f":"IF('Bio Ass test Data'!O46='Bioavailability Assessment Tool'!O46,\"\",'Bio Ass test Data'!O46-'Bioavailability Assessment Tool'!O46)","v":""},{"$f":"IF('Bio Ass test Data'!P46='Bioavailability Assessment Tool'!P46,\"\",'Bio Ass test Data'!P46-'Bioavailability Assessment Tool'!P46)","v":""},{"$f":"IF('Bio Ass test Data'!Q46='Bioavailability Assessment Tool'!Q46,\"\",'Bio Ass test Data'!Q46-'Bioavailability Assessment Tool'!Q46)","v":""},{"$f":"IF('Bio Ass test Data'!R46='Bioavailability Assessment Tool'!R46,\"\",'Bio Ass test Data'!R46-'Bioavailability Assessment Tool'!R46)","v":""},{"$f":"IF('Bio Ass test Data'!S46='Bioavailability Assessment Tool'!S46,\"\",'Bio Ass test Data'!S46-'Bioavailability Assessment Tool'!S46)","v":""},{"$f":"IF('Bio Ass test Data'!T46='Bioavailability Assessment Tool'!T46,\"\",'Bio Ass test Data'!T46-'Bioavailability Assessment Tool'!T46)","v":""},{"$f":"IF('Bio Ass test Data'!U46='Bioavailability Assessment Tool'!U46,\"\",'Bio Ass test Data'!U46-'Bioavailability Assessment Tool'!U46)","v":""},{"$f":"IF('Bio Ass test Data'!V46='Bioavailability Assessment Tool'!V46,\"\",'Bio Ass test Data'!V46-'Bioavailability Assessment Tool'!V46)","v":""},{"$f":"IF('Bio Ass test Data'!W46='Bioavailability Assessment Tool'!W46,\"\",'Bio Ass test Data'!W46-'Bioavailability Assessment Tool'!W46)","v":""},{"$f":"IF('Bio Ass test Data'!X46='Bioavailability Assessment Tool'!X46,\"\",'Bio Ass test Data'!X46-'Bioavailability Assessment Tool'!X46)","v":""},{"$f":"IF('Bio Ass test Data'!Y46='Bioavailability Assessment Tool'!Y46,\"\",'Bio Ass test Data'!Y46-'Bioavailability Assessment Tool'!Y46)","v":""},{"$f":"IF('Bio Ass test Data'!Z46='Bioavailability Assessment Tool'!Z46,\"\",'Bio Ass test Data'!Z46-'Bioavailability Assessment Tool'!Z46)","v":""},{"$f":"IF('Bio Ass test Data'!AA46='Bioavailability Assessment Tool'!AA46,\"\",'Bio Ass test Data'!AA46-'Bioavailability Assessment Tool'!AA46)","v":""},{"$f":"IF('Bio Ass test Data'!AB46='Bioavailability Assessment Tool'!AB46,\"\",'Bio Ass test Data'!AB46-'Bioavailability Assessment Tool'!AB46)","v":""}]
[null,43,null,null,null,null,null,80,null,7,10,200,{"$f":"IF('Bio Ass test Data'!M47='Bioavailability Assessment Tool'!M47,\"\",'Bio Ass test Data'!M47-'Bioavailability Assessment Tool'!M47)","v":""},{"$f":"IF('Bio Ass test Data'!N47='Bioavailability Assessment Tool'!N47,\"\",'Bio Ass test Data'!N47-'Bioavailability Assessment Tool'!N47)","v":""},{"$f":"IF('Bio Ass test Data'!O47='Bioavailability Assessment Tool'!O47,\"\",'Bio Ass test Data'!O47-'Bioavailability Assessment Tool'!O47)","v":""},{"$f":"IF('Bio Ass test Data'!P47='Bioavailability Assessment Tool'!P47,\"\",'Bio Ass test Data'!P47-'Bioavailability Assessment Tool'!P47)","v":""},{"$f":"IF('Bio Ass test Data'!Q47='Bioavailability Assessment Tool'!Q47,\"\",'Bio Ass test Data'!Q47-'Bioavailability Assessment Tool'!Q47)","v":""},{"$f":"IF('Bio Ass test Data'!R47='Bioavailability Assessment Tool'!R47,\"\",'Bio Ass test Data'!R47-'Bioavailability Assessment Tool'!R47)","v":""},{"$f":"IF('Bio Ass test Data'!S47='Bioavailability Assessment Tool'!S47,\"\",'Bio Ass test Data'!S47-'Bioavailability Assessment Tool'!S47)","v":""},{"$f":"IF('Bio Ass test Data'!T47='Bioavailability Assessment Tool'!T47,\"\",'Bio Ass test Data'!T47-'Bioavailability Assessment Tool'!T47)","v":""},{"$f":"IF('Bio Ass test Data'!U47='Bioavailability Assessment Tool'!U47,\"\",'Bio Ass test Data'!U47-'Bioavailability Assessment Tool'!U47)","v":""},{"$f":"IF('Bio Ass test Data'!V47='Bioavailability Assessment Tool'!V47,\"\",'Bio Ass test Data'!V47-'Bioavailability Assessment Tool'!V47)","v":""},{"$f":"IF('Bio Ass test Data'!W47='Bioavailability Assessment Tool'!W47,\"\",'Bio Ass test Data'!W47-'Bioavailability Assessment Tool'!W47)","v":""},{"$f":"IF('Bio Ass test Data'!X47='Bioavailability Assessment Tool'!X47,\"\",'Bio Ass test Data'!X47-'Bioavailability Assessment Tool'!X47)","v":""},{"$f":"IF('Bio Ass test Data'!Y47='Bioavailability Assessment Tool'!Y47,\"\",'Bio Ass test Data'!Y47-'Bioavailability Assessment Tool'!Y47)","v":""},{"$f":"IF('Bio Ass test Data'!Z47='Bioavailability Assessment Tool'!Z47,\"\",'Bio Ass test Data'!Z47-'Bioavailability Assessment Tool'!Z47)","v":""},{"$f":"IF('Bio Ass test Data'!AA47='Bioavailability Assessment Tool'!AA47,\"\",'Bio Ass test Data'!AA47-'Bioavailability Assessment Tool'!AA47)","v":""},{"$f":"IF('Bio Ass test Data'!AB47='Bioavailability Assessment Tool'!AB47,\"\",'Bio Ass test Data'!AB47-'Bioavailability Assessment Tool'!AB47)","v":""}]
[null,44,null,null,null,null,null,80,null,7,10,202,{"$f":"IF('Bio Ass test Data'!M48='Bioavailability Assessment Tool'!M48,\"\",'Bio Ass test Data'!M48-'Bioavailability Assessment Tool'!M48)","v":""},{"$f":"IF('Bio Ass test Data'!N48='Bioavailability Assessment Tool'!N48,\"\",'Bio Ass test Data'!N48-'Bioavailability Assessment Tool'!N48)","v":""},{"$f":"IF('Bio Ass test Data'!O48='Bioavailability Assessment Tool'!O48,\"\",'Bio Ass test Data'!O48-'Bioavailability Assessment Tool'!O48)","v":""},{"$f":"IF('Bio Ass test Data'!P48='Bioavailability Assessment Tool'!P48,\"\",'Bio Ass test Data'!P48-'Bioavailability Assessment Tool'!P48)","v":""},{"$f":"IF('Bio Ass test Data'!Q48='Bioavailability Assessment Tool'!Q48,\"\",'Bio Ass test Data'!Q48-'Bioavailability Assessment Tool'!Q48)","v":""},{"$f":"IF('Bio Ass test Data'!R48='Bioavailability Assessment Tool'!R48,\"\",'Bio Ass test Data'!R48-'Bioavailability Assessment Tool'!R48)","v":""},{"$f":"IF('Bio Ass test Data'!S48='Bioavailability Assessment Tool'!S48,\"\",'Bio Ass test Data'!S48-'Bioavailability Assessment Tool'!S48)","v":""},{"$f":"IF('Bio Ass test Data'!T48='Bioavailability Assessment Tool'!T48,\"\",'Bio Ass test Data'!T48-'Bioavailability Assessment Tool'!T48)","v":""},{"$f":"IF('Bio Ass test Data'!U48='Bioavailability Assessment Tool'!U48,\"\",'Bio Ass test Data'!U48-'Bioavailability Assessment Tool'!U48)","v":""},{"$f":"IF('Bio Ass test Data'!V48='Bioavailability Assessment Tool'!V48,\"\",'Bio Ass test Data'!V48-'Bioavailability Assessment Tool'!V48)","v":""},{"$f":"IF('Bio Ass test Data'!W48='Bioavailability Assessment Tool'!W48,\"\",'Bio Ass test Data'!W48-'Bioavailability Assessment Tool'!W48)","v":""},{"$f":"IF('Bio Ass test Data'!X48='Bioavailability Assessment Tool'!X48,\"\",'Bio Ass test Data'!X48-'Bioavailability Assessment Tool'!X48)","v":""},{"$f":"IF('Bio Ass test Data'!Y48='Bioavailability Assessment Tool'!Y48,\"\",'Bio Ass test Data'!Y48-'Bioavailability Assessment Tool'!Y48)","v":""},{"$f":"IF('Bio Ass test Data'!Z48='Bioavailability Assessment Tool'!Z48,\"\",'Bio Ass test Data'!Z48-'Bioavailability Assessment Tool'!Z48)","v":""},{"$f":"IF('Bio Ass test Data'!AA48='Bioavailability Assessment Tool'!AA48,\"\",'Bio Ass test Data'!AA48-'Bioavailability Assessment Tool'!AA48)","v":""},{"$f":"IF('Bio Ass test Data'!AB48='Bioavailability Assessment Tool'!AB48,\"\",'Bio Ass test Data'!AB48-'Bioavailability Assessment Tool'!AB48)","v":""}]
[null,45,null,null,null,null,null,null,10,6.4,10,60,{"$f":"IF('Bio Ass test Data'!M49='Bioavailability Assessment Tool'!M49,\"\",'Bio Ass test Data'!M49-'Bioavailability Assessment Tool'!M49)","v":""},{"$f":"IF('Bio Ass test Data'!N49='Bioavailability Assessment Tool'!N49,\"\",'Bio Ass test Data'!N49-'Bioavailability Assessment Tool'!N49)","v":""},{"$f":"IF('Bio Ass test Data'!O49='Bioavailability Assessment Tool'!O49,\"\",'Bio Ass test Data'!O49-'Bioavailability Assessment Tool'!O49)","v":""},{"$f":"IF('Bio Ass test Data'!P49='Bioavailability Assessment Tool'!P49,\"\",'Bio Ass test Data'!P49-'Bioavailability Assessment Tool'!P49)","v":""},{"$f":"IF('Bio Ass test Data'!Q49='Bioavailability Assessment Tool'!Q49,\"\",'Bio Ass test Data'!Q49-'Bioavailability Assessment Tool'!Q49)","v":""},{"$f":"IF('Bio Ass test Data'!R49='Bioavailability Assessment Tool'!R49,\"\",'Bio Ass test Data'!R49-'Bioavailability Assessment Tool'!R49)","v":""},{"$f":"IF('Bio Ass test Data'!S49='Bioavailability Assessment Tool'!S49,\"\",'Bio Ass test Data'!S49-'Bioavailability Assessment Tool'!S49)","v":""},{"$f":"IF('Bio Ass test Data'!T49='Bioavailability Assessment Tool'!T49,\"\",'Bio Ass test Data'!T49-'Bioavailability Assessment Tool'!T49)","v":""},{"$f":"IF('Bio Ass test Data'!U49='Bioavailability Assessment Tool'!U49,\"\",'Bio Ass test Data'!U49-'Bioavailability Assessment Tool'!U49)","v":""},{"$f":"IF('Bio Ass test Data'!V49='Bioavailability Assessment Tool'!V49,\"\",'Bio Ass test Data'!V49-'Bioavailability Assessment Tool'!V49)","v":""},{"$f":"IF('Bio Ass test Data'!W49='Bioavailability Assessment Tool'!W49,\"\",'Bio Ass test Data'!W49-'Bioavailability Assessment Tool'!W49)","v":""},{"$f":"IF('Bio Ass test Data'!X49='Bioavailability Assessment Tool'!X49,\"\",'Bio Ass test Data'!X49-'Bioavailability Assessment Tool'!X49)","v":""},{"$f":"IF('Bio Ass test Data'!Y49='Bioavailability Assessment Tool'!Y49,\"\",'Bio Ass test Data'!Y49-'Bioavailability Assessment Tool'!Y49)","v":""},{"$f":"IF('Bio Ass test Data'!Z49='Bioavailability Assessment Tool'!Z49,\"\",'Bio Ass test Data'!Z49-'Bioavailability Assessment Tool'!Z49)","v":""},{"$f":"IF('Bio Ass test Data'!AA49='Bioavailability Assessment Tool'!AA49,\"\",'Bio Ass test Data'!AA49-'Bioavailability Assessment Tool'!AA49)","v":""},{"$f":"IF('Bio Ass test Data'!AB49='Bioavailability Assessment Tool'!AB49,\"\",'Bio Ass test Data'!AB49-'Bioavailability Assessment Tool'!AB49)","v":""}]
[null,46,null,null,null,null,null,null,10,6.5,10,60,{"$f":"IF('Bio Ass test Data'!M50='Bioavailability Assessment Tool'!M50,\"\",'Bio Ass test Data'!M50-'Bioavailability Assessment Tool'!M50)","v":""},{"$f":"IF('Bio Ass test Data'!N50='Bioavailability Assessment Tool'!N50,\"\",'Bio Ass test Data'!N50-'Bioavailability Assessment Tool'!N50)","v":""},{"$f":"IF('Bio Ass test Data'!O50='Bioavailability Assessment Tool'!O50,\"\",'Bio Ass test Data'!O50-'Bioavailability Assessment Tool'!O50)","v":""},{"$f":"IF('Bio Ass test Data'!P50='Bioavailability Assessment Tool'!P50,\"\",'Bio Ass test Data'!P50-'Bioavailability Assessment Tool'!P50)","v":""},{"$f":"IF('Bio Ass test Data'!Q50='Bioavailability Assessment Tool'!Q50,\"\",'Bio Ass test Data'!Q50-'Bioavailability Assessment Tool'!Q50)","v":""},{"$f":"IF('Bio Ass test Data'!R50='Bioavailability Assessment Tool'!R50,\"\",'Bio Ass test Data'!R50-'Bioavailability Assessment Tool'!R50)","v":""},{"$f":"IF('Bio Ass test Data'!S50='Bioavailability Assessment Tool'!S50,\"\",'Bio Ass test Data'!S50-'Bioavailability Assessment Tool'!S50)","v":""},{"$f":"IF('Bio Ass test Data'!T50='Bioavailability Assessment Tool'!T50,\"\",'Bio Ass test Data'!T50-'Bioavailability Assessment Tool'!T50)","v":""},{"$f":"IF('Bio Ass test Data'!U50='Bioavailability Assessment Tool'!U50,\"\",'Bio Ass test Data'!U50-'Bioavailability Assessment Tool'!U50)","v":""},{"$f":"IF('Bio Ass test Data'!V50='Bioavailability Assessment Tool'!V50,\"\",'Bio Ass test Data'!V50-'Bioavailability Assessment Tool'!V50)","v":""},{"$f":"IF('Bio Ass test Data'!W50='Bioavailability Assessment Tool'!W50,\"\",'Bio Ass test Data'!W50-'Bioavailability Assessment Tool'!W50)","v":""},{"$f":"IF('Bio Ass test Data'!X50='Bioavailability Assessment Tool'!X50,\"\",'Bio Ass test Data'!X50-'Bioavailability Assessment Tool'!X50)","v":""},{"$f":"IF('Bio Ass test Data'!Y50='Bioavailability Assessment Tool'!Y50,\"\",'Bio Ass test Data'!Y50-'Bioavailability Assessment Tool'!Y50)","v":""},{"$f":"IF('Bio Ass test Data'!Z50='Bioavailability Assessment Tool'!Z50,\"\",'Bio Ass test Data'!Z50-'Bioavailability Assessment Tool'!Z50)","v":""},{"$f":"IF('Bio Ass test Data'!AA50='Bioavailability Assessment Tool'!AA50,\"\",'Bio Ass test Data'!AA50-'Bioavailability Assessment Tool'!AA50)","v":""},{"$f":"IF('Bio Ass test Data'!AB50='Bioavailability Assessment Tool'!AB50,\"\",'Bio Ass test Data'!AB50-'Bioavailability Assessment Tool'!AB50)","v":""}]
[null,47,null,null,null,null,null,null,10,6.6,10,60,{"$f":"IF('Bio Ass test Data'!M51='Bioavailability Assessment Tool'!M51,\"\",'Bio Ass test Data'!M51-'Bioavailability Assessment Tool'!M51)","v":""},{"$f":"IF('Bio Ass test Data'!N51='Bioavailability Assessment Tool'!N51,\"\",'Bio Ass test Data'!N51-'Bioavailability Assessment Tool'!N51)","v":""},{"$f":"IF('Bio Ass test Data'!O51='Bioavailability Assessment Tool'!O51,\"\",'Bio Ass test Data'!O51-'Bioavailability Assessment Tool'!O51)","v":""},{"$f":"IF('Bio Ass test Data'!P51='Bioavailability Assessment Tool'!P51,\"\",'Bio Ass test Data'!P51-'Bioavailability Assessment Tool'!P51)","v":""},{"$f":"IF('Bio Ass test Data'!Q51='Bioavailability Assessment Tool'!Q51,\"\",'Bio Ass test Data'!Q51-'Bioavailability Assessment Tool'!Q51)","v":""},{"$f":"IF('Bio Ass test Data'!R51='Bioavailability Assessment Tool'!R51,\"\",'Bio Ass test Data'!R51-'Bioavailability Assessment Tool'!R51)","v":""},{"$f":"IF('Bio Ass test Data'!S51='Bioavailability Assessment Tool'!S51,\"\",'Bio Ass test Data'!S51-'Bioavailability Assessment Tool'!S51)","v":""},{"$f":"IF('Bio Ass test Data'!T51='Bioavailability Assessment Tool'!T51,\"\",'Bio Ass test Data'!T51-'Bioavailability Assessment Tool'!T51)","v":""},{"$f":"IF('Bio Ass test Data'!U51='Bioavailability Assessment Tool'!U51,\"\",'Bio Ass test Data'!U51-'Bioavailability Assessment Tool'!U51)","v":""},{"$f":"IF('Bio Ass test Data'!V51='Bioavailability Assessment Tool'!V51,\"\",'Bio Ass test Data'!V51-'Bioavailability Assessment Tool'!V51)","v":""},{"$f":"IF('Bio Ass test Data'!W51='Bioavailability Assessment Tool'!W51,\"\",'Bio Ass test Data'!W51-'Bioavailability Assessment Tool'!W51)","v":""},{"$f":"IF('Bio Ass test Data'!X51='Bioavailability Assessment Tool'!X51,\"\",'Bio Ass test Data'!X51-'Bioavailability Assessment Tool'!X51)","v":""},{"$f":"IF('Bio Ass test Data'!Y51='Bioavailability Assessment Tool'!Y51,\"\",'Bio Ass test Data'!Y51-'Bioavailability Assessment Tool'!Y51)","v":""},{"$f":"IF('Bio Ass test Data'!Z51='Bioavailability Assessment Tool'!Z51,\"\",'Bio Ass test Data'!Z51-'Bioavailability Assessment Tool'!Z51)","v":""},{"$f":"IF('Bio Ass test Data'!AA51='Bioavailability Assessment Tool'!AA51,\"\",'Bio Ass test Data'!AA51-'Bioavailability Assessment Tool'!AA51)","v":""},{"$f":"IF('Bio Ass test Data'!AB51='Bioavailability Assessment Tool'!AB51,\"\",'Bio Ass test Data'!AB51-'Bioavailability Assessment Tool'!AB51)","v":""}]
[null,48,null,null,null,null,null,null,10,8.6,10,60,{"$f":"IF('Bio Ass test Data'!M52='Bioavailability Assessment Tool'!M52,\"\",'Bio Ass test Data'!M52-'Bioavailability Assessment Tool'!M52)","v":""},{"$f":"IF('Bio Ass test Data'!N52='Bioavailability Assessment Tool'!N52,\"\",'Bio Ass test Data'!N52-'Bioavailability Assessment Tool'!N52)","v":""},{"$f":"IF('Bio Ass test Data'!O52='Bioavailability Assessment Tool'!O52,\"\",'Bio Ass test Data'!O52-'Bioavailability Assessment Tool'!O52)","v":""},{"$f":"IF('Bio Ass test Data'!P52='Bioavailability Assessment Tool'!P52,\"\",'Bio Ass test Data'!P52-'Bioavailability Assessment Tool'!P52)","v":""},{"$f":"IF('Bio Ass test Data'!Q52='Bioavailability Assessment Tool'!Q52,\"\",'Bio Ass test Data'!Q52-'Bioavailability Assessment Tool'!Q52)","v":""},{"$f":"IF('Bio Ass test Data'!R52='Bioavailability Assessment Tool'!R52,\"\",'Bio Ass test Data'!R52-'Bioavailability Assessment Tool'!R52)","v":""},{"$f":"IF('Bio Ass test Data'!S52='Bioavailability Assessment Tool'!S52,\"\",'Bio Ass test Data'!S52-'Bioavailability Assessment Tool'!S52)","v":""},{"$f":"IF('Bio Ass test Data'!T52='Bioavailability Assessment Tool'!T52,\"\",'Bio Ass test Data'!T52-'Bioavailability Assessment Tool'!T52)","v":""},{"$f":"IF('Bio Ass test Data'!U52='Bioavailability Assessment Tool'!U52,\"\",'Bio Ass test Data'!U52-'Bioavailability Assessment Tool'!U52)","v":""},{"$f":"IF('Bio Ass test Data'!V52='Bioavailability Assessment Tool'!V52,\"\",'Bio Ass test Data'!V52-'Bioavailability Assessment Tool'!V52)","v":""},{"$f":"IF('Bio Ass test Data'!W52='Bioavailability Assessment Tool'!W52,\"\",'Bio Ass test Data'!W52-'Bioavailability Assessment Tool'!W52)","v":""},{"$f":"IF('Bio Ass test Data'!X52='Bioavailability Assessment Tool'!X52,\"\",'Bio Ass test Data'!X52-'Bioavailability Assessment Tool'!X52)","v":""},{"$f":"IF('Bio Ass test Data'!Y52='Bioavailability Assessment Tool'!Y52,\"\",'Bio Ass test Data'!Y52-'Bioavailability Assessment Tool'!Y52)","v":""},{"$f":"IF('Bio Ass test Data'!Z52='Bioavailability Assessment Tool'!Z52,\"\",'Bio Ass test Data'!Z52-'Bioavailability Assessment Tool'!Z52)","v":""},{"$f":"IF('Bio Ass test Data'!AA52='Bioavailability Assessment Tool'!AA52,\"\",'Bio Ass test Data'!AA52-'Bioavailability Assessment Tool'!AA52)","v":""},{"$f":"IF('Bio Ass test Data'!AB52='Bioavailability Assessment Tool'!AB52,\"\",'Bio Ass test Data'!AB52-'Bioavailability Assessment Tool'!AB52)","v":""}]
[null,49,null,null,null,null,null,null,10,8.6999999999999993,10,60,{"$f":"IF('Bio Ass test Data'!M53='Bioavailability Assessment Tool'!M53,\"\",'Bio Ass test Data'!M53-'Bioavailability Assessment Tool'!M53)","v":""},{"$f":"IF('Bio Ass test Data'!N53='Bioavailability Assessment Tool'!N53,\"\",'Bio Ass test Data'!N53-'Bioavailability Assessment Tool'!N53)","v":""},{"$f":"IF('Bio Ass test Data'!O53='Bioavailability Assessment Tool'!O53,\"\",'Bio Ass test Data'!O53-'Bioavailability Assessment Tool'!O53)","v":""},{"$f":"IF('Bio Ass test Data'!P53='Bioavailability Assessment Tool'!P53,\"\",'Bio Ass test Data'!P53-'Bioavailability Assessment Tool'!P53)","v":""},{"$f":"IF('Bio Ass test Data'!Q53='Bioavailability Assessment Tool'!Q53,\"\",'Bio Ass test Data'!Q53-'Bioavailability Assessment Tool'!Q53)","v":""},{"$f":"IF('Bio Ass test Data'!R53='Bioavailability Assessment Tool'!R53,\"\",'Bio Ass test Data'!R53-'Bioavailability Assessment Tool'!R53)","v":""},{"$f":"IF('Bio Ass test Data'!S53='Bioavailability Assessment Tool'!S53,\"\",'Bio Ass test Data'!S53-'Bioavailability Assessment Tool'!S53)","v":""},{"$f":"IF('Bio Ass test Data'!T53='Bioavailability Assessment Tool'!T53,\"\",'Bio Ass test Data'!T53-'Bioavailability Assessment Tool'!T53)","v":""},{"$f":"IF('Bio Ass test Data'!U53='Bioavailability Assessment Tool'!U53,\"\",'Bio Ass test Data'!U53-'Bioavailability Assessment Tool'!U53)","v":""},{"$f":"IF('Bio Ass test Data'!V53='Bioavailability Assessment Tool'!V53,\"\",'Bio Ass test Data'!V53-'Bioavailability Assessment Tool'!V53)","v":""},{"$f":"IF('Bio Ass test Data'!W53='Bioavailability Assessment Tool'!W53,\"\",'Bio Ass test Data'!W53-'Bioavailability Assessment Tool'!W53)","v":""},{"$f":"IF('Bio Ass test Data'!X53='Bioavailability Assessment Tool'!X53,\"\",'Bio Ass test Data'!X53-'Bioavailability Assessment Tool'!X53)","v":""},{"$f":"IF('Bio Ass test Data'!Y53='Bioavailability Assessment Tool'!Y53,\"\",'Bio Ass test Data'!Y53-'Bioavailability Assessment Tool'!Y53)","v":""},{"$f":"IF('Bio Ass test Data'!Z53='Bioavailability Assessment Tool'!Z53,\"\",'Bio Ass test Data'!Z53-'Bioavailability Assessment Tool'!Z53)","v":""},{"$f":"IF('Bio Ass test Data'!AA53='Bioavailability Assessment Tool'!AA53,\"\",'Bio Ass test Data'!AA53-'Bioavailability Assessment Tool'!AA53)","v":""},{"$f":"IF('Bio Ass test Data'!AB53='Bioavailability Assessment Tool'!AB53,\"\",'Bio Ass test Data'!AB53-'Bioavailability Assessment Tool'!AB53)","v":""}]
[null,50,null,null,null,null,null,null,10,8.8000000000000007,10,60,{"$f":"IF('Bio Ass test Data'!M54='Bioavailability Assessment Tool'!M54,\"\",'Bio Ass test Data'!M54-'Bioavailability Assessment Tool'!M54)","v":""},{"$f":"IF('Bio Ass test Data'!N54='Bioavailability Assessment Tool'!N54,\"\",'Bio Ass test Data'!N54-'Bioavailability Assessment Tool'!N54)","v":""},{"$f":"IF('Bio Ass test Data'!O54='Bioavailability Assessment Tool'!O54,\"\",'Bio Ass test Data'!O54-'Bioavailability Assessment Tool'!O54)","v":""},{"$f":"IF('Bio Ass test Data'!P54='Bioavailability Assessment Tool'!P54,\"\",'Bio Ass test Data'!P54-'Bioavailability Assessment Tool'!P54)","v":""},{"$f":"IF('Bio Ass test Data'!Q54='Bioavailability Assessment Tool'!Q54,\"\",'Bio Ass test Data'!Q54-'Bioavailability Assessment Tool'!Q54)","v":""},{"$f":"IF('Bio Ass test Data'!R54='Bioavailability Assessment Tool'!R54,\"\",'Bio Ass test Data'!R54-'Bioavailability Assessment Tool'!R54)","v":""},{"$f":"IF('Bio Ass test Data'!S54='Bioavailability Assessment Tool'!S54,\"\",'Bio Ass test Data'!S54-'Bioavailability Assessment Tool'!S54)","v":""},{"$f":"IF('Bio Ass test Data'!T54='Bioavailability Assessment Tool'!T54,\"\",'Bio Ass test Data'!T54-'Bioavailability Assessment Tool'!T54)","v":""},{"$f":"IF('Bio Ass test Data'!U54='Bioavailability Assessment Tool'!U54,\"\",'Bio Ass test Data'!U54-'Bioavailability Assessment Tool'!U54)","v":""},{"$f":"IF('Bio Ass test Data'!V54='Bioavailability Assessment Tool'!V54,\"\",'Bio Ass test Data'!V54-'Bioavailability Assessment Tool'!V54)","v":""},{"$f":"IF('Bio Ass test Data'!W54='Bioavailability Assessment Tool'!W54,\"\",'Bio Ass test Data'!W54-'Bioavailability Assessment Tool'!W54)","v":""},{"$f":"IF('Bio Ass test Data'!X54='Bioavailability Assessment Tool'!X54,\"\",'Bio Ass test Data'!X54-'Bioavailability Assessment Tool'!X54)","v":""},{"$f":"IF('Bio Ass test Data'!Y54='Bioavailability Assessment Tool'!Y54,\"\",'Bio Ass test Data'!Y54-'Bioavailability Assessment Tool'!Y54)","v":""},{"$f":"IF('Bio Ass test Data'!Z54='Bioavailability Assessment Tool'!Z54,\"\",'Bio Ass test Data'!Z54-'Bioavailability Assessment Tool'!Z54)","v":""},{"$f":"IF('Bio Ass test Data'!AA54='Bioavailability Assessment Tool'!AA54,\"\",'Bio Ass test Data'!AA54-'Bioavailability Assessment Tool'!AA54)","v":""},{"$f":"IF('Bio Ass test Data'!AB54='Bioavailability Assessment Tool'!AB54,\"\",'Bio Ass test Data'!AB54-'Bioavailability Assessment Tool'!AB54)","v":""}]
[null,51,null,null,null,null,null,null,10,7,10,1.9,{"$f":"IF('Bio Ass test Data'!M55='Bioavailability Assessment Tool'!M55,\"\",'Bio Ass test Data'!M55-'Bioavailability Assessment Tool'!M55)","v":""},{"$f":"IF('Bio Ass test Data'!N55='Bioavailability Assessment Tool'!N55,\"\",'Bio Ass test Data'!N55-'Bioavailability Assessment Tool'!N55)","v":""},{"$f":"IF('Bio Ass test Data'!O55='Bioavailability Assessment Tool'!O55,\"\",'Bio Ass test Data'!O55-'Bioavailability Assessment Tool'!O55)","v":""},{"$f":"IF('Bio Ass test Data'!P55='Bioavailability Assessment Tool'!P55,\"\",'Bio Ass test Data'!P55-'Bioavailability Assessment Tool'!P55)","v":""},{"$f":"IF('Bio Ass test Data'!Q55='Bioavailability Assessment Tool'!Q55,\"\",'Bio Ass test Data'!Q55-'Bioavailability Assessment Tool'!Q55)","v":""},{"$f":"IF('Bio Ass test Data'!R55='Bioavailability Assessment Tool'!R55,\"\",'Bio Ass test Data'!R55-'Bioavailability Assessment Tool'!R55)","v":""},{"$f":"IF('Bio Ass test Data'!S55='Bioavailability Assessment Tool'!S55,\"\",'Bio Ass test Data'!S55-'Bioavailability Assessment Tool'!S55)","v":""},{"$f":"IF('Bio Ass test Data'!T55='Bioavailability Assessment Tool'!T55,\"\",'Bio Ass test Data'!T55-'Bioavailability Assessment Tool'!T55)","v":""},{"$f":"IF('Bio Ass test Data'!U55='Bioavailability Assessment Tool'!U55,\"\",'Bio Ass test Data'!U55-'Bioavailability Assessment Tool'!U55)","v":""},{"$f":"IF('Bio Ass test Data'!V55='Bioavailability Assessment Tool'!V55,\"\",'Bio Ass test Data'!V55-'Bioavailability Assessment Tool'!V55)","v":""},{"$f":"IF('Bio Ass test Data'!W55='Bioavailability Assessment Tool'!W55,\"\",'Bio Ass test Data'!W55-'Bioavailability Assessment Tool'!W55)","v":""},{"$f":"IF('Bio Ass test Data'!X55='Bioavailability Assessment Tool'!X55,\"\",'Bio Ass test Data'!X55-'Bioavailability Assessment Tool'!X55)","v":""},{"$f":"IF('Bio Ass test Data'!Y55='Bioavailability Assessment Tool'!Y55,\"\",'Bio Ass test Data'!Y55-'Bioavailability Assessment Tool'!Y55)","v":""},{"$f":"IF('Bio Ass test Data'!Z55='Bioavailability Assessment Tool'!Z55,\"\",'Bio Ass test Data'!Z55-'Bioavailability Assessment Tool'!Z55)","v":""},{"$f":"IF('Bio Ass test Data'!AA55='Bioavailability Assessment Tool'!AA55,\"\",'Bio Ass test Data'!AA55-'Bioavailability Assessment Tool'!AA55)","v":""},{"$f":"IF('Bio Ass test Data'!AB55='Bioavailability Assessment Tool'!AB55,\"\",'Bio Ass test Data'!AB55-'Bioavailability Assessment Tool'!AB55)","v":""}]
[null,52,null,null,null,null,null,null,10,7,10,2,{"$f":"IF('Bio Ass test Data'!M56='Bioavailability Assessment Tool'!M56,\"\",'Bio Ass test Data'!M56-'Bioavailability Assessment Tool'!M56)","v":""},{"$f":"IF('Bio Ass test Data'!N56='Bioavailability Assessment Tool'!N56,\"\",'Bio Ass test Data'!N56-'Bioavailability Assessment Tool'!N56)","v":""},{"$f":"IF('Bio Ass test Data'!O56='Bioavailability Assessment Tool'!O56,\"\",'Bio Ass test Data'!O56-'Bioavailability Assessment Tool'!O56)","v":""},{"$f":"IF('Bio Ass test Data'!P56='Bioavailability Assessment Tool'!P56,\"\",'Bio Ass test Data'!P56-'Bioavailability Assessment Tool'!P56)","v":""},{"$f":"IF('Bio Ass test Data'!Q56='Bioavailability Assessment Tool'!Q56,\"\",'Bio Ass test Data'!Q56-'Bioavailability Assessment Tool'!Q56)","v":""},{"$f":"IF('Bio Ass test Data'!R56='Bioavailability Assessment Tool'!R56,\"\",'Bio Ass test Data'!R56-'Bioavailability Assessment Tool'!R56)","v":""},{"$f":"IF('Bio Ass test Data'!S56='Bioavailability Assessment Tool'!S56,\"\",'Bio Ass test Data'!S56-'Bioavailability Assessment Tool'!S56)","v":""},{"$f":"IF('Bio Ass test Data'!T56='Bioavailability Assessment Tool'!T56,\"\",'Bio Ass test Data'!T56-'Bioavailability Assessment Tool'!T56)","v":""},{"$f":"IF('Bio Ass test Data'!U56='Bioavailability Assessment Tool'!U56,\"\",'Bio Ass test Data'!U56-'Bioavailability Assessment Tool'!U56)","v":""},{"$f":"IF('Bio Ass test Data'!V56='Bioavailability Assessment Tool'!V56,\"\",'Bio Ass test Data'!V56-'Bioavailability Assessment Tool'!V56)","v":""},{"$f":"IF('Bio Ass test Data'!W56='Bioavailability Assessment Tool'!W56,\"\",'Bio Ass test Data'!W56-'Bioavailability Assessment Tool'!W56)","v":""},{"$f":"IF('Bio Ass test Data'!X56='Bioavailability Assessment Tool'!X56,\"\",'Bio Ass test Data'!X56-'Bioavailability Assessment Tool'!X56)","v":""},{"$f":"IF('Bio Ass test Data'!Y56='Bioavailability Assessment Tool'!Y56,\"\",'Bio Ass test Data'!Y56-'Bioavailability Assessment Tool'!Y56)","v":""},{"$f":"IF('Bio Ass test Data'!Z56='Bioavailability Assessment Tool'!Z56,\"\",'Bio Ass test Data'!Z56-'Bioavailability Assessment Tool'!Z56)","v":""},{"$f":"IF('Bio Ass test Data'!AA56='Bioavailability Assessment Tool'!AA56,\"\",'Bio Ass test Data'!AA56-'Bioavailability Assessment Tool'!AA56)","v":""},{"$f":"IF('Bio Ass test Data'!AB56='Bioavailability Assessment Tool'!AB56,\"\",'Bio Ass test Data'!AB56-'Bioavailability Assessment Tool'!AB56)","v":""}]
[null,53,null,null,null,null,null,null,10,7,10,2.1,{"$f":"IF('Bio Ass test Data'!M57='Bioavailability Assessment Tool'!M57,\"\",'Bio Ass test Data'!M57-'Bioavailability Assessment Tool'!M57)","v":""},{"$f":"IF('Bio Ass test Data'!N57='Bioavailability Assessment Tool'!N57,\"\",'Bio Ass test Data'!N57-'Bioavailability Assessment Tool'!N57)","v":""},{"$f":"IF('Bio Ass test Data'!O57='Bioavailability Assessment Tool'!O57,\"\",'Bio Ass test Data'!O57-'Bioavailability Assessment Tool'!O57)","v":""},{"$f":"IF('Bio Ass test Data'!P57='Bioavailability Assessment Tool'!P57,\"\",'Bio Ass test Data'!P57-'Bioavailability Assessment Tool'!P57)","v":""},{"$f":"IF('Bio Ass test Data'!Q57='Bioavailability Assessment Tool'!Q57,\"\",'Bio Ass test Data'!Q57-'Bioavailability Assessment Tool'!Q57)","v":""},{"$f":"IF('Bio Ass test Data'!R57='Bioavailability Assessment Tool'!R57,\"\",'Bio Ass test Data'!R57-'Bioavailability Assessment Tool'!R57)","v":""},{"$f":"IF('Bio Ass test Data'!S57='Bioavailability Assessment Tool'!S57,\"\",'Bio Ass test Data'!S57-'Bioavailability Assessment Tool'!S57)","v":""},{"$f":"IF('Bio Ass test Data'!T57='Bioavailability Assessment Tool'!T57,\"\",'Bio Ass test Data'!T57-'Bioavailability Assessment Tool'!T57)","v":""},{"$f":"IF('Bio Ass test Data'!U57='Bioavailability Assessment Tool'!U57,\"\",'Bio Ass test Data'!U57-'Bioavailability Assessment Tool'!U57)","v":""},{"$f":"IF('Bio Ass test Data'!V57='Bioavailability Assessment Tool'!V57,\"\",'Bio Ass test Data'!V57-'Bioavailability Assessment Tool'!V57)","v":""},{"$f":"IF('Bio Ass test Data'!W57='Bioavailability Assessment Tool'!W57,\"\",'Bio Ass test Data'!W57-'Bioavailability Assessment Tool'!W57)","v":""},{"$f":"IF('Bio Ass test Data'!X57='Bioavailability Assessment Tool'!X57,\"\",'Bio Ass test Data'!X57-'Bioavailability Assessment Tool'!X57)","v":""},{"$f":"IF('Bio Ass test Data'!Y57='Bioavailability Assessment Tool'!Y57,\"\",'Bio Ass test Data'!Y57-'Bioavailability Assessment Tool'!Y57)","v":""},{"$f":"IF('Bio Ass test Data'!Z57='Bioavailability Assessment Tool'!Z57,\"\",'Bio Ass test Data'!Z57-'Bioavailability Assessment Tool'!Z57)","v":""},{"$f":"IF('Bio Ass test Data'!AA57='Bioavailability Assessment Tool'!AA57,\"\",'Bio Ass test Data'!AA57-'Bioavailability Assessment Tool'!AA57)","v":""},{"$f":"IF('Bio Ass test Data'!AB57='Bioavailability Assessment Tool'!AB57,\"\",'Bio Ass test Data'!AB57-'Bioavailability Assessment Tool'!AB57)","v":""}]
[null,54,null,null,null,null,null,null,10,7,10,87,{"$f":"IF('Bio Ass test Data'!M58='Bioavailability Assessment Tool'!M58,\"\",'Bio Ass test Data'!M58-'Bioavailability Assessment Tool'!M58)","v":""},{"$f":"IF('Bio Ass test Data'!N58='Bioavailability Assessment Tool'!N58,\"\",'Bio Ass test Data'!N58-'Bioavailability Assessment Tool'!N58)","v":""},{"$f":"IF('Bio Ass test Data'!O58='Bioavailability Assessment Tool'!O58,\"\",'Bio Ass test Data'!O58-'Bioavailability Assessment Tool'!O58)","v":""},{"$f":"IF('Bio Ass test Data'!P58='Bioavailability Assessment Tool'!P58,\"\",'Bio Ass test Data'!P58-'Bioavailability Assessment Tool'!P58)","v":""},{"$f":"IF('Bio Ass test Data'!Q58='Bioavailability Assessment Tool'!Q58,\"\",'Bio Ass test Data'!Q58-'Bioavailability Assessment Tool'!Q58)","v":""},{"$f":"IF('Bio Ass test Data'!R58='Bioavailability Assessment Tool'!R58,\"\",'Bio Ass test Data'!R58-'Bioavailability Assessment Tool'!R58)","v":""},{"$f":"IF('Bio Ass test Data'!S58='Bioavailability Assessment Tool'!S58,\"\",'Bio Ass test Data'!S58-'Bioavailability Assessment Tool'!S58)","v":""},{"$f":"IF('Bio Ass test Data'!T58='Bioavailability Assessment Tool'!T58,\"\",'Bio Ass test Data'!T58-'Bioavailability Assessment Tool'!T58)","v":""},{"$f":"IF('Bio Ass test Data'!U58='Bioavailability Assessment Tool'!U58,\"\",'Bio Ass test Data'!U58-'Bioavailability Assessment Tool'!U58)","v":""},{"$f":"IF('Bio Ass test Data'!V58='Bioavailability Assessment Tool'!V58,\"\",'Bio Ass test Data'!V58-'Bioavailability Assessment Tool'!V58)","v":""},{"$f":"IF('Bio Ass test Data'!W58='Bioavailability Assessment Tool'!W58,\"\",'Bio Ass test Data'!W58-'Bioavailability Assessment Tool'!W58)","v":""},{"$f":"IF('Bio Ass test Data'!X58='Bioavailability Assessment Tool'!X58,\"\",'Bio Ass test Data'!X58-'Bioavailability Assessment Tool'!X58)","v":""},{"$f":"IF('Bio Ass test Data'!Y58='Bioavailability Assessment Tool'!Y58,\"\",'Bio Ass test Data'!Y58-'Bioavailability Assessment Tool'!Y58)","v":""},{"$f":"IF('Bio Ass test Data'!Z58='Bioavailability Assessment Tool'!Z58,\"\",'Bio Ass test Data'!Z58-'Bioavailability Assessment Tool'!Z58)","v":""},{"$f":"IF('Bio Ass test Data'!AA58='Bioavailability Assessment Tool'!AA58,\"\",'Bio Ass test Data'!AA58-'Bioavailability Assessment Tool'!AA58)","v":""},{"$f":"IF('Bio Ass test Data'!AB58='Bioavailability Assessment Tool'!AB58,\"\",'Bio Ass test Data'!AB58-'Bioavailability Assessment Tool'!AB58)","v":""}]
[null,55,null,null,null,null,null,null,10,7,10,88,{"$f":"IF('Bio Ass test Data'!M59='Bioavailability Assessment Tool'!M59,\"\",'Bio Ass test Data'!M59-'Bioavailability Assessment Tool'!M59)","v":""},{"$f":"IF('Bio Ass test Data'!N59='Bioavailability Assessment Tool'!N59,\"\",'Bio Ass test Data'!N59-'Bioavailability Assessment Tool'!N59)","v":""},{"$f":"IF('Bio Ass test Data'!O59='Bioavailability Assessment Tool'!O59,\"\",'Bio Ass test Data'!O59-'Bioavailability Assessment Tool'!O59)","v":""},{"$f":"IF('Bio Ass test Data'!P59='Bioavailability Assessment Tool'!P59,\"\",'Bio Ass test Data'!P59-'Bioavailability Assessment Tool'!P59)","v":""},{"$f":"IF('Bio Ass test Data'!Q59='Bioavailability Assessment Tool'!Q59,\"\",'Bio Ass test Data'!Q59-'Bioavailability Assessment Tool'!Q59)","v":""},{"$f":"IF('Bio Ass test Data'!R59='Bioavailability Assessment Tool'!R59,\"\",'Bio Ass test Data'!R59-'Bioavailability Assessment Tool'!R59)","v":""},{"$f":"IF('Bio Ass test Data'!S59='Bioavailability Assessment Tool'!S59,\"\",'Bio Ass test Data'!S59-'Bioavailability Assessment Tool'!S59)","v":""},{"$f":"IF('Bio Ass test Data'!T59='Bioavailability Assessment Tool'!T59,\"\",'Bio Ass test Data'!T59-'Bioavailability Assessment Tool'!T59)","v":""},{"$f":"IF('Bio Ass test Data'!U59='Bioavailability Assessment Tool'!U59,\"\",'Bio Ass test Data'!U59-'Bioavailability Assessment Tool'!U59)","v":""},{"$f":"IF('Bio Ass test Data'!V59='Bioavailability Assessment Tool'!V59,\"\",'Bio Ass test Data'!V59-'Bioavailability Assessment Tool'!V59)","v":""},{"$f":"IF('Bio Ass test Data'!W59='Bioavailability Assessment Tool'!W59,\"\",'Bio Ass test Data'!W59-'Bioavailability Assessment Tool'!W59)","v":""},{"$f":"IF('Bio Ass test Data'!X59='Bioavailability Assessment Tool'!X59,\"\",'Bio Ass test Data'!X59-'Bioavailability Assessment Tool'!X59)","v":""},{"$f":"IF('Bio Ass test Data'!Y59='Bioavailability Assessment Tool'!Y59,\"\",'Bio Ass test Data'!Y59-'Bioavailability Assessment Tool'!Y59)","v":""},{"$f":"IF('Bio Ass test Data'!Z59='Bioavailability Assessment Tool'!Z59,\"\",'Bio Ass test Data'!Z59-'Bioavailability Assessment Tool'!Z59)","v":""},{"$f":"IF('Bio Ass test Data'!AA59='Bioavailability Assessment Tool'!AA59,\"\",'Bio Ass test Data'!AA59-'Bioavailability Assessment Tool'!AA59)","v":""},{"$f":"IF('Bio Ass test Data'!AB59='Bioavailability Assessment Tool'!AB59,\"\",'Bio Ass test Data'!AB59-'Bioavailability Assessment Tool'!AB59)","v":""}]
[null,56,null,null,null,null,null,null,10,7,10,89,{"$f":"IF('Bio Ass test Data'!M60='Bioavailability Assessment Tool'!M60,\"\",'Bio Ass test Data'!M60-'Bioavailability Assessment Tool'!M60)","v":""},{"$f":"IF('Bio Ass test Data'!N60='Bioavailability Assessment Tool'!N60,\"\",'Bio Ass test Data'!N60-'Bioavailability Assessment Tool'!N60)","v":""},{"$f":"IF('Bio Ass test Data'!O60='Bioavailability Assessment Tool'!O60,\"\",'Bio Ass test Data'!O60-'Bioavailability Assessment Tool'!O60)","v":""},{"$f":"IF('Bio Ass test Data'!P60='Bioavailability Assessment Tool'!P60,\"\",'Bio Ass test Data'!P60-'Bioavailability Assessment Tool'!P60)","v":""},{"$f":"IF('Bio Ass test Data'!Q60='Bioavailability Assessment Tool'!Q60,\"\",'Bio Ass test Data'!Q60-'Bioavailability Assessment Tool'!Q60)","v":""},{"$f":"IF('Bio Ass test Data'!R60='Bioavailability Assessment Tool'!R60,\"\",'Bio Ass test Data'!R60-'Bioavailability Assessment Tool'!R60)","v":""},{"$f":"IF('Bio Ass test Data'!S60='Bioavailability Assessment Tool'!S60,\"\",'Bio Ass test Data'!S60-'Bioavailability Assessment Tool'!S60)","v":""},{"$f":"IF('Bio Ass test Data'!T60='Bioavailability Assessment Tool'!T60,\"\",'Bio Ass test Data'!T60-'Bioavailability Assessment Tool'!T60)","v":""},{"$f":"IF('Bio Ass test Data'!U60='Bioavailability Assessment Tool'!U60,\"\",'Bio Ass test Data'!U60-'Bioavailability Assessment Tool'!U60)","v":""},{"$f":"IF('Bio Ass test Data'!V60='Bioavailability Assessment Tool'!V60,\"\",'Bio Ass test Data'!V60-'Bioavailability Assessment Tool'!V60)","v":""},{"$f":"IF('Bio Ass test Data'!W60='Bioavailability Assessment Tool'!W60,\"\",'Bio Ass test Data'!W60-'Bioavailability Assessment Tool'!W60)","v":""},{"$f":"IF('Bio Ass test Data'!X60='Bioavailability Assessment Tool'!X60,\"\",'Bio Ass test Data'!X60-'Bioavailability Assessment Tool'!X60)","v":""},{"$f":"IF('Bio Ass test Data'!Y60='Bioavailability Assessment Tool'!Y60,\"\",'Bio Ass test Data'!Y60-'Bioavailability Assessment Tool'!Y60)","v":""},{"$f":"IF('Bio Ass test Data'!Z60='Bioavailability Assessment Tool'!Z60,\"\",'Bio Ass test Data'!Z60-'Bioavailability Assessment Tool'!Z60)","v":""},{"$f":"IF('Bio Ass test Data'!AA60='Bioavailability Assessment Tool'!AA60,\"\",'Bio Ass test Data'!AA60-'Bioavailability Assessment Tool'!AA60)","v":""},{"$f":"IF('Bio Ass test Data'!AB60='Bioavailability Assessment Tool'!AB60,\"\",'Bio Ass test Data'!AB60-'Bioavailability Assessment Tool'!AB60)","v":""}]
[null,57,null,null,null,null,null,null,10,7,15,60,{"$f":"IF('Bio Ass test Data'!M61='Bioavailability Assessment Tool'!M61,\"\",'Bio Ass test Data'!M61-'Bioavailability Assessment Tool'!M61)","v":""},{"$f":"IF('Bio Ass test Data'!N61='Bioavailability Assessment Tool'!N61,\"\",'Bio Ass test Data'!N61-'Bioavailability Assessment Tool'!N61)","v":""},{"$f":"IF('Bio Ass test Data'!O61='Bioavailability Assessment Tool'!O61,\"\",'Bio Ass test Data'!O61-'Bioavailability Assessment Tool'!O61)","v":""},{"$f":"IF('Bio Ass test Data'!P61='Bioavailability Assessment Tool'!P61,\"\",'Bio Ass test Data'!P61-'Bioavailability Assessment Tool'!P61)","v":""},{"$f":"IF('Bio Ass test Data'!Q61='Bioavailability Assessment Tool'!Q61,\"\",'Bio Ass test Data'!Q61-'Bioavailability Assessment Tool'!Q61)","v":""},{"$f":"IF('Bio Ass test Data'!R61='Bioavailability Assessment Tool'!R61,\"\",'Bio Ass test Data'!R61-'Bioavailability Assessment Tool'!R61)","v":""},{"$f":"IF('Bio Ass test Data'!S61='Bioavailability Assessment Tool'!S61,\"\",'Bio Ass test Data'!S61-'Bioavailability Assessment Tool'!S61)","v":""},{"$f":"IF('Bio Ass test Data'!T61='Bioavailability Assessment Tool'!T61,\"\",'Bio Ass test Data'!T61-'Bioavailability Assessment Tool'!T61)","v":""},{"$f":"IF('Bio Ass test Data'!U61='Bioavailability Assessment Tool'!U61,\"\",'Bio Ass test Data'!U61-'Bioavailability Assessment Tool'!U61)","v":""},{"$f":"IF('Bio Ass test Data'!V61='Bioavailability Assessment Tool'!V61,\"\",'Bio Ass test Data'!V61-'Bioavailability Assessment Tool'!V61)","v":""},{"$f":"IF('Bio Ass test Data'!W61='Bioavailability Assessment Tool'!W61,\"\",'Bio Ass test Data'!W61-'Bioavailability Assessment Tool'!W61)","v":""},{"$f":"IF('Bio Ass test Data'!X61='Bioavailability Assessment Tool'!X61,\"\",'Bio Ass test Data'!X61-'Bioavailability Assessment Tool'!X61)","v":""},{"$f":"IF('Bio Ass test Data'!Y61='Bioavailability Assessment Tool'!Y61,\"\",'Bio Ass test Data'!Y61-'Bioavailability Assessment Tool'!Y61)","v":""},{"$f":"IF('Bio Ass test Data'!Z61='Bioavailability Assessment Tool'!Z61,\"\",'Bio Ass test Data'!Z61-'Bioavailability Assessment Tool'!Z61)","v":""},{"$f":"IF('Bio Ass test Data'!AA61='Bioavailability Assessment Tool'!AA61,\"\",'Bio Ass test Data'!AA61-'Bioavailability Assessment Tool'!AA61)","v":""},{"$f":"IF('Bio Ass test Data'!AB61='Bioavailability Assessment Tool'!AB61,\"\",'Bio Ass test Data'!AB61-'Bioavailability Assessment Tool'!AB61)","v":""}]
[null,58,null,null,null,null,null,null,10,7,20,60,{"$f":"IF('Bio Ass test Data'!M62='Bioavailability Assessment Tool'!M62,\"\",'Bio Ass test Data'!M62-'Bioavailability Assessment Tool'!M62)","v":""},{"$f":"IF('Bio Ass test Data'!N62='Bioavailability Assessment Tool'!N62,\"\",'Bio Ass test Data'!N62-'Bioavailability Assessment Tool'!N62)","v":""},{"$f":"IF('Bio Ass test Data'!O62='Bioavailability Assessment Tool'!O62,\"\",'Bio Ass test Data'!O62-'Bioavailability Assessment Tool'!O62)","v":""},{"$f":"IF('Bio Ass test Data'!P62='Bioavailability Assessment Tool'!P62,\"\",'Bio Ass test Data'!P62-'Bioavailability Assessment Tool'!P62)","v":""},{"$f":"IF('Bio Ass test Data'!Q62='Bioavailability Assessment Tool'!Q62,\"\",'Bio Ass test Data'!Q62-'Bioavailability Assessment Tool'!Q62)","v":""},{"$f":"IF('Bio Ass test Data'!R62='Bioavailability Assessment Tool'!R62,\"\",'Bio Ass test Data'!R62-'Bioavailability Assessment Tool'!R62)","v":""},{"$f":"IF('Bio Ass test Data'!S62='Bioavailability Assessment Tool'!S62,\"\",'Bio Ass test Data'!S62-'Bioavailability Assessment Tool'!S62)","v":""},{"$f":"IF('Bio Ass test Data'!T62='Bioavailability Assessment Tool'!T62,\"\",'Bio Ass test Data'!T62-'Bioavailability Assessment Tool'!T62)","v":""},{"$f":"IF('Bio Ass test Data'!U62='Bioavailability Assessment Tool'!U62,\"\",'Bio Ass test Data'!U62-'Bioavailability Assessment Tool'!U62)","v":""},{"$f":"IF('Bio Ass test Data'!V62='Bioavailability Assessment Tool'!V62,\"\",'Bio Ass test Data'!V62-'Bioavailability Assessment Tool'!V62)","v":""},{"$f":"IF('Bio Ass test Data'!W62='Bioavailability Assessment Tool'!W62,\"\",'Bio Ass test Data'!W62-'Bioavailability Assessment Tool'!W62)","v":""},{"$f":"IF('Bio Ass test Data'!X62='Bioavailability Assessment Tool'!X62,\"\",'Bio Ass test Data'!X62-'Bioavailability Assessment Tool'!X62)","v":""},{"$f":"IF('Bio Ass test Data'!Y62='Bioavailability Assessment Tool'!Y62,\"\",'Bio Ass test Data'!Y62-'Bioavailability Assessment Tool'!Y62)","v":""},{"$f":"IF('Bio Ass test Data'!Z62='Bioavailability Assessment Tool'!Z62,\"\",'Bio Ass test Data'!Z62-'Bioavailability Assessment Tool'!Z62)","v":""},{"$f":"IF('Bio Ass test Data'!AA62='Bioavailability Assessment Tool'!AA62,\"\",'Bio Ass test Data'!AA62-'Bioavailability Assessment Tool'!AA62)","v":""},{"$f":"IF('Bio Ass test Data'!AB62='Bioavailability Assessment Tool'!AB62,\"\",'Bio Ass test Data'!AB62-'Bioavailability Assessment Tool'!AB62)","v":""}]
[null,59,null,null,null,null,null,null,10,7,21,60,{"$f":"IF('Bio Ass test Data'!M63='Bioavailability Assessment Tool'!M63,\"\",'Bio Ass test Data'!M63-'Bioavailability Assessment Tool'!M63)","v":""},{"$f":"IF('Bio Ass test Data'!N63='Bioavailability Assessment Tool'!N63,\"\",'Bio Ass test Data'!N63-'Bioavailability Assessment Tool'!N63)","v":""},{"$f":"IF('Bio Ass test Data'!O63='Bioavailability Assessment Tool'!O63,\"\",'Bio Ass test Data'!O63-'Bioavailability Assessment Tool'!O63)","v":""},{"$f":"IF('Bio Ass test Data'!P63='Bioavailability Assessment Tool'!P63,\"\",'Bio Ass test Data'!P63-'Bioavailability Assessment Tool'!P63)","v":""},{"$f":"IF('Bio Ass test Data'!Q63='Bioavailability Assessment Tool'!Q63,\"\",'Bio Ass test Data'!Q63-'Bioavailability Assessment Tool'!Q63)","v":""},{"$f":"IF('Bio Ass test Data'!R63='Bioavailability Assessment Tool'!R63,\"\",'Bio Ass test Data'!R63-'Bioavailability Assessment Tool'!R63)","v":""},{"$f":"IF('Bio Ass test Data'!S63='Bioavailability Assessment Tool'!S63,\"\",'Bio Ass test Data'!S63-'Bioavailability Assessment Tool'!S63)","v":""},{"$f":"IF('Bio Ass test Data'!T63='Bioavailability Assessment Tool'!T63,\"\",'Bio Ass test Data'!T63-'Bioavailability Assessment Tool'!T63)","v":""},{"$f":"IF('Bio Ass test Data'!U63='Bioavailability Assessment Tool'!U63,\"\",'Bio Ass test Data'!U63-'Bioavailability Assessment Tool'!U63)","v":""},{"$f":"IF('Bio Ass test Data'!V63='Bioavailability Assessment Tool'!V63,\"\",'Bio Ass test Data'!V63-'Bioavailability Assessment Tool'!V63)","v":""},{"$f":"IF('Bio Ass test Data'!W63='Bioavailability Assessment Tool'!W63,\"\",'Bio Ass test Data'!W63-'Bioavailability Assessment Tool'!W63)","v":""},{"$f":"IF('Bio Ass test Data'!X63='Bioavailability Assessment Tool'!X63,\"\",'Bio Ass test Data'!X63-'Bioavailability Assessment Tool'!X63)","v":""},{"$f":"IF('Bio Ass test Data'!Y63='Bioavailability Assessment Tool'!Y63,\"\",'Bio Ass test Data'!Y63-'Bioavailability Assessment Tool'!Y63)","v":""},{"$f":"IF('Bio Ass test Data'!Z63='Bioavailability Assessment Tool'!Z63,\"\",'Bio Ass test Data'!Z63-'Bioavailability Assessment Tool'!Z63)","v":""},{"$f":"IF('Bio Ass test Data'!AA63='Bioavailability Assessment Tool'!AA63,\"\",'Bio Ass test Data'!AA63-'Bioavailability Assessment Tool'!AA63)","v":""},{"$f":"IF('Bio Ass test Data'!AB63='Bioavailability Assessment Tool'!AB63,\"\",'Bio Ass test Data'!AB63-'Bioavailability Assessment Tool'!AB63)","v":""}]
[null,60,null,null,null,null,null,null,10,7,16,60,{"$f":"IF('Bio Ass test Data'!M64='Bioavailability Assessment Tool'!M64,\"\",'Bio Ass test Data'!M64-'Bioavailability Assessment Tool'!M64)","v":""},{"$f":"IF('Bio Ass test Data'!N64='Bioavailability Assessment Tool'!N64,\"\",'Bio Ass test Data'!N64-'Bioavailability Assessment Tool'!N64)","v":""},{"$f":"IF('Bio Ass test Data'!O64='Bioavailability Assessment Tool'!O64,\"\",'Bio Ass test Data'!O64-'Bioavailability Assessment Tool'!O64)","v":""},{"$f":"IF('Bio Ass test Data'!P64='Bioavailability Assessment Tool'!P64,\"\",'Bio Ass test Data'!P64-'Bioavailability Assessment Tool'!P64)","v":""},{"$f":"IF('Bio Ass test Data'!Q64='Bioavailability Assessment Tool'!Q64,\"\",'Bio Ass test Data'!Q64-'Bioavailability Assessment Tool'!Q64)","v":""},{"$f":"IF('Bio Ass test Data'!R64='Bioavailability Assessment Tool'!R64,\"\",'Bio Ass test Data'!R64-'Bioavailability Assessment Tool'!R64)","v":""},{"$f":"IF('Bio Ass test Data'!S64='Bioavailability Assessment Tool'!S64,\"\",'Bio Ass test Data'!S64-'Bioavailability Assessment Tool'!S64)","v":""},{"$f":"IF('Bio Ass test Data'!T64='Bioavailability Assessment Tool'!T64,\"\",'Bio Ass test Data'!T64-'Bioavailability Assessment Tool'!T64)","v":""},{"$f":"IF('Bio Ass test Data'!U64='Bioavailability Assessment Tool'!U64,\"\",'Bio Ass test Data'!U64-'Bioavailability Assessment Tool'!U64)","v":""},{"$f":"IF('Bio Ass test Data'!V64='Bioavailability Assessment Tool'!V64,\"\",'Bio Ass test Data'!V64-'Bioavailability Assessment Tool'!V64)","v":""},{"$f":"IF('Bio Ass test Data'!W64='Bioavailability Assessment Tool'!W64,\"\",'Bio Ass test Data'!W64-'Bioavailability Assessment Tool'!W64)","v":""},{"$f":"IF('Bio Ass test Data'!X64='Bioavailability Assessment Tool'!X64,\"\",'Bio Ass test Data'!X64-'Bioavailability Assessment Tool'!X64)","v":""},{"$f":"IF('Bio Ass test Data'!Y64='Bioavailability Assessment Tool'!Y64,\"\",'Bio Ass test Data'!Y64-'Bioavailability Assessment Tool'!Y64)","v":""},{"$f":"IF('Bio Ass test Data'!Z64='Bioavailability Assessment Tool'!Z64,\"\",'Bio Ass test Data'!Z64-'Bioavailability Assessment Tool'!Z64)","v":""},{"$f":"IF('Bio Ass test Data'!AA64='Bioavailability Assessment Tool'!AA64,\"\",'Bio Ass test Data'!AA64-'Bioavailability Assessment Tool'!AA64)","v":""},{"$f":"IF('Bio Ass test Data'!AB64='Bioavailability Assessment Tool'!AB64,\"\",'Bio Ass test Data'!AB64-'Bioavailability Assessment Tool'!AB64)","v":""}]
[null,61,null,null,null,null,15,null,null,7,15,60,{"$f":"IF('Bio Ass test Data'!M65='Bioavailability Assessment Tool'!M65,\"\",'Bio Ass test Data'!M65-'Bioavailability Assessment Tool'!M65)","v":""},{"$f":"IF('Bio Ass test Data'!N65='Bioavailability Assessment Tool'!N65,\"\",'Bio Ass test Data'!N65-'Bioavailability Assessment Tool'!N65)","v":""},{"$f":"IF('Bio Ass test Data'!O65='Bioavailability Assessment Tool'!O65,\"\",'Bio Ass test Data'!O65-'Bioavailability Assessment Tool'!O65)","v":""},{"$f":"IF('Bio Ass test Data'!P65='Bioavailability Assessment Tool'!P65,\"\",'Bio Ass test Data'!P65-'Bioavailability Assessment Tool'!P65)","v":""},{"$f":"IF('Bio Ass test Data'!Q65='Bioavailability Assessment Tool'!Q65,\"\",'Bio Ass test Data'!Q65-'Bioavailability Assessment Tool'!Q65)","v":""},{"$f":"IF('Bio Ass test Data'!R65='Bioavailability Assessment Tool'!R65,\"\",'Bio Ass test Data'!R65-'Bioavailability Assessment Tool'!R65)","v":""},{"$f":"IF('Bio Ass test Data'!S65='Bioavailability Assessment Tool'!S65,\"\",'Bio Ass test Data'!S65-'Bioavailability Assessment Tool'!S65)","v":""},{"$f":"IF('Bio Ass test Data'!T65='Bioavailability Assessment Tool'!T65,\"\",'Bio Ass test Data'!T65-'Bioavailability Assessment Tool'!T65)","v":""},{"$f":"IF('Bio Ass test Data'!U65='Bioavailability Assessment Tool'!U65,\"\",'Bio Ass test Data'!U65-'Bioavailability Assessment Tool'!U65)","v":""},{"$f":"IF('Bio Ass test Data'!V65='Bioavailability Assessment Tool'!V65,\"\",'Bio Ass test Data'!V65-'Bioavailability Assessment Tool'!V65)","v":""},{"$f":"IF('Bio Ass test Data'!W65='Bioavailability Assessment Tool'!W65,\"\",'Bio Ass test Data'!W65-'Bioavailability Assessment Tool'!W65)","v":""},{"$f":"IF('Bio Ass test Data'!X65='Bioavailability Assessment Tool'!X65,\"\",'Bio Ass test Data'!X65-'Bioavailability Assessment Tool'!X65)","v":""},{"$f":"IF('Bio Ass test Data'!Y65='Bioavailability Assessment Tool'!Y65,\"\",'Bio Ass test Data'!Y65-'Bioavailability Assessment Tool'!Y65)","v":""},{"$f":"IF('Bio Ass test Data'!Z65='Bioavailability Assessment Tool'!Z65,\"\",'Bio Ass test Data'!Z65-'Bioavailability Assessment Tool'!Z65)","v":""},{"$f":"IF('Bio Ass test Data'!AA65='Bioavailability Assessment Tool'!AA65,\"\",'Bio Ass test Data'!AA65-'Bioavailability Assessment Tool'!AA65)","v":""},{"$f":"IF('Bio Ass test Data'!AB65='Bioavailability Assessment Tool'!AB65,\"\",'Bio Ass test Data'!AB65-'Bioavailability Assessment Tool'!AB65)","v":""}]
[null,62,null,null,null,null,15,null,null,7,16,60,{"$f":"IF('Bio Ass test Data'!M66='Bioavailability Assessment Tool'!M66,\"\",'Bio Ass test Data'!M66-'Bioavailability Assessment Tool'!M66)","v":""},{"$f":"IF('Bio Ass test Data'!N66='Bioavailability Assessment Tool'!N66,\"\",'Bio Ass test Data'!N66-'Bioavailability Assessment Tool'!N66)","v":""},{"$f":"IF('Bio Ass test Data'!O66='Bioavailability Assessment Tool'!O66,\"\",'Bio Ass test Data'!O66-'Bioavailability Assessment Tool'!O66)","v":""},{"$f":"IF('Bio Ass test Data'!P66='Bioavailability Assessment Tool'!P66,\"\",'Bio Ass test Data'!P66-'Bioavailability Assessment Tool'!P66)","v":""},{"$f":"IF('Bio Ass test Data'!Q66='Bioavailability Assessment Tool'!Q66,\"\",'Bio Ass test Data'!Q66-'Bioavailability Assessment Tool'!Q66)","v":""},{"$f":"IF('Bio Ass test Data'!R66='Bioavailability Assessment Tool'!R66,\"\",'Bio Ass test Data'!R66-'Bioavailability Assessment Tool'!R66)","v":""},{"$f":"IF('Bio Ass test Data'!S66='Bioavailability Assessment Tool'!S66,\"\",'Bio Ass test Data'!S66-'Bioavailability Assessment Tool'!S66)","v":""},{"$f":"IF('Bio Ass test Data'!T66='Bioavailability Assessment Tool'!T66,\"\",'Bio Ass test Data'!T66-'Bioavailability Assessment Tool'!T66)","v":""},{"$f":"IF('Bio Ass test Data'!U66='Bioavailability Assessment Tool'!U66,\"\",'Bio Ass test Data'!U66-'Bioavailability Assessment Tool'!U66)","v":""},{"$f":"IF('Bio Ass test Data'!V66='Bioavailability Assessment Tool'!V66,\"\",'Bio Ass test Data'!V66-'Bioavailability Assessment Tool'!V66)","v":""},{"$f":"IF('Bio Ass test Data'!W66='Bioavailability Assessment Tool'!W66,\"\",'Bio Ass test Data'!W66-'Bioavailability Assessment Tool'!W66)","v":""},{"$f":"IF('Bio Ass test Data'!X66='Bioavailability Assessment Tool'!X66,\"\",'Bio Ass test Data'!X66-'Bioavailability Assessment Tool'!X66)","v":""},{"$f":"IF('Bio Ass test Data'!Y66='Bioavailability Assessment Tool'!Y66,\"\",'Bio Ass test Data'!Y66-'Bioavailability Assessment Tool'!Y66)","v":""},{"$f":"IF('Bio Ass test Data'!Z66='Bioavailability Assessment Tool'!Z66,\"\",'Bio Ass test Data'!Z66-'Bioavailability Assessment Tool'!Z66)","v":""},{"$f":"IF('Bio Ass test Data'!AA66='Bioavailability Assessment Tool'!AA66,\"\",'Bio Ass test Data'!AA66-'Bioavailability Assessment Tool'!AA66)","v":""},{"$f":"IF('Bio Ass test Data'!AB66='Bioavailability Assessment Tool'!AB66,\"\",'Bio Ass test Data'!AB66-'Bioavailability Assessment Tool'!AB66)","v":""}]
[null,63,null,null,null,null,15,null,null,7,18,60,{"$f":"IF('Bio Ass test Data'!M67='Bioavailability Assessment Tool'!M67,\"\",'Bio Ass test Data'!M67-'Bioavailability Assessment Tool'!M67)","v":""},{"$f":"IF('Bio Ass test Data'!N67='Bioavailability Assessment Tool'!N67,\"\",'Bio Ass test Data'!N67-'Bioavailability Assessment Tool'!N67)","v":""},{"$f":"IF('Bio Ass test Data'!O67='Bioavailability Assessment Tool'!O67,\"\",'Bio Ass test Data'!O67-'Bioavailability Assessment Tool'!O67)","v":""},{"$f":"IF('Bio Ass test Data'!P67='Bioavailability Assessment Tool'!P67,\"\",'Bio Ass test Data'!P67-'Bioavailability Assessment Tool'!P67)","v":""},{"$f":"IF('Bio Ass test Data'!Q67='Bioavailability Assessment Tool'!Q67,\"\",'Bio Ass test Data'!Q67-'Bioavailability Assessment Tool'!Q67)","v":""},{"$f":"IF('Bio Ass test Data'!R67='Bioavailability Assessment Tool'!R67,\"\",'Bio Ass test Data'!R67-'Bioavailability Assessment Tool'!R67)","v":""},{"$f":"IF('Bio Ass test Data'!S67='Bioavailability Assessment Tool'!S67,\"\",'Bio Ass test Data'!S67-'Bioavailability Assessment Tool'!S67)","v":""},{"$f":"IF('Bio Ass test Data'!T67='Bioavailability Assessment Tool'!T67,\"\",'Bio Ass test Data'!T67-'Bioavailability Assessment Tool'!T67)","v":""},{"$f":"IF('Bio Ass test Data'!U67='Bioavailability Assessment Tool'!U67,\"\",'Bio Ass test Data'!U67-'Bioavailability Assessment Tool'!U67)","v":""},{"$f":"IF('Bio Ass test Data'!V67='Bioavailability Assessment Tool'!V67,\"\",'Bio Ass test Data'!V67-'Bioavailability Assessment Tool'!V67)","v":""},{"$f":"IF('Bio Ass test Data'!W67='Bioavailability Assessment Tool'!W67,\"\",'Bio Ass test Data'!W67-'Bioavailability Assessment Tool'!W67)","v":""},{"$f":"IF('Bio Ass test Data'!X67='Bioavailability Assessment Tool'!X67,\"\",'Bio Ass test Data'!X67-'Bioavailability Assessment Tool'!X67)","v":""},{"$f":"IF('Bio Ass test Data'!Y67='Bioavailability Assessment Tool'!Y67,\"\",'Bio Ass test Data'!Y67-'Bioavailability Assessment Tool'!Y67)","v":""},{"$f":"IF('Bio Ass test Data'!Z67='Bioavailability Assessment Tool'!Z67,\"\",'Bio Ass test Data'!Z67-'Bioavailability Assessment Tool'!Z67)","v":""},{"$f":"IF('Bio Ass test Data'!AA67='Bioavailability Assessment Tool'!AA67,\"\",'Bio Ass test Data'!AA67-'Bioavailability Assessment Tool'!AA67)","v":""},{"$f":"IF('Bio Ass test Data'!AB67='Bioavailability Assessment Tool'!AB67,\"\",'Bio Ass test Data'!AB67-'Bioavailability Assessment Tool'!AB67)","v":""}]
[null,64,null,null,null,null,15,null,null,7,20,60,{"$f":"IF('Bio Ass test Data'!M68='Bioavailability Assessment Tool'!M68,\"\",'Bio Ass test Data'!M68-'Bioavailability Assessment Tool'!M68)","v":""},{"$f":"IF('Bio Ass test Data'!N68='Bioavailability Assessment Tool'!N68,\"\",'Bio Ass test Data'!N68-'Bioavailability Assessment Tool'!N68)","v":""},{"$f":"IF('Bio Ass test Data'!O68='Bioavailability Assessment Tool'!O68,\"\",'Bio Ass test Data'!O68-'Bioavailability Assessment Tool'!O68)","v":""},{"$f":"IF('Bio Ass test Data'!P68='Bioavailability Assessment Tool'!P68,\"\",'Bio Ass test Data'!P68-'Bioavailability Assessment Tool'!P68)","v":""},{"$f":"IF('Bio Ass test Data'!Q68='Bioavailability Assessment Tool'!Q68,\"\",'Bio Ass test Data'!Q68-'Bioavailability Assessment Tool'!Q68)","v":""},{"$f":"IF('Bio Ass test Data'!R68='Bioavailability Assessment Tool'!R68,\"\",'Bio Ass test Data'!R68-'Bioavailability Assessment Tool'!R68)","v":""},{"$f":"IF('Bio Ass test Data'!S68='Bioavailability Assessment Tool'!S68,\"\",'Bio Ass test Data'!S68-'Bioavailability Assessment Tool'!S68)","v":""},{"$f":"IF('Bio Ass test Data'!T68='Bioavailability Assessment Tool'!T68,\"\",'Bio Ass test Data'!T68-'Bioavailability Assessment Tool'!T68)","v":""},{"$f":"IF('Bio Ass test Data'!U68='Bioavailability Assessment Tool'!U68,\"\",'Bio Ass test Data'!U68-'Bioavailability Assessment Tool'!U68)","v":""},{"$f":"IF('Bio Ass test Data'!V68='Bioavailability Assessment Tool'!V68,\"\",'Bio Ass test Data'!V68-'Bioavailability Assessment Tool'!V68)","v":""},{"$f":"IF('Bio Ass test Data'!W68='Bioavailability Assessment Tool'!W68,\"\",'Bio Ass test Data'!W68-'Bioavailability Assessment Tool'!W68)","v":""},{"$f":"IF('Bio Ass test Data'!X68='Bioavailability Assessment Tool'!X68,\"\",'Bio Ass test Data'!X68-'Bioavailability Assessment Tool'!X68)","v":""},{"$f":"IF('Bio Ass test Data'!Y68='Bioavailability Assessment Tool'!Y68,\"\",'Bio Ass test Data'!Y68-'Bioavailability Assessment Tool'!Y68)","v":""},{"$f":"IF('Bio Ass test Data'!Z68='Bioavailability Assessment Tool'!Z68,\"\",'Bio Ass test Data'!Z68-'Bioavailability Assessment Tool'!Z68)","v":""},{"$f":"IF('Bio Ass test Data'!AA68='Bioavailability Assessment Tool'!AA68,\"\",'Bio Ass test Data'!AA68-'Bioavailability Assessment Tool'!AA68)","v":""},{"$f":"IF('Bio Ass test Data'!AB68='Bioavailability Assessment Tool'!AB68,\"\",'Bio Ass test Data'!AB68-'Bioavailability Assessment Tool'!AB68)","v":""}]
[null,65,null,null,null,null,null,80,null,7,15,60,{"$f":"IF('Bio Ass test Data'!M69='Bioavailability Assessment Tool'!M69,\"\",'Bio Ass test Data'!M69-'Bioavailability Assessment Tool'!M69)","v":""},{"$f":"IF('Bio Ass test Data'!N69='Bioavailability Assessment Tool'!N69,\"\",'Bio Ass test Data'!N69-'Bioavailability Assessment Tool'!N69)","v":""},{"$f":"IF('Bio Ass test Data'!O69='Bioavailability Assessment Tool'!O69,\"\",'Bio Ass test Data'!O69-'Bioavailability Assessment Tool'!O69)","v":""},{"$f":"IF('Bio Ass test Data'!P69='Bioavailability Assessment Tool'!P69,\"\",'Bio Ass test Data'!P69-'Bioavailability Assessment Tool'!P69)","v":""},{"$f":"IF('Bio Ass test Data'!Q69='Bioavailability Assessment Tool'!Q69,\"\",'Bio Ass test Data'!Q69-'Bioavailability Assessment Tool'!Q69)","v":""},{"$f":"IF('Bio Ass test Data'!R69='Bioavailability Assessment Tool'!R69,\"\",'Bio Ass test Data'!R69-'Bioavailability Assessment Tool'!R69)","v":""},{"$f":"IF('Bio Ass test Data'!S69='Bioavailability Assessment Tool'!S69,\"\",'Bio Ass test Data'!S69-'Bioavailability Assessment Tool'!S69)","v":""},{"$f":"IF('Bio Ass test Data'!T69='Bioavailability Assessment Tool'!T69,\"\",'Bio Ass test Data'!T69-'Bioavailability Assessment Tool'!T69)","v":""},{"$f":"IF('Bio Ass test Data'!U69='Bioavailability Assessment Tool'!U69,\"\",'Bio Ass test Data'!U69-'Bioavailability Assessment Tool'!U69)","v":""},{"$f":"IF('Bio Ass test Data'!V69='Bioavailability Assessment Tool'!V69,\"\",'Bio Ass test Data'!V69-'Bioavailability Assessment Tool'!V69)","v":""},{"$f":"IF('Bio Ass test Data'!W69='Bioavailability Assessment Tool'!W69,\"\",'Bio Ass test Data'!W69-'Bioavailability Assessment Tool'!W69)","v":""},{"$f":"IF('Bio Ass test Data'!X69='Bioavailability Assessment Tool'!X69,\"\",'Bio Ass test Data'!X69-'Bioavailability Assessment Tool'!X69)","v":""},{"$f":"IF('Bio Ass test Data'!Y69='Bioavailability Assessment Tool'!Y69,\"\",'Bio Ass test Data'!Y69-'Bioavailability Assessment Tool'!Y69)","v":""},{"$f":"IF('Bio Ass test Data'!Z69='Bioavailability Assessment Tool'!Z69,\"\",'Bio Ass test Data'!Z69-'Bioavailability Assessment Tool'!Z69)","v":""},{"$f":"IF('Bio Ass test Data'!AA69='Bioavailability Assessment Tool'!AA69,\"\",'Bio Ass test Data'!AA69-'Bioavailability Assessment Tool'!AA69)","v":""},{"$f":"IF('Bio Ass test Data'!AB69='Bioavailability Assessment Tool'!AB69,\"\",'Bio Ass test Data'!AB69-'Bioavailability Assessment Tool'!AB69)","v":""}]
[null,66,null,null,null,null,null,80,null,7,16,60,{"$f":"IF('Bio Ass test Data'!M70='Bioavailability Assessment Tool'!M70,\"\",'Bio Ass test Data'!M70-'Bioavailability Assessment Tool'!M70)","v":""},{"$f":"IF('Bio Ass test Data'!N70='Bioavailability Assessment Tool'!N70,\"\",'Bio Ass test Data'!N70-'Bioavailability Assessment Tool'!N70)","v":""},{"$f":"IF('Bio Ass test Data'!O70='Bioavailability Assessment Tool'!O70,\"\",'Bio Ass test Data'!O70-'Bioavailability Assessment Tool'!O70)","v":""},{"$f":"IF('Bio Ass test Data'!P70='Bioavailability Assessment Tool'!P70,\"\",'Bio Ass test Data'!P70-'Bioavailability Assessment Tool'!P70)","v":""},{"$f":"IF('Bio Ass test Data'!Q70='Bioavailability Assessment Tool'!Q70,\"\",'Bio Ass test Data'!Q70-'Bioavailability Assessment Tool'!Q70)","v":""},{"$f":"IF('Bio Ass test Data'!R70='Bioavailability Assessment Tool'!R70,\"\",'Bio Ass test Data'!R70-'Bioavailability Assessment Tool'!R70)","v":""},{"$f":"IF('Bio Ass test Data'!S70='Bioavailability Assessment Tool'!S70,\"\",'Bio Ass test Data'!S70-'Bioavailability Assessment Tool'!S70)","v":""},{"$f":"IF('Bio Ass test Data'!T70='Bioavailability Assessment Tool'!T70,\"\",'Bio Ass test Data'!T70-'Bioavailability Assessment Tool'!T70)","v":""},{"$f":"IF('Bio Ass test Data'!U70='Bioavailability Assessment Tool'!U70,\"\",'Bio Ass test Data'!U70-'Bioavailability Assessment Tool'!U70)","v":""},{"$f":"IF('Bio Ass test Data'!V70='Bioavailability Assessment Tool'!V70,\"\",'Bio Ass test Data'!V70-'Bioavailability Assessment Tool'!V70)","v":""},{"$f":"IF('Bio Ass test Data'!W70='Bioavailability Assessment Tool'!W70,\"\",'Bio Ass test Data'!W70-'Bioavailability Assessment Tool'!W70)","v":""},{"$f":"IF('Bio Ass test Data'!X70='Bioavailability Assessment Tool'!X70,\"\",'Bio Ass test Data'!X70-'Bioavailability Assessment Tool'!X70)","v":""},{"$f":"IF('Bio Ass test Data'!Y70='Bioavailability Assessment Tool'!Y70,\"\",'Bio Ass test Data'!Y70-'Bioavailability Assessment Tool'!Y70)","v":""},{"$f":"IF('Bio Ass test Data'!Z70='Bioavailability Assessment Tool'!Z70,\"\",'Bio Ass test Data'!Z70-'Bioavailability Assessment Tool'!Z70)","v":""},{"$f":"IF('Bio Ass test Data'!AA70='Bioavailability Assessment Tool'!AA70,\"\",'Bio Ass test Data'!AA70-'Bioavailability Assessment Tool'!AA70)","v":""},{"$f":"IF('Bio Ass test Data'!AB70='Bioavailability Assessment Tool'!AB70,\"\",'Bio Ass test Data'!AB70-'Bioavailability Assessment Tool'!AB70)","v":""}]
[null,67,null,null,null,null,null,80,null,7,18,60,{"$f":"IF('Bio Ass test Data'!M71='Bioavailability Assessment Tool'!M71,\"\",'Bio Ass test Data'!M71-'Bioavailability Assessment Tool'!M71)","v":""},{"$f":"IF('Bio Ass test Data'!N71='Bioavailability Assessment Tool'!N71,\"\",'Bio Ass test Data'!N71-'Bioavailability Assessment Tool'!N71)","v":""},{"$f":"IF('Bio Ass test Data'!O71='Bioavailability Assessment Tool'!O71,\"\",'Bio Ass test Data'!O71-'Bioavailability Assessment Tool'!O71)","v":""},{"$f":"IF('Bio Ass test Data'!P71='Bioavailability Assessment Tool'!P71,\"\",'Bio Ass test Data'!P71-'Bioavailability Assessment Tool'!P71)","v":""},{"$f":"IF('Bio Ass test Data'!Q71='Bioavailability Assessment Tool'!Q71,\"\",'Bio Ass test Data'!Q71-'Bioavailability Assessment Tool'!Q71)","v":""},{"$f":"IF('Bio Ass test Data'!R71='Bioavailability Assessment Tool'!R71,\"\",'Bio Ass test Data'!R71-'Bioavailability Assessment Tool'!R71)","v":""},{"$f":"IF('Bio Ass test Data'!S71='Bioavailability Assessment Tool'!S71,\"\",'Bio Ass test Data'!S71-'Bioavailability Assessment Tool'!S71)","v":""},{"$f":"IF('Bio Ass test Data'!T71='Bioavailability Assessment Tool'!T71,\"\",'Bio Ass test Data'!T71-'Bioavailability Assessment Tool'!T71)","v":""},{"$f":"IF('Bio Ass test Data'!U71='Bioavailability Assessment Tool'!U71,\"\",'Bio Ass test Data'!U71-'Bioavailability Assessment Tool'!U71)","v":""},{"$f":"IF('Bio Ass test Data'!V71='Bioavailability Assessment Tool'!V71,\"\",'Bio Ass test Data'!V71-'Bioavailability Assessment Tool'!V71)","v":""},{"$f":"IF('Bio Ass test Data'!W71='Bioavailability Assessment Tool'!W71,\"\",'Bio Ass test Data'!W71-'Bioavailability Assessment Tool'!W71)","v":""},{"$f":"IF('Bio Ass test Data'!X71='Bioavailability Assessment Tool'!X71,\"\",'Bio Ass test Data'!X71-'Bioavailability Assessment Tool'!X71)","v":""},{"$f":"IF('Bio Ass test Data'!Y71='Bioavailability Assessment Tool'!Y71,\"\",'Bio Ass test Data'!Y71-'Bioavailability Assessment Tool'!Y71)","v":""},{"$f":"IF('Bio Ass test Data'!Z71='Bioavailability Assessment Tool'!Z71,\"\",'Bio Ass test Data'!Z71-'Bioavailability Assessment Tool'!Z71)","v":""},{"$f":"IF('Bio Ass test Data'!AA71='Bioavailability Assessment Tool'!AA71,\"\",'Bio Ass test Data'!AA71-'Bioavailability Assessment Tool'!AA71)","v":""},{"$f":"IF('Bio Ass test Data'!AB71='Bioavailability Assessment Tool'!AB71,\"\",'Bio Ass test Data'!AB71-'Bioavailability Assessment Tool'!AB71)","v":""}]
[null,68,null,null,null,null,null,80,null,7,20,60,{"$f":"IF('Bio Ass test Data'!M72='Bioavailability Assessment Tool'!M72,\"\",'Bio Ass test Data'!M72-'Bioavailability Assessment Tool'!M72)","v":""},{"$f":"IF('Bio Ass test Data'!N72='Bioavailability Assessment Tool'!N72,\"\",'Bio Ass test Data'!N72-'Bioavailability Assessment Tool'!N72)","v":""},{"$f":"IF('Bio Ass test Data'!O72='Bioavailability Assessment Tool'!O72,\"\",'Bio Ass test Data'!O72-'Bioavailability Assessment Tool'!O72)","v":""},{"$f":"IF('Bio Ass test Data'!P72='Bioavailability Assessment Tool'!P72,\"\",'Bio Ass test Data'!P72-'Bioavailability Assessment Tool'!P72)","v":""},{"$f":"IF('Bio Ass test Data'!Q72='Bioavailability Assessment Tool'!Q72,\"\",'Bio Ass test Data'!Q72-'Bioavailability Assessment Tool'!Q72)","v":""},{"$f":"IF('Bio Ass test Data'!R72='Bioavailability Assessment Tool'!R72,\"\",'Bio Ass test Data'!R72-'Bioavailability Assessment Tool'!R72)","v":""},{"$f":"IF('Bio Ass test Data'!S72='Bioavailability Assessment Tool'!S72,\"\",'Bio Ass test Data'!S72-'Bioavailability Assessment Tool'!S72)","v":""},{"$f":"IF('Bio Ass test Data'!T72='Bioavailability Assessment Tool'!T72,\"\",'Bio Ass test Data'!T72-'Bioavailability Assessment Tool'!T72)","v":""},{"$f":"IF('Bio Ass test Data'!U72='Bioavailability Assessment Tool'!U72,\"\",'Bio Ass test Data'!U72-'Bioavailability Assessment Tool'!U72)","v":""},{"$f":"IF('Bio Ass test Data'!V72='Bioavailability Assessment Tool'!V72,\"\",'Bio Ass test Data'!V72-'Bioavailability Assessment Tool'!V72)","v":""},{"$f":"IF('Bio Ass test Data'!W72='Bioavailability Assessment Tool'!W72,\"\",'Bio Ass test Data'!W72-'Bioavailability Assessment Tool'!W72)","v":""},{"$f":"IF('Bio Ass test Data'!X72='Bioavailability Assessment Tool'!X72,\"\",'Bio Ass test Data'!X72-'Bioavailability Assessment Tool'!X72)","v":""},{"$f":"IF('Bio Ass test Data'!Y72='Bioavailability Assessment Tool'!Y72,\"\",'Bio Ass test Data'!Y72-'Bioavailability Assessment Tool'!Y72)","v":""},{"$f":"IF('Bio Ass test Data'!Z72='Bioavailability Assessment Tool'!Z72,\"\",'Bio Ass test Data'!Z72-'Bioavailability Assessment Tool'!Z72)","v":""},{"$f":"IF('Bio Ass test Data'!AA72='Bioavailability Assessment Tool'!AA72,\"\",'Bio Ass test Data'!AA72-'Bioavailability Assessment Tool'!AA72)","v":""},{"$f":"IF('Bio Ass test Data'!AB72='Bioavailability Assessment Tool'!AB72,\"\",'Bio Ass test Data'!AB72-'Bioavailability Assessment Tool'!AB72)","v":""}]
[null,69,null,null,null,null,null,80,null,7,21,60,{"$f":"IF('Bio Ass test Data'!M73='Bioavailability Assessment Tool'!M73,\"\",'Bio Ass test Data'!M73-'Bioavailability Assessment Tool'!M73)","v":""},{"$f":"IF('Bio Ass test Data'!N73='Bioavailability Assessment Tool'!N73,\"\",'Bio Ass test Data'!N73-'Bioavailability Assessment Tool'!N73)","v":""},{"$f":"IF('Bio Ass test Data'!O73='Bioavailability Assessment Tool'!O73,\"\",'Bio Ass test Data'!O73-'Bioavailability Assessment Tool'!O73)","v":""},{"$f":"IF('Bio Ass test Data'!P73='Bioavailability Assessment Tool'!P73,\"\",'Bio Ass test Data'!P73-'Bioavailability Assessment Tool'!P73)","v":""},{"$f":"IF('Bio Ass test Data'!Q73='Bioavailability Assessment Tool'!Q73,\"\",'Bio Ass test Data'!Q73-'Bioavailability Assessment Tool'!Q73)","v":""},{"$f":"IF('Bio Ass test Data'!R73='Bioavailability Assessment Tool'!R73,\"\",'Bio Ass test Data'!R73-'Bioavailability Assessment Tool'!R73)","v":""},{"$f":"IF('Bio Ass test Data'!S73='Bioavailability Assessment Tool'!S73,\"\",'Bio Ass test Data'!S73-'Bioavailability Assessment Tool'!S73)","v":""},{"$f":"IF('Bio Ass test Data'!T73='Bioavailability Assessment Tool'!T73,\"\",'Bio Ass test Data'!T73-'Bioavailability Assessment Tool'!T73)","v":""},{"$f":"IF('Bio Ass test Data'!U73='Bioavailability Assessment Tool'!U73,\"\",'Bio Ass test Data'!U73-'Bioavailability Assessment Tool'!U73)","v":""},{"$f":"IF('Bio Ass test Data'!V73='Bioavailability Assessment Tool'!V73,\"\",'Bio Ass test Data'!V73-'Bioavailability Assessment Tool'!V73)","v":""},{"$f":"IF('Bio Ass test Data'!W73='Bioavailability Assessment Tool'!W73,\"\",'Bio Ass test Data'!W73-'Bioavailability Assessment Tool'!W73)","v":""},{"$f":"IF('Bio Ass test Data'!X73='Bioavailability Assessment Tool'!X73,\"\",'Bio Ass test Data'!X73-'Bioavailability Assessment Tool'!X73)","v":""},{"$f":"IF('Bio Ass test Data'!Y73='Bioavailability Assessment Tool'!Y73,\"\",'Bio Ass test Data'!Y73-'Bioavailability Assessment Tool'!Y73)","v":""},{"$f":"IF('Bio Ass test Data'!Z73='Bioavailability Assessment Tool'!Z73,\"\",'Bio Ass test Data'!Z73-'Bioavailability Assessment Tool'!Z73)","v":""},{"$f":"IF('Bio Ass test Data'!AA73='Bioavailability Assessment Tool'!AA73,\"\",'Bio Ass test Data'!AA73-'Bioavailability Assessment Tool'!AA73)","v":""},{"$f":"IF('Bio Ass test Data'!AB73='Bioavailability Assessment Tool'!AB73,\"\",'Bio Ass test Data'!AB73-'Bioavailability Assessment Tool'!AB73)","v":""}]
[null,70,null,null,null,null,15,null,null,7,21,60,{"$f":"IF('Bio Ass test Data'!M74='Bioavailability Assessment Tool'!M74,\"\",'Bio Ass test Data'!M74-'Bioavailability Assessment Tool'!M74)","v":""},{"$f":"IF('Bio Ass test Data'!N74='Bioavailability Assessment Tool'!N74,\"\",'Bio Ass test Data'!N74-'Bioavailability Assessment Tool'!N74)","v":""},{"$f":"IF('Bio Ass test Data'!O74='Bioavailability Assessment Tool'!O74,\"\",'Bio Ass test Data'!O74-'Bioavailability Assessment Tool'!O74)","v":""},{"$f":"IF('Bio Ass test Data'!P74='Bioavailability Assessment Tool'!P74,\"\",'Bio Ass test Data'!P74-'Bioavailability Assessment Tool'!P74)","v":""},{"$f":"IF('Bio Ass test Data'!Q74='Bioavailability Assessment Tool'!Q74,\"\",'Bio Ass test Data'!Q74-'Bioavailability Assessment Tool'!Q74)","v":""},{"$f":"IF('Bio Ass test Data'!R74='Bioavailability Assessment Tool'!R74,\"\",'Bio Ass test Data'!R74-'Bioavailability Assessment Tool'!R74)","v":""},{"$f":"IF('Bio Ass test Data'!S74='Bioavailability Assessment Tool'!S74,\"\",'Bio Ass test Data'!S74-'Bioavailability Assessment Tool'!S74)","v":""},{"$f":"IF('Bio Ass test Data'!T74='Bioavailability Assessment Tool'!T74,\"\",'Bio Ass test Data'!T74-'Bioavailability Assessment Tool'!T74)","v":""},{"$f":"IF('Bio Ass test Data'!U74='Bioavailability Assessment Tool'!U74,\"\",'Bio Ass test Data'!U74-'Bioavailability Assessment Tool'!U74)","v":""},{"$f":"IF('Bio Ass test Data'!V74='Bioavailability Assessment Tool'!V74,\"\",'Bio Ass test Data'!V74-'Bioavailability Assessment Tool'!V74)","v":""},{"$f":"IF('Bio Ass test Data'!W74='Bioavailability Assessment Tool'!W74,\"\",'Bio Ass test Data'!W74-'Bioavailability Assessment Tool'!W74)","v":""},{"$f":"IF('Bio Ass test Data'!X74='Bioavailability Assessment Tool'!X74,\"\",'Bio Ass test Data'!X74-'Bioavailability Assessment Tool'!X74)","v":""},{"$f":"IF('Bio Ass test Data'!Y74='Bioavailability Assessment Tool'!Y74,\"\",'Bio Ass test Data'!Y74-'Bioavailability Assessment Tool'!Y74)","v":""},{"$f":"IF('Bio Ass test Data'!Z74='Bioavailability Assessment Tool'!Z74,\"\",'Bio Ass test Data'!Z74-'Bioavailability Assessment Tool'!Z74)","v":""},{"$f":"IF('Bio Ass test Data'!AA74='Bioavailability Assessment Tool'!AA74,\"\",'Bio Ass test Data'!AA74-'Bioavailability Assessment Tool'!AA74)","v":""},{"$f":"IF('Bio Ass test Data'!AB74='Bioavailability Assessment Tool'!AB74,\"\",'Bio Ass test Data'!AB74-'Bioavailability Assessment Tool'!AB74)","v":""}]
[null,71,null,null,null,null,25,null,null,7,10,60,{"$f":"IF('Bio Ass test Data'!M75='Bioavailability Assessment Tool'!M75,\"\",'Bio Ass test Data'!M75-'Bioavailability Assessment Tool'!M75)","v":""},{"$f":"IF('Bio Ass test Data'!N75='Bioavailability Assessment Tool'!N75,\"\",'Bio Ass test Data'!N75-'Bioavailability Assessment Tool'!N75)","v":""},{"$f":"IF('Bio Ass test Data'!O75='Bioavailability Assessment Tool'!O75,\"\",'Bio Ass test Data'!O75-'Bioavailability Assessment Tool'!O75)","v":""},{"$f":"IF('Bio Ass test Data'!P75='Bioavailability Assessment Tool'!P75,\"\",'Bio Ass test Data'!P75-'Bioavailability Assessment Tool'!P75)","v":""},{"$f":"IF('Bio Ass test Data'!Q75='Bioavailability Assessment Tool'!Q75,\"\",'Bio Ass test Data'!Q75-'Bioavailability Assessment Tool'!Q75)","v":""},{"$f":"IF('Bio Ass test Data'!R75='Bioavailability Assessment Tool'!R75,\"\",'Bio Ass test Data'!R75-'Bioavailability Assessment Tool'!R75)","v":""},{"$f":"IF('Bio Ass test Data'!S75='Bioavailability Assessment Tool'!S75,\"\",'Bio Ass test Data'!S75-'Bioavailability Assessment Tool'!S75)","v":""},{"$f":"IF('Bio Ass test Data'!T75='Bioavailability Assessment Tool'!T75,\"\",'Bio Ass test Data'!T75-'Bioavailability Assessment Tool'!T75)","v":""},{"$f":"IF('Bio Ass test Data'!U75='Bioavailability Assessment Tool'!U75,\"\",'Bio Ass test Data'!U75-'Bioavailability Assessment Tool'!U75)","v":""},{"$f":"IF('Bio Ass test Data'!V75='Bioavailability Assessment Tool'!V75,\"\",'Bio Ass test Data'!V75-'Bioavailability Assessment Tool'!V75)","v":""},{"$f":"IF('Bio Ass test Data'!W75='Bioavailability Assessment Tool'!W75,\"\",'Bio Ass test Data'!W75-'Bioavailability Assessment Tool'!W75)","v":""},{"$f":"IF('Bio Ass test Data'!X75='Bioavailability Assessment Tool'!X75,\"\",'Bio Ass test Data'!X75-'Bioavailability Assessment Tool'!X75)","v":""},{"$f":"IF('Bio Ass test Data'!Y75='Bioavailability Assessment Tool'!Y75,\"\",'Bio Ass test Data'!Y75-'Bioavailability Assessment Tool'!Y75)","v":""},{"$f":"IF('Bio Ass test Data'!Z75='Bioavailability Assessment Tool'!Z75,\"\",'Bio Ass test Data'!Z75-'Bioavailability Assessment Tool'!Z75)","v":""},{"$f":"IF('Bio Ass test Data'!AA75='Bioavailability Assessment Tool'!AA75,\"\",'Bio Ass test Data'!AA75-'Bioavailability Assessment Tool'!AA75)","v":""},{"$f":"IF('Bio Ass test Data'!AB75='Bioavailability Assessment Tool'!AB75,\"\",'Bio Ass test Data'!AB75-'Bioavailability Assessment Tool'!AB75)","v":""}]
[null,72,null,null,null,null,40,null,null,6.6,10,60,{"$f":"IF('Bio Ass test Data'!M76='Bioavailability Assessment Tool'!M76,\"\",'Bio Ass test Data'!M76-'Bioavailability Assessment Tool'!M76)","v":""},{"$f":"IF('Bio Ass test Data'!N76='Bioavailability Assessment Tool'!N76,\"\",'Bio Ass test Data'!N76-'Bioavailability Assessment Tool'!N76)","v":""},{"$f":"IF('Bio Ass test Data'!O76='Bioavailability Assessment Tool'!O76,\"\",'Bio Ass test Data'!O76-'Bioavailability Assessment Tool'!O76)","v":""},{"$f":"IF('Bio Ass test Data'!P76='Bioavailability Assessment Tool'!P76,\"\",'Bio Ass test Data'!P76-'Bioavailability Assessment Tool'!P76)","v":""},{"$f":"IF('Bio Ass test Data'!Q76='Bioavailability Assessment Tool'!Q76,\"\",'Bio Ass test Data'!Q76-'Bioavailability Assessment Tool'!Q76)","v":""},{"$f":"IF('Bio Ass test Data'!R76='Bioavailability Assessment Tool'!R76,\"\",'Bio Ass test Data'!R76-'Bioavailability Assessment Tool'!R76)","v":""},{"$f":"IF('Bio Ass test Data'!S76='Bioavailability Assessment Tool'!S76,\"\",'Bio Ass test Data'!S76-'Bioavailability Assessment Tool'!S76)","v":""},{"$f":"IF('Bio Ass test Data'!T76='Bioavailability Assessment Tool'!T76,\"\",'Bio Ass test Data'!T76-'Bioavailability Assessment Tool'!T76)","v":""},{"$f":"IF('Bio Ass test Data'!U76='Bioavailability Assessment Tool'!U76,\"\",'Bio Ass test Data'!U76-'Bioavailability Assessment Tool'!U76)","v":""},{"$f":"IF('Bio Ass test Data'!V76='Bioavailability Assessment Tool'!V76,\"\",'Bio Ass test Data'!V76-'Bioavailability Assessment Tool'!V76)","v":""},{"$f":"IF('Bio Ass test Data'!W76='Bioavailability Assessment Tool'!W76,\"\",'Bio Ass test Data'!W76-'Bioavailability Assessment Tool'!W76)","v":""},{"$f":"IF('Bio Ass test Data'!X76='Bioavailability Assessment Tool'!X76,\"\",'Bio Ass test Data'!X76-'Bioavailability Assessment Tool'!X76)","v":""},{"$f":"IF('Bio Ass test Data'!Y76='Bioavailability Assessment Tool'!Y76,\"\",'Bio Ass test Data'!Y76-'Bioavailability Assessment Tool'!Y76)","v":""},{"$f":"IF('Bio Ass test Data'!Z76='Bioavailability Assessment Tool'!Z76,\"\",'Bio Ass test Data'!Z76-'Bioavailability Assessment Tool'!Z76)","v":""},{"$f":"IF('Bio Ass test Data'!AA76='Bioavailability Assessment Tool'!AA76,\"\",'Bio Ass test Data'!AA76-'Bioavailability Assessment Tool'!AA76)","v":""},{"$f":"IF('Bio Ass test Data'!AB76='Bioavailability Assessment Tool'!AB76,\"\",'Bio Ass test Data'!AB76-'Bioavailability Assessment Tool'!AB76)","v":""}]

{"sheet":"Bioavailability Assessment Tool","index":11,"n_rows":7,"n_cols":28,"rows_kept":7,"cut":false,"hidden":true,"merged":[]}
[]
[]
[null,"INPUT DATA",null,null,null,null,null,null,null,null,null,null,"RESULTS (Copper)",null,null,null,"RESULTS (Zinc)",null,null,null,"RESULTS (Mn)",null,null,null,"RESULTS (Ni)"]
[{"$f":"SUM(ModelConstantsNi!D$7:D$26*(6^ModelConstantsNi!E$7:E$26)*(20^ModelConstantsNi!F$7:F$26)*(88^ModelConstantsNi!G$7:G$26))","v":42.522378227780621},"ID","Location","Waterbody","Date","Measured Cu Concentration (dissolved) (µg l-1)","Measured Zn Concentration (dissolved) (µg l-1)","Measured Mn Concentration (dissolved) (µg l-1)","Measured Ni Concentration (dissolved) (µg l-1)","pH","DOC","Ca","Site-specific PNEC Dissolved Copper \n(µg l-1)","BioF","Bioavailable Copper Concentration (µg l-1)","Risk Characterisation Ratio","Site-specific PNEC Dissolved Zinc (µg l-1)","BioF","Bioavailable Zinc Concentration (µg l-1)","Risk Characterisation Ratio","Site-specific PNEC Dissolved Manganese (µg l-1)","BioF","Bioavailable Manganese Concentration (µg l-1)","Risk Characterisation Ratio","Site-specific PNEC Dissolved Nickel (µg l-1)","BioF","Bioavailable Nickel Concentration (µg l-1)","Risk Characterisation Ratio"]
[null,1,"Sizewell - Average values from baseline surface water data ",null,"2024-02-27",null,null,null,null,8.02,10.36,144.30000000000001,28.626289952327625,3.4932923605026547E-2,null,null,48.08405503675823,0.2266863722634751,null,null,211.21386199549829,0.5823481415373275,null,null,16.856082349163199,0.23730306468267673]
[null,null,"(G3-G7) used for pH and calcium with a median value adopted"]
[null,null," for DOC."]

{"sheet":"IntermediateResultsCu","index":12,"n_rows":1004,"n_cols":8,"rows_kept":1004,"cut":false,"hidden":true,"merged":[]}
[]
[]
[]
["ID","Constant (a)","Constant (b)","Constant (c )","Constant (d)","Constant (e)","Constant (f)","Constant (g)"]
[1]
[2]
[3]
[4]
[5]
[6]
[7]
[8]
[9]
[10]
[11]
[12]
[13]
[14]
[15]
[16]
[17]
[18]
[19]
[20]
[21]
[22]
[23]
[24]
[25]
[26]
[27]
[28]
[29]
[30]
[31]
[32]
[33]
[34]
[35]
[36]
[37]
[38]
[39]
[40]
[41]
[42]
[43]
[44]
[45]
[46]
[47]
[48]
[49]
[50]
[51]
[52]
[53]
[54]
[55]
[56]
[57]
[58]
[59]
[60]
[61]
[62]
[63]
[64]
[65]
[66]
[67]
[68]
[69]
[70]
[71]
[72]
[73]
[74]
[75]
[76]
[77]
[78]
[79]
[80]
[81]
[82]
[83]
[84]
[85]
[86]
[87]
[88]
[89]
[90]
[91]
[92]
[93]
[94]
[95]
[96]
[97]
[98]
[99]
[100]
[101]
[102]
[103]
[104]
[105]
[106]
[107]
[108]
[109]
[110]
[111]
[112]
[113]
[114]
[115]
[116]
[117]
[118]
[119]
[120]
[121]
[122]
[123]
[124]
[125]
[126]
[127]
[128]
[129]
[130]
[131]
[132]
[133]
[134]
[135]
[136]
[137]
[138]
[139]
[140]
[141]
[142]
[143]
[144]
[145]
[146]
[147]
[148]
[149]
[150]
[151]
[152]
[153]
[154]
[155]
[156]
[157]
[158]
[159]
[160]
[161]
[162]
[163]
[164]
[165]
[166]
[167]
[168]
[169]
[170]
[171]
[172]
[173]
[174]
[175]
[176]
[177]
[178]
[179]
[180]
[181]
[182]
[183]
[184]
[185]
[186]
[187]
[188]
[189]
[190]
[191]
[192]
[193]
[194]
[195]
[196]
[197]
[198]
[199]
[200]
[201]
[202]
[203]
[204]
[205]
[206]
[207]
[208]
[209]
[210]
[211]
[212]
[213]
[214]
[215]
[216]
[217]
[218]
[219]
[220]
[221]
[222]
[223]
[224]
[225]
[226]
[227]
[228]
[229]
[230]
[231]
[232]
[233]
[234]
[235]
[236]
[237]
[238]
[239]
[240]
[241]
[242]
[243]
[244]
[245]
[246]
[247]
[248]
[249]
[250]
[251]
[252]
[253]
[254]
[255]
[256]
[257]
[258]
[259]
[260]
[261]
[262]
[263]
[264]
[265]
[266]
[267]
[268]
[269]
[270]
[271]
[272]
[273]
[274]
[275]
[276]
[277]
[278]
[279]
[280]
[281]
[282]
[283]
[284]
[285]
[286]
[287]
[288]
[289]
[290]
[291]
[292]
[293]
[294]
[295]
[296]
[297]
[298]
[299]
[300]
[301]
[302]
[303]
[304]
[305]
[306]
[307]
[308]
[309]
[310]
[311]
[312]
[313]
[314]
[315]
[316]
[317]
[318]
[319]
[320]
[321]
[322]
[323]
[324]
[325]
[326]
[327]
[328]
[329]
[330]
[331]
[332]
[333]
[334]
[335]
[336]
[337]
[338]
[339]
[340]
[341]
[342]
[343]
[344]
[345]
[346]
[347]
[348]
[349]
[350]
[351]
[352]
[353]
[354]
[355]
[356]
[357]
[358]
[359]
[360]
[361]
[362]
[363]
[364]
[365]
[366]
[367]
[368]
[369]
[370]
[371]
[372]
[373]
[374]
[375]
[376]
[377]
[378]
[379]
[380]
[381]
[382]
[383]
[384]
[385]
[386]
[387]
[388]
[389]
[390]
[391]
[392]
[393]
[394]
[395]
[396]
[397]
[398]
[399]
[400]
[401]
[402]
[403]
[404]
[405]
[406]
[407]
[408]
[409]
[410]
[411]
[412]
[413]
[414]
[415]
[416]
[417]
[418]
[419]
[420]
[421]
[422]
[423]
[424]
[425]
[426]
[427]
[428]
[429]
[430]
[431]
[432]
[433]
[434]
[435]
[436]
[437]
[438]
[439]
[440]
[441]
[442]
[443]
[444]
[445]
[446]
[447]
[448]
[449]
[450]
[451]
[452]
[453]
[454]
[455]
[456]
[457]
[458]
[459]
[460]
[461]
[462]
[463]
[464]
[465]
[466]
[467]
[468]
[469]
[470]
[471]
[472]
[473]
[474]
[475]
[476]
[477]
[478]
[479]
[480]
[481]
[482]
[483]
[484]
[485]
[486]
[487]
[488]
[489]
[490]
[491]
[492]
[493]
[494]
[495]
[496]
[497]
[498]
[499]
[500]
[501]
[502]
[503]
[504]
[505]
[506]
[507]
[508]
[509]
[510]
[511]
[512]
[513]
[514]
[515]
[516]
[517]
[518]
[519]
[520]
[521]
[522]
[523]
[524]
[525]
[526]
[527]
[528]
[529]
[530]
[531]
[532]
[533]
[534]
[535]
[536]
[537]
[538]
[539]
[540]
[541]
[542]
[543]
[544]
[545]
[546]
[547]
[548]
[549]
[550]
[551]
[552]
[553]
[554]
[555]
[556]
[557]
[558]
[559]
[560]
[561]
[562]
[563]
[564]
[565]
[566]
[567]
[568]
[569]
[570]
[571]
[572]
[573]
[574]
[575]
[576]
[577]
[578]
[579]
[580]
[581]
[582]
[583]
[584]
[585]
[586]
[587]
[588]
[589]
[590]
[591]
[592]
[593]
[594]
[595]
[596]
[597]
[598]
[599]
[600]
[601]
[602]
[603]
[604]
[605]
[606]
[607]
[608]
[609]
[610]
[611]
[612]
[613]
[614]
[615]
[616]
[617]
[618]
[619]
[620]
[621]
[622]
[623]
[624]
[625]
[626]
[627]
[628]
[629]
[630]
[631]
[632]
[633]
[634]
[635]
[636]
[637]
[638]
[639]
[640]
[641]
[642]
[643]
[644]
[645]
[646]
[647]
[648]
[649]
[650]
[651]
[652]
[653]
[654]
[655]
[656]
[657]
[658]
[659]
[660]
[661]
[662]
[663]
[664]
[665]
[666]
[667]
[668]
[669]
[670]
[671]
[672]
[673]
[674]
[675]
[676]
[677]
[678]
[679]
[680]
[681]
[682]
[683]
[684]
[685]
[686]
[687]
[688]
[689]
[690]
[691]
[692]
[693]
[694]
[695]
[696]
[697]
[698]
[699]
[700]
[701]
[702]
[703]
[704]
[705]
[706]
[707]
[708]
[709]
[710]
[711]
[712]
[713]
[714]
[715]
[716]
[717]
[718]
[719]
[720]
[721]
[722]
[723]
[724]
[725]
[726]
[727]
[728]
[729]
[730]
[731]
[732]
[733]
[734]
[735]
[736]
[737]
[738]
[739]
[740]
[741]
[742]
[743]
[744]
[745]
[746]
[747]
[748]
[749]
[750]
[751]
[752]
[753]
[754]
[755]
[756]
[757]
[758]
[759]
[760]
[761]
[762]
[763]
[764]
[765]
[766]
[767]
[768]
[769]
[770]
[771]
[772]
[773]
[774]
[775]
[776]
[777]
[778]
[779]
[780]
[781]
[782]
[783]
[784]
[785]
[786]
[787]
[788]
[789]
[790]
[791]
[792]
[793]
[794]
[795]
[796]
[797]
[798]
[799]
[800]
[801]
[802]
[803]
[804]
[805]
[806]
[807]
[808]
[809]
[810]
[811]
[812]
[813]
[814]
[815]
[816]
[817]
[818]
[819]
[820]
[821]
[822]
[823]
[824]
[825]
[826]
[827]
[828]
[829]
[830]
[831]
[832]
[833]
[834]
[835]
[836]
[837]
[838]
[839]
[840]
[841]
[842]
[843]
[844]
[845]
[846]
[847]
[848]
[849]
[850]
[851]
[852]
[853]
[854]
[855]
[856]
[857]
[858]
[859]
[860]
[861]
[862]
[863]
[864]
[865]
[866]
[867]
[868]
[869]
[870]
[871]
[872]
[873]
[874]
[875]
[876]
[877]
[878]
[879]
[880]
[881]
[882]
[883]
[884]
[885]
[886]
[887]
[888]
[889]
[890]
[891]
[892]
[893]
[894]
[895]
[896]
[897]
[898]
[899]
[900]
[901]
[902]
[903]
[904]
[905]
[906]
[907]
[908]
[909]
[910]
[911]
[912]
[913]
[914]
[915]
[916]
[917]
[918]
[919]
[920]
[921]
[922]
[923]
[924]
[925]
[926]
[927]
[928]
[929]
[930]
[931]
[932]
[933]
[934]
[935]
[936]
[937]
[938]
[939]
[940]
[941]
[942]
[943]
[944]
[945]
[946]
[947]
[948]
[949]
[950]
[951]
[952]
[953]
[954]
[955]
[956]
[957]
[958]
[959]
[960]
[961]
[962]
[963]
[964]
[965]
[966]
[967]
[968]
[969]
[970]
[971]
[972]
[973]
[974]
[975]
[976]
[977]
[978]
[979]
[980]
[981]
[982]
[983]
[984]
[985]
[986]
[987]
[988]
[989]
[990]
[991]
[992]
[993]
[994]
[995]
[996]
[997]
[998]
[999]
[1000]

{"sheet":"IntermediateResultsZn","index":13,"n_rows":1004,"n_cols":9,"rows_kept":1004,"cut":false,"hidden":true,"merged":[]}
[]
[]
[]
["ID","Constant (a)","Constant (b)","Constant (c )","Constant (d)","Constant (e)","Constant (f)","Constant (g)","Constant (h)"]
[1]
[2]
[3]
[4]
[5]
[6]
[7]
[8]
[9]
[10]
[11]
[12]
[13]
[14]
[15]
[16]
[17]
[18]
[19]
[20]
[21]
[22]
[23]
[24]
[25]
[26]
[27]
[28]
[29]
[30]
[31]
[32]
[33]
[34]
[35]
[36]
[37]
[38]
[39]
[40]
[41]
[42]
[43]
[44]
[45]
[46]
[47]
[48]
[49]
[50]
[51]
[52]
[53]
[54]
[55]
[56]
[57]
[58]
[59]
[60]
[61]
[62]
[63]
[64]
[65]
[66]
[67]
[68]
[69]
[70]
[71]
[72]
[73]
[74]
[75]
[76]
[77]
[78]
[79]
[80]
[81]
[82]
[83]
[84]
[85]
[86]
[87]
[88]
[89]
[90]
[91]
[92]
[93]
[94]
[95]
[96]
[97]
[98]
[99]
[100]
[101]
[102]
[103]
[104]
[105]
[106]
[107]
[108]
[109]
[110]
[111]
[112]
[113]
[114]
[115]
[116]
[117]
[118]
[119]
[120]
[121]
[122]
[123]
[124]
[125]
[126]
[127]
[128]
[129]
[130]
[131]
[132]
[133]
[134]
[135]
[136]
[137]
[138]
[139]
[140]
[141]
[142]
[143]
[144]
[145]
[146]
[147]
[148]
[149]
[150]
[151]
[152]
[153]
[154]
[155]
[156]
[157]
[158]
[159]
[160]
[161]
[162]
[163]
[164]
[165]
[166]
[167]
[168]
[169]
[170]
[171]
[172]
[173]
[174]
[175]
[176]
[177]
[178]
[179]
[180]
[181]
[182]
[183]
[184]
[185]
[186]
[187]
[188]
[189]
[190]
[191]
[192]
[193]
[194]
[195]
[196]
[197]
[198]
[199]
[200]
[201]
[202]
[203]
[204]
[205]
[206]
[207]
[208]
[209]
[210]
[211]
[212]
[213]
[214]
[215]
[216]
[217]
[218]
[219]
[220]
[221]
[222]
[223]
[224]
[225]
[226]
[227]
[228]
[229]
[230]
[231]
[232]
[233]
[234]
[235]
[236]
[237]
[238]
[239]
[240]
[241]
[242]
[243]
[244]
[245]
[246]
[247]
[248]
[249]
[250]
[251]
[252]
[253]
[254]
[255]
[256]
[257]
[258]
[259]
[260]
[261]
[262]
[263]
[264]
[265]
[266]
[267]
[268]
[269]
[270]
[271]
[272]
[273]
[274]
[275]
[276]
[277]
[278]
[279]
[280]
[281]
[282]
[283]
[284]
[285]
[286]
[287]
[288]
[289]
[290]
[291]
[292]
[293]
[294]
[295]
[296]
[297]
[298]
[299]
[300]
[301]
[302]
[303]
[304]
[305]
[306]
[307]
[308]
[309]
[310]
[311]
[312]
[313]
[314]
[315]
[316]
[317]
[318]
[319]
[320]
[321]
[322]
[323]
[324]
[325]
[326]
[327]
[328]
[329]
[330]
[331]
[332]
[333]
[334]
[335]
[336]
[337]
[338]
[339]
[340]
[341]
[342]
[343]
[344]
[345]
[346]
[347]
[348]
[349]
[350]
[351]
[352]
[353]
[354]
[355]
[356]
[357]
[358]
[359]
[360]
[361]
[362]
[363]
[364]
[365]
[366]
[367]
[368]
[369]
[370]
[371]
[372]
[373]
[374]
[375]
[376]
[377]
[378]
[379]
[380]
[381]
[382]
[383]
[384]
[385]
[386]
[387]
[388]
[389]
[390]
[391]
[392]
[393]
[394]
[395]
[396]
[397]
[398]
[399]
[400]
[401]
[402]
[403]
[404]
[405]
[406]
[407]
[408]
[409]
[410]
[411]
[412]
[413]
[414]
[415]
[416]
[417]
[418]
[419]
[420]
[421]
[422]
[423]
[424]
[425]
[426]
[427]
[428]
[429]
[430]
[431]
[432]
[433]
[434]
[435]
[436]
[437]
[438]
[439]
[440]
[441]
[442]
[443]
[444]
[445]
[446]
[447]
[448]
[449]
[450]
[451]
[452]
[453]
[454]
[455]
[456]
[457]
[458]
[459]
[460]
[461]
[462]
[463]
[464]
[465]
[466]
[467]
[468]
[469]
[470]
[471]
[472]
[473]
[474]
[475]
[476]
[477]
[478]
[479]
[480]
[481]
[482]
[483]
[484]
[485]
[486]
[487]
[488]
[489]
[490]
[491]
[492]
[493]
[494]
[495]
[496]
[497]
[498]
[499]
[500]
[501]
[502]
[503]
[504]
[505]
[506]
[507]
[508]
[509]
[510]
[511]
[512]
[513]
[514]
[515]
[516]
[517]
[518]
[519]
[520]
[521]
[522]
[523]
[524]
[525]
[526]
[527]
[528]
[529]
[530]
[531]
[532]
[533]
[534]
[535]
[536]
[537]
[538]
[539]
[540]
[541]
[542]
[543]
[544]
[545]
[546]
[547]
[548]
[549]
[550]
[551]
[552]
[553]
[554]
[555]
[556]
[557]
[558]
[559]
[560]
[561]
[562]
[563]
[564]
[565]
[566]
[567]
[568]
[569]
[570]
[571]
[572]
[573]
[574]
[575]
[576]
[577]
[578]
[579]
[580]
[581]
[582]
[583]
[584]
[585]
[586]
[587]
[588]
[589]
[590]
[591]
[592]
[593]
[594]
[595]
[596]
[597]
[598]
[599]
[600]
[601]
[602]
[603]
[604]
[605]
[606]
[607]
[608]
[609]
[610]
[611]
[612]
[613]
[614]
[615]
[616]
[617]
[618]
[619]
[620]
[621]
[622]
[623]
[624]
[625]
[626]
[627]
[628]
[629]
[630]
[631]
[632]
[633]
[634]
[635]
[636]
[637]
[638]
[639]
[640]
[641]
[642]
[643]
[644]
[645]
[646]
[647]
[648]
[649]
[650]
[651]
[652]
[653]
[654]
[655]
[656]
[657]
[658]
[659]
[660]
[661]
[662]
[663]
[664]
[665]
[666]
[667]
[668]
[669]
[670]
[671]
[672]
[673]
[674]
[675]
[676]
[677]
[678]
[679]
[680]
[681]
[682]
[683]
[684]
[685]
[686]
[687]
[688]
[689]
[690]
[691]
[692]
[693]
[694]
[695]
[696]
[697]
[698]
[699]
[700]
[701]
[702]
[703]
[704]
[705]
[706]
[707]
[708]
[709]
[710]
[711]
[712]
[713]
[714]
[715]
[716]
[717]
[718]
[719]
[720]
[721]
[722]
[723]
[724]
[725]
[726]
[727]
[728]
[729]
[730]
[731]
[732]
[733]
[734]
[735]
[736]
[737]
[738]
[739]
[740]
[741]
[742]
[743]
[744]
[745]
[746]
[747]
[748]
[749]
[750]
[751]
[752]
[753]
[754]
[755]
[756]
[757]
[758]
[759]
[760]
[761]
[762]
[763]
[764]
[765]
[766]
[767]
[768]
[769]
[770]
[771]
[772]
[773]
[774]
[775]
[776]
[777]
[778]
[779]
[780]
[781]
[782]
[783]
[784]
[785]
[786]
[787]
[788]
[789]
[790]
[791]
[792]
[793]
[794]
[795]
[796]
[797]
[798]
[799]
[800]
[801]
[802]
[803]
[804]
[805]
[806]
[807]
[808]
[809]
[810]
[811]
[812]
[813]
[814]
[815]
[816]
[817]
[818]
[819]
[820]
[821]
[822]
[823]
[824]
[825]
[826]
[827]
[828]
[829]
[830]
[831]
[832]
[833]
[834]
[835]
[836]
[837]
[838]
[839]
[840]
[841]
[842]
[843]
[844]
[845]
[846]
[847]
[848]
[849]
[850]
[851]
[852]
[853]
[854]
[855]
[856]
[857]
[858]
[859]
[860]
[861]
[862]
[863]
[864]
[865]
[866]
[867]
[868]
[869]
[870]
[871]
[872]
[873]
[874]
[875]
[876]
[877]
[878]
[879]
[880]
[881]
[882]
[883]
[884]
[885]
[886]
[887]
[888]
[889]
[890]
[891]
[892]
[893]
[894]
[895]
[896]
[897]
[898]
[899]
[900]
[901]
[902]
[903]
[904]
[905]
[906]
[907]
[908]
[909]
[910]
[911]
[912]
[913]
[914]
[915]
[916]
[917]
[918]
[919]
[920]
[921]
[922]
[923]
[924]
[925]
[926]
[927]
[928]
[929]
[930]
[931]
[932]
[933]
[934]
[935]
[936]
[937]
[938]
[939]
[940]
[941]
[942]
[943]
[944]
[945]
[946]
[947]
[948]
[949]
[950]
[951]
[952]
[953]
[954]
[955]
[956]
[957]
[958]
[959]
[960]
[961]
[962]
[963]
[964]
[965]
[966]
[967]
[968]
[969]
[970]
[971]
[972]
[973]
[974]
[975]
[976]
[977]
[978]
[979]
[980]
[981]
[982]
[983]
[984]
[985]
[986]
[987]
[988]
[989]
[990]
[991]
[992]
[993]
[994]
[995]
[996]
[997]
[998]
[999]
[1000]

{"sheet":"IntermediateResultsMn","index":14,"n_rows":5,"n_cols":11,"rows_kept":5,"cut":false,"hidden":true,"merged":[]}
[]
[]
[]
["ID","Constant (a)","Constant (b)","Constant (c )","Constant (d)","Constant (e)","Constant (f)","Constant (g)","Constant (h)","Constant (i)","Constant (j)"]
[1,{"$f":"MnConA6","v":-2.1831800000000001},{"$f":"MnConB6","v":0.41708000000000001},{"$f":"MnConC6","v":1.4086730000000001},{"$f":"MnConD6","v":1.3308489999999999},{"$f":"MnConE6","v":0.89605999999999997},{"$f":"MnConF6","v":0.88229199999999997},{"$f":"MnConG6","v":0.53675799999999996},{"$f":"MnConH6","v":-0.14474000000000001},{"$f":"MnConI6","v":-0.84075},{"$f":"MnConJ6","v":6.4689940000000004}]

{"sheet":"IntermediateResultsNi","index":15,"n_rows":26,"n_cols":11,"rows_kept":26,"cut":false,"hidden":true,"merged":[]}
[]
[]
[]
["ID","Constant (a)","Constant (b)","Constant (c )","Constant (d)","Constant (e)","Constant (f)","Constant (g)","Constant (h)","Constant (i)","Constant (j)"]
[1]
[2]
[3]
[4]
[5]
[6]
[7]
[8]
[9]
[10]
[11]
[12]
[13]
[14]
[15]
[16]
[17]
[18]
[19]
[20]
[21]
[22]

{"sheet":"ModelConstantsCu","index":16,"n_rows":84,"n_cols":6,"rows_kept":84,"cut":false,"hidden":true,"merged":[]}
[]
[]
[null,"Formula",null,"Constants"]
[null,"Hover here to view",null,"ID","Name","Value"]
[null,null,null,0,"m_433",1.8705533897888505E-9]
[null,null,null,1,"m_432",-2.1670299845251724E-6]
[null,null,null,2,"m_431",6.246362855169196E-4]
[null,null,null,3,"m_430",-3.5848524507147705E-3]
[null,null,null,4,"m_423",-2.0236296658104705E-8]
[null,null,null,5,"m_422",2.4885831229026741E-5]
[null,null,null,6,"m_421",-7.5997493912626501E-3]
[null,null,null,7,"m_420",3.93642350016708E-2]
[null,null,null,8,"m_413",5.5821235743783277E-8]
[null,null,null,9,"m_412",-6.9926413072972591E-5]
[null,null,null,10,"m_411",2.3185948608520437E-2]
[null,null,null,11,"m_410",0.92276807545103889]
[null,null,null,12,"m_403",-3.512524532365354E-8]
[null,null,null,13,"m_402",3.8378587644604809E-5]
[null,null,null,14,"m_401",-1.1334634474440606E-2]
[null,null,null,15,"m_400",-1.581435186819663E-2]
[null,null,null,16,"m_333",-5.6086637669013209E-8]
[null,null,null,17,"m_332",6.4368808950994777E-5]
[null,null,null,18,"m_331",-1.839644306346681E-2]
[null,null,null,19,"m_330",0.10887683732125242]
[null,null,null,20,"m_323",6.1057479380265865E-7]
[null,null,null,21,"m_322",-7.4206455870701464E-4]
[null,null,null,22,"m_321",0.22439469239327509]
[null,null,null,23,"m_320",-1.2393136301943448]
[null,null,null,24,"m_313",-1.6856807764497382E-6]
[null,null,null,25,"m_312",2.0832516615856937E-3]
[null,null,null,26,"m_311",-0.68222597609000668]
[null,null,null,27,"m_310",-26.832544489159755]
[null,null,null,28,"m_303",1.0542325674465544E-6]
[null,null,null,29,"m_302",-1.1435439176990046E-3]
[null,null,null,30,"m_301",0.33491055670033959]
[null,null,null,31,"m_300",0.37032689903919724]
[null,null,null,32,"m_233",6.2862620986715273E-7]
[null,null,null,33,"m_232",-7.1403019825282815E-4]
[null,null,null,34,"m_231",0.20216831072176158]
[null,null,null,35,"m_230",-1.2311767181331161]
[null,null,null,36,"m_223",-6.8941539472304716E-6]
[null,null,null,37,"m_222",8.2685081808241759E-3]
[null,null,null,38,"m_221",-2.4729298080710667]
[null,null,null,39,"m_220",14.487558698613299]
[null,null,null,40,"m_213",1.9043052507184954E-5]
[null,null,null,41,"m_212",-2.3184060834507365E-2]
[null,null,null,42,"m_211",7.488330745548887]
[null,null,null,43,"m_210",289.31558722942583]
[null,null,null,44,"m_203",-1.1816800850150017E-5]
[null,null,null,45,"m_202",1.2715635394739891E-2]
[null,null,null,46,"m_201",-3.6900521447691785]
[null,null,null,47,"m_200",-2.7043421929456741]
[null,null,null,48,"m_133",-3.1200685985831714E-6]
[null,null,null,49,"m_132",3.5048742427281321E-3]
[null,null,null,50,"m_131",-0.98244835651835927]
[null,null,null,51,"m_130",6.1386811092104843]
[null,null,null,52,"m_123",3.4507676420165201E-5]
[null,null,null,53,"m_122",-4.0793663580070735E-2]
[null,null,null,54,"m_121",12.054546827404026]
[null,null,null,55,"m_120",-74.490072048570994]
[null,null,null,56,"m_113",-9.5360026483990316E-5]
[null,null,null,57,"m_112",0.11422491120149283]
[null,null,null,58,"m_111",-36.342550012444129]
[null,null,null,59,"m_110",-1370.1194545353214]
[null,null,null,60,"m_103",5.8617373592654769E-5]
[null,null,null,61,"m_102",-6.2531480121907471E-2]
[null,null,null,62,"m_101",17.968060827992097]
[null,null,null,63,"m_100",4.9447991758460148]
[null,null,null,64,"m_033",5.7796391279338977E-6]
[null,null,null,65,"m_032",-6.418885758248582E-3]
[null,null,null,66,"m_031",1.7806751718670286]
[null,null,null,67,"m_030",-11.381641883161159]
[null,null,null,68,"m_023",-6.4508480401566007E-5]
[null,null,null,69,"m_022",7.5126335224848198E-2]
[null,null,null,70,"m_021",-21.921735277765681]
[null,null,null,71,"m_020",142.12642956842137]
[null,null,null,72,"m_013",1.7832125365491828E-4]
[null,null,null,73,"m_012",-0.21004638019666283]
[null,null,null,74,"m_011",65.783854319233413]
[null,null,null,75,"m_010",2406.1463699723863]
[null,null,null,76,"m_003",-1.0847710593685549E-4]
[null,null,null,77,"m_002",0.11468389969367465]
[null,null,null,78,"m_001",-32.616949460051558]
[null,null,null,79,"m_000",8.7924037677694287]

{"sheet":"ModelConstantsZn","index":17,"n_rows":18,"n_cols":4,"rows_kept":18,"cut":false,"hidden":true,"merged":[]}
[]
[]
[null,"In the Equation"]
[null,"PNEC = ((A * pH + (B)) *LN (Ca) + (C * pH + D)) * DOC^2 + ((E * pH + (F)) * LN (Ca) + (G * pH + (H)))  * DOC + ((I * pH + J) * LN (Ca) + (K * pH + (L))) "]
[]
[]
[null,"A",null,4.8760000000000001E-3]
[null,"B",null,-3.508E-2]
[null,"C",null,-6.2199999999999998E-3]
[null,"D",null,6.3950000000000007E-2]
[null,"E",null,8.9024000000000006E-2]
[null,"F",null,-1.2319500000000001]
[null,"G",null,1.111861]
[null,"H",null,-3.36775]
[null,"I",null,-0.76054999999999995]
[null,"J",null,9.3078310000000002]
[null,"K",null,-0.17649999999999999]
[null,"L",null,-0.63863999999999999]

{"sheet":"ModelConstantsNi","index":18,"n_rows":26,"n_cols":7,"rows_kept":26,"cut":false,"hidden":true,"merged":[]}
[]
[]
[null,"In the Equation"]
[null,"fnCuEstimatedPNEC =A * pH ^ 3 +B * pH ^ 2 * DOC +C * pH ^ 2 * Ca + D * pH ^ 2 + E * pH * DOC ^ 2 + F * pH * DOC * Ca + G * pH * DOC + H * pH * Ca ^ 2 + I * pH * Ca + J * pH + K * DOC ^ 3 + L* DOC ^ 2 * Ca + M* DOC ^ 2 + N * DOC * Ca ^ 2 + O * DOC * Ca + P * DOC +Q * Ca ^ 3 + R * Ca ^ 2+ S* Ca + T "]
[{"$f":"SUM(ModelConstantsNi!D$7:D$26*(6^ModelConstantsNi!E$7:E$26)*(0.5^ModelConstantsNi!F$7:F$26)*(2^ModelConstantsNi!G$7:G$26))","v":11.86542164630481}]
[null,null,null,null,"ph","doc","Ca"]
[null,"A",null,-0.56967982318224297,3,0,0]
[null,"B",null,-0.54644222088118599,2,1,0]
[null,"C",null,1.7873574212144999E-2,2,0,1]
[null,"D",null,13.913917047546301,2,0,0]
[null,"E",null,6.7747879306327198E-4,1,2,0]
[null,"F",null,-2.3513399713246301E-3,1,1,1]
[null,"G",null,8.1312683310178002,1,1,0]
[null,"H",null,7.4378779860930595E-4,1,0,2]
[null,"I",null,-0.40890385924325601,1,0,1]
[null,"J",null,-114.841714537138,1,0,0]
[null,"K",null,2.0713590098744499E-5,0,3,0]
[null,"L",null,2.6355657172884701E-5,0,2,1]
[null,"M",null,-7.6885733362762297E-3,0,2,0]
[null,"N",null,3.8920553249176699E-4,0,1,2]
[null,"O",null,-2.45331646917477E-2,0,1,1]
[null,"P",null,-28.075457573396001,0,1,0]
[null,"Q",null,-6.0045094546515499E-5,0,0,3]
[null,"R",null,1.24576134400644E-3,0,0,2]
[null,"S",null,1.9861717191813699,0,0,1]
[null,"T",null,322.209425623404,0,0,0]

{"sheet":"ModelConstantsMn","index":19,"n_rows":98,"n_cols":6,"rows_kept":98,"cut":false,"hidden":true,"merged":[]}
[]
[]
[]
[null,"(a) in formula (((a*DOC)+b)/((c*(pH^2))-(e*pH)+e)+(f*(Ca^g))+h",null,null,"(i) in formula (10^((i*pH)+j))"]
[null,"Calcium band","Fish Equation Constants",null,"Calcium band","Algal Equation Constants"]
[null,"1 to <6",-2.1872799999999999,null,"1 to <6",-0.88246999999999998]
[null,"6 to <24",-2.1861600000000001,null,"6 to <24",-0.88246999999999998]
[null,"24 to <70",-2.1859199999999999,null,"24 to <70",-0.88246999999999998]
[null,"70 to < 90",-2.18499,null,"70 to < 90",-0.84075]
[null,"90 to <105",-2.18607,null,"90 to <105",-0.84075]
[null,"105 to < 150",-2.1831800000000001,null,"105 to < 150",-0.84075]
[null,"150 to < 170",-2.1828099999999999,null,"150 to < 170",-0.84075]
[null,"170 to < 190",-2.18743,null,"170 to < 190",-0.84075]
[null,"190 to 200",-2.1880199999999999,null,"190 to 200",-0.84075]
[]
[null,"(b) in formula (((a*DOC)+b)/((c*(pH^2))-(e*pH)+e)+(f*(Ca^g))+h",null,null,"(j) in formula (10^((i*pH)+j))"]
[null,"Calcium band","Fish Equation Constants",null,"Calcium band","Algal Equation Constants"]
[null,"1 to <6",0.40887699999999999,null,"1 to <6",6.5329389999999998]
[null,"6 to <24",0.41110799999999997,null,"6 to <24",6.5329389999999998]
[null,"24 to <70",0.41159699999999999,null,"24 to <70",6.5329389999999998]
[null,"70 to < 90",0.41344900000000001,null,"70 to < 90",6.4689940000000004]
[null,"90 to <105",0.41129100000000002,null,"90 to <105",6.4689940000000004]
[null,"105 to < 150",0.41708000000000001,null,"105 to < 150",6.4689940000000004]
[null,"150 to < 170",0.41780600000000001,null,"150 to < 170",6.4689940000000004]
[null,"170 to < 190",0.40857199999999999,null,"170 to < 190",6.4689940000000004]
[null,"190 to 200",0.40740399999999999,null,"190 to 200",6.4689940000000004]
[]
[null,"(c) in formula (((a*DOC)+b)/((c*(pH^2))-(e*pH)+e)+(f*(Ca^g))+h"]
[null,"Calcium band","Fish Equation Constants"]
[null,"1 to <6",1.4039759999999999]
[null,"6 to <24",1.4052519999999999]
[null,"24 to <70",1.4055329999999999]
[null,"70 to < 90",1.4065799999999999]
[null,"90 to <105",1.4053549999999999]
[null,"105 to < 150",1.4086730000000001]
[null,"150 to < 170",1.4091899999999999]
[null,"170 to < 190",1.403861]
[null,"190 to 200",1.403173]
[]
[null,"(d) in formula (((a*DOC)+b)/((c*(pH^2))-(e*pH)+e)+(f*(Ca^g))+h"]
[null,"Calcium band","Fish Equation Constants"]
[null,"1 to <6",1.3317159999999999]
[null,"6 to <24",1.331485]
[null,"24 to <70",1.331431]
[null,"70 to < 90",1.3312520000000001]
[null,"90 to <105",1.331466]
[null,"105 to < 150",1.3308489999999999]
[null,"150 to < 170",1.330654]
[null,"170 to < 190",1.3316699999999999]
[null,"190 to 200",1.3318099999999999]
[]
[null,"(e) in formula (((a*DOC)+b)/((c*(pH^2))-(e*pH)+e)+(f*(Ca^g))+h"]
[null,"Calcium band","Fish Equation Constants"]
[null,"1 to <6",0.89590000000000003]
[null,"6 to <24",0.89594200000000002]
[null,"24 to <70",0.89595199999999997]
[null,"70 to < 90",0.89598299999999997]
[null,"90 to <105",0.89594600000000002]
[null,"105 to < 150",0.89605999999999997]
[null,"150 to < 170",0.89610900000000004]
[null,"170 to < 190",0.89591799999999999]
[null,"190 to 200",0.89588999999999996]
[]
[null,"(f) in formula (((a*DOC)+b)/((c*(pH^2))-(e*pH)+e)+(f*(Ca^g))+h"]
[null,"Calcium band","Fish Equation Constants"]
[null,"1 to <6",0.67789200000000005]
[null,"6 to <24",0.71920200000000001]
[null,"24 to <70",0.77055099999999999]
[null,"70 to < 90",0.84197699999999998]
[null,"90 to <105",0.76498900000000003]
[null,"105 to < 150",0.88229199999999997]
[null,"150 to < 170",0.63015900000000002]
[null,"170 to < 190",0.69047000000000003]
[null,"190 to 200",0.58439799999999997]
[]
[null,"(g) in formula (((a*DOC)+b)/((c*(pH^2))-(e*pH)+e)+(f*(Ca^g))+h"]
[null,"Calcium band","Fish Equation Constants"]
[null,"1 to <6",0.58196899999999996]
[null,"6 to <24",0.495558]
[null,"24 to <70",0.577982]
[null,"70 to < 90",0.54286900000000005]
[null,"90 to <105",0.58196899999999996]
[null,"105 to < 150",0.53675799999999996]
[null,"150 to < 170",0.60494899999999996]
[null,"170 to < 190",0.59615799999999997]
[null,"190 to 200",0.63712400000000002]
[]
[null,"(h) in formula (((a*DOC)+b)/((c*(pH^2))-(e*pH)+e)+(f*(Ca^g))+h"]
[null,"Calcium band","Fish Equation Constants"]
[null,"1 to <6",-0.42118]
[null,"6 to <24",-0.34068999999999999]
[null,"24 to <70",-0.32658999999999999]
[null,"70 to < 90",-0.24797]
[null,"90 to <105",-0.33407999999999999]
[null,"105 to < 150",-0.14474000000000001]
[null,"150 to < 170",-0.24642]
[null,"170 to < 190",-0.51851999999999998]
[null,"190 to 200",-0.53742999999999996]

{"sheet":"TestDataZn","index":20,"n_rows":82,"n_cols":44,"rows_kept":82,"cut":false,"hidden":true,"merged":[]}
["EXPECTED RESULTS",null,null,null,null,null,null,null,null,null,null,null,null,null,null,null,null,null,null,null,null,null,null,"ACTUAL RESULTS",null,null,null,null,null,null,null,null,"COMPARISON"]
["Location","WB","Date","CuMeas","ZnMeas","MnMeas","pH","DOC","Ca","PNECBasic","PNECBasicTrimmed","PNECDefault","PNECDefaultTrimmed","BioFBasic","BioFDefault","Scale","BioFExtended","PNECExtended","PNECExtendedTrimmed","PNEC Displayed","BioFDisplayed","Bioavailable Cu","RCR","Measured Copper Concentration (dissolved) (µg l-1)","Measured Zinc Concentration (dissolved) (µg l-1)","pH","DOC","Ca","Estimated PNEC (µg l-1)","BioF","Bioavailable Zinc Concentration (µg l-1)","Risk Characterisation Ratio","PNEC","BioF","BioM","RCR","Constant A","Constant B","Constant C","Constant D","Constant E","Constant F","Constant G","Constant H"]
[null,null,null,null,null,null,1,1,5,{"$f":"((0.004876*G3+(-0.03508))*LN(I3)+(-0.00622*G3+0.06395))*H3^2+((0.089024*G3+(-1.23195))*LN(I3)+(1.111861*G3+(-3.36775)))*H3+((-0.76055*G3+9.307831)*LN(I3)+(-0.1765*G3+(-0.63864)))","v":8.854939191413834},{"$f":"IF(J3<ZnThreshold,ZnThreshold,J3)","v":10.9},null,null,{"$f":"ZnThreshold/K3","v":1},null,null,null,null,null,{"$f":"K3","v":10.9},{"$f":"N3","v":1},null,null,null,null,1,1,5,10.9,1,null,null,{"$f":"IF(AC3<>T3,\"mismatch\",\"\")","v":""},{"$f":"IF(AD3<>U3,\"mismatch\",\"\")","v":""},{"$f":"IF(AE3<>V3,\"mismatch\",\"\")","v":""},{"$f":"IF(AF3<>W3,\"mismatch\",\"\")","v":""}]
[null,null,null,null,null,null,4,1,5,{"$f":"((0.004876*G4+(-0.03508))*LN(I4)+(-0.00622*G4+0.06395))*H4^2+((0.089024*G4+(-1.23195))*LN(I4)+(1.111861*G4+(-3.36775)))*H4+((-0.76055*G4+9.307831)*LN(I4)+(-0.1765*G4+(-0.63864)))","v":8.4235668384412552},10.9,null,null,1,null,null,null,null,null,{"$f":"K4","v":10.9},{"$f":"N4","v":1},null,null,null,null,4,1,5,10.9,1,null,null,"","","",""]
[null,null,null,null,null,null,8.1,1,5,7.8340246227120645,10.9,null,null,1,null,null,null,null,null,10.9,1,null,null,null,null,8.1,1,5,10.9,1,null,null,"","","",""]
[null,null,null,null,null,null,9.1,1,5,7.6902338383878703,10.9,null,null,1,null,null,null,null,null,10.9,1,null,null,null,null,9.1,1,5,10.9,1,null,null,"","","",""]
[null,null,null,null,null,null,1,1,31,22.309441177941345,22.309441177941345,null,null,0.4885823859531484,null,null,null,null,null,22.309441177941345,0.4885823859531484,null,null,null,null,1,1,31,22.309441177941345,0.4885823859531484,null,null,"","","",""]
[null,null,null,null,null,null,4,1,31,18.229061468331277,18.229061468331277,null,null,0.59794630781931346,null,null,null,null,null,18.229061468331277,0.59794630781931346,null,null,null,null,4,1,31,18.229061468331277,0.59794630781931346,null,null,"","","",""]
[null,null,null,null,null,null,8.1,1,31,12.652542531864189,12.652542531864189,null,null,0.86148692822406392,null,null,null,null,null,12.652542531864189,0.86148692822406392,null,null,null,null,8.1,1,31,12.652542531864189,0.86148692822406392,null,null,"","","",""]
[null,null,null,null,null,null,9.1,1,31,11.292415961994163,11.292415961994163,null,null,0.96524960085469036,null,null,null,null,null,11.292415961994163,0.96524960085469036,null,null,null,null,9.1,1,31,11.292415961994163,0.96524960085469036,null,null,"","","",""]
[null,null,null,null,null,null,1,1.1000000000000001,5,8.4473183406946646,10.9,null,null,1,null,null,null,null,null,10.9,1,null,null,null,null,1,1.1000000000000001,5,10.9,1,null,null,"","","",""]
[null,null,null,null,null,null,4,1.1000000000000001,5,8.3935132680714943,10.9,null,null,1,null,null,null,null,null,10.9,1,null,null,null,null,4,1.1000000000000001,5,10.9,1,null,null,"","","",""]
[null,null,null,null,null,null,8.1,1.1000000000000001,5,8.319979668819828,10.9,null,null,1,null,null,null,null,null,10.9,1,null,null,null,null,8.1,1.1000000000000001,5,10.9,1,null,null,"","","",""]
[null,null,null,null,null,null,9.1,1.1000000000000001,5,8.3020446446121028,10.9,null,null,1,null,null,null,null,null,10.9,1,null,null,null,null,9.1,1.1000000000000001,5,10.9,1,null,null,"","","",""]
[null,null,null,null,null,null,1,1.1000000000000001,31,21.681715020573911,21.681715020573911,null,null,0.50272775883535614,null,null,null,null,null,21.681715020573911,0.50272775883535614,null,null,null,null,1,1.1000000000000001,31,21.681715020573911,0.50272775883535614,null,null,"","","",""]
[null,null,null,null,null,null,4,1.1000000000000001,31,18.033235990645181,18.033235990645181,null,null,0.60443949192781721,null,null,null,null,null,18.033235990645181,0.60443949192781721,null,null,null,null,4,1.1000000000000001,31,18.033235990645181,0.60443949192781721,null,null,"","","",""]
[null,null,null,null,null,null,8.1,1.1000000000000001,31,13.046981316409257,13.046981316409257,null,null,0.83544229394204872,null,null,null,null,null,13.046981316409257,0.83544229394204872,null,null,null,null,8.1,1.1000000000000001,31,13.046981316409257,0.83544229394204872,null,null,"","","",""]
[null,null,null,null,null,null,9.1,1.1000000000000001,31,11.830821639766345,11.830821639766345,null,null,0.92132231656357488,null,null,null,null,null,11.830821639766345,0.92132231656357488,null,null,null,null,9.1,1.1000000000000001,31,11.830821639766345,0.92132231656357488,null,null,"","","",""]
[null,null,null,null,null,null,1,3.1,5,0.33319918294121109,10.9,null,null,1,null,null,null,null,null,10.9,1,null,null,null,null,1,3.1,5,10.9,1,null,null,"","","",""]
[null,null,null,null,null,null,4,3.1,5,7.8512477199951629,10.9,null,null,1,null,null,null,null,null,10.9,1,null,null,null,null,4,3.1,5,10.9,1,null,null,"","","",""]
[null,null,null,null,null,null,8.1,3.1,5,18.125914053968895,18.125914053968895,null,null,0.60134898397652448,null,null,null,null,null,18.125914053968895,0.60134898397652448,null,null,null,null,8.1,3.1,5,18.125914053968895,0.60134898397652448,null,null,"","","",""]
[null,null,null,null,null,null,9.1,3.1,5,20.631930232986878,20.631930232986878,null,null,0.52830733125361151,null,null,null,null,null,20.631930232986878,0.52830733125361151,null,null,null,null,9.1,3.1,5,20.631930232986878,0.52830733125361151,null,null,"","","",""]
[null,null,null,null,null,null,1,3.1,31,8.9340332452232687,10.9,null,null,1,null,null,null,null,null,10.9,1,null,null,null,null,1,3.1,31,10.9,1,null,null,"","","",""]
[null,null,null,null,null,null,4,3.1,31,14.056171741195605,14.056171741195605,null,null,0.7754600755235832,null,null,null,null,null,14.056171741195605,0.7754600755235832,null,null,null,null,4,3.1,31,14.056171741195605,0.7754600755235832,null,null,"","","",""]
[null,null,null,null,null,null,8.1,3.1,31,21.056427685691137,21.056427685691137,null,null,0.51765665870317967,null,null,null,null,null,21.056427685691137,0.51765665870317967,null,null,null,null,8.1,3.1,31,21.056427685691137,0.51765665870317967,null,null,"","","",""]
[null,null,null,null,null,null,9.1,3.1,31,22.763807184348579,22.763807184348579,null,null,0.47883027262216377,null,null,null,null,null,22.763807184348579,0.47883027262216377,null,null,null,null,9.1,3.1,31,22.763807184348579,0.47883027262216377,null,null,"","","",""]
[null,null,null,null,null,null,1,10.1,5,-27.491750019746924,10.9,null,null,1,null,null,null,null,null,10.9,1,null,null,null,null,1,10.1,5,10.9,1,null,null,"","","",""]
[null,null,null,null,null,null,4,10.1,5,6.8354061915113711,10.9,null,null,1,null,null,null,null,null,10.9,1,null,null,null,null,4,10.1,5,10.9,1,null,null,"","","",""]
[null,null,null,null,null,null,8.1,10.1,5,53.749186346897702,53.749186346897702,null,null,0.20279376751215003,null,null,null,null,null,53.749186346897702,0.20279376751215003,null,null,null,null,8.1,10.1,5,53.749186346897702,0.20279376751215003,null,null,"","","",""]
[null,null,null,null,null,null,9.1,10.1,5,65.191571750650468,65.191571750650468,null,null,0.1671995275967747,null,null,null,null,null,65.191571750650468,0.1671995275967747,null,null,null,null,9.1,10.1,5,65.191571750650468,0.1671995275967747,null,null,"","","",""]
[null,null,null,null,null,null,1,10.1,31,-38.580232388532956,10.9,null,null,1,null,null,null,null,null,10.9,1,null,null,null,null,1,10.1,31,10.9,1,null,null,"","","",""]
[null,null,null,null,null,null,4,10.1,31,-0.77187356779273131,10.9,null,null,1,null,null,null,null,null,10.9,1,null,null,null,null,4,10.1,31,10.9,1,null,null,"","","",""]
[null,null,null,null,null,null,8.1,10.1,31,50.899550153885571,50.899550153885571,null,null,0.21414727570373068,null,null,null,null,null,50.899550153885571,0.21414727570373068,null,null,null,null,8.1,10.1,31,50.899550153885571,0.21414727570373068,null,null,"","","",""]
[null,null,null,null,null,null,9.1,10.1,31,63.502336427465636,63.502336427465636,null,null,0.17164722769610727,null,null,null,null,null,63.502336427465636,0.17164722769610727,null,null,null,null,9.1,10.1,31,63.502336427465636,0.17164722769610727,null,null,"","","",""]
[null,null,null,null,null,null,1,30.1,5,-102.06759474643636,{"$f":"IF(J35<ZnThreshold,ZnThreshold,J35)","v":10.9},null,null,{"$f":"ZnThreshold/K35","v":1},null,null,null,null,null,10.9,1,null,null,null,null,1,30.1,5,10.9,1,null,null,{"$f":"IF(AC35<>T35,\"mismatch\",\"\")","v":""},{"$f":"IF(AD35<>U35,\"mismatch\",\"\")","v":""},{"$f":"IF(AE35<>V35,\"mismatch\",\"\")","v":""},{"$f":"IF(AF35<>W35,\"mismatch\",\"\")","v":""}]
[null,null,null,null,null,null,4,30.1,5,11.493755165415116,11.493755165415116,null,null,0.94834106374549076,null,null,null,null,null,11.493755165415116,0.94834106374549076,null,null,null,null,4,30.1,5,11.493755165415116,0.94834106374549076,null,null,"","","",""]
[null,null,null,null,null,null,8.1,30.1,5,166.69426671161207,166.69426671161207,null,null,6.5389171535560051E-2,null,null,null,null,null,166.69426671161207,6.5389171535560051E-2,null,null,null,null,8.1,30.1,5,166.69426671161207,6.5389171535560051E-2,null,null,"","","",""]
[null,null,null,null,null,null,9.1,30.1,5,204.54805001556258,204.54805001556258,null,null,5.3288212716624275E-2,null,null,null,null,null,204.54805001556258,5.3288212716624275E-2,null,null,null,null,9.1,30.1,5,204.54805001556258,5.3288212716624275E-2,null,null,"","","",""]
[null,null,null,null,null,null,1,30.1,31,-199.16995779951333,10.9,null,null,1,null,null,null,null,null,10.9,1,null,null,null,null,1,30.1,31,10.9,1,null,null,"","","",""]
[null,null,null,null,null,null,4,30.1,31,-50.923321044172162,10.9,null,null,1,null,null,null,null,null,10.9,1,null,null,null,null,4,30.1,31,10.9,1,null,null,"","","",""]
[null,null,null,null,null,null,8.1,30.1,31,151.68041585479409,151.68041585479409,null,null,7.1861617325962052E-2,null,null,null,null,null,151.68041585479409,7.1861617325962052E-2,null,null,null,null,8.1,30.1,31,151.68041585479409,7.1861617325962052E-2,null,null,"","","",""]
[null,null,null,null,null,null,9.1,30.1,31,201.0959614399078,201.0959614399078,null,null,5.4202978130205644E-2,null,null,null,null,null,201.0959614399078,5.4202978130205644E-2,null,null,null,null,9.1,30.1,31,201.0959614399078,5.4202978130205644E-2,null,null,"","","",""]
[null,null,null,null,15,null,1,1,5,8.854939191413834,10.9,null,null,1,null,null,null,null,null,10.9,1,{"$f":"E43*U43","v":15},{"$f":"V43/ZnThreshold","v":1.3761467889908257},null,15,1,1,5,10.9,1,15,1.3761467889908257,"","","",""]
[null,null,null,null,15,null,4,1,5,8.4235668384412552,10.9,null,null,1,null,null,null,null,null,10.9,1,15,1.3761467889908257,null,15,4,1,5,10.9,1,15,1.3761467889908257,"","","",""]
[null,null,null,null,15,null,8.1,1,5,7.8340246227120645,10.9,null,null,1,null,null,null,null,null,10.9,1,15,1.3761467889908257,null,15,8.1,1,5,10.9,1,15,1.3761467889908257,"","","",""]
[null,null,null,null,15,null,9.1,1,5,7.6902338383878703,10.9,null,null,1,null,null,null,null,null,10.9,1,15,1.3761467889908257,null,15,9.1,1,5,10.9,1,15,1.3761467889908257,"","","",""]
[null,null,null,null,15,null,1,1,31,22.309441177941345,22.309441177941345,null,null,0.4885823859531484,null,null,null,null,null,22.309441177941345,0.4885823859531484,7.3287357892972258,0.67236108158690144,null,15,1,1,31,22.309441177941345,0.4885823859531484,7.3287357892972258,0.67236108158690144,"","","",""]
[null,null,null,null,15,null,4,1,31,18.229061468331277,18.229061468331277,null,null,0.59794630781931346,null,null,null,null,null,18.229061468331277,0.59794630781931346,8.9691946172897019,0.82286189149446809,null,15,4,1,31,18.229061468331277,0.59794630781931346,8.9691946172897019,0.82286189149446809,"","","",""]
[null,null,null,null,15,null,8.1,1,31,12.652542531864189,12.652542531864189,null,null,0.86148692822406392,null,null,null,null,null,12.652542531864189,0.86148692822406392,12.922303923360959,1.1855324700331153,null,15,8.1,1,31,12.652542531864189,0.86148692822406392,12.922303923360959,1.1855324700331153,"","","",""]
[null,null,null,null,15,null,9.1,1,31,11.292415961994163,11.292415961994163,null,null,0.96524960085469036,null,null,null,null,null,11.292415961994163,0.96524960085469036,14.478744012820355,1.3283251387908583,null,15,9.1,1,31,11.292415961994163,0.96524960085469036,14.478744012820355,1.3283251387908583,"","","",""]
[null,null,null,null,15,null,1,1.1000000000000001,5,8.4473183406946646,10.9,null,null,1,null,null,null,null,null,10.9,1,15,1.3761467889908257,null,15,1,1.1000000000000001,5,10.9,1,15,1.3761467889908257,"","","",""]
[null,null,null,null,15,null,4,1.1000000000000001,5,8.3935132680714943,10.9,null,null,1,null,null,null,null,null,10.9,1,15,1.3761467889908257,null,15,4,1.1000000000000001,5,10.9,1,15,1.3761467889908257,"","","",""]
[null,null,null,null,15,null,8.1,1.1000000000000001,5,8.319979668819828,10.9,null,null,1,null,null,null,null,null,10.9,1,15,1.3761467889908257,null,15,8.1,1.1000000000000001,5,10.9,1,15,1.3761467889908257,"","","",""]
[null,null,null,null,15,null,9.1,1.1000000000000001,5,8.3020446446121028,10.9,null,null,1,null,null,null,null,null,10.9,1,15,1.3761467889908257,null,15,9.1,1.1000000000000001,5,10.9,1,15,1.3761467889908257,"","","",""]
[null,null,null,null,15,null,1,1.1000000000000001,31,21.681715020573911,21.681715020573911,null,null,0.50272775883535614,null,null,null,null,null,21.681715020573911,0.50272775883535614,7.5409163825303418,0.69182719105782953,null,15,1,1.1000000000000001,31,21.681715020573911,0.50272775883535614,7.5409163825303418,0.69182719105782953,"","","",""]
[null,null,null,null,15,null,4,1.1000000000000001,31,18.033235990645181,18.033235990645181,null,null,0.60443949192781721,null,null,null,null,null,18.033235990645181,0.60443949192781721,9.0665923789172584,0.8317974659557118,null,15,4,1.1000000000000001,31,18.033235990645181,0.60443949192781721,9.0665923789172584,0.8317974659557118,"","","",""]
[null,null,null,null,15,null,8.1,1.1000000000000001,31,13.046981316409257,13.046981316409257,null,null,0.83544229394204872,null,null,null,null,null,13.046981316409257,0.83544229394204872,12.531634409130731,1.1496912301954798,null,15,8.1,1.1000000000000001,31,13.046981316409257,0.83544229394204872,12.531634409130731,1.1496912301954798,"","","",""]
[null,null,null,null,15,null,9.1,1.1000000000000001,31,11.830821639766345,11.830821639766345,null,null,0.92132231656357488,null,null,null,null,null,11.830821639766345,0.92132231656357488,13.819834748453623,1.2678747475645524,null,15,9.1,1.1000000000000001,31,11.830821639766345,0.92132231656357488,13.819834748453623,1.2678747475645524,"","","",""]
[null,null,null,null,15,null,1,3.1,5,0.33319918294121109,10.9,null,null,1,null,null,null,null,null,10.9,1,15,1.3761467889908257,null,15,1,3.1,5,10.9,1,15,1.3761467889908257,"","","",""]
[null,null,null,null,15,null,4,3.1,5,7.8512477199951629,10.9,null,null,1,null,null,null,null,null,10.9,1,15,1.3761467889908257,null,15,4,3.1,5,10.9,1,15,1.3761467889908257,"","","",""]
[null,null,null,null,15,null,8.1,3.1,5,18.125914053968895,18.125914053968895,null,null,0.60134898397652448,null,null,null,null,null,18.125914053968895,0.60134898397652448,9.0202347596478667,0.82754447336218961,null,15,8.1,3.1,5,18.125914053968895,0.60134898397652448,9.0202347596478667,0.82754447336218961,"","","",""]
[null,null,null,null,15,null,9.1,3.1,5,20.631930232986878,20.631930232986878,null,null,0.52830733125361151,null,null,null,null,null,20.631930232986878,0.52830733125361151,7.9246099688041731,0.72702843750497004,null,15,9.1,3.1,5,20.631930232986878,0.52830733125361151,7.9246099688041731,0.72702843750497004,"","","",""]
[null,null,null,null,15,null,1,3.1,31,8.9340332452232687,10.9,null,null,1,null,null,null,null,null,10.9,1,15,1.3761467889908257,null,15,1,3.1,31,10.9,1,15,1.3761467889908257,"","","",""]
[null,null,null,null,15,null,4,3.1,31,14.056171741195605,14.056171741195605,null,null,0.7754600755235832,null,null,null,null,null,14.056171741195605,0.7754600755235832,11.631901132853748,1.0671468929223622,null,15,4,3.1,31,14.056171741195605,0.7754600755235832,11.631901132853748,1.0671468929223622,"","","",""]
[null,null,null,null,15,null,8.1,3.1,31,21.056427685691137,21.056427685691137,null,null,0.51765665870317967,null,null,null,null,null,21.056427685691137,0.51765665870317967,7.7648498805476951,0.71237154867410046,null,15,8.1,3.1,31,21.056427685691137,0.51765665870317967,7.7648498805476951,0.71237154867410046,"","","",""]
[null,null,null,null,15,null,9.1,3.1,31,22.763807184348579,22.763807184348579,null,null,0.47883027262216377,null,null,null,null,null,22.763807184348579,0.47883027262216377,7.1824540893324569,0.65894074214059239,null,15,9.1,3.1,31,22.763807184348579,0.47883027262216377,7.1824540893324569,0.65894074214059239,"","","",""]
[null,null,null,null,15,null,1,10.1,5,-27.491750019746924,{"$f":"IF(J67<ZnThreshold,ZnThreshold,J67)","v":10.9},null,null,{"$f":"ZnThreshold/K67","v":1},null,null,null,null,null,10.9,1,15,1.3761467889908257,null,15,1,10.1,5,10.9,1,15,1.3761467889908257,{"$f":"IF(AC67<>T67,\"mismatch\",\"\")","v":""},{"$f":"IF(AD67<>U67,\"mismatch\",\"\")","v":""},{"$f":"IF(AE67<>V67,\"mismatch\",\"\")","v":""},{"$f":"IF(AF67<>W67,\"mismatch\",\"\")","v":""}]
[null,null,null,null,15,null,4,10.1,5,{"$f":"((0.004876*G68+(-0.03508))*LN(I68)+(-0.00622*G68+0.06395))*H68^2+((0.089024*G68+(-1.23195))*LN(I68)+(1.111861*G68+(-3.36775)))*H68+((-0.76055*G68+9.307831)*LN(I68)+(-0.1765*G68+(-0.63864)))","v":6.8354061915113711},10.9,null,null,1,null,null,null,null,null,{"$f":"K68","v":10.9},{"$f":"N68","v":1},15,1.3761467889908257,null,15,4,10.1,5,10.9,1,15,1.3761467889908257,"","","",""]
[null,null,null,null,15,null,8.1,10.1,5,53.749186346897702,53.749186346897702,null,null,0.20279376751215003,null,null,null,null,null,53.749186346897702,0.20279376751215003,3.0419065126822504,0.2790739919891973,null,15,8.1,10.1,5,53.749186346897702,0.20279376751215003,3.0419065126822504,0.2790739919891973,"","","",""]
[null,null,null,null,15,null,9.1,10.1,5,65.191571750650468,65.191571750650468,null,null,0.1671995275967747,null,null,null,null,null,65.191571750650468,0.1671995275967747,2.5079929139516204,0.23009109302308442,null,15,9.1,10.1,5,65.191571750650468,0.1671995275967747,2.5079929139516204,0.23009109302308442,"","","",""]
[null,null,null,null,15,null,1,10.1,31,-38.580232388532956,10.9,null,null,1,null,null,null,null,null,10.9,1,15,1.3761467889908257,null,15,1,10.1,31,10.9,1,15,1.3761467889908257,"","","",""]
[null,null,null,null,15,null,4,10.1,31,-0.77187356779273131,10.9,null,null,1,null,null,null,null,null,10.9,1,15,1.3761467889908257,null,15,4,10.1,31,10.9,1,15,1.3761467889908257,"","","",""]
[null,null,null,null,15,null,8.1,10.1,31,50.899550153885571,50.899550153885571,null,null,0.21414727570373068,null,null,null,null,null,50.899550153885571,0.21414727570373068,3.2122091355559603,0.29469808583082202,null,15,8.1,10.1,31,50.899550153885571,0.21414727570373068,3.2122091355559603,0.29469808583082202,"","","",""]
[null,null,null,null,15,null,9.1,10.1,31,63.502336427465636,63.502336427465636,null,null,0.17164722769610727,null,null,null,null,null,63.502336427465636,0.17164722769610727,2.5747084154416089,0.23621178123317513,null,15,9.1,10.1,31,63.502336427465636,0.17164722769610727,2.5747084154416089,0.23621178123317513,"","","",""]
[null,null,null,null,15,null,1,30.1,5,-102.06759474643636,10.9,null,null,1,null,null,null,null,null,10.9,1,15,1.3761467889908257,null,15,1,30.1,5,10.9,1,15,1.3761467889908257,"","","",""]
[null,null,null,null,15,null,4,30.1,5,11.493755165415116,11.493755165415116,null,null,0.94834106374549076,null,null,null,null,null,11.493755165415116,0.94834106374549076,14.225115956182361,1.305056509741501,null,15,4,30.1,5,11.493755165415116,0.94834106374549076,14.225115956182361,1.305056509741501,"","","",""]
[null,null,null,null,15,null,8.1,30.1,5,166.69426671161207,166.69426671161207,null,null,6.5389171535560051E-2,null,null,null,null,null,166.69426671161207,6.5389171535560051E-2,0.9808375730334008,8.9985098443431263E-2,null,15,8.1,30.1,5,166.69426671161207,6.5389171535560051E-2,0.9808375730334008,8.9985098443431263E-2,"","","",""]
[null,null,null,null,15,null,9.1,30.1,5,204.54805001556258,204.54805001556258,null,null,5.3288212716624275E-2,null,null,null,null,null,204.54805001556258,5.3288212716624275E-2,0.79932319074936409,7.3332402821042572E-2,null,15,9.1,30.1,5,204.54805001556258,5.3288212716624275E-2,0.79932319074936409,7.3332402821042572E-2,"","","",""]
[null,null,null,null,15,null,1,30.1,31,-199.16995779951333,10.9,null,null,1,null,null,null,null,null,10.9,1,15,1.3761467889908257,null,15,1,30.1,31,10.9,1,15,1.3761467889908257,"","","",""]
[null,null,null,null,15,null,4,30.1,31,-50.923321044172162,10.9,null,null,1,null,null,null,null,null,10.9,1,15,1.3761467889908257,null,15,4,30.1,31,10.9,1,15,1.3761467889908257,"","","",""]
[null,null,null,null,15,null,8.1,30.1,31,151.68041585479409,151.68041585479409,null,null,7.1861617325962052E-2,null,null,null,null,null,151.68041585479409,7.1861617325962052E-2,1.0779242598894307,9.8892133934810153E-2,null,15,8.1,30.1,31,151.68041585479409,7.1861617325962052E-2,1.0779242598894307,9.8892133934810153E-2,"","","",""]
[null,null,null,null,15,null,9.1,30.1,31,201.0959614399078,201.0959614399078,null,null,5.4202978130205644E-2,null,null,null,null,null,201.0959614399078,5.4202978130205644E-2,0.81304467195308461,7.4591254307622437E-2,null,15,9.1,30.1,31,201.0959614399078,5.4202978130205644E-2,0.81304467195308461,7.4591254307622437E-2,"","","",""]

{"sheet":"TestDataMn","index":21,"n_rows":24,"n_cols":54,"rows_kept":24,"cut":false,"hidden":true,"merged":[]}
["EXPECTED RESULTS",null,null,null,null,null,null,null,null,null,null,null,null,null,null,null,null,null,null,null,null,null,null,null,null,null,null,null,null,null,null,null,null,null,null,null,null,null,null,null,"COMPARISON"]
["Location","WB","Date","CuMeas","ZnMeas","Mn Meas","pH","DOC","Ca","EC10BasicFish","EC10BasicAlgae","EC10BasicFishTrimmed","EC10BasicAlgaeTrimmed","BioFBasicFish","BioFBasicAlgae","BioFBasicFishTrimmed","BioFBasicAlgaeTrimmed","EC10DefaultCaFish","EC10DefaultCaAlgae","EC10DefaultCaFishTrimmed","EC10DefaultCaAlgaeTrimmed","BioFDefaultCaFish","BioFDefaultCaAlgae","BioFDefaultCaFishTrimmed","BioFDefaultCaAlgaeTrimmed","BioFSelected","PNECSelected","PNECTrimmed","PNEC Displayed","BioFDisplayed","Bioavailable Mn","RCR","Measured Mn Concentration (dissolved) (µg l-1)","pH","DOC","Ca","Estimated PNEC (µg l-1)","BioF","Bioavailable Mn Concentration (µg l-1)","Risk Characterisation Ratio","PNEC","BioF","BioM","RCR","Constant A","Constant B","Constant C","Constant D","Constant E","Constant F","Constant G","Constant H","Constant I","Constant J"]
[null,null,null,null,null,null,7,15,0.5,null,null,null,null,null,null,null,null,{"$f":" ((($AS3 * $H3) + $AT3) / (($AU3 * ($G3 ^ 2)) - ($AV3 * $G3) + $AW3)) + ($AX3 * (1 ^ $AY3)) + $AZ3","v":-0.27999521018530271},{"$f":"10 ^ ((BA3 * G3) + BB3)","v":2.268031071524196},{"$f":"IF(R3<MnFishRef, MnFishRef, R3)","v":0.42599999999999999},{"$f":"IF(S3<MnAlgalRef, MnAlgalRef, S3)","v":2.268031071524196},{"$f":"MnFishRef/T3","v":1},{"$f":"MnAlgalRef/U3","v":0.13668243080623635},{"$f":"IF(V3>1,1,V3)","v":1},{"$f":"IF(W3>1,1,W3)","v":0.13668243080623635},{"$f":"IF(X3>Y3,X3,Y3)","v":1},{"$f":"MnThreshold/Z3","v":123},{"$f":"IF(AA3<=MnThreshold, MnThreshold, AA3)","v":123},{"$f":"AB3","v":123},{"$f":"Z3","v":1},null,null,null,7,15,0.5,123,1,null,null,{"$f":"IF(AK3<>AC3,\"mismatch\",\"\")","v":""},{"$f":"IF(AL3<>AD3,\"mismatch\",\"\")","v":""},{"$f":"IF(AM3<>AE3,\"mismatch\",\"\")","v":""},{"$f":"IF(AN3<>AF3,\"mismatch\",\"\")","v":""},{"$f":"MnConA1","v":-2.1872799999999999},{"$f":"MnConB1","v":0.40887699999999999},{"$f":"MnConC1","v":1.4039759999999999},{"$f":"MnConD1","v":1.3317159999999999},{"$f":"MnConE1","v":0.89590000000000003},{"$f":"MnConF1","v":0.67789200000000005},{"$f":"MnConG1","v":0.58196899999999996},{"$f":"MnConH1","v":-0.42118},{"$f":"MnConI1","v":-0.88246999999999998},{"$f":"MnConJ1","v":6.5329389999999998}]
[null,null,null,null,null,null,7,15,2,{"$f":" ((($AS4 * $H4) + $AT4) / (($AU4 * ($G4 ^ 2)) - ($AV4 * $G4) + $AW4)) + ($AX4 * ($I4 ^ $AY4)) + $AZ4","v":5.68431028621873E-2},{"$f":"10 ^ ((BA4 * G4) + BB4)","v":2.268031071524196},{"$f":"IF(J4<MnFishRef, MnFishRef, J4)","v":0.42599999999999999},{"$f":"IF(K4<MnAlgalRef, MnAlgalRef, K4)","v":2.268031071524196},{"$f":"MnFishRef/L4","v":1},{"$f":"MnAlgalRef/M4","v":0.13668243080623635},{"$f":"IF(N4>1,1,N4)","v":1},{"$f":"IF(O4>1,1,O4)","v":0.13668243080623635},null,null,null,null,null,null,null,null,{"$f":"IF(P4>Q4,P4,Q4)","v":1},123,123,{"$f":"AB4","v":123},{"$f":"Z4","v":1},null,null,null,7,15,2,123,1,null,null,"","","","",{"$f":"MnConA1","v":-2.1872799999999999},{"$f":"MnConB1","v":0.40887699999999999},{"$f":"MnConC1","v":1.4039759999999999},{"$f":"MnConD1","v":1.3317159999999999},{"$f":"MnConE1","v":0.89590000000000003},{"$f":"MnConF1","v":0.67789200000000005},{"$f":"MnConG1","v":0.58196899999999996},{"$f":"MnConH1","v":-0.42118},{"$f":"MnConI1","v":-0.88246999999999998},{"$f":"MnConJ1","v":6.5329389999999998}]
[null,null,null,null,null,null,7,15,5,0.77168772600482993,2.268031071524196,0.77168772600482993,2.268031071524196,0.55203677037275267,0.13668243080623635,0.55203677037275267,0.13668243080623635,null,null,null,null,null,null,null,null,0.55203677037275267,222.81124483238048,222.81124483238048,222.81124483238048,0.55203677037275267,null,null,null,7,15,5,222.81124483238048,0.55203677037275267,null,null,"","","","",{"$f":"MnConA1","v":-2.1872799999999999},{"$f":"MnConB1","v":0.40887699999999999},{"$f":"MnConC1","v":1.4039759999999999},{"$f":"MnConD1","v":1.3317159999999999},{"$f":"MnConE1","v":0.89590000000000003},{"$f":"MnConF1","v":0.67789200000000005},{"$f":"MnConG1","v":0.58196899999999996},{"$f":"MnConH1","v":-0.42118},{"$f":"MnConI1","v":-0.88246999999999998},{"$f":"MnConJ1","v":6.5329389999999998}]
[null,null,null,null,null,null,7,15,30,4.6401647223437426,2.268031071524196,4.6401647223437426,2.268031071524196,9.1807085629673033E-2,0.13668243080623635,9.1807085629673033E-2,0.13668243080623635,null,null,null,null,null,null,null,null,0.13668243080623635,899.89619934669713,899.89619934669713,899.89619934669713,0.13668243080623635,null,null,null,7,15,30,899.8961993466969,0.13668243080623638,null,null,"","","","",{"$f":"MnConA3","v":-2.1859199999999999},{"$f":"MnConB3","v":0.41159699999999999},{"$f":"MnConC3","v":1.4055329999999999},{"$f":"MnConD3","v":1.331431},{"$f":"MnConE3","v":0.89595199999999997},{"$f":"MnConF3","v":0.77055099999999999},{"$f":"MnConG3","v":0.577982},{"$f":"MnConH3","v":-0.32658999999999999},{"$f":"MnConI3","v":-0.88246999999999998},{"$f":"MnConJ3","v":6.5329389999999998}]
[null,null,null,null,null,null,7,15,75,7.9914353359736259,3.8348113138425171,7.9914353359736259,3.8348113138425171,5.3307069642715046E-2,8.0838397154246705E-2,5.3307069642715046E-2,8.0838397154246705E-2,null,null,null,null,null,null,null,null,8.0838397154246705E-2,1521.5541664600955,1521.5541664600955,1521.5541664600955,8.0838397154246705E-2,null,null,null,7,15,75,1521.5541664600953,8.0838397154246719E-2,null,null,"","","","",{"$f":"MnConA4","v":-2.18499},{"$f":"MnConB4","v":0.41344900000000001},{"$f":"MnConC4","v":1.4065799999999999},{"$f":"MnConD4","v":1.3312520000000001},{"$f":"MnConE4","v":0.89598299999999997},{"$f":"MnConF4","v":0.84197699999999998},{"$f":"MnConG4","v":0.54286900000000005},{"$f":"MnConH4","v":-0.24797},{"$f":"MnConI4","v":-0.84075},{"$f":"MnConJ4","v":6.4689940000000004}]
[null,null,null,null,null,null,7,15,95,9.9601830663094901,3.8348113138425171,9.9601830663094901,3.8348113138425171,4.2770298212786183E-2,8.0838397154246705E-2,4.2770298212786183E-2,8.0838397154246705E-2,null,null,null,null,null,null,null,null,8.0838397154246705E-2,1521.5541664600955,1521.5541664600955,1521.5541664600955,8.0838397154246705E-2,null,null,null,7,15,95,1521.5541664600953,8.0838397154246719E-2,null,null,"","","","",{"$f":"MnConA5","v":-2.18607},{"$f":"MnConB5","v":0.41129100000000002},{"$f":"MnConC5","v":1.4053549999999999},{"$f":"MnConD5","v":1.331466},{"$f":"MnConE5","v":0.89594600000000002},{"$f":"MnConF5","v":0.76498900000000003},{"$f":"MnConG5","v":0.58196899999999996},{"$f":"MnConH5","v":-0.33407999999999999},{"$f":"MnConI5","v":-0.84075},{"$f":"MnConJ5","v":6.4689940000000004}]
[null,null,null,null,null,null,7,15,110,10.320618833961877,3.8348113138425171,10.320618833961877,3.8348113138425171,4.1276594635795423E-2,8.0838397154246705E-2,4.1276594635795423E-2,8.0838397154246705E-2,null,null,null,null,null,null,null,null,8.0838397154246705E-2,1521.5541664600955,1521.5541664600955,1521.5541664600955,8.0838397154246705E-2,null,null,null,7,15,110,1521.5541664600953,8.0838397154246719E-2,null,null,"","","","",{"$f":"MnConA6","v":-2.1831800000000001},{"$f":"MnConB6","v":0.41708000000000001},{"$f":"MnConC6","v":1.4086730000000001},{"$f":"MnConD6","v":1.3308489999999999},{"$f":"MnConE6","v":0.89605999999999997},{"$f":"MnConF6","v":0.88229199999999997},{"$f":"MnConG6","v":0.53675799999999996},{"$f":"MnConH6","v":-0.14474000000000001},{"$f":"MnConI6","v":-0.84075},{"$f":"MnConJ6","v":6.4689940000000004}]
[null,null,null,null,null,null,7,15,155,12.539991647540266,3.8348113138425171,12.539991647540266,3.8348113138425171,3.3971314493144847E-2,8.0838397154246705E-2,3.3971314493144847E-2,8.0838397154246705E-2,null,null,null,null,null,null,null,null,8.0838397154246705E-2,1521.5541664600955,1521.5541664600955,1521.5541664600955,8.0838397154246705E-2,null,null,null,7,15,155,1521.5541664600953,8.0838397154246719E-2,null,null,"","","","",{"$f":"MnConA7","v":-2.1828099999999999},{"$f":"MnConB7","v":0.41780600000000001},{"$f":"MnConC7","v":1.4091899999999999},{"$f":"MnConD7","v":1.330654},{"$f":"MnConE7","v":0.89610900000000004},{"$f":"MnConF7","v":0.63015900000000002},{"$f":"MnConG7","v":0.60494899999999996},{"$f":"MnConH7","v":-0.24642},{"$f":"MnConI7","v":-0.84075},{"$f":"MnConJ7","v":6.4689940000000004}]
[null,null,null,null,null,null,7,15,175,13.953618869259074,3.8348113138425171,13.953618869259074,3.8348113138425171,3.0529714477045927E-2,8.0838397154246705E-2,3.0529714477045927E-2,8.0838397154246705E-2,null,null,null,null,null,null,null,null,8.0838397154246705E-2,1521.5541664600955,1521.5541664600955,1521.5541664600955,8.0838397154246705E-2,null,null,null,7,15,175,1521.5541664600953,8.0838397154246719E-2,null,null,"","","","",{"$f":"MnConA8","v":-2.18743},{"$f":"MnConB8","v":0.40857199999999999},{"$f":"MnConC8","v":1.403861},{"$f":"MnConD8","v":1.3316699999999999},{"$f":"MnConE8","v":0.89591799999999999},{"$f":"MnConF8","v":0.69047000000000003},{"$f":"MnConG8","v":0.59615799999999997},{"$f":"MnConH8","v":-0.51851999999999998},{"$f":"MnConI8","v":-0.84075},{"$f":"MnConJ8","v":6.4689940000000004}]
[null,null,null,null,null,null,7,15,195,15.742151577370333,3.8348113138425171,15.742151577370333,3.8348113138425171,2.7061103935270434E-2,8.0838397154246705E-2,2.7061103935270434E-2,8.0838397154246705E-2,null,null,null,null,null,null,null,null,8.0838397154246705E-2,1521.5541664600955,1521.5541664600955,1521.5541664600955,8.0838397154246705E-2,null,null,null,7,15,195,1521.5541664600953,8.0838397154246719E-2,null,null,"","","","",{"$f":"MnConA9","v":-2.1880199999999999},{"$f":"MnConB9","v":0.40740399999999999},{"$f":"MnConC9","v":1.403173},{"$f":"MnConD9","v":1.3318099999999999},{"$f":"MnConE9","v":0.89588999999999996},{"$f":"MnConF9","v":0.58439799999999997},{"$f":"MnConG9","v":0.63712400000000002},{"$f":"MnConH9","v":-0.53742999999999996},{"$f":"MnConI9","v":-0.84075},{"$f":"MnConJ9","v":6.4689940000000004}]
[null,null,null,null,null,null,7,15,205,null,null,null,null,null,null,null,null,{"$f":" ((($AS13 * $H13) + $AT13) / (($AU13 * ($G13 ^ 2)) - ($AV13 * $G13) + $AW13)) + ($AX13 * (200 ^ $AY13)) + $AZ13","v":16.015616872867881},{"$f":"10 ^ ((BA13 * G13) + BB13)","v":3.8348113138425171},{"$f":"IF(R13<MnFishRef, MnFishRef, R13)","v":16.015616872867881},{"$f":"IF(S13<MnAlgalRef, MnAlgalRef, S13)","v":3.8348113138425171},{"$f":"MnFishRef/T13","v":2.6599037887931016E-2},{"$f":"MnAlgalRef/U13","v":8.0838397154246705E-2},{"$f":"IF(V13>1,1,V13)","v":2.6599037887931016E-2},{"$f":"IF(W13>1,1,W13)","v":8.0838397154246705E-2},{"$f":"IF(X13>Y13,X13,Y13)","v":8.0838397154246705E-2},1521.5541664600955,1521.5541664600955,1521.5541664600955,8.0838397154246705E-2,null,null,null,7,15,205,1521.5541664600953,8.0838397154246719E-2,null,null,"","","","",{"$f":"MnConA9","v":-2.1880199999999999},{"$f":"MnConB9","v":0.40740399999999999},{"$f":"MnConC9","v":1.403173},{"$f":"MnConD9","v":1.3318099999999999},{"$f":"MnConE9","v":0.89588999999999996},{"$f":"MnConF9","v":0.58439799999999997},{"$f":"MnConG9","v":0.63712400000000002},{"$f":"MnConH9","v":-0.53742999999999996},{"$f":"MnConI9","v":-0.84075},{"$f":"MnConJ9","v":6.4689940000000004}]
[null,null,null,null,null,200,7,15,0.5,null,null,null,null,null,null,null,null,{"$f":" ((($AS14 * $H14) + $AT14) / (($AU14 * ($G14 ^ 2)) - ($AV14 * $G14) + $AW14)) + ($AX14 * (1 ^ $AY14)) + $AZ14","v":-0.27999521018530271},{"$f":"10 ^ ((BA14 * G14) + BB14)","v":2.268031071524196},{"$f":"IF(R14<MnFishRef, MnFishRef, R14)","v":0.42599999999999999},{"$f":"IF(S14<MnAlgalRef, MnAlgalRef, S14)","v":2.268031071524196},{"$f":"MnFishRef/T14","v":1},{"$f":"MnAlgalRef/U14","v":0.13668243080623635},{"$f":"IF(V14>1,1,V14)","v":1},{"$f":"IF(W14>1,1,W14)","v":0.13668243080623635},{"$f":"IF(X14>Y14,X14,Y14)","v":1},123,123,123,1,{"$f":"F14*AD14","v":200},{"$f":"AE14/MnThreshold","v":1.6260162601626016},200,7,15,0.5,123,1,200,1.6260162601626016,"","","","",{"$f":"MnConA1","v":-2.1872799999999999},{"$f":"MnConB1","v":0.40887699999999999},{"$f":"MnConC1","v":1.4039759999999999},{"$f":"MnConD1","v":1.3317159999999999},{"$f":"MnConE1","v":0.89590000000000003},{"$f":"MnConF1","v":0.67789200000000005},{"$f":"MnConG1","v":0.58196899999999996},{"$f":"MnConH1","v":-0.42118},{"$f":"MnConI1","v":-0.88246999999999998},{"$f":"MnConJ1","v":6.5329389999999998}]
[null,null,null,null,null,200,7,15,2,{"$f":" ((($AS15 * $H15) + $AT15) / (($AU15 * ($G15 ^ 2)) - ($AV15 * $G15) + $AW15)) + ($AX15 * ($I15 ^ $AY15)) + $AZ15","v":5.68431028621873E-2},{"$f":"10 ^ ((BA15 * G15) + BB15)","v":2.268031071524196},{"$f":"IF(J15<MnFishRef, MnFishRef, J15)","v":0.42599999999999999},{"$f":"IF(K15<MnAlgalRef, MnAlgalRef, K15)","v":2.268031071524196},{"$f":"MnFishRef/L15","v":1},{"$f":"MnAlgalRef/M15","v":0.13668243080623635},{"$f":"IF(N15>1,1,N15)","v":1},{"$f":"IF(O15>1,1,O15)","v":0.13668243080623635},null,null,null,null,null,null,null,null,{"$f":"IF(P15>Q15,P15,Q15)","v":1},123,123,123,1,200,1.6260162601626016,200,7,15,2,123,1,200,1.6260162601626016,"","","","",{"$f":"MnConA1","v":-2.1872799999999999},{"$f":"MnConB1","v":0.40887699999999999},{"$f":"MnConC1","v":1.4039759999999999},{"$f":"MnConD1","v":1.3317159999999999},{"$f":"MnConE1","v":0.89590000000000003},{"$f":"MnConF1","v":0.67789200000000005},{"$f":"MnConG1","v":0.58196899999999996},{"$f":"MnConH1","v":-0.42118},{"$f":"MnConI1","v":-0.88246999999999998},{"$f":"MnConJ1","v":6.5329389999999998}]
[null,null,null,null,null,200,7,15,5,0.77168772600482993,2.268031071524196,0.77168772600482993,2.268031071524196,0.55203677037275267,0.13668243080623635,0.55203677037275267,0.13668243080623635,null,null,null,null,null,null,null,null,0.55203677037275267,222.81124483238048,222.81124483238048,222.81124483238048,0.55203677037275267,110.40735407455054,0.8976207648337442,200,7,15,5,222.81124483238048,0.55203677037275267,110.40735407455054,0.8976207648337442,"","","","",{"$f":"MnConA1","v":-2.1872799999999999},{"$f":"MnConB1","v":0.40887699999999999},{"$f":"MnConC1","v":1.4039759999999999},{"$f":"MnConD1","v":1.3317159999999999},{"$f":"MnConE1","v":0.89590000000000003},{"$f":"MnConF1","v":0.67789200000000005},{"$f":"MnConG1","v":0.58196899999999996},{"$f":"MnConH1","v":-0.42118},{"$f":"MnConI1","v":-0.88246999999999998},{"$f":"MnConJ1","v":6.5329389999999998}]
[null,null,null,null,null,200,7,15,30,4.6401647223437426,2.268031071524196,4.6401647223437426,2.268031071524196,9.1807085629673033E-2,0.13668243080623635,9.1807085629673033E-2,0.13668243080623635,null,null,null,null,null,null,null,null,0.13668243080623635,899.89619934669713,899.89619934669713,899.89619934669713,0.13668243080623635,27.336486161247269,0.22224785496948998,200,7,15,30,899.8961993466969,0.13668243080623638,27.336486161247276,0.22224785496949004,"","","","",{"$f":"MnConA3","v":-2.1859199999999999},{"$f":"MnConB3","v":0.41159699999999999},{"$f":"MnConC3","v":1.4055329999999999},{"$f":"MnConD3","v":1.331431},{"$f":"MnConE3","v":0.89595199999999997},{"$f":"MnConF3","v":0.77055099999999999},{"$f":"MnConG3","v":0.577982},{"$f":"MnConH3","v":-0.32658999999999999},{"$f":"MnConI3","v":-0.88246999999999998},{"$f":"MnConJ3","v":6.5329389999999998}]
[null,null,null,null,null,200,7,15,75,7.9914353359736259,3.8348113138425171,7.9914353359736259,3.8348113138425171,5.3307069642715046E-2,8.0838397154246705E-2,5.3307069642715046E-2,8.0838397154246705E-2,null,null,null,null,null,null,null,null,8.0838397154246705E-2,1521.5541664600955,1521.5541664600955,1521.5541664600955,8.0838397154246705E-2,16.16767943084934,0.13144454821828733,200,7,15,75,1521.5541664600953,8.0838397154246719E-2,16.167679430849343,0.13144454821828735,"","","","",{"$f":"MnConA4","v":-2.18499},{"$f":"MnConB4","v":0.41344900000000001},{"$f":"MnConC4","v":1.4065799999999999},{"$f":"MnConD4","v":1.3312520000000001},{"$f":"MnConE4","v":0.89598299999999997},{"$f":"MnConF4","v":0.84197699999999998},{"$f":"MnConG4","v":0.54286900000000005},{"$f":"MnConH4","v":-0.24797},{"$f":"MnConI4","v":-0.84075},{"$f":"MnConJ4","v":6.4689940000000004}]
[null,null,null,null,null,200,7,15,95,9.9601830663094901,3.8348113138425171,9.9601830663094901,3.8348113138425171,4.2770298212786183E-2,8.0838397154246705E-2,4.2770298212786183E-2,8.0838397154246705E-2,null,null,null,null,null,null,null,null,8.0838397154246705E-2,1521.5541664600955,1521.5541664600955,1521.5541664600955,8.0838397154246705E-2,16.16767943084934,0.13144454821828733,200,7,15,95,1521.5541664600953,8.0838397154246719E-2,16.167679430849343,0.13144454821828735,"","","","",{"$f":"MnConA5","v":-2.18607},{"$f":"MnConB5","v":0.41129100000000002},{"$f":"MnConC5","v":1.4053549999999999},{"$f":"MnConD5","v":1.331466},{"$f":"MnConE5","v":0.89594600000000002},{"$f":"MnConF5","v":0.76498900000000003},{"$f":"MnConG5","v":0.58196899999999996},{"$f":"MnConH5","v":-0.33407999999999999},{"$f":"MnConI5","v":-0.84075},{"$f":"MnConJ5","v":6.4689940000000004}]
[null,null,null,null,null,200,7,15,110,10.320618833961877,3.8348113138425171,10.320618833961877,3.8348113138425171,4.1276594635795423E-2,8.0838397154246705E-2,4.1276594635795423E-2,8.0838397154246705E-2,null,null,null,null,null,null,null,null,8.0838397154246705E-2,1521.5541664600955,1521.5541664600955,1521.5541664600955,8.0838397154246705E-2,16.16767943084934,0.13144454821828733,200,7,15,110,1521.5541664600953,8.0838397154246719E-2,16.167679430849343,0.13144454821828735,"","","","",{"$f":"MnConA6","v":-2.1831800000000001},{"$f":"MnConB6","v":0.41708000000000001},{"$f":"MnConC6","v":1.4086730000000001},{"$f":"MnConD6","v":1.3308489999999999},{"$f":"MnConE6","v":0.89605999999999997},{"$f":"MnConF6","v":0.88229199999999997},{"$f":"MnConG6","v":0.53675799999999996},{"$f":"MnConH6","v":-0.14474000000000001},{"$f":"MnConI6","v":-0.84075},{"$f":"MnConJ6","v":6.4689940000000004}]
[null,null,null,null,null,200,7,15,155,12.539991647540266,3.8348113138425171,12.539991647540266,3.8348113138425171,3.3971314493144847E-2,8.0838397154246705E-2,3.3971314493144847E-2,8.0838397154246705E-2,null,null,null,null,null,null,null,null,8.0838397154246705E-2,1521.5541664600955,1521.5541664600955,1521.5541664600955,8.0838397154246705E-2,16.16767943084934,0.13144454821828733,200,7,15,155,1521.5541664600953,8.0838397154246719E-2,16.167679430849343,0.13144454821828735,"","","","",{"$f":"MnConA7","v":-2.1828099999999999},{"$f":"MnConB7","v":0.41780600000000001},{"$f":"MnConC7","v":1.4091899999999999},{"$f":"MnConD7","v":1.330654},{"$f":"MnConE7","v":0.89610900000000004},{"$f":"MnConF7","v":0.63015900000000002},{"$f":"MnConG7","v":0.60494899999999996},{"$f":"MnConH7","v":-0.24642},{"$f":"MnConI7","v":-0.84075},{"$f":"MnConJ7","v":6.4689940000000004}]
[null,null,null,null,null,200,7,15,175,13.953618869259074,3.8348113138425171,13.953618869259074,3.8348113138425171,3.0529714477045927E-2,8.0838397154246705E-2,3.0529714477045927E-2,8.0838397154246705E-2,null,null,null,null,null,null,null,null,8.0838397154246705E-2,1521.5541664600955,1521.5541664600955,1521.5541664600955,8.0838397154246705E-2,16.16767943084934,0.13144454821828733,200,7,15,175,1521.5541664600953,8.0838397154246719E-2,16.167679430849343,0.13144454821828735,"","","","",{"$f":"MnConA8","v":-2.18743},{"$f":"MnConB8","v":0.40857199999999999},{"$f":"MnConC8","v":1.403861},{"$f":"MnConD8","v":1.3316699999999999},{"$f":"MnConE8","v":0.89591799999999999},{"$f":"MnConF8","v":0.69047000000000003},{"$f":"MnConG8","v":0.59615799999999997},{"$f":"MnConH8","v":-0.51851999999999998},{"$f":"MnConI8","v":-0.84075},{"$f":"MnConJ8","v":6.4689940000000004}]
[null,null,null,null,null,200,7,15,195,15.742151577370333,3.8348113138425171,15.742151577370333,3.8348113138425171,2.7061103935270434E-2,8.0838397154246705E-2,2.7061103935270434E-2,8.0838397154246705E-2,null,null,null,null,null,null,null,null,8.0838397154246705E-2,1521.5541664600955,1521.5541664600955,1521.5541664600955,8.0838397154246705E-2,16.16767943084934,0.13144454821828733,200,7,15,195,1521.5541664600953,8.0838397154246719E-2,16.167679430849343,0.13144454821828735,"","","","",{"$f":"MnConA9","v":-2.1880199999999999},{"$f":"MnConB9","v":0.40740399999999999},{"$f":"MnConC9","v":1.403173},{"$f":"MnConD9","v":1.3318099999999999},{"$f":"MnConE9","v":0.89588999999999996},{"$f":"MnConF9","v":0.58439799999999997},{"$f":"MnConG9","v":0.63712400000000002},{"$f":"MnConH9","v":-0.53742999999999996},{"$f":"MnConI9","v":-0.84075},{"$f":"MnConJ9","v":6.4689940000000004}]
[null,null,null,null,null,200,7,15,205,null,null,null,null,null,null,null,null,{"$f":" ((($AS24 * $H24) + $AT24) / (($AU24 * ($G24 ^ 2)) - ($AV24 * $G24) + $AW24)) + ($AX24 * (200 ^ $AY24)) + $AZ24","v":16.015616872867881},{"$f":"10 ^ ((BA24 * G24) + BB24)","v":3.8348113138425171},{"$f":"IF(R24<MnFishRef, MnFishRef, R24)","v":16.015616872867881},{"$f":"IF(S24<MnAlgalRef, MnAlgalRef, S24)","v":3.8348113138425171},{"$f":"MnFishRef/T24","v":2.6599037887931016E-2},{"$f":"MnAlgalRef/U24","v":8.0838397154246705E-2},{"$f":"IF(V24>1,1,V24)","v":2.6599037887931016E-2},{"$f":"IF(W24>1,1,W24)","v":8.0838397154246705E-2},{"$f":"IF(X24>Y24,X24,Y24)","v":8.0838397154246705E-2},1521.5541664600955,1521.5541664600955,1521.5541664600955,8.0838397154246705E-2,16.16767943084934,0.13144454821828733,200,7,15,205,1521.5541664600953,8.0838397154246719E-2,16.167679430849343,0.13144454821828735,"","","","",{"$f":"MnConA9","v":-2.1880199999999999},{"$f":"MnConB9","v":0.40740399999999999},{"$f":"MnConC9","v":1.403173},{"$f":"MnConD9","v":1.3318099999999999},{"$f":"MnConE9","v":0.89588999999999996},{"$f":"MnConF9","v":0.58439799999999997},{"$f":"MnConG9","v":0.63712400000000002},{"$f":"MnConH9","v":-0.53742999999999996},{"$f":"MnConI9","v":-0.84075},{"$f":"MnConJ9","v":6.4689940000000004}]

{"sheet":"VersionControl","index":22,"n_rows":9,"n_cols":2,"rows_kept":9,"cut":false,"hidden":true,"merged":[]}
["CURRENT"]
["ApplicationTitle","M-BAT"]
["VersionNumber",30]
["ReleaseNumber","0"]
["ReleaseDate","20 November 2013"]
["Changes","See ChangeLog"]
["VersionTitle",{"$f":"CONCATENATE(VersionNumber, \" (\", ReleaseNumber, \") \", ReleaseDate)","v":"30 (0) 20 November 2013"}]
["FullTitle",{"$f":"B2&\" \"&\"[\"&VersionTitle&\"]\"","v":"M-BAT [30 (0) 20 November 2013]"}]
["FooterTitle",{"$f":"CONCATENATE(\"Version \",VersionNumber,\".\",ReleaseNumber,\", created \",ReleaseDate)","v":"Version 30.0, created 20 November 2013"}]

{"sheet":"ChangeLog","index":23,"n_rows":101,"n_cols":3,"rows_kept":101,"cut":false,"hidden":true,"merged":[]}
["Version","Based on ","Description of Changes"]
["Cu PNEC Estimator 1",null,"BLM turned into automated tool for Cu only, using VBA"]
["Cu PNEC Estimator 2","Cu PNEC Estimator 1","BioF column added to outputs"]
[null,null,"pH domains altered (minimum = 5, max = 8.5)"]
[null,null,"Threshold level set for Cu PNECs (user-configurable).  Calculated PNECs are trimmed to this level.  Instructions amended accordingly."]
[null,null,"Buttons added to clear the sheet and run the programme (and instructions amended accordingly)"]
[null,null,"All numeric input and output columns: format set to 2 decimal places"]
[null,null,"Calculator sheet layout altered (order of columns)"]
[null,null,"Comments column hidden (comments now all shown as float-over boxes on highlighted cells)"]
[null,null,"Calculations written into VBA code as custom functions, rather than formulae in cells"]
[null,null,"Code amended to ignore empty rows, and to include rudimentary validation sequence to encourage users to input adequate, valid data."]
["BLMTool 3.0","Cu PNEC Estimator 2","Design draft for addition of Zn, and new interface (for users and admin)"]
["BLMTool 4.0","BLMTool 3.0","Working draft with Cu and Zn in place"]
["BLMTool5.0","BLMTool 4.0","Added ID column, fixed errors, added units, cosmetic changes to main menu"]
["BLMTool6.0","BLMTool5.0","RCR calculation corrected (was PNEC/BioavailablePEC due to error in code.  Should be BioavailablePEC/PNECGeneric)"]
[null,null,"Addition of boundary conditions for Zn model (PNEC to be trimmed to Generic value if pH <6 or >9)"]
[null,null,"Addition of soft-water threshold for Zn (of 3.1 ug/l) if Ca <7"]
[null,null,"Correction of code so it now picks up Zn measured values from correct column (was picking them up from Cu meas column)"]
[null,null,"Correction of test datasets, for validation of tool"]
["BLMTool7.0","BLMTool6.0","Correction of code, so that Zn PNEC is set to soft water threshold in all instances where Ca <7 (i.e. no PNEC calculation performed, and BioF = 1).  Test data also revised accordingly."]
["BLMTool8.0","BLMTool7.0","Spelling errors on front page corrected"]
["BLMTool8.1","BLMTool8.0","Code restructured to ensure consistency, to take account of new validation schedule and new parameter bands, and to allow easier addition of new metals in future."]
["BLMTool8.2","BLMTool8.1","Addition of Extended BioF calculation"]
[null,null,"Code tested for errors and de-bugged. "]
[null,null,"Instructions re-worded"]
[null,null,"Front-page layout altered and tidied"]
["BLMTool9.0","BLMTool8.2","Passwords re-set"]
["BLMTool10.0","BLMTool9.0","Deleted header (with version number) and replaced with footer (intro page only)"]
[null,null,"Altered colour scheme to fit Agency branding"]
[null,null,"Altered default font and size"]
[null,null,"Renamed \"Main Menu\" as \"Introduction\""]
[null,null,"Altered text on introduction page"]
[null,null,"Renamed \"PNECCalculator\" sheet as \"Screening Tool\""]
[null,null,"Added Help button and Help sheet (currently contains no Help text)"]
[null,null,"Added Glossary button and Glossary sheet (currently contains no definitions)"]
[null,null,"Removed WCA logo (awaiting EA logo)"]
[null,null,"Altered text on message box that shows when calculation completes"]
[null,null,"Altered colour of copper results to pale orange "]
[null,null,"Altered pH range for the BioF Extender tool (>=4 to <5.5 for Cu; >=4 to <6 for Zn)"]
[null,null,"Removed \"sensitive conditions\" phrase from flags outside pH range"]
[null,null,"Corrected code to show BioF Flag for whenpH>=9 for Zn (i.e. 100% availability assumed)"]
[null,null,"Altered case (Zinc to zinc) in Ca input flag"]
[null,null,"Altered code to highlight RCR, BioM, PNEC and BioF in red, where RCR >1 (and to add flag to RCR and BioM)"]
["BLMTool11.0","BLMTool10.0","Updated glossary"]
["BLMTool12.0","BLMTool11.0","Added manganese mockup (identical to zinc)"]
["BLMTool13.0","BLMTool12.0","Added equations and constants for manganese, and amended code for Mn validation sequence and warning messages"]
["BLMTool14.0","BLMTool13.0","Introduction of second Zn threshold value of 10.9, and adjustment of PNECs using ratio between the two threshold values"]
[null,null,"Introduction of fish and algal reference values to Mn model, to generate BioFs from EC10s. BioF limited to 1. PNEC = EQS/BioF."]
["BLMTool15.0","BLMTool14.0","Mn bug fixed, and BioF flag text altered."]
["BLMTool16.0","BLMTool15.0","Textual change to glossary"]
[null,null,"Bug correction to Mn model"]
["BLMTool17.0","BLMTool16.0","Mn model altered so EC10 minimum is set to the reference value (for fish or algae, as appropriate)"]
["BLMTool18.0","BLMTool17.0","Errors corrected in the Zn BioF extender"]
[null,null,"Removal of Zn PNEC-adjustment (i.e. removal ZnThreshold ratio as multiplier on final PNEC)"]
[null,null,"Zn BioFs calculated using old threshold of 7.8"]
[null,null,"Zn PNECs calculated Generic PNEC of 10.9"]
["BLMTool19.0","BLMTool18.0","Zn, Mn and Cu RCR calculation altered to = (Bioavailable Metal Concentration / Threshold value)"]
[null,null,"Test-data sheets updated for all three metals, to match current calculation structure"]
["BLMTool20.0","BLMTool19.0","Change to colour of flag for Cu where RCR >1"]
[null,null,"Textual edits"]
["BLMTool22.0","BLMTool20.0","Zinc calculation altered to use new formula, in which the constants do not change regardless of the input data for pH, DOC and Ca."]
[null,null,"Zinc test-data sheet also updated with new formula for zinc."]
[null,null,"Locked Zn threshold so that users cannot edit it (even if logged in to admin section) without unprotecting the sheet manually"]
[null,null,"Edited Zn constants sheet, and locked cells so that users cannot edit values (even if logged in to admin section) without unprotecting the sheet manually"]
["BLMTool23.0","BLMTool22.0","Locked Mn and Cu thresholds so that users cannot edit it (even if logged in to admin section) without unprotecting the sheet manually"]
[null,null,"Increased width of Location and Waterbody columns to accommodate 36 char and 14 char, respectively (in sheet \"Screening Tool\")."]
["BLMTool24.0","BLMTool23.0","Protection rules changed on sheet \"Screening Tool\", to allow users to select cells containing results, for manual copying to other sheets and documents."]
[null,null,"White highlighting of results removed for all metals. Results only highlighted (in red) when the PNEC is exceeded."]
[null,null,"For copper, comment removed from results when the pH extender is in use (i.e. from pH 5.4 to pH 4)."]
[null,null,"For copper, comment changed for results when the full pH range is exceeded (< pH 4 or >pH8.5). Was ‘pH outside validation range. Generic PNEC has been used.’ Is now: ‘pH outside of range. 100% bioavailability assumed’"]
[null,null,"All comments removed from the BIOF and risk characterization ratio columns as these are duplicated in other columns."]
[null,null,"For manganese, when the predicted PNEC is at or below the generic PNRC, comment simplified to \"Sensitive Conditions\"."]
["BLMTool25.0","BLMTool24.0","For copper, pH now capped at 8.5 and this value used as a default for calculating PNEC if pH was over 8.5.  When this occurs, comment on PNEC reads \"pH outside upper range, pH 8.5 assumed\"."]
[null,null,"For copper, when pH extender is used (i.e. pH 4 to <pH5) AND condtions are sensitive AND the calculated BioF is less than 100%, then the PNEC comment is \"Sensitive conditions.\" However, if pH is >=100%, the PNEC comment is \"Sensitive conditions, generic PNEC applies.\""]
[null,null,"To clarify the system for selecting/flagging results, sheets \"Cu Requirements\", \"Zn Requirements\" and \"Mn Requirements\" added"]
[null,null,"Copper calculation code overhauled to accommodate changes"]
[null,null,"CuTestResults updated to reflect recent changes to requirements"]
["BLMTool26.0","BLMTool25.0","Cu code corrected to pick up pH default value when using the Extender calculation (i.e. pH Band 2)"]
[null,null,"Cu test results sheet updated"]
["BLMTool27.0","BLMTool26.0","Cu calculation replaced by a function with 80 constants"]
[null,null,"Screening Tool and Intermediate Sheets formatting limited to 1000 rows"]
[null,null,"Some redundant code left over from previous versions stripped out for all 3 metals"]
[null,null,"Cu flagging removed until further notice."]
["BLMTool28.0","BLMTool27.0","Cu pH-range limits replaced as follows:"]
[null,null,"pH <4, PNEC = generic value for Copper"]
[null,null,"pH >4 <5.5, PNEC calculated from extended BioF, using default pH value of 5.5"]
[null,null,"pH >5.5 <8.5, PNEC and BioF calculated using unadjusted input values"]
[null,null,"pH >8.5, PNEC and BioF calculated using default pH of 8.5"]
[null,null,"All flagging for Cu (except for RCR > 1) remains switched off until further notice."]
[null,null,"Cu Test Results Sheet updated"]
["BLMTool29.0","BLMTool28.0","Edits to terminology"]
[null,null,"Edits to introductory text and Glossary"]
[null,null,"Removal of Help button from introductory page"]
[null,null,"Introduction"]
[null,null,"Update to Summary Sheets, to reflect current logic for each metal, and flagging requirements"]
[null,null,"Created separate sheet to store flag messages"]
[null,null,"Updated programs in \"Developers Tools\" module"]
["BLMTool30.0","BLMTool29.0","Added Ni"]
[null,null,"Flagging and highlighting simplified"]
[null,null,"pH or pH & Ca outside range: outside validated range: seek assisstance"]
[null,null,"Ca above upper range: outisde validated range"]

{"sheet":"Cu Summary","index":24,"n_rows":32,"n_cols":16,"rows_kept":32,"cut":false,"hidden":true,"merged":[[2,3,2,4],[3,3,3,4],[4,13,5,13],[6,13,7,13],[8,13,9,13]]}
["Copper"]
[]
["Overarching Condition",null,null,"Intermediate Condition",null,"Result"]
["Measured pH","Measured Ca","Measured DOC",null,null,"PNEC Displayed","PNEC Flag","BioF Displayed","BioM Calculated","RCR Calculated","BioM Flag","PNEC Highlight","BioM Highlight","Ca Flag","pH Flag","DOC Flag"]
["<6.0","<3.1","<=10.0","PNEC Default[pH-low/calcium-low] (pH and Ca input values forced to default value of 6.0 and 3.0 respectively)","< PNECGeneric","PNEC Generic","Sensitive conditions","BioF Basic",null,null,null,null,null,{"$f":"flagCuCaLow","v":"The measured Ca is below the lower limit of the validated range for Cu. The Site-specific PNEC has been calculated using a Ca value of 3.1. For furthur clarification please seek advice."},{"$f":"flagCupHLow","v":"The measured pH is below the lower limit of the validated range for Cu. The Site-specific PNEC has been calculated using a pH value of 6. For furthur clarification please seek advice."}]
[null,null,null,null,">= PNECGeneric","PNEC Basic",null,null,null,null,null,null,null,null,{"$f":"flagCupHLow","v":"The measured pH is below the lower limit of the validated range for Cu. The Site-specific PNEC has been calculated using a pH value of 6. For furthur clarification please seek advice."}]
[">6.0 to 8.5","<3.1","<=10.0","PNEC Default[Ca-low] (Ca input value forced to default value of 8.5)","< PNECGeneric","PNEC Generic","Sensitive conditions","BioF Basic",null,null,null,null,null,{"$f":"flagCuCaLow","v":"The measured Ca is below the lower limit of the validated range for Cu. The Site-specific PNEC has been calculated using a Ca value of 3.1. For furthur clarification please seek advice."}]
[null,null,null,null,">= PNECGeneric","PNEC Basic"]
[">8.5","<3.1","<=10.0","PNEC Default[pH-high/Ca-low] (pH  and Ca input values forced to default value of 8.5 and 3.0 respectively)","< PNECGeneric","PNEC Generic","Sensitive conditions","BioF Basic",null,null,null,null,null,{"$f":"flagCuCaLow","v":"The measured Ca is below the lower limit of the validated range for Cu. The Site-specific PNEC has been calculated using a Ca value of 3.1. For furthur clarification please seek advice."},{"$f":"flagCupHLow","v":"The measured pH is below the lower limit of the validated range for Cu. The Site-specific PNEC has been calculated using a pH value of 6. For furthur clarification please seek advice."}]
[null,null,null,null,">= PNECGeneric","PNEC Basic",null,null,null,null,null,null,null,null,{"$f":"flagCupHHigh","v":"The measured pH is above the upper limit of the validated range for Cu. The Site-specific PNEC has been calculated using a pH value of 8.5. For furthur clarification please seek advice."}]
["<6.0",">93.0","<=10.0","PNEC Default[pH-low/Ca - high] (pH and Ca input value forced to default values of 6.0 and 93.0, respectively)","< PNECGeneric","PNEC Generic","Sensitive conditions","BioF Basic",null,null,null,null,null,{"$f":"flagCuCaHigh","v":"The measured Ca is above the upper limit of the validated range for Cu. The Site-specific PNEC has been calculated using a Ca value of 93. For furthur clarification please seek advice."},{"$f":"flagCupHLow","v":"The measured pH is below the lower limit of the validated range for Cu. The Site-specific PNEC has been calculated using a pH value of 6. For furthur clarification please seek advice."}]
[null,null,null,null,">= PNECGeneric","PNEC Basic",null,null,null,null,null,null,null,"The measured Ca is above the upper limit of the validated range for Cu. The Site-specific PNEC has been calculated using a Ca value of 93. For furthur clarification please seek advice.",{"$f":"flagCupHLow","v":"The measured pH is below the lower limit of the validated range for Cu. The Site-specific PNEC has been calculated using a pH value of 6. For furthur clarification please seek advice."}]
[">6.0 to 8.5",">93.0","<=10.0","PNEC Default[Ca-high] ( Ca input value forced to default value of 93.0)","< PNECGeneric","PNEC Generic","Sensitive conditions","BioF Basic",null,null,null,null,null,"The measured Ca is above the upper limit of the validated range for Cu. The Site-specific PNEC has been calculated using a Ca value of 93. For furthur clarification please seek advice."]
[null,null,null,null,">= PNECGeneric","PNEC Basic",null,null,null,null,null,null,null,"The measured Ca is above the upper limit of the validated range for Cu. The Site-specific PNEC has been calculated using a Ca value of 93. For furthur clarification please seek advice."]
[">8.5",">93.0","<=10.0","PNEC Default[pH-high/Ca -high] (pH and Ca input value forced to default values of 8.5 and 93.0, respectively)","< PNECGeneric","PNEC Generic","Sensitive conditions","BioF Basic",null,null,null,null,null,"The measured Ca is above the upper limit of the validated range for Cu. The Site-specific PNEC has been calculated using a Ca value of 93. For furthur clarification please seek advice.",{"$f":"flagCupHHigh","v":"The measured pH is above the upper limit of the validated range for Cu. The Site-specific PNEC has been calculated using a pH value of 8.5. For furthur clarification please seek advice."}]
[null,null,null,null,">= PNECGeneric","PNEC Basic",null,null,null,null,null,null,null,"The measured Ca is above the upper limit of the validated range for Cu. The Site-specific PNEC has been calculated using a Ca value of 93. For furthur clarification please seek advice.",{"$f":"flagCupHHigh","v":"The measured pH is above the upper limit of the validated range for Cu. The Site-specific PNEC has been calculated using a pH value of 8.5. For furthur clarification please seek advice."}]
["<6.0","<=93.0","<=10.0","PNEC Default[pH-low/DOC] (pH and DOC input value forced to default values of 6.0 and 19.0, respectively)","< PNECGeneric","PNEC Generic","Sensitive conditions","BioF Basic",null,null,null,null,null,null,{"$f":"flagCupHLow","v":"The measured pH is below the lower limit of the validated range for Cu. The Site-specific PNEC has been calculated using a pH value of 6. For furthur clarification please seek advice."}]
[null,null,null,null,">= PNECGeneric","PNEC Basic",null,null,null,null,null,null,null,null,{"$f":"flagCupHLow","v":"The measured pH is below the lower limit of the validated range for Cu. The Site-specific PNEC has been calculated using a pH value of 6. For furthur clarification please seek advice."}]
[">6.0 to 8.5","<=93.0","<=10.0","PNEC Default[DOC] (DOC input value forced to default value of 19.0)","< PNECGeneric","PNEC Generic","Sensitive conditions","BioF Basic"]
[null,null,null,null,">= PNECGeneric","PNEC Basic"]
[">8.5","<=93.0","<=10.0","PNEC Default[pH-high/DOC] (pH and DOC input values forced to default values of 8.5 and 19.0, respectively)","< PNECGeneric","PNEC Generic","Sensitive conditions","BioF Basic",null,null,null,null,null,null,{"$f":"flagCupHHigh","v":"The measured pH is above the upper limit of the validated range for Cu. The Site-specific PNEC has been calculated using a pH value of 8.5. For furthur clarification please seek advice."}]
[null,null,null,null,">= PNECGeneric","PNEC Basic",null,null,null,null,null,null,null,null,{"$f":"flagCupHHigh","v":"The measured pH is above the upper limit of the validated range for Cu. The Site-specific PNEC has been calculated using a pH value of 8.5. For furthur clarification please seek advice."}]
["<6.0",">93.0","<=10.0","PNEC Default[pH-low/Ca/DOC] (pH, Ca and DOC input value forced to default values of 6.0,  93.0 and 19.0, respectively)","< PNECGeneric","PNEC Generic","Sensitive conditions","BioF Basic",null,null,null,null,null,{"$f":"flagCuCaHigh","v":"The measured Ca is above the upper limit of the validated range for Cu. The Site-specific PNEC has been calculated using a Ca value of 93. For furthur clarification please seek advice."},{"$f":"flagCupHLow","v":"The measured pH is below the lower limit of the validated range for Cu. The Site-specific PNEC has been calculated using a pH value of 6. For furthur clarification please seek advice."}]
[null,null,null,null,">= PNECGeneric","PNEC Basic",null,null,null,null,null,null,null,"The measured Ca is above the upper limit of the validated range for Cu. The Site-specific PNEC has been calculated using a Ca value of 93. For furthur clarification please seek advice.",{"$f":"flagCupHLow","v":"The measured pH is below the lower limit of the validated range for Cu. The Site-specific PNEC has been calculated using a pH value of 6. For furthur clarification please seek advice."}]
[">6.0 to 8.5",">93.0","<=10.0","PNEC Default[Ca/DOC] (Ca and DOC input value forced to default values of 93.0 and 19.0, respectively)","< PNECGeneric","PNEC Generic","Sensitive conditions","BioF Basic",null,null,null,null,null,"The measured Ca is above the upper limit of the validated range for Cu. The Site-specific PNEC has been calculated using a Ca value of 93. For furthur clarification please seek advice."]
[null,null,null,null,">= PNECGeneric","PNEC Basic",null,null,null,null,null,null,null,"The measured Ca is above the upper limit of the validated range for Cu. The Site-specific PNEC has been calculated using a Ca value of 93. For furthur clarification please seek advice."]
[">8.5",">93.0","<=10.0","PNEC Default[pH-high/Ca/DOC] (pH, Ca and DOC input values forced to default values of 8.5,  93.0 and 19.0 respectively)","< PNECGeneric","PNEC Generic","Sensitive conditions","BioF Basic",null,null,null,null,null,"The measured Ca is above the upper limit of the validated range for Cu. The Site-specific PNEC has been calculated using a Ca value of 93. For furthur clarification please seek advice.",{"$f":"flagCupHHigh","v":"The measured pH is above the upper limit of the validated range for Cu. The Site-specific PNEC has been calculated using a pH value of 8.5. For furthur clarification please seek advice."}]
[null,null,null,null,">= PNECGeneric","PNEC Basic",null,null,null,null,null,null,null,"The measured Ca is above the upper limit of the validated range for Cu. The Site-specific PNEC has been calculated using a Ca value of 93. For furthur clarification please seek advice.",{"$f":"flagCupHHigh","v":"The measured pH is above the upper limit of the validated range for Cu. The Site-specific PNEC has been calculated using a pH value of 8.5. For furthur clarification please seek advice."}]
["All","All","All","Measured","empty",null,null,null,"No","No"]
[null,null,null,null,"not empty",null,null,null,"Yes","Yes"]
[null,null,null,"RCR",">1",null,null,null,null,null,null,"White on red","White on red"]
[null,null,null,null,"<=1"]

{"sheet":" Nickel Summary","index":25,"n_rows":28,"n_cols":16,"rows_kept":28,"cut":false,"hidden":true,"merged":[[4,14,10,14],[18,14,23,14],[2,3,2,4],[3,3,3,4],[4,0,10,0],[11,0,17,0],[18,0,24,0]]}
[null,"Nickel"]
[]
[null,"Overarching Condition",null,"Intermediate Condition",null,"Result"]
["Measured pH","Measured Ca","Measured DOC",null,null,"PNEC Displayed","PNEC Flag","BioF Displayed","BioM Calculated","RCR Calculated","BioM Flag","PNEC Highlight","BioM Highlight","Ca Flag","pH Flag","DOC Flag"]
["<6.5","<2.0",null,null,null,null,null,null,null,null,null,null,null,{"$f":"flagNiCaLow","v":"The measured Ca is below the lower limit of the validated range for Ni. The Site-specific PNEC has been calculated using a Ca value of 2. For furthur clarification please seek advice."},{"$f":"flagNipHLow","v":"The measured pH is below the lower limit of the validated range for Ni. The Site-specific PNEC has been calculated using a pH value of 6.5. For furthur clarification please seek advice."}]
[null,"<=88.0","<=20.0","PNEC Basic","< PNECGeneric","PNEC Generic","Sensitive conditions","BioF Basic"]
[null,null,null,null,">= PNECGeneric","PNEC Basic",null,"BioF Basic"]
[null,"<=88.0",">20.0","PNEC Default[DOC] (DOC input value forced to default value of 20.0)","< PNECGeneric","PNEC Generic","Sensitive conditions","BioF Basic"]
[null,null,null,null,">= PNECGeneric","PNEC Default [DOC]",null,"BioF Basic"]
[null,">88.0","<=20.0","PNEC Default[Ca] (Ca input value forced to default values of 88.0)","< PNECGeneric","PNEC Generic","Sensitive conditions","BioF Basic",null,null,null,null,null,{"$f":"flagNiCaHigh","v":"The measured Ca is above the upper limit of the validated range for Ni. The Site-specific PNEC has been calculated using a Ca value of 88. For furthur clarification please seek advice."}]
[null,null,null,null,">= PNECGeneric","PNEC Default [Ca]",null,"No BioF Displayed"]
[">6.5 and <=8.7","<2.0",null,null,null,null,null,null,null,null,null,null,null,{"$f":"flagNiCaLow","v":"The measured Ca is below the lower limit of the validated range for Ni. The Site-specific PNEC has been calculated using a Ca value of 2. For furthur clarification please seek advice."}]
[null,"<=88.0","<=20.0","PNEC Basic","< PNECGeneric","PNEC Generic","Sensitive conditions","BioF Basic"]
[null,null,null,null,">= PNECGeneric","PNEC Basic",null,"BioF Basic"]
[null,"<=88.0",">20.0","PNEC Default[DOC] (DOC input value forced to default value of 20.0)","< PNECGeneric","PNEC Generic","Sensitive conditions","BioF Basic"]
[null,null,null,null,">= PNECGeneric","PNEC Default [DOC]",null,"BioF Basic"]
[null,">88.0","<=20.0","PNEC Default[Ca] (Ca input value forced to default values of 88.0)","< PNECGeneric","PNEC Generic","Sensitive conditions","BioF Basic",null,null,null,null,null,{"$f":"flagNiCaHigh","v":"The measured Ca is above the upper limit of the validated range for Ni. The Site-specific PNEC has been calculated using a Ca value of 88. For furthur clarification please seek advice."}]
[null,null,null,null,">= PNECGeneric","PNEC Default [Ca]",null,"No BioF Displayed"]
[">8.7","<2.0",null,null,null,null,null,null,null,null,null,null,null,{"$f":"flagNiCaLow","v":"The measured Ca is below the lower limit of the validated range for Ni. The Site-specific PNEC has been calculated using a Ca value of 2. For furthur clarification please seek advice."},{"$f":"flagNipHLow","v":"The measured pH is below the lower limit of the validated range for Ni. The Site-specific PNEC has been calculated using a pH value of 6.5. For furthur clarification please seek advice."}]
[null,"<=88.0","<=20.0","PNEC Basic","< PNECGeneric","PNEC Generic","Sensitive conditions","BioF Basic"]
[null,null,null,null,">= PNECGeneric","PNEC Basic",null,"BioF Basic"]
[null,"<=88.0",">20.0","PNEC Default[DOC] (DOC input value forced to default value of 20.0)","< PNECGeneric","PNEC Generic","Sensitive conditions","BioF Basic"]
[null,null,null,null,">= PNECGeneric","PNEC Default [DOC]",null,"BioF Basic"]
[null,">88.0","<=20.0","PNEC Default[Ca] (Ca input value forced to default values of 88.0)","< PNECGeneric","PNEC Generic","Sensitive conditions","BioF Basic",null,null,null,null,null,{"$f":"flagNiCaHigh","v":"The measured Ca is above the upper limit of the validated range for Ni. The Site-specific PNEC has been calculated using a Ca value of 88. For furthur clarification please seek advice."}]
[null,"All","All","Measured","empty",null,null,null,"No","No"]
[null,null,null,null,"not empty",null,null,null,"Yes","Yes"]
[null,null,null,"RCR",">1",null,null,null,null,"White on red","Bioavailable metal concentration exceeds PNEC based on site specific conditions"]
[null,null,null,null,"<=1"]

{"sheet":"Zn Summary","index":26,"n_rows":27,"n_cols":15,"rows_kept":27,"cut":false,"hidden":true,"merged":[[25,14,26,14],[3,12,4,12],[3,13,4,13],[3,11,4,11],[2,3,4,4],[3,5,4,5],[3,6,4,6],[3,7,4,7],[3,10,4,10]]}
["ZINC"]
[]
["Overarching Conditions",null,null,"Intermediate Conditions",null,"Result"]
["pH","Ca","DOC",null,null,"PNEC Displayed","Flag PNEC","BioF Displayed","Calculate",null,"Flag BioM","Highlight PNEC","Highlight BioM","Flag Ca","pH Flag"]
[null,null,null,null,null,null,null,null,"BioM","RCR"]
["<6.0","<3",null,"PNEC Default[pH-low] (pH input value forced to default value of 6.0)","<=PNECGeneric","PNECGeneric",{"$f":"ZnPNECFlag","v":"Sensitive conditions"},"BioF Basic",null,null,null,null,null,{"$f":"flagZnCaLow","v":"The measured Ca is below the lower limit of the validated range for Zn. The Site-specific PNEC has been calculated using a Ca value of 3. For furthur clarification please seek advice."},{"$f":"flagZnpHLow","v":"The measured pH is below the lower limit of the validated range for Zn. The Site-specific PNEC has been calculated using a pH value of 6. For furthur clarification please seek advice."}]
[null,null,null,null,">PNECGeneric","PNECBasic",null,"BioF Basic"]
[">6.0 or less than 8.0","<3",null,"PNEC Basic","<=PNECGeneric","PNECGeneric",{"$f":"ZnPNECFlag","v":"Sensitive conditions"},"BioF Basic",null,null,null,null,null,{"$f":"flagZnCaLow","v":"The measured Ca is below the lower limit of the validated range for Zn. The Site-specific PNEC has been calculated using a Ca value of 3. For furthur clarification please seek advice."}]
[null,null,null,null,">PNECGeneric","PNECBasic",null,"BioF Basic"]
["> or equal to 8.0","<3",null,"PNEC Default[pH-High] (pH input value forced to default value of 8.0)","<=PNECGeneric","PNECGeneric",{"$f":"ZnPNECFlag","v":"Sensitive conditions"},"BioF Basic",null,null,null,null,null,{"$f":"flagZnCaLow","v":"The measured Ca is below the lower limit of the validated range for Zn. The Site-specific PNEC has been calculated using a Ca value of 3. For furthur clarification please seek advice."},{"$f":"flagZnpHHigh","v":"The measured pH is above the upper limit of the validated range for Zn. The Site-specific PNEC has been calculated using a pH value of 8. For furthur clarification please seek advice."}]
[null,null,null,null,">PNECGeneric","PNECBasic",null,"BioF Basic"]
["<6.0",">160",null,"PNEC Default[pH-low] (pH input value forced to default value of 6.0)","<=PNECGeneric","PNECGeneric","Sensitive conditions","BioF Basic",null,null,null,null,null,{"$f":"flagZnCaHigh","v":"The measured Ca is above the upper limit of the validated range for Zn. The Site-specific PNEC has been calculated using a Ca value of 160. For furthur clarification please seek advice."},"The measured pH is below the lower limit of the validated range for Zn. The Site-specific PNEC has been calculated using a pH value of 6. For furthur clarification please seek advice."]
[null,null,null,null,">PNECGeneric","PNECBasic",null,"BioF Basic"]
[">6.0 or less than 8.0",">160",null,"PNEC Basic","<=PNECGeneric","PNECGeneric","Sensitive conditions","BioF Basic",null,null,null,null,null,{"$f":"flagZnCaHigh","v":"The measured Ca is above the upper limit of the validated range for Zn. The Site-specific PNEC has been calculated using a Ca value of 160. For furthur clarification please seek advice."}]
[null,null,null,null,">PNECGeneric","PNECBasic",null,"BioF Basic"]
["> or equal to 8.0",">160",null,"PNEC Default[pH-High] (pH input value forced to default value of 8.0)","<=PNECGeneric","PNECGeneric","Sensitive conditions","BioF Basic",null,null,null,null,null,{"$f":"flagZnCaHigh","v":"The measured Ca is above the upper limit of the validated range for Zn. The Site-specific PNEC has been calculated using a Ca value of 160. For furthur clarification please seek advice."},"The measured pH is above the upper limit of the validated range for Zn. The Site-specific PNEC has been calculated using a pH value of 8. For furthur clarification please seek advice."]
[null,null,null,null,">PNECGeneric","PNECBasic",null,"BioF Basic"]
["<6.0","3>  <160",null,"PNEC Default[pH-low] (pH input value forced to default value of 6.0)","<=PNECGeneric","PNECGeneric","Sensitive conditions","BioF Basic",null,null,null,null,null,null,"The measured pH is below the lower limit of the validated range for Zn. The Site-specific PNEC has been calculated using a pH value of 6. For furthur clarification please seek advice."]
[null,null,null,null,">PNECGeneric","PNECBasic",null,"BioF Basic"]
[">6.0 or less than 8.0","3>  <160",null,"PNEC Basic","<=PNECGeneric","PNECGeneric","Sensitive conditions","BioF Basic"]
[null,null,null,null,">PNECGeneric","PNECBasic",null,"BioF Basic"]
["> or equal to 8.0","3>  <160",null,"PNEC Default[pH-High] (pH input value forced to default value of 8.0)","<=PNECGeneric","PNECGeneric","Sensitive conditions","BioF Basic",null,null,null,null,null,null,"The measured pH is above the upper limit of the validated range for Zn. The Site-specific PNEC has been calculated using a pH value of 8. For furthur clarification please seek advice."]
[null,null,null,null,">PNECGeneric","PNECBasic",null,"BioF Basic"]
["All","All ","All","Measured","Empty",null,null,null,"No","No"]
[null,null,null,null,"Not empty",null,null,null,"Yes","Yes"]
[null,null,null,"RCR",">1",null,null,null,null,null,{"$f":"ZnBioMFlag","v":"Bioavailable metal concentration exceeds PNEC based on site-specific conditions."},"white on red","white on red"]
[null,null,null,null,"<=1"]

{"sheet":"Ni Summary","index":27,"n_rows":16,"n_cols":14,"rows_kept":16,"cut":false,"hidden":true,"merged":[[2,3,2,4],[3,3,3,4]]}
["Nickel"]
[]
["Overarching Condition",null,null,"Intermediate Condition",null,"Result"]
["Measured pH","Measured Ca","Measured DOC",null,null,"PNEC Displayed","PNEC Flag","BioF Displayed","BioM Calculated","RCR Calculated","BioM Flag","PNEC Highlight","BioM Highlight","Ca Flag"]
["All","<=88.0","<=20","PNEC Basic","< PNECGeneric","PNECGeneric",{"$f":"NiPNECFlag","v":"Sensitive conditions"},"BioF Basic"]
[null,null,null,null,">= PNECGeneric","PNEC Basic"]
["All","<=88.0",">20","PNEC Default[DOC] (DOC input value forced to default value of 20.0)","< PNECGeneric","PNECGeneric",{"$f":"NiPNECFlag","v":"Sensitive conditions"},"BioF Basic"]
[null,null,null,null,">=PNECGeneric","PNEC Default [DOC]"]
["All",">88.0","<=20","PNEC Default[Ca] (Ca input value forced to default value of 88.0)","< PNECGeneric","PNECGeneric",{"$f":"NiPNECFlag","v":"Sensitive conditions"},"BioF Basic"]
[null,null,null,null,">=PNECGeneric","PNEC Default [Ca]"]
["All",">88.0",">20","PNEC Default[DOC/Ca] (Ca and DOC input values forced to default values of 88.0 and 20.0, respectively)","< PNECGeneric","PNECGeneric",{"$f":"NiPNECFlag","v":"Sensitive conditions"},"BioF Basic"]
[null,null,null,null,">=PNECGeneric","PNEC Default [DOC/Ca]"]
["All","All","All","Measured","empty",null,null,null,"No","No"]
[null,null,null,null,"not empty",null,null,null,"Yes","Yes"]
[null,null,null,"RCR",">1",null,null,null,null,null,{"$f":"NiBioMFlag","v":"Bioavailable metal concentration exceeds PNEC based on site-specific conditions."},"White on red","White on red"]
[null,null,null,null,"<=1"]

{"sheet":"Mn Summary","index":28,"n_rows":45,"n_cols":14,"rows_kept":45,"cut":false,"hidden":true,"merged":[[3,13,4,13],[5,13,16,13],[17,13,28,13],[29,13,40,13],[38,2,39,2],[7,12,8,12],[24,2,25,2],[26,2,27,2],[29,2,30,2],[29,12,30,12],[33,2,34,2],[33,12,35,12],[41,2,42,2],[43,2,44,2],[2,0,4,0],[17,2,18,2],[17,12,18,12],[21,2,22,2],[21,12,23,12],[14,2,15,2],[9,2,10,2],[9,12,11,12],[12,2,13,2],[3,10,4,10],[3,11,4,11],[5,2,6,2],[5,12,6,12],[36,2,37,2],[2,1,4,1],[2,2,4,3],[3,4,4,4],[3,5,4,5],[3,6,4,6]]}
["MANGANESE","MANGANESE"]
[]
["Measured Ph","Measured Calcium","Intermediate Conditions",null,"Result"]
[null,null,null,null,"PNEC Displayed","PNEC Flag","BioF Displayed","Calculate",null,"BioM Flag","PNEC Highlight","BioM Highlight","Ca Flag","pH Flag"]
[null,null,null,null,null,null,null,"BioM","RCR"]
["<5.5","Ca <=1","PNEC Selected","<vaPNEC Generic","PNEC Generic",{"$f":"MnPNECFlag","v":"Sensitive conditions."},"BioF Default Trimmed (fish or algae as appropriate) where Ca default = 1",null,null,null,null,null,null,"The measured pH is below the lower limit of the validated range for Mn. The Site-specific PNEC has been calculated using a pH value of 5.5. For furthur clarification please seek advice."]
[null,null,null,">=PNEC Generic","PNEC Selected","-","BioF Default Trimmed (fish or algae as appropriate) where Ca default = 1"]
[null,null,"Ca for Zn flagged as < 5mg/l","Yes",null,null,null,null,null,null,null,null,{"$f":"MnCaFlag4","v":"Where measured Ca is  below 5 mg/l, the results for zinc are calculated using a default Ca value of 5 mg/l."}]
[null,null,null,"No"]
[null,"Ca >1 to <200","PNEC Selected","<vaPNEC Generic","PNEC Generic",{"$f":"MnPNECFlag","v":"Sensitive conditions."},"BioF Basic Trimmed (fish or algae as appropriate)"]
[null,null,null,">=PNEC Generic","PNEC Selected","-","BioF Basic Trimmed (fish or algae as appropriate)"]
[]
[null,null,"Ca for Zn flagged as < 5mg/l","Yes",null,null,null,null,null,null,null,null,{"$f":"MnCaFlag4","v":"Where measured Ca is  below 5 mg/l, the results for zinc are calculated using a default Ca value of 5 mg/l."}]
[null,null,null,"No",null,null,null,null,null,null,null,null,"-"]
[null,"Ca >=200","vaPNEC Selected","<vaPNEC Generic","vaPNECGeneric",{"$f":"MnPNECFlag","v":"Sensitive conditions."},"BioF Default Trimmed (fish or algae as appropriate) where Ca default = 200"]
[null,null,null,">=PNEC Generic","vaPNECSelected","-","BioF Default Trimmed (fish or algae as appropriate) where Ca default = 200"]
[null,null,"Ca for Zn flagged as < 5mg/l","No",null,null,null,null,null,null,null,null,{"$f":"flagMnCaHigh","v":"The measured Ca is above the upper limit of the validated range for Mn. The Site-specific PNEC has been calculated using a Ca value of 200. For furthur clarification please seek advice."}]
[">5.5 and <8.5","Ca <=1","PNEC Selected","<vaPNEC Generic","PNEC Generic",{"$f":"MnPNECFlag","v":"Sensitive conditions."},"BioF Default Trimmed (fish or algae as appropriate) where Ca default = 1"]
[null,null,null,">=PNEC Generic","PNEC Selected","-","BioF Default Trimmed (fish or algae as appropriate) where Ca default = 1"]
[null,null,"Ca for Zn flagged as < 5mg/l","Yes",null,null,null,null,null,null,null,null,{"$f":"MnCaFlag4","v":"Where measured Ca is  below 5 mg/l, the results for zinc are calculated using a default Ca value of 5 mg/l."}]
[null,null,null,"No",null,null,null,null,null,null,null,null,{"$f":"flagMnCaLow","v":"The measured Ca is below the lower limit of the validated range for Mn. The Site-specific PNEC has been calculated using a Ca value of 1. For furthur clarification please seek advice."}]
[null,"Ca >1 to <200","PNEC Selected","<vaPNEC Generic","PNEC Generic",{"$f":"MnPNECFlag","v":"Sensitive conditions."},"BioF Basic Trimmed (fish or algae as appropriate)"]
[null,null,null,">=PNEC Generic","PNEC Selected","-","BioF Basic Trimmed (fish or algae as appropriate)"]
[]
[null,null,"Ca for Zn flagged as < 5mg/l","Yes",null,null,null,null,null,null,null,null,{"$f":"MnCaFlag4","v":"Where measured Ca is  below 5 mg/l, the results for zinc are calculated using a default Ca value of 5 mg/l."}]
[null,null,null,"No",null,null,null,null,null,null,null,null,"-"]
[null,"Ca >=200","vaPNEC Selected","<vaPNEC Generic","vaPNECGeneric",{"$f":"MnPNECFlag","v":"Sensitive conditions."},"BioF Default Trimmed (fish or algae as appropriate) where Ca default = 200"]
[null,null,null,">=PNEC Generic","vaPNECSelected","-","BioF Default Trimmed (fish or algae as appropriate) where Ca default = 200"]
[null,null,"Ca for Zn flagged as < 5mg/l","No",null,null,null,null,null,null,null,null,{"$f":"flagMnCaHigh","v":"The measured Ca is above the upper limit of the validated range for Mn. The Site-specific PNEC has been calculated using a Ca value of 200. For furthur clarification please seek advice."}]
[">8.5","Ca <=1","PNEC Selected","<vaPNEC Generic","PNEC Generic",{"$f":"MnPNECFlag","v":"Sensitive conditions."},"BioF Default Trimmed (fish or algae as appropriate) where Ca default = 1",null,null,null,null,null,null,{"$f":"flagMnpHHigh","v":"The measured pH is above the upper limit of the validated range for Mn. The Site-specific PNEC has been calculated using a pH value of 8.5. For furthur clarification please seek advice."}]
[null,null,null,">=PNEC Generic","PNEC Selected","-","BioF Default Trimmed (fish or algae as appropriate) where Ca default = 1"]
[null,null,"Ca for Zn flagged as < 5mg/l","Yes",null,null,null,null,null,null,null,null,{"$f":"MnCaFlag4","v":"Where measured Ca is  below 5 mg/l, the results for zinc are calculated using a default Ca value of 5 mg/l."}]
[null,null,null,"No",null,null,null,null,null,null,null,null,{"$f":"MnCaFlag2","v":"The measured Ca is below the allowable range for the manganese model.  Under these conditions, Mn bioavailability may be higher than the model estimates.  In this case, the PNEC shown has been calculated using a minimum Ca value of 1 mg/l. These results should therefore be regarded as tentative."}]
[null,"Ca >1 to <200","PNEC Selected","<vaPNEC Generic","PNEC Generic",{"$f":"MnPNECFlag","v":"Sensitive conditions."},"BioF Basic Trimmed (fish or algae as appropriate)"]
[null,null,null,">=PNEC Generic","PNEC Selected","-","BioF Basic Trimmed (fish or algae as appropriate)"]
[]
[null,null,"Ca for Zn flagged as < 5mg/l","Yes",null,null,null,null,null,null,null,null,{"$f":"MnCaFlag4","v":"Where measured Ca is  below 5 mg/l, the results for zinc are calculated using a default Ca value of 5 mg/l."}]
[null,null,null,"No",null,null,null,null,null,null,null,null,"-"]
[null,"Ca >=200","vaPNEC Selected","<vaPNEC Generic","vaPNECGeneric",{"$f":"MnPNECFlag","v":"Sensitive conditions."},"BioF Default Trimmed (fish or algae as appropriate) where Ca default = 200"]
[null,null,null,">=PNEC Generic","vaPNECSelected","-","BioF Default Trimmed (fish or algae as appropriate) where Ca default = 200"]
[null,null,"Ca for Zn flagged as < 5mg/l","No",null,null,null,null,null,null,null,null,{"$f":"flagMnCaHigh","v":"The measured Ca is above the upper limit of the validated range for Mn. The Site-specific PNEC has been calculated using a Ca value of 200. For furthur clarification please seek advice."}]
["All","All","Measured Mn","Empty",null,null,null,"No","No"]
[null,null,null,"Not empty",null,null,null,"Yes","Yes"]
[null,null,"RCR","<=1",null,null,null,null,null,"-"]
[null,null,null,"> 1",null,null,null,null,null,{"$f":"MnBioMFlag","v":"Bioavailable metal concentration exceeds PNEC based on site-specific conditions."},"White on red","White on red"]

{"sheet":"Flags","index":29,"n_rows":27,"n_cols":2,"rows_kept":27,"cut":false,"hidden":true,"merged":[]}
["Zn Flags"]
["stPNECFlag","Sensitive conditions"]
[null,"Bioavailable metal concentration exceeds PNEC based on site-specific conditions."]
[]
["CuFlags"]
["stFlag1","pH outside validation range. "]
["stFlag2","pH outside lower range. "]
["stFlag3","pH outside upper range. "]
["stFlag4","100% bioavailability assumed. "]
["stFlag5","Result is tentative. "]
["stFlag6","pH 8.5 assumed. "]
["stFlag7","Extension calculation used. "]
["stFlag8","Generic EQS applies. "]
["stFlag9","Sensitive conditons. "]
["stFlag10","Bioavailable metal concentration exceeds PNEC based on site-specific conditions."]
[]
["Mn Flags"]
["stCaFlag1","Where measured Ca is  below 5 mg/l, the results for zinc are calculated using a default Ca value of 5 mg/l. The measured Ca is also below the allowable range for the manganese model.  Under these conditions, Mn bioavailability may be higher than the model estimates.  In this case, the PNEC shown has been calculated using a minimum Ca value of 1 mg/l. These results should therefore be regarded as tentative."]
["stCaFlag2","The measured Ca is below the allowable range for the manganese model.  Under these conditions, Mn bioavailability may be higher than the model estimates.  In this case, the PNEC shown has been calculated using a minimum Ca value of 1 mg/l. These results should therefore be regarded as tentative."]
["stCaFlag3","The measured Ca is above the allowable range for the manganese model.  In this case, the PNEC shown has been calculated using a maximum Ca value of 200 mg/l. These results should therefore be regarded as tentative."]
["stCaFlag4","Where measured Ca is  below 5 mg/l, the results for zinc are calculated using a default Ca value of 5 mg/l."]
["stPNECFlag","Sensitive conditions."]
["stBioMFlag","Bioavailable metal concentration exceeds PNEC based on site-specific conditions."]
[]
["NI Flags"]
["stPNECFlag","Sensitive conditions"]
["stBioMFlag","Bioavailable metal concentration exceeds PNEC based on site-specific conditions."]